Workbook

Sheet Legend
B2: 2025 Community Health Center Cost Report
B3: Legend
B4: Select your Clinic Name in Tab 1, Cell C8
C8: Provider Input (Unlocked)
C9: Calculated/Populated/Linked (Locked)

Sheet 1. Agency Information
B2: Community Health Center Cost Report | I2: Version 7.1
B3: Tab 1 - Agency Information
B4: =C9 -> 0
B7: Organization
A8: Line
A9: 1 | B9: Provider Name
A10: 2 | B10: Federal Employee ID Number (FEIN)
A11: 3 | B11: MassHealth Provider ID
A12: 4 | B12: Medicare Provider Number:
A13: 5 | B13: Mailing Address
A14: 6 | B14: City
A15: 7 | B15: State
A16: 8 | B16: Zip Code
A17: 9 | B17: Main Phone Number
A18: 10 | B18: Fiscal Year Ending
B20: Cost Report Contact Information
A21: 11 | B21: Name
A22: 12 | B22: Title
A23: 13 | B23: Phone Number
A24: 14 | B24: Extension
A25: 15 | B25: E-mail Address
A26: 16 | B26: Executive Director
A27: 17 | B27: Medical Director
A28: 18 | B28: Financial Manager
B31: 2025-01-31
B32: 2025-02-28
B33: 2025-03-31
B34: 2025-04-30
B35: 2025-05-31
B36: 2025-06-30
B37: 2025-07-31
B38: 2025-08-31
B39: 2025-09-30
B40: 2025-10-31
B41: 2025-11-30
B42: 2025-12-31

Sheet 2. Revenue
C2: Community Health Center Cost Report
C3: Tab 2 - Revenue
C4: ='1. Agency Information'!C9 -> 0
A8: Line | B8: A. Third Party Revenues - NPSR | E8: Revenue | F8: Total
A9: 1 | B9: Medicare
A10: 2 | B10: MassHealth - Fee For Service / PCC Plan
A11: 3 | B11: MassHealth - MCO
A12: 4 | B12: MassHealth - ACO
A13: 5 | B13: MassHealth - Dental
A14: 6 | B14: Massachusetts Behavioral Health Partnership
A15: 7 | B15: Commonwealth Care
A16: 8 | B16: Health Safety Net Trust Fund
A17: 9 | B17: Children's Medical Security Plan
A18: 10 | B18: Healthy Start
A19: 11 | B19: Commercial / Private Third Parties
A20: 12 | B20: Patient Fees / Self Pay
A21: 13 | B21: Other
A22: 14 | B22: TOTAL | E22: =SUM(E9:E21) -> 0
A23: 15 | B23: TOTAL NET PATIENT SERVICE REVENUE* | F23: =E22 -> 0
B24: B. Unrestricted Grants, Gifts, & Donations
A25: 16 | B25: Federal
A26: 17 | B26: State - Cost Reimbursement Contracts
A27: 18 | B27: State - Unit Rate Contracts
A28: 19 | B28: Local
A29: 20 | B29: Private
A30: 21 | B30: Donated
A31: 22 | B31: TOTAL UNRESTRICTED GRANTS, GIFTS, & DONATIONS** | F31: =SUM(E25:E30) -> 0
B32: C. Restricted Grants, Gifts, & Donations
A33: 23 | B33: Federal
A34: 24 | B34: State - Cost Reimbursement Contracts
A35: 25 | B35: State - Unit Rate Contracts
A36: 26 | B36: Local
A37: 27 | B37: Private
A38: 28 | B38: Donated
A39: 29 | B39: TOTAL RESTRICTED GRANTS, GIFTS, & DONATIONS** | F39: =SUM(E33:E38) -> 0
B40: D. Other Income
A41: 30 | B41: Contract Revenue **
A42: 31 | B42: Non-Operating Income
A43: 32 | B43: Investment Income
A44: 33 | B44: Capital Grants
A45: 34 | B45: Endowment Grants
A46: 35 | B46: Non-Operating Gains (Losses)
B47: Other with Description
A48: 36
A49: 37
A50: 38
A51: 39
A52: 40
A53: 41
A54: 42 | B54: TOTAL OTHER INCOME | F54: =SUM(E41:E53) -> 0
A55: 43 | B55: TOTAL REVENUE | F55: =SUM(F23,F31,F39,F54) -> 0
A56: 44 | B56: E. Other Adjustments
A57: 45 | B57: TOTAL *** | F57: =F55-F56 -> 0
A58: 46 | B58: Total (Part B + Part C + Contract Revenue) | F58: =SUM(F31,F39,E41) -> 0
B59: NOTES:
B60: * NPSR must agree with financial Statements and Include Prior Year 3rd Party Settlements
B61: ** Sum of Part B, C and Contract Revenue must tie to Total Grant and Contract Revenue reported on the Financial Statements.
B62: *** Must agree with Financial Statements, excluding Temporarily and Permanently Restricted

Sheet 3. Providers
B2: Community Health Center Cost Report
B3: Tab 3 - Providers
B4: ='1. Agency Information'!C9 -> 0
B6: Please see accompanying Instructions document for guidance on data input.
C8: Staffing
B9: Service Category | C9: Salary or Contractor Expense | E9: Salary or Contractor FTEs | G9: Billable Visits
C10: Employee | D10: Contracted | E10: Employee | F10: Contracted
B11: HEALTHCARE
A12: Line | B12: MEDICAL
A13: 1 | B13: Family Physicians
A14: 2 | B14: General Practitioners
A15: 3 | B15: Internists
A16: 4 | B16: Obstetrician/Gynecologists
A17: 5 | B17: Pediatricians
A18: 6 | B18: Licensed Medical Residents
A19: 7 | B19: Specialty Physicians
A20: 8 | B20: Physician - OBAT
A21: 9 | B21: Sub-Total Physicians | C21: =SUM(C13:C20) -> 0 | D21: =SUM(D13:D20) -> 0 | E21: =SUM(E13:E20) -> 0 | F21: =SUM(F13:F20) -> 0 | G21: =SUM(G13:G20) -> 0
A22: 10 | B22: Nurse Practitioners
A23: 11 | B23: Physician Assistants
A24: 12 | B24: Certified Nurse Midwives
A25: 13 | B25: Sub - Total Medical | C25: =SUM(C21:C24) -> 0 | D25: =SUM(D21:D24) -> 0 | E25: =SUM(E21:E24) -> 0 | F25: =SUM(F21:F24) -> 0 | G25: =SUM(G21:G24) -> 0
B26: NURSES
A27: 14 | B27: Registered Nurses (RNs)
A28: 15 | B28: RN - OBAT
A29: 16 | B29: Licensed Practical Nurses
A30: 17 | B30: Sub - Total Nurses | C30: =SUM(C27:C29) -> 0 | D30: =SUM(D27:D29) -> 0 | E30: =SUM(E27:E29) -> 0 | F30: =SUM(F27:F29) -> 0 | G30: =SUM(G27:G29) -> 0
B31: VISION
A32: 18 | B32: Ophthalmologists
A33: 19 | B33: Optometrists
A34: 20 | B34: Opticians
A35: 21 | B35: Sub - Total Vision | C35: =SUM(C32:C34) -> 0 | D35: =SUM(D32:D34) -> 0 | E35: 0 | F35: 0 | G35: 0
B36: OTHER PROFESSIONAL SERVICES
A37: 22 | B37: Audiologists
A38: 23 | B38: Acupuncturists
A39: 24 | B39: Chiropractors
A40: 25 | B40: Herbalists
A41: 26 | B41: Massage Therapists
A42: 27 | B42: Naturopaths
A43: 28 | B43: Nutritionists/Dieticians
A44: 29 | B44: Registered Dieticians
A45: 30 | B45: Occupational Therapists
A46: 31 | B46: Podiatrists
A47: 32 | B47: Physical Therapists
A48: 33 | B48: Respiratory Therapists
A49: 34 | B49: Speech Therapists/Pathologists
A50: 35 | B50: Traditional Healers
A51: 36 | B51: Other NON-BILLABLE Medical Providers not Listed Above (list below) | C51: =SUM(C52:C56) -> 0 | D51: =SUM(D52:D56) -> 0 | E51: =SUM(E52:E56) -> 0 | F51: =SUM(F52:F56) -> 0 | G51: =SUM(G52:G56) -> 0
A52: 37 | B52: Other Provider Type
A53: 38 | B53: Other Provider Type
A54: 39 | B54: Other Provider Type
A55: 40 | B55: Other Provider Type
A56: 41 | B56: Other Provider Type
A57: 42 | B57: Sub - Total Other Health Services | C57: =SUM(C37:C51) -> 0 | D57: =SUM(D37:D51) -> 0 | E57: 0 | F57: 0 | G57: 0
A58: 43 | B58: SUB-TOTAL MEDICAL | C58: =C25+C35+C30+C57 -> 0 | D58: =D25+D35+D30+D57 -> 0 | E58: =E25+E35+E30+E57 -> 0 | F58: =F25+F35+F30+F57 -> 0 | G58: =G25+G35+G30+G57 -> 0
B60: DENTAL
A61: 44 | B61: General Dentists
A62: 45 | B62: Dental Specialist (DMD-DDS)
A63: 46 | B63: Dental Hygienists
A64: 47 | B64: Other NON-BILLABLE Dental Providers not Listed Above (list below) | C64: =SUM(C65:C69) -> 0 | D64: =SUM(D65:D69) -> 0 | E64: =SUM(E65:E69) -> 0 | F64: =SUM(F65:F69) -> 0 | G64: =SUM(G65:G69) -> 0
A65: 48 | B65: Other Provider Type
A66: 49 | B66: Other Provider Type
A67: 50 | B67: Other Provider Type
A68: 51 | B68: Other Provider Type
A69: 52 | B69: Other Provider Type
A70: 53 | B70: SUB - TOTAL DENTAL | C70: =SUM(C61:C64) -> 0 | D70: =SUM(D61:D64) -> 0 | E70: 0 | F70: 0 | G70: 0
B72: BEHAVIORAL HEALTH
B73: MENTAL HEALTH SERVICES
A74: 54 | B74: Psychiatrists
A75: 55 | B75: Psychologists
A76: 56 | B76: Social Workers | C76: 0 | F76: 0 | G76: 0
A77: 57 | B77: Licensed Independent Clinical Social Worker (LISCW)
A78: 58 | B78: Licensed Clinical Social Worker (LCSW)
A79: 59 | B79: Unlicensed Master of Social Worker (MSW)
A80: 60 | B80: Licensed Mental Health Counselor (LMHC)
A81: 61 | B81: Family Therapists
A82: 62 | B82: Other Licensed Mental Health Providers: | C82: 0 | G82: 0
A83: 63 | B83: Psychiatric Nurse Practitioner
A84: 64 | B84: RNs - Psychiatric and Mental Health
A85: 65 | B85: RN Nurse Counselors
A86: 66 | B86: Unlicensed Mental Health Providers, including trainees (interns or residents) and "Certified" staff
A87: 67 | B87: Sub - Total Mental Health | C87: =SUM(C74:C86) -> 0 | D87: =SUM(D74:D86) -> 0 | E87: =SUM(E74:E86) -> 0 | F87: =SUM(F74:F86) -> 0 | G87: =SUM(G74:G86) -> 0
B88: SUBSTANCE ABUSE SERVICES
A89: 68 | B89: RN Nurse Counselors
A90: 69 | B90: Social Workers | C90: 0 | D90: 0 | E90: 0 | F90: 0 | G90: 0
A91: 70 | B91: Licensed Independent Clinical Social Worker (LISCW)
A92: 71 | B92: Licensed Clinical Social Worker (LCSW)
A93: 72 | B93: Unlicensed Master of Social Worker (MSW)
A94: 73 | B94: Licensed Mental Health Counselor (LMHC)
A95: 74 | B95: Family Therapists
A96: 75 | B96: LADAC/CADAC (if not included in other category above)
A97: 76 | B97: Harm Reduction Specialist
A98: 77 | B98: Recovery Coaches/Peer Support
A99: 78 | B99: Other NON-BILLABLE BH Providers not Listed Above (list below) | C99: =SUM(C100:C104) -> 0 | D99: =SUM(D100:D104) -> 0 | E99: =SUM(E100:E104) -> 0 | F99: =SUM(F100:F104) -> 0 | G99: =SUM(G100:G104) -> 0
A100: 79 | B100: Other Provider Type
A101: 80 | B101: Other Provider Type
A102: 81 | B102: Other Provider Type
A103: 82 | B103: Other Provider Type
A104: 83 | B104: Other Provider Type
A105: 84 | B105: Sub - Total Substance Abuse Services | C105: =SUM(C89:C99) -> 0 | D105: =SUM(D89:D99) -> 0 | E105: 0 | F105: 0 | G105: 0
A106: 85 | B106: SUB-TOTAL BEHAVIORAL HEALTH | C106: =C105+C87 -> 0 | D106: =D105+D87 -> 0 | E106: =E105+E87 -> 0 | F106: =F105+F87 -> 0 | G106: =G105+G87 -> 0
A108: 86 | B108: TOTAL PROVIDERS | C108: =C106+C70+C58 -> 0 | D108: =D106+D70+D58 -> 0 | E108: =E106+E70+E58 -> 0 | F108: =F106+F70+F58 -> 0 | G108: =G106+G70+G58 -> 0

Sheet 4. Non-Providers
B2: Community Health Center Cost Report
B3: Tab 4 - Non-Providers
B4: ='1. Agency Information'!C9 -> 0
B6: Please see accompanying Instructions document for guidance on data input.
B10: Non-Provider Staff
B11: Service Category | C11: Salary or Contractor Expense | E11: Salary or Contractor FTEs
C12: Employee | D12: Contracted | E12: Employee | F12: Contracted
A13: Line | B13: MEDICAL
B14: Other Medical Personnel
A15: 1 | B15: Nursing Director
A16: 2 | B16: Nurse Managers
A17: 3 | B17: Nurse Aides/Assistants (Certified and Uncertified)
A18: 4 | B18: Clinic Aides/Medical Assistants (Certified and Uncertified Medical Technologists)
A19: 5 | B19: Unlicensed Interns and Residents
A20: 6 | B20: EMS/EMT Staff (not credentialed as a nurse)
A21: 7 | B21: Co-op Practice Assistant
A22: 8 | B22: Other Medical Staff not Listed Above (list below) | C22: =SUM(C23:C27) -> 0 | D22: =SUM(D23:D27) -> 0 | E22: =SUM(E23:E27) -> 0 | F22: =SUM(F23:F27) -> 0
A23: 9 | B23: Enter Other Staff Type
A24: 10 | B24: Enter Other Staff Type
A25: 11 | B25: Enter Other Staff Type
A26: 12 | B26: Enter Other Staff Type
A27: 13 | B27: Enter Other Staff Type
A28: 14 | B28: Sub-Total Other Medical Personnel | C28: =SUM(C15:C22) -> 0 | D28: =SUM(D15:D22) -> 0 | E28: 0 | F28: 0
B29: Other Vision Care Staff
A30: 15 | B30: Ophthalmologist/Optometric Assistants
A31: 16 | B31: Ophthalmologist/Optometric Aides
A32: 17 | B32: Ophthalmologist/Optometric Technicians
A33: 18 | B33: Other Vision Staff not Listed Above (list below) | C33: =SUM(C34:C38) -> 0 | D33: =SUM(D34:D38) -> 0 | E33: =SUM(E34:E38) -> 0 | F33: =SUM(F34:F38) -> 0
A34: 19 | B34: Enter Other Staff Type
A35: 20 | B35: Enter Other Staff Type
A36: 21 | B36: Enter Other Staff Type
A37: 22 | B37: Enter Other Staff Type
A38: 23 | B38: Enter Other Staff Type
A39: 24 | B39: Sub-Total Other Vision Staff | C39: =SUM(C30:C33) -> 0 | D39: =SUM(D30:D33) -> 0 | E39: 0 | F39: 0
A40: 25 | B40: SUB-TOTAL MEDICAL | C40: =C28+C39 -> 0 | D40: =D28+D39 -> 0 | E40: =E28+E39 -> 0 | F40: =F28+F39 -> 0
B42: LABORATORY
B43: Laboratory Personnel
A44: 26 | B44: Pathologists
A45: 27 | B45: Medical Technologists
A46: 28 | B46: Laboratory Technicians
A47: 29 | B47: Laboratory Assistants
A48: 30 | B48: Phlebotomists
A49: 31 | B49: Other Laboratory Staff not Listed Above (list below) | C49: =SUM(C50:C54) -> 0 | D49: =SUM(D50:D54) -> 0 | E49: =SUM(E50:E54) -> 0 | F49: =SUM(F50:F54) -> 0
A50: 32 | B50: Enter Other Staff Type
A51: 33 | B51: Enter Other Staff Type
A52: 34 | B52: Enter Other Staff Type
A53: 35 | B53: Enter Other Staff Type
A54: 36 | B54: Enter Other Staff Type
A55: 37 | B55: Sub-Total Laboratory Personnel | C55: =SUM(C44:C49) -> 0 | D55: =SUM(D44:D49) -> 0 | E55: 0 | F55: 0
B57: X-RAY
B58: X-Ray Personnel
A59: 38 | B59: Radiologists
A60: 39 | B60: X-Ray Technologists
A61: 40 | B61: X-Ray Technicians
A62: 41 | B62: Radiology Assistants
A63: 42 | B63: Other Radiology Staff not Listed Above (list below) | C63: =SUM(C64:C68) -> 0 | D63: =SUM(D64:D68) -> 0 | E63: =SUM(E64:E68) -> 0 | F63: =SUM(F64:F68) -> 0
A64: 43 | B64: Enter Other Staff Type
A65: 44 | B65: Enter Other Staff Type
A66: 45 | B66: Enter Other Staff Type
A67: 46 | B67: Enter Other Staff Type
A68: 47 | B68: Enter Other Staff Type
A69: 48 | B69: Sub-Total X-Ray Personnel | C69: =SUM(C59:C63) -> 0 | D69: =SUM(D59:D63) -> 0 | E69: 0 | F69: 0
B71: PHARMACY
B72: Pharmacy Personnel
A73: 49 | B73: Pharmacists, Clinical Pharmacists
A74: 50 | B74: Pharmacy Technicians
A75: 51 | B75: Pharmacist Assistants
A76: 52 | B76: Pharmacy Clerks
A77: 53 | B77: Other Pharmacy Staff not Listed Above (list below) | C77: =SUM(C78:C82) -> 0 | D77: =SUM(D78:D82) -> 0 | E77: =SUM(E78:E82) -> 0 | F77: =SUM(F78:F82) -> 0
A78: 54 | B78: Enter Other Staff Type
A79: 55 | B79: Enter Other Staff Type
A80: 56 | B80: Enter Other Staff Type
A81: 57 | B81: Enter Other Staff Type
A82: 58 | B82: Enter Other Staff Type
A83: 59 | B83: Sub-Total Pharmacy Personnel | C83: =SUM(C73:C77) -> 0 | D83: =SUM(D73:D77) -> 0 | E83: 0 | F83: 0
A84: 60 | B84: SUB-TOTAL PHARMACY | C84: =C83 -> 0 | D84: =D83 -> 0 | E84: =E83 -> 0 | F84: =F83 -> 0
B86: DENTAL
B87: Other Dental
A88: 62 | B88: Director - Dental
A89: 63 | B89: Managers - Dental
A90: 64 | B90: Dental Assistants, Advanced Practice Dental Assistants
A91: 65 | B91: Dental Technicians
A92: 66 | B92: Dental Aides
A93: 67 | B93: Dental Students
A94: 68 | B94: Other Dental Staff not Listed Above (list below) | C94: =SUM(C95:C99) -> 0 | D94: =SUM(D95:D99) -> 0 | E94: =SUM(E95:E99) -> 0 | F94: =SUM(F95:F99) -> 0
A95: 69 | B95: Enter Other Staff Type
A96: 70 | B96: Enter Other Staff Type
A97: 71 | B97: Enter Other Staff Type
A98: 72 | B98: Enter Other Staff Type
A99: 73 | B99: Enter Other Staff Type
A100: 74 | B100: Sub-Total Other Dental | C100: =SUM(C88:C94) -> 0 | D100: =SUM(D88:D94) -> 0 | E100: 0 | F100: 0
A101: 75 | B101: SUB-TOTAL DENTAL | C101: =C100 -> 0 | D101: =D100 -> 0 | E101: =E100 -> 0 | F101: =F100 -> 0
B103: BEHAVIORAL HEALTH
B104: Other Behavioral Health
A105: 77 | B105: Director - Mental Health
A106: 78 | B106: Managers - Mental Health
A107: 79 | B107: Director - Substance Use Disorder
A108: 80 | B108: Managers - Substance Use Disorder
A109: 81 | B109: Other BH Staff not Listed Above (list below) | C109: =SUM(C110:C114) -> 0 | D109: =SUM(D110:D114) -> 0 | E109: =SUM(E110:E114) -> 0 | F109: =SUM(F110:F114) -> 0
A110: 82 | B110: Enter Other Staff Type
A111: 83 | B111: Enter Other Staff Type
A112: 84 | B112: Enter Other Staff Type
A113: 85 | B113: Enter Other Staff Type
A114: 86 | B114: Enter Other Staff Type
A115: 87 | B115: Sub Total Other Behavioral Health | C115: =SUM(C105:C109) -> 0 | D115: =SUM(D105:D109) -> 0 | E115: 0 | F115: 0
A116: 88 | B116: SUB-TOTAL BEHAVIORAL HEALTH | C116: =C115 -> 0 | D116: =D115 -> 0 | E116: =E115 -> 0 | F116: =F115 -> 0
B118: ENABLING
B119: Case Managers
A120: 89 | B120: Case Managers
A121: 90 | B121: Care/Referral Coordinators
A122: 91 | B122: Patient Advocates
A123: 92 | B123: Social Workers
A124: 93 | B124: Public Health Nurses
A125: 94 | B125: Home Health Nurses
A126: 95 | B126: Visiting Nurses
A127: 96 | B127: RN Case Manager
A128: 97 | B128: LPN Case Manager
A129: 98 | B129: Sub-Total Case Managers | C129: =SUM(C120:C128) -> 0 | D129: =SUM(D120:D128) -> 0 | E129: =SUM(E120:E128) -> 0 | F129: =SUM(F120:F128) -> 0
B131: Health Educators
A132: 99 | B132: Family Planning Counselors
A133: 100 | B133: Health Educators
A134: 101 | B134: Social Workers
A135: 102 | B135: Public Health Nurses
A136: 103 | B136: Home Health Nurses
A137: 104 | B137: Visiting Nurses
A138: 105 | B138: Registered Nurses
A139: 106 | B139: Licensed Practical Nurses
A140: 107 | B140: Sub-Total Health Educators | C140: =SUM(C132:C139) -> 0 | D140: =SUM(D132:D139) -> 0 | E140: =SUM(E132:E139) -> 0 | F140: =SUM(F132:F139) -> 0
A142: 108 | B142: Outreach Workers
A143: 109 | B143: Sub-Total Outreach Workers | C143: =C142 -> 0 | D143: =D142 -> 0 | E143: =E142 -> 0 | F143: =F142 -> 0
B145: Patient Transportation Workers
A146: 110 | B146: Patient Transportation Coordinators
A147: 111 | B147: Drivers
A148: 112 | B148: Sub-Total Patient Transportation Workers | C148: =SUM(C146:C147) -> 0 | D148: =SUM(D146:D147) -> 0 | E148: =SUM(E146:E147) -> 0 | F148: =SUM(F146:F147) -> 0
B150: Eligibility Assistance Workers
A151: 113 | B151: Benefit Assistance Workers
A152: 114 | B152: Pharmacy Assistance Program Eligibility Workers
A153: 115 | B153: Eligibility Workers
A154: 116 | B154: Patient Navigators
A155: 117 | B155: Patient Advocates
A156: 118 | B156: Registration Clerks
A157: 119 | B157: Sub-Total Eligibility Assistance Workers | C157: =SUM(C151:C156) -> 0 | D157: =SUM(D151:D156) -> 0 | E157: =SUM(E151:E156) -> 0 | F157: =SUM(F151:F156) -> 0
B159: Interpretation
A160: 120 | B160: Interpreters
A161: 121 | B161: Translators
A162: 122 | B162: Sub-Total Interpretation | C162: =SUM(C160:C161) -> 0 | D162: =SUM(D160:D161) -> 0 | E162: =SUM(E160:E161) -> 0 | F162: =SUM(F160:F161) -> 0
B164: Community Health Workers
A165: 123 | B165: Community Health Workers
A166: 124 | B166: Community Health Advisors or Representatives
A167: 125 | B167: Lay Health Advocates
A168: 126 | B168: Promotoras
A169: 127 | B169: Public Health Advocates (needle exchange)
A170: 128 | B170: Sub-Total Community Health Workers | C170: =SUM(C165:C169) -> 0 | D170: =SUM(D165:D169) -> 0 | E170: =SUM(E165:E169) -> 0 | F170: =SUM(F165:F169) -> 0
A172: 129 | B172: Other Enabling Staff not Listed Above (list below) | C172: =SUM(C173:C177) -> 0 | D172: =SUM(D173:D177) -> 0 | E172: =SUM(E173:E177) -> 0 | F172: =SUM(F173:F177) -> 0
A173: 130 | B173: Other Enabling Staff
A174: 131 | B174: Other Enabling Staff
A175: 132 | B175: Other Enabling Staff
A176: 133 | B176: Other Enabling Staff
A177: 134 | B177: Other Enabling Staff
A178: 135 | B178: SUB-TOTAL ENABLING | C178: =C129+C140+C143+C148+C157+C162+C170+C172 -> 0 | D178: =D129+D140+D143+D148+D157+D162+D170+D172 -> 0 | E178: =E129+E140+E143+E148+E157+E162+E170+E172 -> 0 | F178: =F129+F140+F143+F148+F157+F162+F170+F172 -> 0
B180: ADMINSTRATIVE
B181: Quality Improvement Staff
A182: 136 | B182: QI Director
A183: 137 | B183: QI Nurses
A184: 138 | B184: QI Technicians
A185: 139 | B185: QI Data Specialists
A186: 140 | B186: Statisticians, Analysts
A187: 141 | B187: Quality Assurance/Quality Improvement and HIT/EHR Design and Operation Staff
A188: 142 | B188: Sub-Total Quality Improvement Staff | C188: =SUM(C182:C187) -> 0 | D188: =SUM(D182:D187) -> 0 | E188: =SUM(E182:E187) -> 0 | F188: =SUM(F182:F187) -> 0
B190: Executive Management Team
A191: 143 | B191: Chief Executive Officer/Executive Director
A192: 144 | B192: Chief Financial Officer
A193: 145 | B193: Chief Information Officer
A194: 146 | B194: Chief Medical Officer
A195: 147 | B195: Directors of Planning And Evaluation
A196: 148 | B196: Project Directors COO
A197: 149 | B197: General Counsel
A198: 150 | B198: Chief HR Officer
A199: 151 | B199: Compliance Officer
A200: 152 | B200: Directors of Marketing
A201: 153 | B201: Sub-Total - Executive Management Team | C201: =SUM(C191:C200) -> 0 | D201: =SUM(D191:D200) -> 0 | E201: 0 | F201: 0
B203: Human Resources Staff
A204: 154 | B204: HR Director
A205: 155 | B205: HR Managers
A206: 156 | B206: Credentialing Staff
A207: 157 | B207: Sub-Total - Human Resources Team | C207: =SUM(C204:C206) -> 0 | D207: =SUM(D204:D206) -> 0 | E207: =SUM(E204:E206) -> 0 | F207: =SUM(F204:F206) -> 0
B209: Management Support Staff
A210: 158 | B210: Secretaries
A211: 159 | B211: Administrators
A212: 160 | B212: Clerk Typists
A213: 161 | B213: Receptionist
A214: 162 | B214: Mail Room Staff
A215: 163 | B215: Marketing Representatives
A216: 164 | B216: Sub-Total - Management Support Staff | C216: =SUM(C210:C215) -> 0 | D216: =SUM(D210:D215) -> 0 | E216: =SUM(E210:E215) -> 0 | F216: =SUM(F210:F215) -> 0
B218: Fiscal and Billing Staff
A219: 165 | B219: Finance Directors
A220: 166 | B220: Accountants
A221: 167 | B221: Bookkeepers
A222: 168 | B222: Billing Manager
A223: 169 | B223: Billing Clerks
... 87 more rows

Sheet 5. Cost Information
B2: Community Health Center Cost Report
B3: Tab 5 - Cost Information
B4: ='1. Agency Information'!C9 -> 0
B5: Fringe Benefits
B7: Please see accompanying Instructions document for guidance on data input.
A10: Line | B10: Benefit | D10: Annual Benefit Amount | E10: Percentage of Total Allowable and Non-Allowable Staff Costs
A11: 1 | B11: FICA | E11: =IFERROR(D11/('4. Non-Providers'!$C$317), "0") -> 0
A12: 2 | B12: Health Insurance | E12: =IFERROR(D12/('4. Non-Providers'!$C$317), "0") -> 0
A13: 3 | B13: Retirement Plan | E13: =IFERROR(D13/('4. Non-Providers'!$C$317), "0") -> 0
A14: 4 | B14: Workman's Comp | E14: =IFERROR(D14/('4. Non-Providers'!$C$317), "0") -> 0
A15: 5 | B15: Unemployment | E15: =IFERROR(D15/('4. Non-Providers'!$C$317), "0") -> 0
A16: 6 | B16: Disability | E16: =IFERROR(D16/('4. Non-Providers'!$C$317), "0") -> 0
A17: 7 | B17: Other Union Benefits | E17: =IFERROR(D17/('4. Non-Providers'!$C$317), "0") -> 0
A18: 8 | B18: Other (Metropolitan Commuter Trans) | E18: =IFERROR(D18/('4. Non-Providers'!$C$317), "0") -> 0
A19: 9 | B19: Other (Uniform Allowance) | E19: =IFERROR(D19/('4. Non-Providers'!$C$317), "0") -> 0
A20: 10 | B20: Other (Life Insurance) | E20: =IFERROR(D20/('4. Non-Providers'!$C$317), "0") -> 0
A21: 11 | B21: Other (please specify) | E21: =IFERROR(D21/('4. Non-Providers'!$C$317), "0") -> 0
A22: 12 | B22: TOTAL BENEFITS | D22: =SUM(D11:D21) -> 0 | E22: =SUM(E11:E21) -> 0
B25: Cost Information
B27: Please see accompanying Instructions document for guidance on data input.
D32: Allowable Expenses | P32: Non-Allowable Expenses | W32: Total Allowable + Non-Allowable
B33: Trial Balance | D33: Medical | E33: Behavioral Health & Substance Abuse | F33: Dental | G33: Vision | H33: Laboratory | I33: X-Ray | J33: Pharmacy | K33: Enabling | L33: Admin | M33: Facility | N33: Total Allowable | P33: WIC | Q33: Non-FQHC Sites | R33: PACE Program | S33: SCO | T33: Other (Specify) | U33: Total Non-Allowable
B34: Operating Expenses
A35: 13 | B35: Insurance | N35: =SUM(D35:M35) -> 0 | U35: =SUM(P35:T35) -> 0 | W35: =N35+U35 -> 0
A36: 14 | B36: Consumable Supplies | N36: =SUM(D36:M36) -> 0 | U36: =SUM(P36:T36) -> 0 | W36: =N36+U36 -> 0
A37: 15 | B37: Repairs and Maintenance | N37: =SUM(D37:M37) -> 0 | U37: 0 | W37: 0
A38: 16 | B38: Travel, Conference and Meeting Expenses | N38: 0 | U38: 0 | W38: 0
A39: 17 | B39: Dues and Subscriptions | N39: 0 | U39: 0 | W39: 0
A40: 18 | B40: Utilities | N40: 0 | U40: 0 | W40: 0
A41: 19 | B41: Interest Expense (Operating) | N41: 0 | U41: 0 | W41: 0
A42: 20 | B42: Postage & Supplies | N42: 0 | U42: 0 | W42: 0
A43: 21 | B43: Professional Services | N43: 0 | U43: 0 | W43: 0
A44: 22 | B44: Staff Training | N44: 0 | U44: 0 | W44: 0
A45: 23 | B45: Contracted Services | N45: 0 | U45: 0 | W45: 0
A46: 24 | B46: Publishing, Printing and Mailing | N46: 0 | U46: 0 | W46: 0
A47: 25 | B47: Telephone & Pagers/Communications | N47: =SUM(D47:M47) -> 0 | U47: =SUM(P47:T47) -> 0 | W47: =N47+U47 -> 0
A48: 26 | B48: Personnel Recruitment | N48: =SUM(D48:M48) -> 0 | U48: =SUM(P48:T48) -> 0 | W48: =N48+U48 -> 0
A49: 27 | B49: Promotion/Advertising | N49: =SUM(D49:M49) -> 0 | U49: =SUM(P49:T49) -> 0 | W49: =N49+U49 -> 0
A50: 28 | B50: Other Operating Costs | N50: =SUM(D50:M50) -> 0 | U50: =SUM(P50:T50) -> 0 | W50: =N50+U50 -> 0
B51: Capital Expenses
A52: 29 | B52: Rent | N52: =SUM(D52:M52) -> 0 | U52: =SUM(P52:T52) -> 0 | W52: =N52+U52 -> 0
A53: 30 | B53: Depreciation | N53: =SUM(D53:M53) -> 0 | U53: =SUM(P53:T53) -> 0 | W53: =N53+U53 -> 0
A54: 31 | B54: Occupancy Taxes | N54: =SUM(D54:M54) -> 0 | U54: =SUM(P54:T54) -> 0 | W54: =N54+U54 -> 0
A55: 32 | B55: Interest Expense (Capital) | N55: =SUM(D55:M55) -> 0 | U55: =SUM(P55:T55) -> 0 | W55: =N55+U55 -> 0
A56: 33 | B56: Equipment Rental | N56: =SUM(D56:M56) -> 0 | U56: =SUM(P56:T56) -> 0 | W56: =N56+U56 -> 0
A57: 34 | B57: Other Capital Costs | N57: =SUM(D57:M57) -> 0 | U57: =SUM(P57:T57) -> 0 | W57: =N57+U57 -> 0
A58: 35 | B58: TOTAL | D58: =SUM(D35:D57) -> 0 | E58: =SUM(E35:E57) -> 0 | F58: 0 | G58: 0 | H58: 0 | I58: 0 | J58: 0 | K58: 0 | L58: 0 | M58: 0 | N58: 0 | P58: =SUM(P35:P57) -> 0 | Q58: 0 | R58: 0 | S58: 0 | T58: 0 | U58: 0 | W58: =SUM(W35:W57) -> 0 | Z58: `
T60: Total Other than Personnel Services (OTPS) Expenses | W60: =W58 -> 0
T61: Total Fringe | W61: =D22 -> 0
T62: Total Personnel/Contracted | W62: ='4. Non-Providers'!C317+'4. Non-Providers'!D317 -> 0
T63: Total | W63: =W60+W61+W62 -> 0

Sheet 6. Reclass Template
B2: Community Health Center Cost Report
B3: Tab 6 - Reclass Template
B4: ='1. Agency Information'!C9 -> 0
B6: Please see accompanying Instructions document for guidance on data input.
B9: Description of Reclassification(s) | D9: Increases | G9: Decreases
A10: Line | D10: Cost Center | E10: Line # | F10: Amount | G10: Cost Center | H10: Line # | I10: Amount
A11: 1
A12: 2
A13: 3
A14: 4 | L14: Cost Center
A15: 5 | K15: A | L15: Medical
A16: 6 | K16: B | L16: Dental
A17: 7 | K17: C | L17: Behavioral Health
A18: 8 | K18: D | L18: Non-Allowable Cost
A19: 9 | K19: E | L19: Overhead - Facility
A20: 10 | K20: F | L20: Overhead - Administrative
A21: 11 | K21: G | L21: Enabling
A22: 12
A23: 13
A24: 14
A25: 15
A26: 16
A27: 17
A28: 18
A29: 19
A30: 20
A31: 21
A32: 22
A33: 23
A34: 24
A35: 25
A36: 26
A37: 27
A38: 28
A39: 29
A40: 30
A41: 31
A42: 32
A43: 33
A44: 34
A45: 35
A46: 36
A47: 37
A48: 38
A49: 39
A50: 40
A51: 41
A52: 42
A53: 43
A54: 44
A55: 45
A56: 46
A57: 47
A58: 48
A59: 49
A60: 50
A61: 51 | B61: TOTAL | F61: =SUM(F11:F60) -> 0 | I61: =SUM(I11:I60) -> 0
B63: =IF(F61 = I61, "", "ERROR:INCREASES/DECREASES DO NOT EQUAL. PLEASE ADJUST") -> 

Sheet 7. Adjustment Template
B2: Community Health Center Cost Report
B3: Tab 7 - Adjustment Template
B4: ='1. Agency Information'!C9 -> 0
B6: Please see accompanying Instructions document for guidance on data input.
B7: Note: Bad Debt should be reflected as a positive dollar value.
B9: Adjustments to Expenses
A10: Line | B10: Description of Adjustment to Expenses | C10: Basis for Adjustment | D10: Worksheet Line Number | E10: Cost Center | F10: Amount
A11: 1 | B11: Bad Debt | I11: Cost Center
A12: 2 | H12: A | I12: Medical
A13: 3 | H13: B | I13: Dental
A14: 4 | H14: C | I14: Behavioral Health
A15: 5 | H15: D | I15: Non-Allowable Cost
A16: 6 | H16: E | I16: Overhead - Facility
A17: 7 | H17: F | I17: Overhead - Administrative
A18: 8 | H18: G | I18: Enabling
A19: 9
A20: 10
A21: 11
A22: 12
A23: 13
A24: 14
A25: 15
A26: 16
A27: 17
A28: 18
A29: 19 | B29: TOTAL | F29: =SUM(F11:F28) -> 0

Sheet 8. Other Information
B2: Community Health Center Cost Report
B3: Tab 8 - Other Information
B4: ='1. Agency Information'!C9 -> 0
B5: Facility Square Footage
A8: Line | B8: Description of Area | C8: Square Feet
A9: 1 | B9: Medical
A10: 2 | B10: Vision
A11: 3 | B11: Dental
A12: 4 | B12: Laboratory
A13: 5 | B13: X-Ray
A14: 6 | B14: Pharmacy
A15: 7 | B15: Administration
A16: 8 | B16: Enabling
A17: 9 | B17: Behavioral Health/Substance Abuse
A18: 10 | B18: Non-Allowable Services
A19: 11 | B19: TOTAL SQUARE FOOTAGE | C19: =SUM(C9:C18) -> 0

Sheet Cost Breakdown
B2: Community Health Center Cost Report
B3: Cost Breakdown
B4: ='1. Agency Information'!C9 -> 0
B5: Worksheet - Allocation of Costs by Services
B6: Costs
B7: Description | C7: Tab | D7: Totals | E7: Medical | F7: Behavioral Health & Substance Abuse | G7: Dental | H7: Laboratory | I7: X-Ray | J7: Pharmacy | K7: Enabling | L7: Admin | M7: Facility | N7: Non-Allowable | P7: Allocation Method
B9: Salaries - Provider | C9: 3 | D9: =SUM($E$9:$N$9) -> 0 | E9: ='3. Providers'!C58 -> 0 | F9: ='3. Providers'!C106 -> 0 | G9: ='3. Providers'!C70 -> 0 | P9: Direct
B10: Salaries - Non-Provider | C10: 4 | D10: =SUM($E$10:$N$10) -> 0 | E10: ='4. Non-Providers'!C40 -> 0 | F10: ='4. Non-Providers'!C116 -> 0 | G10: ='4. Non-Providers'!C101 -> 0 | H10: ='4. Non-Providers'!C55 -> 0 | I10: ='4. Non-Providers'!C69 -> 0 | J10: ='4. Non-Providers'!C84 -> 0 | K10: ='4. Non-Providers'!C178 -> 0 | L10: ='4. Non-Providers'!C270 -> 0 | M10: ='4. Non-Providers'!C288 -> 0 | N10: ='4. Non-Providers'!C312 -> 0 | P10: Direct
B11: Subtotal - Salaries | D11: =SUM($D$9:$D$10) -> 0 | E11: =SUM($E$9:$E$10) -> 0 | F11: =SUM(F9:F10) -> 0 | G11: 0 | H11: =SUM($H$10:$H$10) -> 0 | I11: =SUM(I10:I10) -> 0 | J11: 0 | K11: 0 | L11: 0 | M11: 0 | N11: =SUM(N9:N10) -> 0
B12: Fringe Benefits | C12: 5 | D12: ='5. Cost Information'!D22 -> 0 | E12: =IFERROR((D12/$D$11)*E$11,0) -> 0 | F12: =IFERROR(($D$12/$D$11)*F$11,0) -> 0 | G12: 0 | H12: 0 | I12: 0 | J12: 0 | K12: 0 | L12: 0 | M12: =IFERROR(($D$12/$D$11)*M$11,0) -> 0 | N12: =IFERROR(($D$12/$D$11)*N$11,0) -> 0 | P12: % of Salaries
B13: Total Compensation | D13: =D11+D12 -> 0 | E13: =E11+E12 -> 0 | F13: 0 | G13: 0 | H13: 0 | I13: 0 | J13: 0 | K13: 0 | L13: 0 | M13: 0 | N13: 0
B14: Contractors - Provider | C14: 3 | D14: =SUM($E$14:$N$14) -> 0 | E14: ='3. Providers'!D58 -> 0 | F14: ='3. Providers'!D106 -> 0 | G14: ='3. Providers'!D70 -> 0 | P14: Direct
B15: Contractors - Non-Providers | C15: 4 | D15: =SUM($E$15:$N$15) -> 0 | E15: ='4. Non-Providers'!D40 -> 0 | F15: ='4. Non-Providers'!D116 -> 0 | G15: ='4. Non-Providers'!D101 -> 0 | H15: ='4. Non-Providers'!D55 -> 0 | I15: ='4. Non-Providers'!D69 -> 0 | J15: ='4. Non-Providers'!D84 -> 0 | K15: ='4. Non-Providers'!D178 -> 0 | L15: ='4. Non-Providers'!D270 -> 0 | M15: ='4. Non-Providers'!D288 -> 0 | N15: ='4. Non-Providers'!D312 -> 0 | P15: Direct
B16: OTPS | C16: 5 | D16: =SUM(E16:N16) -> 0 | E16: ='5. Cost Information'!D58+'5. Cost Information'!G58 -> 0 | F16: ='5. Cost Information'!E58 -> 0 | G16: ='5. Cost Information'!F58 -> 0 | H16: ='5. Cost Information'!H58 -> 0 | I16: ='5. Cost Information'!I58 -> 0 | J16: ='5. Cost Information'!J58 -> 0 | K16: ='5. Cost Information'!K58 -> 0 | L16: ='5. Cost Information'!L58 -> 0 | M16: ='5. Cost Information'!M58 -> 0 | N16: ='5. Cost Information'!U58 -> 0 | P16: Direct
B18: TOTAL EXPENSES | D18: =SUM(D13:D16) -> 0 | E18: =SUM(E13:E16) -> 0 | F18: 0 | G18: 0 | H18: 0 | I18: 0 | J18: 0 | K18: 0 | L18: 0 | M18: 0 | N18: =SUM(N13:N16) -> 0
B20: Facility Cost Allocation | D20: =SUM(E20:N20) -> 0 | E20: =IFERROR(E40*$M$18,0) -> 0 | F20: =IFERROR(F40*$M$18,0) -> 0 | G20: 0 | H20: 0 | I20: 0 | J20: 0 | K20: 0 | L20: 0 | M20: =-SUM(E20:L20)-N20 -> 0 | N20: 0 | P20: Square Foot %
B21: Subtotal - After Facility Allocation | D21: =SUM(E21:N21) -> 0 | E21: =E18+E20 -> 0 | F21: =F18+F20 -> 0 | G21: 0 | H21: 0 | I21: 0 | J21: 0 | K21: 0 | L21: 0 | M21: 0 | N21: =N18+N20 -> 0
B22: Enabling Services Allocation | D22: =IFERROR(SUM(E22:L22), "") -> 0 | E22: =IFERROR(E42*$K$21,0) -> 0 | F22: =IFERROR(F42*$K$21,0) -> 0 | G22: 0 | K22: =-SUM(E22:G22) -> 0 | P22: Visits
B23: Subtotal - Accumulated Costs | D23: =SUM(E23:N23) -> 0 | E23: =E21+E22 -> 0 | F23: =F21+F22 -> 0 | G23: 0 | H23: 0 | I23: 0 | J23: 0 | K23: 0 | L23: 0 | M23: 0 | N23: 0
B25: Administrative Allocation | D25: =SUM(E25:N25) -> 0 | E25: =IFERROR(E41*$L$23,0) -> 0 | F25: =IFERROR(F41*$L$23,0) -> 0 | G25: 0 | H25: 0 | I25: 0 | J25: 0 | L25: =-SUM(E25:K25)-N25 -> 0 | N25: 0 | P25: Accumulated Costs
B27: Total | D27: =SUM(E27:N27) -> 0 | E27: =SUM(E23:E25) -> 0 | F27: =SUM(F23:F25) -> 0 | G27: 0 | H27: 0 | I27: 0 | J27: 0 | K27: 0 | L27: 0 | M27: 0 | N27: 0
C30: Statistical Bases/Allocations
A31: Line | B31: Allocation Basis | D31: Total | E31: Medical | F31: Behavioral Health & Substance Abuse | G31: Dental | H31: Laboratory | I31: X-Ray | J31: Pharmacy | K31: Enabling | L31: Admin | M31: Facility | N31: Non-Allowable
A32: 1 | B32: Square Footage | C32: Facility | D32: =SUM(E32:N32) -> 0 | E32: ='8. Other Information'!C9+'8. Other Information'!C10 -> 0 | F32: ='8. Other Information'!C17 -> 0 | G32: ='8. Other Information'!C11 -> 0 | H32: ='8. Other Information'!C12 -> 0 | I32: ='8. Other Information'!C13 -> 0 | J32: ='8. Other Information'!C14 -> 0 | K32: ='8. Other Information'!C16 -> 0 | L32: ='8. Other Information'!C15 -> 0 | M32: 0 | N32: ='8. Other Information'!C18 -> 0
A33: 2 | B33: Accumulated Cost (Worksheets ____) | C33: Admin | D33: =SUM(E33:N33) -> 0 | E33: =E23 -> 0 | F33: =F23 -> 0 | G33: 0 | H33: 0 | I33: 0 | J33: 0 | N33: =N23 -> 0
A34: 3 | B34: Total Visits (Worksheet __) | C34: Enabling | D34: =SUM(E34:N34) -> 0 | E34: ='3. Providers'!G58 -> 0 | F34: ='3. Providers'!G106 -> 0 | G34: ='3. Providers'!G70 -> 0
C38: Percentage Allocated
A39: Line | B39: Allocation Basis | D39: Total | E39: Medical | F39: Behavioral Health & Substance Abuse | G39: Dental | H39: Laboratory | I39: X-Ray | J39: Pharmacy | K39: Enabling | L39: Admin | M39: Facility | N39: Non-Allowable
A40: 1 | B40: Square Footage | C40: Facility | D40: =SUM(E40:N40) -> 0 | E40: =IFERROR(E32/$D32,0) -> 0 | F40: =IFERROR(F32/$D32,0) -> 0 | G40: 0 | H40: 0 | I40: 0 | J40: 0 | K40: 0 | L40: 0 | N40: 0
A41: 2 | B41: Accumulated Cost | C41: Admin | D41: =SUM(E41:N41) -> 0 | E41: =IFERROR(E33/$D33,0) -> 0 | F41: 0 | G41: 0 | H41: 0 | I41: 0 | J41: 0 | K41: 0 | N41: 0
A42: 3 | B42: Total Visits | C42: Enabling | D42: =SUM(E42:N42) -> 0 | E42: 0 | F42: 0 | G42: 0

Sheet Form 1 - Direct Medical Cost
B2: Community Health Center Cost Report
B3: Form 1 - Direct Medical Cost
B4: ='1. Agency Information'!C9 -> 0
A6: RECLASSIFICATIONS AND ADJUSTMENTS OF TRIAL BALANCE OF EXPENSES | L6: Form 1 (Direct Medical Care Cost)
F8: Compensation | J8: Reclassified | K8: Adjustments | L8: Net Expenses
A9: COST CENTER | D9: Salaried | E9: Fringe | G9: Other | I9: Reclass- | J9: Trial Balance | K9: Increase | L9: w Cost Changes
D10: Personnel | E10: Benefits | G10: Costs | H10: Total | I10: ifications | J10: (Col 3 & 4) | K10: (Decrease) | L10: (Col 5 + 6)
A11: A. | B11: DIRECT MEDICAL COST | D11: IA | E11: IB | F11: I | G11: II | H11: III | I11: IV | J11: V | K11: VI | L11: VII
B12: (Excluding Dental and Behavioral Health)
A13: 1. | B13: Staff Cost
A14: 100 | B14: Physician | D14: ='3. Providers'!C21 -> 0 | E14: =IFERROR((D14/D$29)*E$29,"0") -> 0 | F14: =D14+E14 -> 0 | G14: ='3. Providers'!D21 -> 0 | H14: =SUM(F14:G14) -> 0 | I14: =SUMIF('6. Reclass Template'!$E:$E,'Form 1 - Direct Medical Cost'!A14,'6. Reclass Template'!$F:$F)-SUMIF('6. Reclass Template'!$H:$H,'Form 1 - Direct Medical Cost'!A14,'6. Reclass Template'!$I:$I) -> 0 | J14: =H14+I14 -> 0 | K14: =SUMIF('7. Adjustment Template'!D$11:D$28, 'Form 1 - Direct Medical Cost'!A14, '7. Adjustment Template'!F$11:F$28) -> 0 | L14: =J14+K14 -> 0
A15: 101 | B15: Nurse Practitioners | D15: ='3. Providers'!C22 -> 0 | E15: 0 | F15: =D15+E15 -> 0 | G15: ='3. Providers'!D22 -> 0 | H15: 0 | I15: =SUMIF('6. Reclass Template'!$E:$E,'Form 1 - Direct Medical Cost'!A15,'6. Reclass Template'!$F:$F)-SUMIF('6. Reclass Template'!$H:$H,'Form 1 - Direct Medical Cost'!A15,'6. Reclass Template'!$I:$I) -> 0 | J15: =H15+I15 -> 0 | K15: =SUMIF('7. Adjustment Template'!D$11:D$28, 'Form 1 - Direct Medical Cost'!A15, '7. Adjustment Template'!F$11:F$28) -> 0 | L15: =J15+K15 -> 0
A16: 102 | B16: Physician Assistants | D16: ='3. Providers'!C23 -> 0 | E16: 0 | F16: 0 | G16: ='3. Providers'!D23 -> 0 | H16: 0 | I16: =SUMIF('6. Reclass Template'!$E:$E,'Form 1 - Direct Medical Cost'!A16,'6. Reclass Template'!$F:$F)-SUMIF('6. Reclass Template'!$H:$H,'Form 1 - Direct Medical Cost'!A16,'6. Reclass Template'!$I:$I) -> 0 | J16: 0 | K16: =SUMIF('7. Adjustment Template'!D$11:D$28, 'Form 1 - Direct Medical Cost'!A16, '7. Adjustment Template'!F$11:F$28) -> 0 | L16: 0
A17: 103 | B17: Certified Nurse Midwives | D17: ='3. Providers'!C24 -> 0 | E17: 0 | F17: 0 | G17: ='3. Providers'!D24 -> 0 | H17: 0 | I17: =SUMIF('6. Reclass Template'!$E:$E,'Form 1 - Direct Medical Cost'!A17,'6. Reclass Template'!$F:$F)-SUMIF('6. Reclass Template'!$H:$H,'Form 1 - Direct Medical Cost'!A17,'6. Reclass Template'!$I:$I) -> 0 | J17: 0 | K17: =SUMIF('7. Adjustment Template'!D$11:D$28, 'Form 1 - Direct Medical Cost'!A17, '7. Adjustment Template'!F$11:F$28) -> 0 | L17: 0
A18: 104 | B18: Registered Nurses (RNs) | D18: ='3. Providers'!C27+'3. Providers'!C28 -> 0 | E18: 0 | F18: =D18+E18 -> 0 | G18: ='3. Providers'!D27+'3. Providers'!D28 -> 0 | H18: 0 | I18: =SUMIF('6. Reclass Template'!$E:$E,'Form 1 - Direct Medical Cost'!A18,'6. Reclass Template'!$F:$F)-SUMIF('6. Reclass Template'!$H:$H,'Form 1 - Direct Medical Cost'!A18,'6. Reclass Template'!$I:$I) -> 0 | J18: =H18+I18 -> 0 | K18: =SUMIF('7. Adjustment Template'!D$11:D$28, 'Form 1 - Direct Medical Cost'!A18, '7. Adjustment Template'!F$11:F$28) -> 0 | L18: 0
A19: 105 | B19: Licensed Practical Nurses | D19: ='3. Providers'!C29 -> 0 | E19: 0 | F19: 0 | G19: ='3. Providers'!D29 -> 0 | H19: 0 | I19: =SUMIF('6. Reclass Template'!$E:$E,'Form 1 - Direct Medical Cost'!A19,'6. Reclass Template'!$F:$F)-SUMIF('6. Reclass Template'!$H:$H,'Form 1 - Direct Medical Cost'!A19,'6. Reclass Template'!$I:$I) -> 0 | J19: 0 | K19: =SUMIF('7. Adjustment Template'!D$11:D$28, 'Form 1 - Direct Medical Cost'!A19, '7. Adjustment Template'!F$11:F$28) -> 0 | L19: 0
A20: 106 | B20: Opthalmologists | D20: ='3. Providers'!C32 -> 0 | E20: 0 | F20: 0 | G20: ='3. Providers'!D32 -> 0 | H20: 0 | I20: =SUMIF('6. Reclass Template'!$E:$E,'Form 1 - Direct Medical Cost'!A20,'6. Reclass Template'!$F:$F)-SUMIF('6. Reclass Template'!$H:$H,'Form 1 - Direct Medical Cost'!A20,'6. Reclass Template'!$I:$I) -> 0 | J20: 0 | K20: =SUMIF('7. Adjustment Template'!D$11:D$28, 'Form 1 - Direct Medical Cost'!A20, '7. Adjustment Template'!F$11:F$28) -> 0 | L20: 0
A21: e.1 | B21: In-Bundle Direct Medical Staff Costs | D21: =SUM(D14:D20) -> 0 | E21: =SUM(E14:E20) -> 0 | F21: =SUM(F14:F20) -> 0 | G21: 0 | H21: 0 | I21: 0 | J21: 0 | K21: 0 | L21: 0
A22: 107 | B22: Other Professional Services | D22: ='3. Providers'!C57-'3. Providers'!C51 -> 0 | E22: =IFERROR((D22/D$29)*E$29,"0") -> 0 | F22: =D22+E22 -> 0 | G22: ='3. Providers'!D57-'3. Providers'!D51 -> 0 | H22: =SUM(F22:G22) -> 0 | I22: =SUMIF('6. Reclass Template'!$E:$E,'Form 1 - Direct Medical Cost'!A22,'6. Reclass Template'!$F:$F)-SUMIF('6. Reclass Template'!$H:$H,'Form 1 - Direct Medical Cost'!A22,'6. Reclass Template'!$I:$I) -> 0 | J22: =H22+I22 -> 0 | K22: =SUMIF('7. Adjustment Template'!D$11:D$28, 'Form 1 - Direct Medical Cost'!A22, '7. Adjustment Template'!F$11:F$28) -> 0 | L22: =J22+K22 -> 0
A23: 108 | B23: Optometrists | D23: ='3. Providers'!C33 -> 0 | E23: =IFERROR((D23/D$29)*E$29,"0") -> 0 | F23: 0 | G23: ='3. Providers'!D33 -> 0 | H23: 0 | I23: =SUMIF('6. Reclass Template'!$E:$E,'Form 1 - Direct Medical Cost'!A23,'6. Reclass Template'!$F:$F)-SUMIF('6. Reclass Template'!$H:$H,'Form 1 - Direct Medical Cost'!A23,'6. Reclass Template'!$I:$I) -> 0 | J23: 0 | K23: =SUMIF('7. Adjustment Template'!D$11:D$28, 'Form 1 - Direct Medical Cost'!A23, '7. Adjustment Template'!F$11:F$28) -> 0 | L23: 0
A24: 109 | B24: Optician | D24: ='3. Providers'!C34 -> 0 | E24: =IFERROR((D24/D$29)*E$29,"0") -> 0 | F24: 0 | G24: ='3. Providers'!D34 -> 0 | H24: 0 | I24: =SUMIF('6. Reclass Template'!$E:$E,'Form 1 - Direct Medical Cost'!A24,'6. Reclass Template'!$F:$F)-SUMIF('6. Reclass Template'!$H:$H,'Form 1 - Direct Medical Cost'!A24,'6. Reclass Template'!$I:$I) -> 0 | J24: 0 | K24: =SUMIF('7. Adjustment Template'!D$11:D$28, 'Form 1 - Direct Medical Cost'!A24, '7. Adjustment Template'!F$11:F$28) -> 0 | L24: 0
A25: 110 | B25: Other NON-BILLABLE Medical Providers | D25: ='3. Providers'!C51 -> 0 | E25: =IFERROR((D25/D$29)*E$29,"0") -> 0 | F25: 0 | G25: ='3. Providers'!D51 -> 0 | H25: 0 | I25: =SUMIF('6. Reclass Template'!$E:$E,'Form 1 - Direct Medical Cost'!A25,'6. Reclass Template'!$F:$F)-SUMIF('6. Reclass Template'!$H:$H,'Form 1 - Direct Medical Cost'!A25,'6. Reclass Template'!$I:$I) -> 0 | J25: 0 | K25: =SUMIF('7. Adjustment Template'!D$11:D$28, 'Form 1 - Direct Medical Cost'!A25, '7. Adjustment Template'!F$11:F$28) -> 0 | L25: 0
A26: e.2 | B26: Out-of-Bundle Direct Medical Staff Costs | D26: =SUM(D22:D25) -> 0 | E26: =SUM(E22:E25) -> 0 | F26: =SUM(F22:F25) -> 0 | G26: 0 | H26: 0 | I26: 0 | J26: 0 | K26: 0 | L26: 0
A27: 111 | B27: Other Non-Provider Medical Staff | D27: ='4. Non-Providers'!C40 -> 0 | E27: =IFERROR((D27/D$29)*E$29,"0") -> 0 | F27: 0 | G27: ='4. Non-Providers'!D40 -> 0 | H27: 0 | I27: =SUMIF('6. Reclass Template'!$E:$E,'Form 1 - Direct Medical Cost'!A27,'6. Reclass Template'!$F:$F)-SUMIF('6. Reclass Template'!$H:$H,'Form 1 - Direct Medical Cost'!A27,'6. Reclass Template'!$I:$I) -> 0 | J27: 0 | K27: =SUMIF('7. Adjustment Template'!D$11:D$28, 'Form 1 - Direct Medical Cost'!A27, '7. Adjustment Template'!F$11:F$28) -> 0 | L27: 0
A28: e.3 | B28: Non-Provider Direct Medical Staff Costs | D28: =D27 -> 0 | E28: =E27 -> 0 | F28: =F27 -> 0 | G28: 0 | H28: 0 | I28: 0 | J28: 0 | K28: 0 | L28: 0
A29: e.4 | B29: Subtotal Direct Medical Staff Cost | D29: =SUM(D21,D26,D28) -> 0 | E29: ='Cost Breakdown'!E$12 -> 0 | F29: =SUM(F21,F26,F28) -> 0 | G29: 0 | H29: 0 | I29: 0 | J29: 0 | K29: 0 | L29: 0
A30: 2. | B30: Other Direct Medical Cost
A31: 112 | B31: Insurance | G31: ='5. Cost Information'!D35+'5. Cost Information'!G35 -> 0 | H31: =SUM(D31:G31) -> 0 | I31: =SUMIF('6. Reclass Template'!$E:$E,'Form 1 - Direct Medical Cost'!A31,'6. Reclass Template'!$F:$F)-SUMIF('6. Reclass Template'!$H:$H,'Form 1 - Direct Medical Cost'!A31,'6. Reclass Template'!$I:$I) -> 0 | J31: =H31+I31 -> 0 | K31: =SUMIF('7. Adjustment Template'!D$11:D$28, 'Form 1 - Direct Medical Cost'!A31, '7. Adjustment Template'!F$11:F$28) -> 0 | L31: =J31+K31 -> 0
A32: 113 | B32: Consumable Supplies | G32: ='5. Cost Information'!D36+'5. Cost Information'!G36 -> 0 | H32: =SUM(D32:G32) -> 0 | I32: =SUMIF('6. Reclass Template'!$E:$E,'Form 1 - Direct Medical Cost'!A32,'6. Reclass Template'!$F:$F)-SUMIF('6. Reclass Template'!$H:$H,'Form 1 - Direct Medical Cost'!A32,'6. Reclass Template'!$I:$I) -> 0 | J32: 0 | K32: =SUMIF('7. Adjustment Template'!D$11:D$28, 'Form 1 - Direct Medical Cost'!A32, '7. Adjustment Template'!F$11:F$28) -> 0 | L32: =J32+K32 -> 0
A33: 114 | B33: Repairs and Maintenance | G33: ='5. Cost Information'!D37+'5. Cost Information'!G37 -> 0 | H33: 0 | I33: =SUMIF('6. Reclass Template'!$E:$E,'Form 1 - Direct Medical Cost'!A33,'6. Reclass Template'!$F:$F)-SUMIF('6. Reclass Template'!$H:$H,'Form 1 - Direct Medical Cost'!A33,'6. Reclass Template'!$I:$I) -> 0 | J33: 0 | K33: =SUMIF('7. Adjustment Template'!D$11:D$28, 'Form 1 - Direct Medical Cost'!A33, '7. Adjustment Template'!F$11:F$28) -> 0 | L33: 0
A34: 115 | B34: Equipment Rental | G34: ='5. Cost Information'!D56+'5. Cost Information'!G56 -> 0 | H34: 0 | I34: =SUMIF('6. Reclass Template'!$E:$E,'Form 1 - Direct Medical Cost'!A34,'6. Reclass Template'!$F:$F)-SUMIF('6. Reclass Template'!$H:$H,'Form 1 - Direct Medical Cost'!A34,'6. Reclass Template'!$I:$I) -> 0 | J34: 0 | K34: =SUMIF('7. Adjustment Template'!D$11:D$28, 'Form 1 - Direct Medical Cost'!A34, '7. Adjustment Template'!F$11:F$28) -> 0 | L34: 0
A35: 116 | B35: Travel, Conference and Meeting Expenses | G35: ='5. Cost Information'!D38+'5. Cost Information'!G38 -> 0 | H35: 0 | I35: =SUMIF('6. Reclass Template'!$E:$E,'Form 1 - Direct Medical Cost'!A35,'6. Reclass Template'!$F:$F)-SUMIF('6. Reclass Template'!$H:$H,'Form 1 - Direct Medical Cost'!A35,'6. Reclass Template'!$I:$I) -> 0 | J35: 0 | K35: =SUMIF('7. Adjustment Template'!D$11:D$28, 'Form 1 - Direct Medical Cost'!A35, '7. Adjustment Template'!F$11:F$28) -> 0 | L35: 0
A36: 117 | B36: Dues and Subscriptions | G36: ='5. Cost Information'!D39+'5. Cost Information'!G39 -> 0 | H36: 0 | I36: =SUMIF('6. Reclass Template'!$E:$E,'Form 1 - Direct Medical Cost'!A36,'6. Reclass Template'!$F:$F)-SUMIF('6. Reclass Template'!$H:$H,'Form 1 - Direct Medical Cost'!A36,'6. Reclass Template'!$I:$I) -> 0 | J36: 0 | K36: =SUMIF('7. Adjustment Template'!D$11:D$28, 'Form 1 - Direct Medical Cost'!A36, '7. Adjustment Template'!F$11:F$28) -> 0 | L36: 0
A37: 118 | B37: Interest Expense (Operating) | G37: ='5. Cost Information'!D41+'5. Cost Information'!G41 -> 0 | H37: 0 | I37: =SUMIF('6. Reclass Template'!$E:$E,'Form 1 - Direct Medical Cost'!A37,'6. Reclass Template'!$F:$F)-SUMIF('6. Reclass Template'!$H:$H,'Form 1 - Direct Medical Cost'!A37,'6. Reclass Template'!$I:$I) -> 0 | J37: 0 | K37: =SUMIF('7. Adjustment Template'!D$11:D$28, 'Form 1 - Direct Medical Cost'!A37, '7. Adjustment Template'!F$11:F$28) -> 0 | L37: 0
A38: 119 | B38: Interest Expense (Capital) | G38: ='5. Cost Information'!D55+'5. Cost Information'!G55 -> 0 | H38: =SUM(D38:G38) -> 0 | I38: =SUMIF('6. Reclass Template'!$E:$E,'Form 1 - Direct Medical Cost'!A38,'6. Reclass Template'!$F:$F)-SUMIF('6. Reclass Template'!$H:$H,'Form 1 - Direct Medical Cost'!A38,'6. Reclass Template'!$I:$I) -> 0 | J38: =H38+I38 -> 0 | K38: =SUMIF('7. Adjustment Template'!D$11:D$28, 'Form 1 - Direct Medical Cost'!A38, '7. Adjustment Template'!F$11:F$28) -> 0 | L38: =J38+K38 -> 0
A39: 120 | B39: Professional Services | G39: ='5. Cost Information'!D43+'5. Cost Information'!G43 -> 0 | H39: 0 | I39: =SUMIF('6. Reclass Template'!$E:$E,'Form 1 - Direct Medical Cost'!A39,'6. Reclass Template'!$F:$F)-SUMIF('6. Reclass Template'!$H:$H,'Form 1 - Direct Medical Cost'!A39,'6. Reclass Template'!$I:$I) -> 0 | J39: 0 | K39: =SUMIF('7. Adjustment Template'!D$11:D$28, 'Form 1 - Direct Medical Cost'!A39, '7. Adjustment Template'!F$11:F$28) -> 0 | L39: 0
A40: 121 | B40: Staff Training | G40: ='5. Cost Information'!D44+'5. Cost Information'!G44 -> 0 | H40: 0 | I40: =SUMIF('6. Reclass Template'!$E:$E,'Form 1 - Direct Medical Cost'!A40,'6. Reclass Template'!$F:$F)-SUMIF('6. Reclass Template'!$H:$H,'Form 1 - Direct Medical Cost'!A40,'6. Reclass Template'!$I:$I) -> 0 | J40: 0 | K40: =SUMIF('7. Adjustment Template'!D$11:D$28, 'Form 1 - Direct Medical Cost'!A40, '7. Adjustment Template'!F$11:F$28) -> 0 | L40: 0
A41: 122 | B41: Contracted Services | G41: ='5. Cost Information'!D45+'5. Cost Information'!G45 -> 0 | H41: 0 | I41: =SUMIF('6. Reclass Template'!$E:$E,'Form 1 - Direct Medical Cost'!A41,'6. Reclass Template'!$F:$F)-SUMIF('6. Reclass Template'!$H:$H,'Form 1 - Direct Medical Cost'!A41,'6. Reclass Template'!$I:$I) -> 0 | J41: 0 | K41: =SUMIF('7. Adjustment Template'!D$11:D$28, 'Form 1 - Direct Medical Cost'!A41, '7. Adjustment Template'!F$11:F$28) -> 0 | L41: 0
A42: 123 | B42: Publishing, Printing and Mailing | G42: ='5. Cost Information'!D46+'5. Cost Information'!G46 -> 0 | H42: 0 | I42: =SUMIF('6. Reclass Template'!$E:$E,'Form 1 - Direct Medical Cost'!A42,'6. Reclass Template'!$F:$F)-SUMIF('6. Reclass Template'!$H:$H,'Form 1 - Direct Medical Cost'!A42,'6. Reclass Template'!$I:$I) -> 0 | J42: 0 | K42: =SUMIF('7. Adjustment Template'!D$11:D$28, 'Form 1 - Direct Medical Cost'!A42, '7. Adjustment Template'!F$11:F$28) -> 0 | L42: 0
A43: 124 | B43: Depreciation | G43: ='5. Cost Information'!D53+'5. Cost Information'!G53 -> 0 | H43: 0 | I43: =SUMIF('6. Reclass Template'!$E:$E,'Form 1 - Direct Medical Cost'!A43,'6. Reclass Template'!$F:$F)-SUMIF('6. Reclass Template'!$H:$H,'Form 1 - Direct Medical Cost'!A43,'6. Reclass Template'!$I:$I) -> 0 | J43: 0 | K43: =SUMIF('7. Adjustment Template'!D$11:D$28, 'Form 1 - Direct Medical Cost'!A43, '7. Adjustment Template'!F$11:F$28) -> 0 | L43: 0
A44: 125 | B44: Personnel Recruitment | G44: ='5. Cost Information'!D48+'5. Cost Information'!G48 -> 0 | H44: =SUM(D44:G44) -> 0 | I44: =SUMIF('6. Reclass Template'!$E:$E,'Form 1 - Direct Medical Cost'!A44,'6. Reclass Template'!$F:$F)-SUMIF('6. Reclass Template'!$H:$H,'Form 1 - Direct Medical Cost'!A44,'6. Reclass Template'!$I:$I) -> 0 | J44: 0 | K44: =SUMIF('7. Adjustment Template'!D$11:D$28, 'Form 1 - Direct Medical Cost'!A44, '7. Adjustment Template'!F$11:F$28) -> 0 | L44: 0
A45: 126 | B45: Other Operating Expense | G45: ='5. Cost Information'!D50+'5. Cost Information'!G50 -> 0 | H45: 0 | I45: =SUMIF('6. Reclass Template'!$E:$E,'Form 1 - Direct Medical Cost'!A45,'6. Reclass Template'!$F:$F)-SUMIF('6. Reclass Template'!$H:$H,'Form 1 - Direct Medical Cost'!A45,'6. Reclass Template'!$I:$I) -> 0 | J45: 0 | K45: =SUMIF('7. Adjustment Template'!D$11:D$28, 'Form 1 - Direct Medical Cost'!A45, '7. Adjustment Template'!F$11:F$28) -> 0 | L45: 0
A46: 127 | B46: Other Capital Expense | G46: ='5. Cost Information'!D57+'5. Cost Information'!G57 -> 0 | H46: =SUM(D46:G46) -> 0 | I46: =SUMIF('6. Reclass Template'!$E:$E,'Form 1 - Direct Medical Cost'!A46,'6. Reclass Template'!$F:$F)-SUMIF('6. Reclass Template'!$H:$H,'Form 1 - Direct Medical Cost'!A46,'6. Reclass Template'!$I:$I) -> 0 | J46: =H46+I46 -> 0 | K46: =SUMIF('7. Adjustment Template'!D$11:D$28, 'Form 1 - Direct Medical Cost'!A46, '7. Adjustment Template'!F$11:F$28) -> 0 | L46: =J46+K46 -> 0
A47: i.1 | B47: Subtotal Other Direct Medical Cost | G47: =SUM(G31:G46) -> 0 | H47: 0 | I47: 0 | J47: 0 | K47: 0 | L47: 0
A49: 3. | B49: TOTAL DIRECT MEDICAL COST (1.e.4 & 2.i.1) | D49: =D47+D29 -> 0 | E49: 0 | F49: 0 | G49: 0 | H49: 0 | I49: 0 | J49: 0 | K49: 0 | L49: 0

Sheet Form 2 - Direct Dental Cost
B2: Community Health Center Cost Report
B3: Form 2 - Direct Dental Cost
B4: ='1. Agency Information'!C9 -> 0
A6: RECLASSIFICATIONS AND ADJUSTMENTS OF TRIAL BALANCE OF EXPENSES | L6: Form 2 (Direct Dental Care Cost)
F8: Compensation | J8: Reclassified | K8: Adjustments | L8: Net Expenses
A9: COST CENTER | D9: Salaried | E9: Fringe | G9: Other | I9: Reclass- | J9: Trial Balance | K9: Increase | L9: w Cost Changes
D10: Personnel | E10: Benefits | G10: Costs | H10: Total | I10: ifications | J10: (Col 3 & 4) | K10: (Decrease) | L10: (Col 5 + 6)
A11: B. | B11: DIRECT DENTAL CARE COST | D11: IA | E11: IB | F11: I | G11: II | H11: III | I11: IV | J11: V | K11: VI | L11: VII
A12: 1. | B12: Staff Cost
A13: 200 | B13: Dentist | D13: ='3. Providers'!C61 -> 0 | E13: =IFERROR((D13/D$20)*E$20, "0") -> 0 | F13: =D13+E13 -> 0 | G13: ='3. Providers'!D61 -> 0 | H13: =SUM(F13:G13) -> 0 | I13: =SUMIF('6. Reclass Template'!$E:$E,A13,'6. Reclass Template'!$F:$F)-SUMIF('6. Reclass Template'!$H:$H,A13,'6. Reclass Template'!$I:$I) -> 0 | J13: =H13+I13 -> 0 | K13: =SUMIF('7. Adjustment Template'!$D$11:$D$28,'Form 2 - Direct Dental Cost'!A13,'7. Adjustment Template'!$F$11:$F$28) -> 0 | L13: =J13+K13 -> 0
A14: 201 | B14: Dental Specialist | D14: ='3. Providers'!C62 -> 0 | E14: =IFERROR((D14/D$20)*E$20, "0") -> 0 | F14: =D14+E14 -> 0 | G14: ='3. Providers'!D62 -> 0 | H14: =SUM(F14:G14) -> 0 | I14: =SUMIF('6. Reclass Template'!$E:$E,A14,'6. Reclass Template'!$F:$F)-SUMIF('6. Reclass Template'!$H:$H,A14,'6. Reclass Template'!$I:$I) -> 0 | J14: =H14+I14 -> 0 | K14: =SUMIF('7. Adjustment Template'!$D$11:$D$28,'Form 2 - Direct Dental Cost'!A14,'7. Adjustment Template'!$F$11:$F$28) -> 0 | L14: =J14+K14 -> 0
A15: 202 | B15: Dental Hygienist | D15: ='3. Providers'!C63 -> 0 | E15: =IFERROR((D15/D$20)*E$20, "0") -> 0 | F15: 0 | G15: ='3. Providers'!D63 -> 0 | H15: 0 | I15: =SUMIF('6. Reclass Template'!$E:$E,A15,'6. Reclass Template'!$F:$F)-SUMIF('6. Reclass Template'!$H:$H,A15,'6. Reclass Template'!$I:$I) -> 0 | J15: =H15+I15 -> 0 | K15: =SUMIF('7. Adjustment Template'!$D$11:$D$28,'Form 2 - Direct Dental Cost'!A15,'7. Adjustment Template'!$F$11:$F$28) -> 0 | L15: 0
A16: 203 | B16: Other NON-BILLABLE Dental Providers | D16: ='3. Providers'!C64 -> 0 | E16: =IFERROR((D16/D$20)*E$20, "0") -> 0 | F16: =D16+E16 -> 0 | G16: ='3. Providers'!D64 -> 0 | H16: =SUM(F16:G16) -> 0 | I16: =SUMIF('6. Reclass Template'!$E:$E,A16,'6. Reclass Template'!$F:$F)-SUMIF('6. Reclass Template'!$H:$H,A16,'6. Reclass Template'!$I:$I) -> 0 | J16: 0 | K16: =SUMIF('7. Adjustment Template'!$D$11:$D$28,'Form 2 - Direct Dental Cost'!A16,'7. Adjustment Template'!$F$11:$F$28) -> 0 | L16: 0
A17: d.1 | B17: In-Bundle Direct Dental Staff Costs | D17: =SUM(D13:D16) -> 0 | E17: 0 | F17: 0 | G17: 0 | H17: 0 | I17: 0 | J17: 0 | K17: 0 | L17: 0
A18: 204 | B18: Other Non-Provider Staff | D18: ='4. Non-Providers'!C101 -> 0 | E18: =IFERROR((D18/D$20)*E$20, "0") -> 0 | F18: =D18+E18 -> 0 | G18: ='4. Non-Providers'!D101 -> 0 | H18: 0 | I18: =SUMIF('6. Reclass Template'!$E:$E,A18,'6. Reclass Template'!$F:$F)-SUMIF('6. Reclass Template'!$H:$H,A18,'6. Reclass Template'!$I:$I) -> 0 | J18: 0 | K18: =SUMIF('7. Adjustment Template'!$D$11:$D$28,'Form 2 - Direct Dental Cost'!A18,'7. Adjustment Template'!$F$11:$F$28) -> 0 | L18: 0
A19: d.2 | B19: Non-Provider Direct Dental Staff Costs | D19: =D18 -> 0 | E19: =E18 -> 0 | F19: =F18 -> 0 | G19: 0 | H19: 0 | I19: 0 | J19: 0 | K19: 0 | L19: 0
A20: d.3 | B20: Subtotal Direct Dental Staff Cost | D20: =SUM(D19,D17) -> 0 | E20: ='Cost Breakdown'!G12 -> 0 | F20: =SUM(F19,F17) -> 0 | G20: 0 | H20: 0 | I20: 0 | J20: 0 | K20: 0 | L20: 0
A21: 2. | B21: Other Direct Dental Care Cost
A22: 205 | B22: Insurance | G22: ='5. Cost Information'!F35 -> 0 | H22: =SUM(F22:G22) -> 0 | I22: =SUMIF('6. Reclass Template'!$E:$E,A22,'6. Reclass Template'!$F:$F)-SUMIF('6. Reclass Template'!$H:$H,A22,'6. Reclass Template'!$I:$I) -> 0 | J22: =H22+I22 -> 0 | K22: =SUMIF('7. Adjustment Template'!$D$11:$D$28,'Form 2 - Direct Dental Cost'!A22,'7. Adjustment Template'!$F$11:$F$28) -> 0 | L22: =J22+K22 -> 0
A23: 206 | B23: Consumable Supplies | G23: ='5. Cost Information'!F36 -> 0 | H23: =SUM(F23:G23) -> 0 | I23: =SUMIF('6. Reclass Template'!$E:$E,A23,'6. Reclass Template'!$F:$F)-SUMIF('6. Reclass Template'!$H:$H,A23,'6. Reclass Template'!$I:$I) -> 0 | J23: 0 | K23: =SUMIF('7. Adjustment Template'!$D$11:$D$28,'Form 2 - Direct Dental Cost'!A23,'7. Adjustment Template'!$F$11:$F$28) -> 0 | L23: 0
A24: 207 | B24: Repairs and Maintenance | G24: ='5. Cost Information'!F37 -> 0 | H24: 0 | I24: =SUMIF('6. Reclass Template'!$E:$E,A24,'6. Reclass Template'!$F:$F)-SUMIF('6. Reclass Template'!$H:$H,A24,'6. Reclass Template'!$I:$I) -> 0 | J24: 0 | K24: =SUMIF('7. Adjustment Template'!$D$11:$D$28,'Form 2 - Direct Dental Cost'!A24,'7. Adjustment Template'!$F$11:$F$28) -> 0 | L24: 0
A25: 208 | B25: Equipment Rental | G25: ='5. Cost Information'!F56 -> 0 | H25: 0 | I25: =SUMIF('6. Reclass Template'!$E:$E,A25,'6. Reclass Template'!$F:$F)-SUMIF('6. Reclass Template'!$H:$H,A25,'6. Reclass Template'!$I:$I) -> 0 | J25: 0 | K25: =SUMIF('7. Adjustment Template'!$D$11:$D$28,'Form 2 - Direct Dental Cost'!A25,'7. Adjustment Template'!$F$11:$F$28) -> 0 | L25: 0
A26: 209 | B26: Travel, Conference and Meeting Expenses | G26: ='5. Cost Information'!F38 -> 0 | H26: 0 | I26: =SUMIF('6. Reclass Template'!$E:$E,A26,'6. Reclass Template'!$F:$F)-SUMIF('6. Reclass Template'!$H:$H,A26,'6. Reclass Template'!$I:$I) -> 0 | J26: 0 | K26: =SUMIF('7. Adjustment Template'!$D$11:$D$28,'Form 2 - Direct Dental Cost'!A26,'7. Adjustment Template'!$F$11:$F$28) -> 0 | L26: 0
A27: 210 | B27: Dues and Subscriptions | G27: ='5. Cost Information'!F39 -> 0 | H27: 0 | I27: =SUMIF('6. Reclass Template'!$E:$E,A27,'6. Reclass Template'!$F:$F)-SUMIF('6. Reclass Template'!$H:$H,A27,'6. Reclass Template'!$I:$I) -> 0 | J27: 0 | K27: =SUMIF('7. Adjustment Template'!$D$11:$D$28,'Form 2 - Direct Dental Cost'!A27,'7. Adjustment Template'!$F$11:$F$28) -> 0 | L27: 0
A28: 211 | B28: Interest Expense (Operating) | G28: ='5. Cost Information'!F41 -> 0 | H28: 0 | I28: =SUMIF('6. Reclass Template'!$E:$E,A28,'6. Reclass Template'!$F:$F)-SUMIF('6. Reclass Template'!$H:$H,A28,'6. Reclass Template'!$I:$I) -> 0 | J28: 0 | K28: =SUMIF('7. Adjustment Template'!$D$11:$D$28,'Form 2 - Direct Dental Cost'!A28,'7. Adjustment Template'!$F$11:$F$28) -> 0 | L28: 0
A29: 212 | B29: Interest Expense (Capital) | G29: ='5. Cost Information'!F55 -> 0 | H29: =SUM(F29:G29) -> 0 | I29: =SUMIF('6. Reclass Template'!$E:$E,A29,'6. Reclass Template'!$F:$F)-SUMIF('6. Reclass Template'!$H:$H,A29,'6. Reclass Template'!$I:$I) -> 0 | J29: =H29+I29 -> 0 | K29: =SUMIF('7. Adjustment Template'!$D$11:$D$28,'Form 2 - Direct Dental Cost'!A29,'7. Adjustment Template'!$F$11:$F$28) -> 0 | L29: =J29+K29 -> 0
A30: 213 | B30: Professional Services | G30: ='5. Cost Information'!F43 -> 0 | H30: 0 | I30: =SUMIF('6. Reclass Template'!$E:$E,A30,'6. Reclass Template'!$F:$F)-SUMIF('6. Reclass Template'!$H:$H,A30,'6. Reclass Template'!$I:$I) -> 0 | J30: 0 | K30: =SUMIF('7. Adjustment Template'!$D$11:$D$28,'Form 2 - Direct Dental Cost'!A30,'7. Adjustment Template'!$F$11:$F$28) -> 0 | L30: 0
A31: 214 | B31: Staff Training | G31: ='5. Cost Information'!F44 -> 0 | H31: 0 | I31: =SUMIF('6. Reclass Template'!$E:$E,A31,'6. Reclass Template'!$F:$F)-SUMIF('6. Reclass Template'!$H:$H,A31,'6. Reclass Template'!$I:$I) -> 0 | J31: 0 | K31: =SUMIF('7. Adjustment Template'!$D$11:$D$28,'Form 2 - Direct Dental Cost'!A31,'7. Adjustment Template'!$F$11:$F$28) -> 0 | L31: 0
A32: 215 | B32: Contracted Services | G32: ='5. Cost Information'!F45 -> 0 | H32: 0 | I32: =SUMIF('6. Reclass Template'!$E:$E,A32,'6. Reclass Template'!$F:$F)-SUMIF('6. Reclass Template'!$H:$H,A32,'6. Reclass Template'!$I:$I) -> 0 | J32: 0 | K32: =SUMIF('7. Adjustment Template'!$D$11:$D$28,'Form 2 - Direct Dental Cost'!A32,'7. Adjustment Template'!$F$11:$F$28) -> 0 | L32: 0
A33: 216 | B33: Publishing, Printing and Mailing | G33: ='5. Cost Information'!F46 -> 0 | H33: 0 | I33: =SUMIF('6. Reclass Template'!$E:$E,A33,'6. Reclass Template'!$F:$F)-SUMIF('6. Reclass Template'!$H:$H,A33,'6. Reclass Template'!$I:$I) -> 0 | J33: 0 | K33: =SUMIF('7. Adjustment Template'!$D$11:$D$28,'Form 2 - Direct Dental Cost'!A33,'7. Adjustment Template'!$F$11:$F$28) -> 0 | L33: 0
A34: 217 | B34: Depreciation | G34: ='5. Cost Information'!F53 -> 0 | H34: 0 | I34: =SUMIF('6. Reclass Template'!$E:$E,A34,'6. Reclass Template'!$F:$F)-SUMIF('6. Reclass Template'!$H:$H,A34,'6. Reclass Template'!$I:$I) -> 0 | J34: 0 | K34: =SUMIF('7. Adjustment Template'!$D$11:$D$28,'Form 2 - Direct Dental Cost'!A34,'7. Adjustment Template'!$F$11:$F$28) -> 0 | L34: 0
A35: 218 | B35: Personnel Recruitment | G35: ='5. Cost Information'!F48 -> 0 | H35: 0 | I35: =SUMIF('6. Reclass Template'!$E:$E,A35,'6. Reclass Template'!$F:$F)-SUMIF('6. Reclass Template'!$H:$H,A35,'6. Reclass Template'!$I:$I) -> 0 | J35: 0 | K35: =SUMIF('7. Adjustment Template'!$D$11:$D$28,'Form 2 - Direct Dental Cost'!A35,'7. Adjustment Template'!$F$11:$F$28) -> 0 | L35: 0
A36: 219 | B36: Other Operating Expense | G36: ='5. Cost Information'!F50 -> 0 | H36: 0 | I36: =SUMIF('6. Reclass Template'!$E:$E,A36,'6. Reclass Template'!$F:$F)-SUMIF('6. Reclass Template'!$H:$H,A36,'6. Reclass Template'!$I:$I) -> 0 | J36: 0 | K36: =SUMIF('7. Adjustment Template'!$D$11:$D$28,'Form 2 - Direct Dental Cost'!A36,'7. Adjustment Template'!$F$11:$F$28) -> 0 | L36: 0
A37: 220 | B37: Other Capital Expense | G37: ='5. Cost Information'!F57 -> 0 | H37: =SUM(F37:G37) -> 0 | I37: =SUMIF('6. Reclass Template'!$E:$E,A37,'6. Reclass Template'!$F:$F)-SUMIF('6. Reclass Template'!$H:$H,A37,'6. Reclass Template'!$I:$I) -> 0 | J37: =H37+I37 -> 0 | K37: =SUMIF('7. Adjustment Template'!$D$11:$D$28,'Form 2 - Direct Dental Cost'!A37,'7. Adjustment Template'!$F$11:$F$28) -> 0 | L37: =J37+K37 -> 0
A38: f.1 | B38: Subtotal Other Direct Dental Care Costs | G38: =SUM(G22:G37) -> 0 | H38: 0 | I38: 0 | J38: 0 | K38: 0 | L38: 0
A40: 3. | B40: TOTAL DIRECT DENTAL CARE COST (1.d.3 & 2.f.1) | D40: =D38+D20 -> 0 | E40: =E38+E20 -> 0 | F40: =F38+F20 -> 0 | G40: =G38+G20 -> 0 | H40: 0 | I40: 0 | J40: 0 | K40: 0 | L40: 0

Sheet Form 3 - Direct BH Cost
B2: Community Health Center Cost Report
B3: Form 3 - Direct BH Cost
B4: ='1. Agency Information'!C9 -> 0
A6: RECLASSIFICATIONS AND ADJUSTMENTS OF TRIAL BALANCE OF EXPENSES | L6: Form 3 (Direct Behavioral Health Care Cost)
F8: Compensation | J8: Reclassified | K8: Adjustments | L8: Net Expenses
A9: COST CENTER | D9: Salaried | E9: Fringe | G9: Other | I9: Reclass- | J9: Trial Balance | K9: Increase | L9: w Cost Changes
D10: Personnel | E10: Benefits | G10: Costs | H10: Total | I10: ifications | J10: (Col 3 & 4) | K10: (Decrease) | L10: (Col 5 + 6)
A11: C. | B11: DIRECT BEHAVIORAL HEALTH CARE COST | D11: IA | E11: IB | F11: I | G11: II | H11: III | I11: IV | J11: V | K11: VI | L11: VII
A12: 1. | B12: Staff Cost
A13: Mental Health
A14: 300 | B14: Psychiatrists | D14: ='3. Providers'!C74 -> 0 | E14: =IFERROR((D14/D$41)*E$41, "0") -> 0 | F14: =D14+E14 -> 0 | G14: ='3. Providers'!D74 -> 0 | H14: =SUM(F14:G14) -> 0 | I14: =SUMIF('6. Reclass Template'!$E:$E,A14,'6. Reclass Template'!$F:$F)-SUMIF('6. Reclass Template'!$H:$H,A14,'6. Reclass Template'!$I:$I) -> 0 | J14: =H14+I14 -> 0 | K14: =SUMIF('7. Adjustment Template'!$D$11:$D$28,'Form 3 - Direct BH Cost'!A14,'7. Adjustment Template'!$F$11:$F$28) -> 0 | L14: =J14+K14 -> 0
A15: 301 | B15: Psychologists | D15: ='3. Providers'!C75 -> 0 | E15: 0 | F15: 0 | G15: ='3. Providers'!D75 -> 0 | H15: =SUM(F15:G15) -> 0 | I15: =SUMIF('6. Reclass Template'!$E:$E,A15,'6. Reclass Template'!$F:$F)-SUMIF('6. Reclass Template'!$H:$H,A15,'6. Reclass Template'!$I:$I) -> 0 | J15: 0 | K15: =SUMIF('7. Adjustment Template'!$D$11:$D$28,'Form 3 - Direct BH Cost'!A15,'7. Adjustment Template'!$F$11:$F$28) -> 0 | L15: =J15+K15 -> 0
A16: 302 | B16: Licensed Independent Clinical Social Worker (LISCW) | D16: ='3. Providers'!C77 -> 0 | E16: 0 | F16: 0 | G16: ='3. Providers'!D77 -> 0 | H16: =SUM(F16:G16) -> 0 | I16: =SUMIF('6. Reclass Template'!$E:$E,A16,'6. Reclass Template'!$F:$F)-SUMIF('6. Reclass Template'!$H:$H,A16,'6. Reclass Template'!$I:$I) -> 0 | J16: =H16+I16 -> 0 | K16: =SUMIF('7. Adjustment Template'!$D$11:$D$28,'Form 3 - Direct BH Cost'!A16,'7. Adjustment Template'!$F$11:$F$28) -> 0 | L16: 0
A17: 303 | B17: Licensed Clinical Social Worker (LCSW) | D17: ='3. Providers'!C78 -> 0 | E17: 0 | F17: 0 | G17: ='3. Providers'!D78 -> 0 | H17: 0 | I17: =SUMIF('6. Reclass Template'!$E:$E,A17,'6. Reclass Template'!$F:$F)-SUMIF('6. Reclass Template'!$H:$H,A17,'6. Reclass Template'!$I:$I) -> 0 | J17: 0 | K17: =SUMIF('7. Adjustment Template'!$D$11:$D$28,'Form 3 - Direct BH Cost'!A17,'7. Adjustment Template'!$F$11:$F$28) -> 0 | L17: 0
A18: 304 | B18: Unlicensed Master of Social Worker (MSW) | D18: ='3. Providers'!C79 -> 0 | E18: 0 | F18: 0 | G18: ='3. Providers'!D79 -> 0 | H18: 0 | I18: =SUMIF('6. Reclass Template'!$E:$E,A18,'6. Reclass Template'!$F:$F)-SUMIF('6. Reclass Template'!$H:$H,A18,'6. Reclass Template'!$I:$I) -> 0 | J18: 0 | K18: =SUMIF('7. Adjustment Template'!$D$11:$D$28,'Form 3 - Direct BH Cost'!A18,'7. Adjustment Template'!$F$11:$F$28) -> 0 | L18: 0
A19: 305 | B19: Licensed Mental Health Counselor (LMHC) | D19: ='3. Providers'!C80 -> 0 | E19: 0 | F19: 0 | G19: ='3. Providers'!D80 -> 0 | H19: 0 | I19: =SUMIF('6. Reclass Template'!$E:$E,A19,'6. Reclass Template'!$F:$F)-SUMIF('6. Reclass Template'!$H:$H,A19,'6. Reclass Template'!$I:$I) -> 0 | J19: 0 | K19: =SUMIF('7. Adjustment Template'!$D$11:$D$28,'Form 3 - Direct BH Cost'!A19,'7. Adjustment Template'!$F$11:$F$28) -> 0 | L19: 0
A20: 306 | B20: Family Therapists | D20: ='3. Providers'!C81 -> 0 | E20: 0 | F20: 0 | G20: ='3. Providers'!D81 -> 0 | H20: 0 | I20: =SUMIF('6. Reclass Template'!$E:$E,A20,'6. Reclass Template'!$F:$F)-SUMIF('6. Reclass Template'!$H:$H,A20,'6. Reclass Template'!$I:$I) -> 0 | J20: 0 | K20: =SUMIF('7. Adjustment Template'!$D$11:$D$28,'Form 3 - Direct BH Cost'!A20,'7. Adjustment Template'!$F$11:$F$28) -> 0 | L20: 0
A21: 307 | B21: Psychiatric Nurse Practitioner | D21: ='3. Providers'!C83 -> 0 | E21: 0 | F21: 0 | G21: ='3. Providers'!D83 -> 0 | H21: 0 | I21: =SUMIF('6. Reclass Template'!$E:$E,A21,'6. Reclass Template'!$F:$F)-SUMIF('6. Reclass Template'!$H:$H,A21,'6. Reclass Template'!$I:$I) -> 0 | J21: 0 | K21: =SUMIF('7. Adjustment Template'!$D$11:$D$28,'Form 3 - Direct BH Cost'!A21,'7. Adjustment Template'!$F$11:$F$28) -> 0 | L21: 0
A22: 308 | B22: Nurses - Psychiatric and Mental Health | D22: ='3. Providers'!C84 -> 0 | E22: 0 | F22: 0 | G22: ='3. Providers'!D84 -> 0 | H22: 0 | I22: =SUMIF('6. Reclass Template'!$E:$E,A22,'6. Reclass Template'!$F:$F)-SUMIF('6. Reclass Template'!$H:$H,A22,'6. Reclass Template'!$I:$I) -> 0 | J22: 0 | K22: =SUMIF('7. Adjustment Template'!$D$11:$D$28,'Form 3 - Direct BH Cost'!A22,'7. Adjustment Template'!$F$11:$F$28) -> 0 | L22: 0
A23: 309 | B23: RN Nurse Counselors | D23: ='3. Providers'!C85 -> 0 | E23: 0 | F23: 0 | G23: ='3. Providers'!D85 -> 0 | H23: 0 | I23: =SUMIF('6. Reclass Template'!$E:$E,A23,'6. Reclass Template'!$F:$F)-SUMIF('6. Reclass Template'!$H:$H,A23,'6. Reclass Template'!$I:$I) -> 0 | J23: 0 | K23: =SUMIF('7. Adjustment Template'!$D$11:$D$28,'Form 3 - Direct BH Cost'!A23,'7. Adjustment Template'!$F$11:$F$28) -> 0 | L23: 0
A24: 310 | B24: Unlicensed Mental Health Providers, including trainees (interns or residents) and "Certified" staff | D24: ='3. Providers'!C86 -> 0 | E24: 0 | F24: 0 | G24: ='3. Providers'!D86 -> 0 | H24: 0 | I24: =SUMIF('6. Reclass Template'!$E:$E,A24,'6. Reclass Template'!$F:$F)-SUMIF('6. Reclass Template'!$H:$H,A24,'6. Reclass Template'!$I:$I) -> 0 | J24: 0 | K24: =SUMIF('7. Adjustment Template'!$D$11:$D$28,'Form 3 - Direct BH Cost'!A24,'7. Adjustment Template'!$F$11:$F$28) -> 0 | L24: 0
A25: Substance Use Disorder
A26: 311 | B26: RN Nurse Counselors | D26: ='3. Providers'!C89 -> 0 | E26: =IFERROR((D26/D$41)*E$41, "0") -> 0 | F26: =D26+E26 -> 0 | G26: ='3. Providers'!D89 -> 0 | H26: 0 | I26: =SUMIF('6. Reclass Template'!$E:$E,A26,'6. Reclass Template'!$F:$F)-SUMIF('6. Reclass Template'!$H:$H,A26,'6. Reclass Template'!$I:$I) -> 0 | J26: 0 | K26: =SUMIF('7. Adjustment Template'!$D$11:$D$28,'Form 3 - Direct BH Cost'!A26,'7. Adjustment Template'!$F$11:$F$28) -> 0 | L26: 0
A27: 312 | B27: Licensed Independent Clinical Social Worker (LISCW) | D27: ='3. Providers'!C91 -> 0 | E27: 0 | F27: =D27+E27 -> 0 | G27: ='3. Providers'!D91 -> 0 | H27: 0 | I27: =SUMIF('6. Reclass Template'!$E:$E,A27,'6. Reclass Template'!$F:$F)-SUMIF('6. Reclass Template'!$H:$H,A27,'6. Reclass Template'!$I:$I) -> 0 | J27: 0 | K27: =SUMIF('7. Adjustment Template'!$D$11:$D$28,'Form 3 - Direct BH Cost'!A27,'7. Adjustment Template'!$F$11:$F$28) -> 0 | L27: 0
A28: 313 | B28: Licensed Clinical Social Worker (LCSW) | D28: ='3. Providers'!C92 -> 0 | E28: 0 | F28: 0 | G28: ='3. Providers'!D92 -> 0 | H28: 0 | I28: =SUMIF('6. Reclass Template'!$E:$E,A28,'6. Reclass Template'!$F:$F)-SUMIF('6. Reclass Template'!$H:$H,A28,'6. Reclass Template'!$I:$I) -> 0 | J28: 0 | K28: =SUMIF('7. Adjustment Template'!$D$11:$D$28,'Form 3 - Direct BH Cost'!A28,'7. Adjustment Template'!$F$11:$F$28) -> 0 | L28: 0
A29: 314 | B29: Unlicensed Master of Social Worker (MSW) | D29: ='3. Providers'!C93 -> 0 | E29: 0 | F29: 0 | G29: ='3. Providers'!D93 -> 0 | H29: 0 | I29: =SUMIF('6. Reclass Template'!$E:$E,A29,'6. Reclass Template'!$F:$F)-SUMIF('6. Reclass Template'!$H:$H,A29,'6. Reclass Template'!$I:$I) -> 0 | J29: 0 | K29: =SUMIF('7. Adjustment Template'!$D$11:$D$28,'Form 3 - Direct BH Cost'!A29,'7. Adjustment Template'!$F$11:$F$28) -> 0 | L29: 0
A30: 315 | B30: Licensed Mental Health Counselor (LMHC) | D30: ='3. Providers'!C94 -> 0 | E30: 0 | F30: 0 | G30: ='3. Providers'!D94 -> 0 | H30: 0 | I30: =SUMIF('6. Reclass Template'!$E:$E,A30,'6. Reclass Template'!$F:$F)-SUMIF('6. Reclass Template'!$H:$H,A30,'6. Reclass Template'!$I:$I) -> 0 | J30: 0 | K30: =SUMIF('7. Adjustment Template'!$D$11:$D$28,'Form 3 - Direct BH Cost'!A30,'7. Adjustment Template'!$F$11:$F$28) -> 0 | L30: 0
A31: 316 | B31: LADAC/CADAC | D31: ='3. Providers'!C96 -> 0 | E31: 0 | F31: 0 | G31: ='3. Providers'!D96 -> 0 | H31: 0 | I31: =SUMIF('6. Reclass Template'!$E:$E,A31,'6. Reclass Template'!$F:$F)-SUMIF('6. Reclass Template'!$H:$H,A31,'6. Reclass Template'!$I:$I) -> 0 | J31: 0 | K31: =SUMIF('7. Adjustment Template'!$D$11:$D$28,'Form 3 - Direct BH Cost'!A31,'7. Adjustment Template'!$F$11:$F$28) -> 0 | L31: 0
A32: 317 | B32: Family Therapists | D32: ='3. Providers'!C95 -> 0 | E32: 0 | F32: 0 | G32: ='3. Providers'!D95 -> 0 | H32: 0 | I32: =SUMIF('6. Reclass Template'!$E:$E,A32,'6. Reclass Template'!$F:$F)-SUMIF('6. Reclass Template'!$H:$H,A32,'6. Reclass Template'!$I:$I) -> 0 | J32: 0 | K32: =SUMIF('7. Adjustment Template'!$D$11:$D$28,'Form 3 - Direct BH Cost'!A32,'7. Adjustment Template'!$F$11:$F$28) -> 0 | L32: 0
A33: 318 | B33: Recovery Coaches/Peer Support | D33: ='3. Providers'!C98 -> 0 | E33: 0 | F33: 0 | G33: ='3. Providers'!D98 -> 0 | H33: 0 | I33: =SUMIF('6. Reclass Template'!$E:$E,A33,'6. Reclass Template'!$F:$F)-SUMIF('6. Reclass Template'!$H:$H,A33,'6. Reclass Template'!$I:$I) -> 0 | J33: 0 | K33: =SUMIF('7. Adjustment Template'!$D$11:$D$28,'Form 3 - Direct BH Cost'!A33,'7. Adjustment Template'!$F$11:$F$28) -> 0 | L33: 0
A34: d.1 | B34: In-Bundle Direct Behavioral Health Staff Costs | D34: =SUM(D14:D33) -> 0 | E34: =SUM(E14:E33) -> 0 | F34: =SUM(F14:F33) -> 0 | G34: 0 | H34: 0 | I34: 0 | J34: 0 | K34: 0 | L34: 0
A35: Substance Use Disorder
A36: 319 | B36: Harm Reduction Specialist | D36: ='3. Providers'!C97 -> 0 | E36: =IFERROR((D36/D$41)*E$41, "0") -> 0 | F36: 0 | G36: ='3. Providers'!D97 -> 0 | H36: 0 | I36: =SUMIF('6. Reclass Template'!$E:$E,A36,'6. Reclass Template'!$F:$F)-SUMIF('6. Reclass Template'!$H:$H,A36,'6. Reclass Template'!$I:$I) -> 0 | J36: 0 | K36: =SUMIF('7. Adjustment Template'!$D$11:$D$28,'Form 3 - Direct BH Cost'!A36,'7. Adjustment Template'!$F$11:$F$28) -> 0 | L36: 0
A37: 320 | B37: Other NON-BILLABLE MH/SUD Providers | D37: ='3. Providers'!C99 -> 0 | E37: =IFERROR((D37/D$41)*E$41, "0") -> 0 | F37: =D37+E37 -> 0 | G37: ='3. Providers'!D99 -> 0 | H37: =SUM(F37:G37) -> 0 | I37: =SUMIF('6. Reclass Template'!$E:$E,A37,'6. Reclass Template'!$F:$F)-SUMIF('6. Reclass Template'!$H:$H,A37,'6. Reclass Template'!$I:$I) -> 0 | J37: 0 | K37: =SUMIF('7. Adjustment Template'!$D$11:$D$28,'Form 3 - Direct BH Cost'!A37,'7. Adjustment Template'!$F$11:$F$28) -> 0 | L37: 0
A38: d.2 | B38: Out-of-Bundle Direct Behavioral Health Staff Costs | D38: =SUM(D36:D37) -> 0 | E38: 0 | F38: 0 | G38: 0 | H38: 0 | I38: 0 | J38: 0 | K38: 0 | L38: 0
A39: 321 | B39: Other MH/SUD Non-Provider Staff | D39: ='4. Non-Providers'!C116 -> 0 | E39: =IFERROR((D39/D$41)*E$41, "0") -> 0 | F39: 0 | G39: ='4. Non-Providers'!D116 -> 0 | H39: 0 | I39: =SUMIF('6. Reclass Template'!$E:$E,A39,'6. Reclass Template'!$F:$F)-SUMIF('6. Reclass Template'!$H:$H,A39,'6. Reclass Template'!$I:$I) -> 0 | J39: 0 | K39: =SUMIF('7. Adjustment Template'!$D$11:$D$28,'Form 3 - Direct BH Cost'!A39,'7. Adjustment Template'!$F$11:$F$28) -> 0 | L39: 0
A40: d.3 | B40: Non-Provider Direct Behavioral Health Staff Costs | D40: =D39 -> 0 | E40: =E39 -> 0 | F40: =F39 -> 0 | G40: 0 | H40: 0 | I40: 0 | J40: 0 | K40: 0 | L40: 0
A41: d.4 | B41: Subtotal Direct Behavioral Health Staff Cost | D41: =SUM(D34,D38,D40) -> 0 | E41: ='Cost Breakdown'!F12 -> 0 | F41: =SUM(F34,F38,F40) -> 0 | G41: 0 | H41: 0 | I41: 0 | J41: 0 | K41: 0 | L41: 0
A42: 2. | B42: Other Direct Behavioral Health Care Cost
A43: 322 | B43: Insurance | G43: ='5. Cost Information'!E35 -> 0 | H43: =SUM(D43:G43) -> 0 | I43: =SUMIF('6. Reclass Template'!$E:$E,A43,'6. Reclass Template'!$F:$F)-SUMIF('6. Reclass Template'!$H:$H,A43,'6. Reclass Template'!$I:$I) -> 0 | J43: =H43+I43 -> 0 | K43: =SUMIF('7. Adjustment Template'!$D$11:$D$28,'Form 3 - Direct BH Cost'!A43,'7. Adjustment Template'!$F$11:$F$28) -> 0 | L43: =J43+K43 -> 0
A44: 323 | B44: Consumable Supplies | G44: ='5. Cost Information'!E36 -> 0 | H44: =SUM(D44:G44) -> 0 | I44: =SUMIF('6. Reclass Template'!$E:$E,A44,'6. Reclass Template'!$F:$F)-SUMIF('6. Reclass Template'!$H:$H,A44,'6. Reclass Template'!$I:$I) -> 0 | J44: 0 | K44: =SUMIF('7. Adjustment Template'!$D$11:$D$28,'Form 3 - Direct BH Cost'!A44,'7. Adjustment Template'!$F$11:$F$28) -> 0 | L44: 0
A45: 324 | B45: Repairs and Maintenance | G45: ='5. Cost Information'!E37 -> 0 | H45: 0 | I45: =SUMIF('6. Reclass Template'!$E:$E,A45,'6. Reclass Template'!$F:$F)-SUMIF('6. Reclass Template'!$H:$H,A45,'6. Reclass Template'!$I:$I) -> 0 | J45: 0 | K45: =SUMIF('7. Adjustment Template'!$D$11:$D$28,'Form 3 - Direct BH Cost'!A45,'7. Adjustment Template'!$F$11:$F$28) -> 0 | L45: 0
A46: 325 | B46: Equipment Rental | G46: ='5. Cost Information'!E56 -> 0 | H46: 0 | I46: =SUMIF('6. Reclass Template'!$E:$E,A46,'6. Reclass Template'!$F:$F)-SUMIF('6. Reclass Template'!$H:$H,A46,'6. Reclass Template'!$I:$I) -> 0 | J46: 0 | K46: =SUMIF('7. Adjustment Template'!$D$11:$D$28,'Form 3 - Direct BH Cost'!A46,'7. Adjustment Template'!$F$11:$F$28) -> 0 | L46: 0
A47: 326 | B47: Travel, Conference and Meeting Expenses | G47: ='5. Cost Information'!E38 -> 0 | H47: 0 | I47: =SUMIF('6. Reclass Template'!$E:$E,A47,'6. Reclass Template'!$F:$F)-SUMIF('6. Reclass Template'!$H:$H,A47,'6. Reclass Template'!$I:$I) -> 0 | J47: 0 | K47: =SUMIF('7. Adjustment Template'!$D$11:$D$28,'Form 3 - Direct BH Cost'!A47,'7. Adjustment Template'!$F$11:$F$28) -> 0 | L47: 0
A48: 327 | B48: Dues and Subscriptions | G48: ='5. Cost Information'!E39 -> 0 | H48: 0 | I48: =SUMIF('6. Reclass Template'!$E:$E,A48,'6. Reclass Template'!$F:$F)-SUMIF('6. Reclass Template'!$H:$H,A48,'6. Reclass Template'!$I:$I) -> 0 | J48: 0 | K48: =SUMIF('7. Adjustment Template'!$D$11:$D$28,'Form 3 - Direct BH Cost'!A48,'7. Adjustment Template'!$F$11:$F$28) -> 0 | L48: 0
A49: 328 | B49: Interest Expense (Operating) | G49: ='5. Cost Information'!E41 -> 0 | H49: 0 | I49: =SUMIF('6. Reclass Template'!$E:$E,A49,'6. Reclass Template'!$F:$F)-SUMIF('6. Reclass Template'!$H:$H,A49,'6. Reclass Template'!$I:$I) -> 0 | J49: 0 | K49: =SUMIF('7. Adjustment Template'!$D$11:$D$28,'Form 3 - Direct BH Cost'!A49,'7. Adjustment Template'!$F$11:$F$28) -> 0 | L49: 0
A50: 329 | B50: Interest Expense (Capital) | G50: ='5. Cost Information'!E55 -> 0 | H50: =SUM(D50:G50) -> 0 | I50: =SUMIF('6. Reclass Template'!$E:$E,A50,'6. Reclass Template'!$F:$F)-SUMIF('6. Reclass Template'!$H:$H,A50,'6. Reclass Template'!$I:$I) -> 0 | J50: =H50+I50 -> 0 | K50: =SUMIF('7. Adjustment Template'!$D$11:$D$28,'Form 3 - Direct BH Cost'!A50,'7. Adjustment Template'!$F$11:$F$28) -> 0 | L50: =J50+K50 -> 0
A51: 330 | B51: Professional Services | G51: ='5. Cost Information'!E43 -> 0 | H51: 0 | I51: =SUMIF('6. Reclass Template'!$E:$E,A51,'6. Reclass Template'!$F:$F)-SUMIF('6. Reclass Template'!$H:$H,A51,'6. Reclass Template'!$I:$I) -> 0 | J51: 0 | K51: =SUMIF('7. Adjustment Template'!$D$11:$D$28,'Form 3 - Direct BH Cost'!A51,'7. Adjustment Template'!$F$11:$F$28) -> 0 | L51: 0
A52: 331 | B52: Staff Training | G52: ='5. Cost Information'!E44 -> 0 | H52: 0 | I52: =SUMIF('6. Reclass Template'!$E:$E,A52,'6. Reclass Template'!$F:$F)-SUMIF('6. Reclass Template'!$H:$H,A52,'6. Reclass Template'!$I:$I) -> 0 | J52: 0 | K52: =SUMIF('7. Adjustment Template'!$D$11:$D$28,'Form 3 - Direct BH Cost'!A52,'7. Adjustment Template'!$F$11:$F$28) -> 0 | L52: 0
A53: 332 | B53: Contracted Services | G53: ='5. Cost Information'!E45 -> 0 | H53: 0 | I53: =SUMIF('6. Reclass Template'!$E:$E,A53,'6. Reclass Template'!$F:$F)-SUMIF('6. Reclass Template'!$H:$H,A53,'6. Reclass Template'!$I:$I) -> 0 | J53: 0 | K53: =SUMIF('7. Adjustment Template'!$D$11:$D$28,'Form 3 - Direct BH Cost'!A53,'7. Adjustment Template'!$F$11:$F$28) -> 0 | L53: 0
A54: 333 | B54: Publishing, Printing and Mailing | G54: ='5. Cost Information'!E46 -> 0 | H54: 0 | I54: =SUMIF('6. Reclass Template'!$E:$E,A54,'6. Reclass Template'!$F:$F)-SUMIF('6. Reclass Template'!$H:$H,A54,'6. Reclass Template'!$I:$I) -> 0 | J54: 0 | K54: =SUMIF('7. Adjustment Template'!$D$11:$D$28,'Form 3 - Direct BH Cost'!A54,'7. Adjustment Template'!$F$11:$F$28) -> 0 | L54: 0
A55: 334 | B55: Depreciation | G55: ='5. Cost Information'!E53 -> 0 | H55: 0 | I55: =SUMIF('6. Reclass Template'!$E:$E,A55,'6. Reclass Template'!$F:$F)-SUMIF('6. Reclass Template'!$H:$H,A55,'6. Reclass Template'!$I:$I) -> 0 | J55: 0 | K55: =SUMIF('7. Adjustment Template'!$D$11:$D$28,'Form 3 - Direct BH Cost'!A55,'7. Adjustment Template'!$F$11:$F$28) -> 0 | L55: 0
A56: 335 | B56: Personnel Recruitment | G56: ='5. Cost Information'!E48 -> 0 | H56: 0 | I56: =SUMIF('6. Reclass Template'!$E:$E,A56,'6. Reclass Template'!$F:$F)-SUMIF('6. Reclass Template'!$H:$H,A56,'6. Reclass Template'!$I:$I) -> 0 | J56: 0 | K56: =SUMIF('7. Adjustment Template'!$D$11:$D$28,'Form 3 - Direct BH Cost'!A56,'7. Adjustment Template'!$F$11:$F$28) -> 0 | L56: 0
A57: 336 | B57: Other Operating Expense | G57: ='5. Cost Information'!E50 -> 0 | H57: 0 | I57: =SUMIF('6. Reclass Template'!$E:$E,A57,'6. Reclass Template'!$F:$F)-SUMIF('6. Reclass Template'!$H:$H,A57,'6. Reclass Template'!$I:$I) -> 0 | J57: 0 | K57: =SUMIF('7. Adjustment Template'!$D$11:$D$28,'Form 3 - Direct BH Cost'!A57,'7. Adjustment Template'!$F$11:$F$28) -> 0 | L57: 0
A58: 337 | B58: Other Capital Expense | G58: ='5. Cost Information'!E57 -> 0 | H58: =SUM(D58:G58) -> 0 | I58: =SUMIF('6. Reclass Template'!$E:$E,A58,'6. Reclass Template'!$F:$F)-SUMIF('6. Reclass Template'!$H:$H,A58,'6. Reclass Template'!$I:$I) -> 0 | J58: =H58+I58 -> 0 | K58: =SUMIF('7. Adjustment Template'!$D$11:$D$28,'Form 3 - Direct BH Cost'!A58,'7. Adjustment Template'!$F$11:$F$28) -> 0 | L58: =J58+K58 -> 0
A59: f.1 | B59: Subtotal Other Direct Behavioral Health Care Costs | G59: =SUM(G43:G58) -> 0 | H59: 0 | I59: 0 | J59: 0 | K59: 0 | L59: 0
A61: 3. | B61: TOTAL DIRECT BEHAVIORAL HEALTH CARE COST (1.d.4 & 2.f.1) | D61: =D59+D41 -> 0 | E61: =E59+E41 -> 0 | F61: =F59+F41 -> 0 | G61: =G59+G41 -> 0 | H61: 0 | I61: 0 | J61: 0 | K61: 0 | L61: 0
A63: D. | B63: TOTAL DIRECT COST BEFORE NON-ALLOWABLE SERVICES | D63: =D61+'Form 2 - Direct Dental Cost'!D40+'Form 1 - Direct Medical Cost'!D49 -> 0 | E63: =E61+'Form 2 - Direct Dental Cost'!E40+'Form 1 - Direct Medical Cost'!E49 -> 0 | F63: =D63+E63 -> 0 | G63: =G61+'Form 2 - Direct Dental Cost'!G40+'Form 1 - Direct Medical Cost'!G49 -> 0 | H63: =H61+'Form 2 - Direct Dental Cost'!H40+'Form 1 - Direct Medical Cost'!H49 -> 0 | I63: =I61+'Form 2 - Direct Dental Cost'!I40+'Form 1 - Direct Medical Cost'!I49 -> 0 | J63: =J61+'Form 2 - Direct Dental Cost'!J40+'Form 1 - Direct Medical Cost'!J49 -> 0 | K63: =K61+'Form 2 - Direct Dental Cost'!K40+'Form 1 - Direct Medical Cost'!K49 -> 0 | L63: =L61+'Form 2 - Direct Dental Cost'!L40+'Form 1 - Direct Medical Cost'!L49 -> 0

Sheet Form 4 - NonAllowable
B2: Community Health Center Cost Report
B3: Form 4 - NonAllowable
B4: ='1. Agency Information'!C9 -> 0
A6: RECLASSIFICATIONS AND ADJUSTMENTS OF TRIAL BALANCE OF EXPENSES | L6: Form 4 (Non-Allowable Other Direct Service Cost)
J8: Reclassified | K8: Adjustments | L8: Net Expenses
A9: COST CENTER | D9: Salaried | E9: Fringe | G9: Other | I9: Reclass- | J9: Trial Balance | K9: Increase | L9: w Cost Changes
D10: Personnel | E10: Benefits | F10: Compensation | G10: Costs | H10: Total | I10: ifications | J10: (Col 3 & 4) | K10: (Decrease) | L10: (Col 5 + 6)
A11: E. | B11: NON-ALLOWABLE DIRECT OTHER SERVICE COST | D11: IA | E11: IB | F11: I | G11: II | H11: III | I11: IV | J11: V | K11: VI | L11: VII
A12: 1. | B12: Service
A13: 400 | B13: WIC | D13: ='4. Non-Providers'!C293 -> 0 | E13: =IFERROR(E$32*(D13/(D$32-D$27-D$26-D$25)), "0") -> 0 | F13: =D13+E13 -> 0 | G13: ='4. Non-Providers'!D293+'5. Cost Information'!P58 -> 0 | H13: =SUM(F13:G13) -> 0 | I13: =SUMIF('6. Reclass Template'!$E:$E,A13,'6. Reclass Template'!$F:$F)-SUMIF('6. Reclass Template'!$H:$H,A13,'6. Reclass Template'!$I:$I) -> 0 | J13: =H13+I13 -> 0 | K13: =SUMIF('7. Adjustment Template'!$D$11:$D$28,A13,'7. Adjustment Template'!$F$11:$F$28) -> 0 | L13: =J13+K13 -> 0
A14: 401 | B14: Head Start | D14: ='4. Non-Providers'!C294 -> 0 | E14: 0 | F14: =D14+E14 -> 0 | G14: ='4. Non-Providers'!D294 -> 0 | H14: =SUM(F14:G14) -> 0 | I14: =SUMIF('6. Reclass Template'!$E:$E,A14,'6. Reclass Template'!$F:$F)-SUMIF('6. Reclass Template'!$H:$H,A14,'6. Reclass Template'!$I:$I) -> 0 | J14: 0 | K14: =SUMIF('7. Adjustment Template'!$D$11:$D$28,A14,'7. Adjustment Template'!$F$11:$F$28) -> 0 | L14: =J14+K14 -> 0
A15: 402 | B15: Housing Assistance | D15: ='4. Non-Providers'!C295 -> 0 | E15: 0 | F15: 0 | G15: ='4. Non-Providers'!D295 -> 0 | H15: =SUM(F15:G15) -> 0 | I15: =SUMIF('6. Reclass Template'!$E:$E,A15,'6. Reclass Template'!$F:$F)-SUMIF('6. Reclass Template'!$H:$H,A15,'6. Reclass Template'!$I:$I) -> 0 | J15: 0 | K15: =SUMIF('7. Adjustment Template'!$D$11:$D$28,A15,'7. Adjustment Template'!$F$11:$F$28) -> 0 | L15: 0
A16: 403 | B16: Child Care Services | D16: ='4. Non-Providers'!C296 -> 0 | E16: 0 | F16: 0 | G16: ='4. Non-Providers'!D296 -> 0 | H16: =SUM(F16:G16) -> 0 | I16: =SUMIF('6. Reclass Template'!$E:$E,A16,'6. Reclass Template'!$F:$F)-SUMIF('6. Reclass Template'!$H:$H,A16,'6. Reclass Template'!$I:$I) -> 0 | J16: 0 | K16: =SUMIF('7. Adjustment Template'!$D$11:$D$28,A16,'7. Adjustment Template'!$F$11:$F$28) -> 0 | L16: 0
A17: 404 | B17: Food Bank/Meal Delivery | D17: ='4. Non-Providers'!C297 -> 0 | E17: 0 | F17: 0 | G17: ='4. Non-Providers'!D297 -> 0 | H17: 0 | I17: =SUMIF('6. Reclass Template'!$E:$E,A17,'6. Reclass Template'!$F:$F)-SUMIF('6. Reclass Template'!$H:$H,A17,'6. Reclass Template'!$I:$I) -> 0 | J17: 0 | K17: =SUMIF('7. Adjustment Template'!$D$11:$D$28,A17,'7. Adjustment Template'!$F$11:$F$28) -> 0 | L17: 0
A18: 405 | B18: Employment/Educational Services | D18: ='4. Non-Providers'!C298 -> 0 | E18: 0 | F18: 0 | G18: ='4. Non-Providers'!D298 -> 0 | H18: 0 | I18: =SUMIF('6. Reclass Template'!$E:$E,A18,'6. Reclass Template'!$F:$F)-SUMIF('6. Reclass Template'!$H:$H,A18,'6. Reclass Template'!$I:$I) -> 0 | J18: 0 | K18: =SUMIF('7. Adjustment Template'!$D$11:$D$28,A18,'7. Adjustment Template'!$F$11:$F$28) -> 0 | L18: 0
A19: 406 | B19: Exercise Trainers/Fitness Center | D19: ='4. Non-Providers'!C299 -> 0 | E19: 0 | F19: 0 | G19: ='4. Non-Providers'!D299 -> 0 | H19: 0 | I19: =SUMIF('6. Reclass Template'!$E:$E,A19,'6. Reclass Template'!$F:$F)-SUMIF('6. Reclass Template'!$H:$H,A19,'6. Reclass Template'!$I:$I) -> 0 | J19: 0 | K19: =SUMIF('7. Adjustment Template'!$D$11:$D$28,A19,'7. Adjustment Template'!$F$11:$F$28) -> 0 | L19: 0
A20: 407 | B20: Adult Day Health Care | D20: ='4. Non-Providers'!C300 -> 0 | E20: 0 | F20: 0 | G20: ='4. Non-Providers'!D300 -> 0 | H20: 0 | I20: =SUMIF('6. Reclass Template'!$E:$E,A20,'6. Reclass Template'!$F:$F)-SUMIF('6. Reclass Template'!$H:$H,A20,'6. Reclass Template'!$I:$I) -> 0 | J20: 0 | K20: =SUMIF('7. Adjustment Template'!$D$11:$D$28,A20,'7. Adjustment Template'!$F$11:$F$28) -> 0 | L20: 0
A21: 408 | B21: Fundraising/Development | D21: ='4. Non-Providers'!C301 -> 0 | E21: 0 | F21: 0 | G21: ='4. Non-Providers'!D301 -> 0 | H21: 0 | I21: =SUMIF('6. Reclass Template'!$E:$E,A21,'6. Reclass Template'!$F:$F)-SUMIF('6. Reclass Template'!$H:$H,A21,'6. Reclass Template'!$I:$I) -> 0 | J21: 0 | K21: =SUMIF('7. Adjustment Template'!$D$11:$D$28,A21,'7. Adjustment Template'!$F$11:$F$28) -> 0 | L21: 0
A22: 409 | B22: PACE | D22: ='4. Non-Providers'!C302 -> 0 | E22: 0 | F22: 0 | G22: ='4. Non-Providers'!D302+'5. Cost Information'!R58 -> 0 | H22: 0 | I22: =SUMIF('6. Reclass Template'!$E:$E,A22,'6. Reclass Template'!$F:$F)-SUMIF('6. Reclass Template'!$H:$H,A22,'6. Reclass Template'!$I:$I) -> 0 | J22: 0 | K22: =SUMIF('7. Adjustment Template'!$D$11:$D$28,A22,'7. Adjustment Template'!$F$11:$F$28) -> 0 | L22: 0
A23: 410 | B23: SCO | D23: ='4. Non-Providers'!C303 -> 0 | E23: 0 | F23: 0 | G23: ='4. Non-Providers'!D303+'5. Cost Information'!S58 -> 0 | H23: 0 | I23: =SUMIF('6. Reclass Template'!$E:$E,A23,'6. Reclass Template'!$F:$F)-SUMIF('6. Reclass Template'!$H:$H,A23,'6. Reclass Template'!$I:$I) -> 0 | J23: 0 | K23: =SUMIF('7. Adjustment Template'!$D$11:$D$28,A23,'7. Adjustment Template'!$F$11:$F$28) -> 0 | L23: 0
A24: 411 | B24: Non-FQHC Sites | D24: ='4. Non-Providers'!C304 -> 0 | E24: 0 | F24: 0 | G24: ='4. Non-Providers'!D304+'5. Cost Information'!Q58 -> 0 | H24: 0 | I24: =SUMIF('6. Reclass Template'!$E:$E,A24,'6. Reclass Template'!$F:$F)-SUMIF('6. Reclass Template'!$H:$H,A24,'6. Reclass Template'!$I:$I) -> 0 | J24: 0 | K24: =SUMIF('7. Adjustment Template'!$D$11:$D$28,A24,'7. Adjustment Template'!$F$11:$F$28) -> 0 | L24: 0
A25: 412 | B25: Laboratory | D25: ='4. Non-Providers'!C55 -> 0 | E25: ='Cost Breakdown'!H12 -> 0 | F25: 0 | G25: ='4. Non-Providers'!D55+'5. Cost Information'!H58 -> 0 | H25: 0 | I25: =SUMIF('6. Reclass Template'!$E:$E,A25,'6. Reclass Template'!$F:$F)-SUMIF('6. Reclass Template'!$H:$H,A25,'6. Reclass Template'!$I:$I) -> 0 | J25: 0 | K25: =SUMIF('7. Adjustment Template'!$D$11:$D$28,A25,'7. Adjustment Template'!$F$11:$F$28) -> 0 | L25: 0
A26: 413 | B26: Radiology | D26: ='4. Non-Providers'!C69 -> 0 | E26: ='Cost Breakdown'!I12 -> 0 | F26: 0 | G26: ='4. Non-Providers'!D69+'5. Cost Information'!I58 -> 0 | H26: 0 | I26: =SUMIF('6. Reclass Template'!$E:$E,A26,'6. Reclass Template'!$F:$F)-SUMIF('6. Reclass Template'!$H:$H,A26,'6. Reclass Template'!$I:$I) -> 0 | J26: 0 | K26: =SUMIF('7. Adjustment Template'!$D$11:$D$28,A26,'7. Adjustment Template'!$F$11:$F$28) -> 0 | L26: 0
A27: 414 | B27: Pharmacy | D27: ='4. Non-Providers'!C84 -> 0 | E27: ='Cost Breakdown'!J12 -> 0 | F27: 0 | G27: ='4. Non-Providers'!D84+'5. Cost Information'!J58 -> 0 | H27: 0 | I27: =SUMIF('6. Reclass Template'!$E:$E,A27,'6. Reclass Template'!$F:$F)-SUMIF('6. Reclass Template'!$H:$H,A27,'6. Reclass Template'!$I:$I) -> 0 | J27: 0 | K27: =SUMIF('7. Adjustment Template'!$D$11:$D$28,A27,'7. Adjustment Template'!$F$11:$F$28) -> 0 | L27: 0
A28: 415 | B28: Other Non-Allowable | D28: ='4. Non-Providers'!C305 -> 0 | E28: =IFERROR(E$32*(D28/(D$32-D$27-D$26-D$25)), "0") -> 0 | F28: 0 | G28: ='4. Non-Providers'!D305+'5. Cost Information'!T58 -> 0 | H28: 0 | I28: =SUMIF('6. Reclass Template'!$E:$E,A28,'6. Reclass Template'!$F:$F)-SUMIF('6. Reclass Template'!$H:$H,A28,'6. Reclass Template'!$I:$I) -> 0 | J28: 0 | K28: =SUMIF('7. Adjustment Template'!$D$11:$D$28,A28,'7. Adjustment Template'!$F$11:$F$28) -> 0 | L28: 0
A32: e. | B32: Total Non-Allowable Direct Other Service Cost | D32: =SUM(D13:D31) -> 0 | E32: ='Cost Breakdown'!N12 -> 0 | F32: =SUM(F13:F31) -> 0 | G32: =SUM(G13:G31) -> 0 | H32: =SUM(H13:H31) -> 0 | I32: 0 | J32: 0 | K32: 0 | L32: 0
A33: F. | B33: TOTAL DIRECT COST | D33: =D32+'Form 3 - Direct BH Cost'!D63 -> 0 | E33: =E32+'Form 3 - Direct BH Cost'!E63 -> 0 | F33: =F32+'Form 3 - Direct BH Cost'!F63 -> 0 | G33: =G32+'Form 3 - Direct BH Cost'!G63 -> 0 | H33: =H32+'Form 3 - Direct BH Cost'!H63 -> 0 | I33: =I32+'Form 3 - Direct BH Cost'!I63 -> 0 | J33: =J32+'Form 3 - Direct BH Cost'!J63 -> 0 | K33: =K32+'Form 3 - Direct BH Cost'!K63 -> 0 | L33: =L32+'Form 3 - Direct BH Cost'!L63 -> 0

Sheet Form 5 - Overhead & Enabling
B2: Community Health Center Cost Report
B3: Form 5 - Overhead & Enabling
B4: ='1. Agency Information'!C9 -> 0
A6: RECLASSIFICATIONS AND ADJUSTMENTS OF TRIAL BALANCE OF EXPENSES | L6: Form 5 (Overhead & Enabling Cost)
F8: Compensation | J8: Reclassified | K8: Adjustments | L8: Net Expenses
A9: COST CENTER | D9: Salaried | E9: Fringe | G9: Other | I9: Reclass- | J9: Trial Balance | K9: Increase | L9: w Cost Changes
D10: Personnel | E10: Benefits | G10: Costs | H10: Total | I10: ifications | J10: (Col 3 & 4) | K10: (Decrease) | L10: (Col 5 + 6)
A11: G. | B11: OVERHEAD - FACILITY COST | D11: IA | E11: IB | F11: I | G11: II | H11: III | I11: IV | J11: V | K11: VI | L11: VII
A12: 500 | B12: Facility Staff | D12: ='4. Non-Providers'!C288 -> 0 | E12: =IFERROR((D12/D$32)*E$32, "0") -> 0 | F12: =D12+E12 -> 0 | G12: ='4. Non-Providers'!D288 -> 0 | H12: =SUM(F12:G12) -> 0 | I12: =SUMIF('6. Reclass Template'!$E:$E,A12,'6. Reclass Template'!$F:$F)-SUMIF('6. Reclass Template'!$H:$H,A12,'6. Reclass Template'!$I:$I) -> 0 | J12: =H12+I12 -> 0 | K12: =SUMIF('7. Adjustment Template'!$D$11:$D$28,A12,'7. Adjustment Template'!$F$11:$F$28) -> 0 | L12: =J12+K12 -> 0
A13: 501 | B13: Insurance | G13: ='5. Cost Information'!M35 -> 0 | H13: =SUM(F13:G13) -> 0 | I13: =SUMIF('6. Reclass Template'!$E:$E,A13,'6. Reclass Template'!$F:$F)-SUMIF('6. Reclass Template'!$H:$H,A13,'6. Reclass Template'!$I:$I) -> 0 | J13: 0 | K13: =SUMIF('7. Adjustment Template'!$D$11:$D$28,A13,'7. Adjustment Template'!$F$11:$F$28) -> 0 | L13: =J13+K13 -> 0
A14: 502 | B14: Consumable Supplies | G14: ='5. Cost Information'!M36 -> 0 | H14: 0 | I14: =SUMIF('6. Reclass Template'!$E:$E,A14,'6. Reclass Template'!$F:$F)-SUMIF('6. Reclass Template'!$H:$H,A14,'6. Reclass Template'!$I:$I) -> 0 | J14: 0 | K14: =SUMIF('7. Adjustment Template'!$D$11:$D$28,A14,'7. Adjustment Template'!$F$11:$F$28) -> 0 | L14: 0
A15: 503 | B15: Repairs and Maintenance | G15: ='5. Cost Information'!M37 -> 0 | H15: 0 | I15: =SUMIF('6. Reclass Template'!$E:$E,A15,'6. Reclass Template'!$F:$F)-SUMIF('6. Reclass Template'!$H:$H,A15,'6. Reclass Template'!$I:$I) -> 0 | J15: 0 | K15: =SUMIF('7. Adjustment Template'!$D$11:$D$28,A15,'7. Adjustment Template'!$F$11:$F$28) -> 0 | L15: 0
A16: 504 | B16: Equipment Rental | G16: ='5. Cost Information'!M56 -> 0 | H16: 0 | I16: =SUMIF('6. Reclass Template'!$E:$E,A16,'6. Reclass Template'!$F:$F)-SUMIF('6. Reclass Template'!$H:$H,A16,'6. Reclass Template'!$I:$I) -> 0 | J16: 0 | K16: =SUMIF('7. Adjustment Template'!$D$11:$D$28,A16,'7. Adjustment Template'!$F$11:$F$28) -> 0 | L16: 0
A17: 505 | B17: Travel, Conference and Meeting Expenses | G17: ='5. Cost Information'!M38 -> 0 | H17: 0 | I17: =SUMIF('6. Reclass Template'!$E:$E,A17,'6. Reclass Template'!$F:$F)-SUMIF('6. Reclass Template'!$H:$H,A17,'6. Reclass Template'!$I:$I) -> 0 | J17: 0 | K17: =SUMIF('7. Adjustment Template'!$D$11:$D$28,A17,'7. Adjustment Template'!$F$11:$F$28) -> 0 | L17: 0
A18: 506 | B18: Dues and Subscriptions | G18: ='5. Cost Information'!M39 -> 0 | H18: 0 | I18: =SUMIF('6. Reclass Template'!$E:$E,A18,'6. Reclass Template'!$F:$F)-SUMIF('6. Reclass Template'!$H:$H,A18,'6. Reclass Template'!$I:$I) -> 0 | J18: 0 | K18: =SUMIF('7. Adjustment Template'!$D$11:$D$28,A18,'7. Adjustment Template'!$F$11:$F$28) -> 0 | L18: 0
A19: 507 | B19: Utilities | G19: ='5. Cost Information'!M40 -> 0 | H19: 0 | I19: =SUMIF('6. Reclass Template'!$E:$E,A19,'6. Reclass Template'!$F:$F)-SUMIF('6. Reclass Template'!$H:$H,A19,'6. Reclass Template'!$I:$I) -> 0 | J19: 0 | K19: =SUMIF('7. Adjustment Template'!$D$11:$D$28,A19,'7. Adjustment Template'!$F$11:$F$28) -> 0 | L19: 0
A20: 508 | B20: Interest Expense (Operating) | G20: ='5. Cost Information'!M41 -> 0 | H20: 0 | I20: =SUMIF('6. Reclass Template'!$E:$E,A20,'6. Reclass Template'!$F:$F)-SUMIF('6. Reclass Template'!$H:$H,A20,'6. Reclass Template'!$I:$I) -> 0 | J20: 0 | K20: =SUMIF('7. Adjustment Template'!$D$11:$D$28,A20,'7. Adjustment Template'!$F$11:$F$28) -> 0 | L20: 0
A21: 509 | B21: Interest Expense (Capital) | G21: ='5. Cost Information'!M55 -> 0 | H21: 0 | I21: =SUMIF('6. Reclass Template'!$E:$E,A21,'6. Reclass Template'!$F:$F)-SUMIF('6. Reclass Template'!$H:$H,A21,'6. Reclass Template'!$I:$I) -> 0 | J21: =H21+I21 -> 0 | K21: =SUMIF('7. Adjustment Template'!$D$11:$D$28,A21,'7. Adjustment Template'!$F$11:$F$28) -> 0 | L21: =J21+K21 -> 0
A22: 510 | B22: Professional Services | G22: ='5. Cost Information'!M43 -> 0 | H22: 0 | I22: =SUMIF('6. Reclass Template'!$E:$E,A22,'6. Reclass Template'!$F:$F)-SUMIF('6. Reclass Template'!$H:$H,A22,'6. Reclass Template'!$I:$I) -> 0 | J22: 0 | K22: =SUMIF('7. Adjustment Template'!$D$11:$D$28,A22,'7. Adjustment Template'!$F$11:$F$28) -> 0 | L22: 0
A23: 511 | B23: Staff Training | G23: ='5. Cost Information'!M44 -> 0 | H23: 0 | I23: =SUMIF('6. Reclass Template'!$E:$E,A23,'6. Reclass Template'!$F:$F)-SUMIF('6. Reclass Template'!$H:$H,A23,'6. Reclass Template'!$I:$I) -> 0 | J23: 0 | K23: =SUMIF('7. Adjustment Template'!$D$11:$D$28,A23,'7. Adjustment Template'!$F$11:$F$28) -> 0 | L23: 0
A24: 512 | B24: Contracted Services | G24: ='5. Cost Information'!M45 -> 0 | H24: 0 | I24: =SUMIF('6. Reclass Template'!$E:$E,A24,'6. Reclass Template'!$F:$F)-SUMIF('6. Reclass Template'!$H:$H,A24,'6. Reclass Template'!$I:$I) -> 0 | J24: 0 | K24: =SUMIF('7. Adjustment Template'!$D$11:$D$28,A24,'7. Adjustment Template'!$F$11:$F$28) -> 0 | L24: 0
A25: 513 | B25: Publishing, Printing and Mailing | G25: ='5. Cost Information'!M46 -> 0 | H25: 0 | I25: =SUMIF('6. Reclass Template'!$E:$E,A25,'6. Reclass Template'!$F:$F)-SUMIF('6. Reclass Template'!$H:$H,A25,'6. Reclass Template'!$I:$I) -> 0 | J25: 0 | K25: =SUMIF('7. Adjustment Template'!$D$11:$D$28,A25,'7. Adjustment Template'!$F$11:$F$28) -> 0 | L25: 0
A26: 514 | B26: Rent | G26: ='5. Cost Information'!M52 -> 0 | H26: 0 | I26: =SUMIF('6. Reclass Template'!$E:$E,A26,'6. Reclass Template'!$F:$F)-SUMIF('6. Reclass Template'!$H:$H,A26,'6. Reclass Template'!$I:$I) -> 0 | J26: 0 | K26: =SUMIF('7. Adjustment Template'!$D$11:$D$28,A26,'7. Adjustment Template'!$F$11:$F$28) -> 0 | L26: 0
A27: 515 | B27: Depreciation | G27: ='5. Cost Information'!M53 -> 0 | H27: 0 | I27: =SUMIF('6. Reclass Template'!$E:$E,A27,'6. Reclass Template'!$F:$F)-SUMIF('6. Reclass Template'!$H:$H,A27,'6. Reclass Template'!$I:$I) -> 0 | J27: 0 | K27: =SUMIF('7. Adjustment Template'!$D$11:$D$28,A27,'7. Adjustment Template'!$F$11:$F$28) -> 0 | L27: 0
A28: 516 | B28: Occupancy Taxes | G28: ='5. Cost Information'!M54 -> 0 | H28: 0 | I28: =SUMIF('6. Reclass Template'!$E:$E,A28,'6. Reclass Template'!$F:$F)-SUMIF('6. Reclass Template'!$H:$H,A28,'6. Reclass Template'!$I:$I) -> 0 | J28: 0 | K28: =SUMIF('7. Adjustment Template'!$D$11:$D$28,A28,'7. Adjustment Template'!$F$11:$F$28) -> 0 | L28: 0
A29: 517 | B29: Personnel Recruitment | G29: ='5. Cost Information'!M48 -> 0 | H29: 0 | I29: =SUMIF('6. Reclass Template'!$E:$E,A29,'6. Reclass Template'!$F:$F)-SUMIF('6. Reclass Template'!$H:$H,A29,'6. Reclass Template'!$I:$I) -> 0 | J29: 0 | K29: =SUMIF('7. Adjustment Template'!$D$11:$D$28,A29,'7. Adjustment Template'!$F$11:$F$28) -> 0 | L29: 0
A30: 518 | B30: Other Operating Expense | G30: ='5. Cost Information'!M50 -> 0 | H30: 0 | I30: =SUMIF('6. Reclass Template'!$E:$E,A30,'6. Reclass Template'!$F:$F)-SUMIF('6. Reclass Template'!$H:$H,A30,'6. Reclass Template'!$I:$I) -> 0 | J30: 0 | K30: =SUMIF('7. Adjustment Template'!$D$11:$D$28,A30,'7. Adjustment Template'!$F$11:$F$28) -> 0 | L30: 0
A31: 519 | B31: Other Capital Expense | G31: ='5. Cost Information'!M57 -> 0 | H31: =SUM(F31:G31) -> 0 | I31: =SUMIF('6. Reclass Template'!$E:$E,A31,'6. Reclass Template'!$F:$F)-SUMIF('6. Reclass Template'!$H:$H,A31,'6. Reclass Template'!$I:$I) -> 0 | J31: =H31+I31 -> 0 | K31: =SUMIF('7. Adjustment Template'!$D$11:$D$28,A31,'7. Adjustment Template'!$F$11:$F$28) -> 0 | L31: =J31+K31 -> 0
A32: i. | B32: Subtotal Overhead - Facility Cost | D32: =SUM(D12:D30) -> 0 | E32: ='Cost Breakdown'!M12 -> 0 | F32: =SUM(F12:F31) -> 0 | G32: 0 | H32: 0 | I32: 0 | J32: 0 | K32: 0 | L32: 0
A33: H. | B33: OVERHEAD - ADMINISTRATIVE COST | D33: IA | E33: IB | F33: I | G33: II | H33: III | I33: IV | J33: V | K33: VI | L33: VII
A34: 520 | B34: Office/Admin Personnel | D34: ='4. Non-Providers'!C270 -> 0 | E34: ='Cost Breakdown'!L12 -> 0 | F34: =D34+E34 -> 0 | G34: ='4. Non-Providers'!D270 -> 0 | H34: =SUM(F34:G34) -> 0 | I34: =SUMIF('6. Reclass Template'!$E:$E,A34,'6. Reclass Template'!$F:$F)-SUMIF('6. Reclass Template'!$H:$H,A34,'6. Reclass Template'!$I:$I) -> 0 | J34: =H34+I34 -> 0 | K34: =SUMIF('7. Adjustment Template'!$D$11:$D$28,A34,'7. Adjustment Template'!$F$11:$F$28) -> 0 | L34: =J34+K34 -> 0
A35: 521 | B35: Insurance | G35: ='5. Cost Information'!L35 -> 0 | H35: =SUM(D35:G35) -> 0 | I35: =SUMIF('6. Reclass Template'!$E:$E,A35,'6. Reclass Template'!$F:$F)-SUMIF('6. Reclass Template'!$H:$H,A35,'6. Reclass Template'!$I:$I) -> 0 | J35: =H35+I35 -> 0 | K35: =SUMIF('7. Adjustment Template'!$D$11:$D$28,A35,'7. Adjustment Template'!$F$11:$F$28) -> 0 | L35: 0
A36: 522 | B36: Consumable Supplies | G36: ='5. Cost Information'!L36 -> 0 | H36: 0 | I36: =SUMIF('6. Reclass Template'!$E:$E,A36,'6. Reclass Template'!$F:$F)-SUMIF('6. Reclass Template'!$H:$H,A36,'6. Reclass Template'!$I:$I) -> 0 | J36: 0 | K36: =SUMIF('7. Adjustment Template'!$D$11:$D$28,A36,'7. Adjustment Template'!$F$11:$F$28) -> 0 | L36: 0
A37: 523 | B37: Repairs and Maintenance | G37: ='5. Cost Information'!L37 -> 0 | H37: 0 | I37: =SUMIF('6. Reclass Template'!$E:$E,A37,'6. Reclass Template'!$F:$F)-SUMIF('6. Reclass Template'!$H:$H,A37,'6. Reclass Template'!$I:$I) -> 0 | J37: 0 | K37: =SUMIF('7. Adjustment Template'!$D$11:$D$28,A37,'7. Adjustment Template'!$F$11:$F$28) -> 0 | L37: 0
A38: 524 | B38: Equipment Rental | G38: ='5. Cost Information'!L56 -> 0 | H38: 0 | I38: =SUMIF('6. Reclass Template'!$E:$E,A38,'6. Reclass Template'!$F:$F)-SUMIF('6. Reclass Template'!$H:$H,A38,'6. Reclass Template'!$I:$I) -> 0 | J38: 0 | K38: =SUMIF('7. Adjustment Template'!$D$11:$D$28,A38,'7. Adjustment Template'!$F$11:$F$28) -> 0 | L38: 0
A39: 525 | B39: Travel, Conference and Meeting Expenses | G39: ='5. Cost Information'!L38 -> 0 | H39: 0 | I39: =SUMIF('6. Reclass Template'!$E:$E,A39,'6. Reclass Template'!$F:$F)-SUMIF('6. Reclass Template'!$H:$H,A39,'6. Reclass Template'!$I:$I) -> 0 | J39: 0 | K39: =SUMIF('7. Adjustment Template'!$D$11:$D$28,A39,'7. Adjustment Template'!$F$11:$F$28) -> 0 | L39: 0
A40: 526 | B40: Dues and Subscriptions | G40: ='5. Cost Information'!L39 -> 0 | H40: 0 | I40: =SUMIF('6. Reclass Template'!$E:$E,A40,'6. Reclass Template'!$F:$F)-SUMIF('6. Reclass Template'!$H:$H,A40,'6. Reclass Template'!$I:$I) -> 0 | J40: 0 | K40: =SUMIF('7. Adjustment Template'!$D$11:$D$28,A40,'7. Adjustment Template'!$F$11:$F$28) -> 0 | L40: 0
A41: 527 | B41: Interest Expense (Operating) | G41: ='5. Cost Information'!L41 -> 0 | H41: 0 | I41: =SUMIF('6. Reclass Template'!$E:$E,A41,'6. Reclass Template'!$F:$F)-SUMIF('6. Reclass Template'!$H:$H,A41,'6. Reclass Template'!$I:$I) -> 0 | J41: 0 | K41: =SUMIF('7. Adjustment Template'!$D$11:$D$28,A41,'7. Adjustment Template'!$F$11:$F$28) -> 0 | L41: 0
A42: 528 | B42: Interest Expense (Capital) | G42: ='5. Cost Information'!L55 -> 0 | H42: =SUM(D42:G42) -> 0 | I42: =SUMIF('6. Reclass Template'!$E:$E,A42,'6. Reclass Template'!$F:$F)-SUMIF('6. Reclass Template'!$H:$H,A42,'6. Reclass Template'!$I:$I) -> 0 | J42: =H42+I42 -> 0 | K42: =SUMIF('7. Adjustment Template'!$D$11:$D$28,A42,'7. Adjustment Template'!$F$11:$F$28) -> 0 | L42: =J42+K42 -> 0
A43: 529 | B43: Postage & Supplies | G43: ='5. Cost Information'!L42 -> 0 | H43: 0 | I43: =SUMIF('6. Reclass Template'!$E:$E,A43,'6. Reclass Template'!$F:$F)-SUMIF('6. Reclass Template'!$H:$H,A43,'6. Reclass Template'!$I:$I) -> 0 | J43: 0 | K43: =SUMIF('7. Adjustment Template'!$D$11:$D$28,A43,'7. Adjustment Template'!$F$11:$F$28) -> 0 | L43: 0
A44: 530 | B44: Professional Services | G44: ='5. Cost Information'!L43 -> 0 | H44: 0 | I44: =SUMIF('6. Reclass Template'!$E:$E,A44,'6. Reclass Template'!$F:$F)-SUMIF('6. Reclass Template'!$H:$H,A44,'6. Reclass Template'!$I:$I) -> 0 | J44: 0 | K44: =SUMIF('7. Adjustment Template'!$D$11:$D$28,A44,'7. Adjustment Template'!$F$11:$F$28) -> 0 | L44: 0
A45: 531 | B45: Staff Training | G45: ='5. Cost Information'!L44 -> 0 | H45: 0 | I45: =SUMIF('6. Reclass Template'!$E:$E,A45,'6. Reclass Template'!$F:$F)-SUMIF('6. Reclass Template'!$H:$H,A45,'6. Reclass Template'!$I:$I) -> 0 | J45: 0 | K45: =SUMIF('7. Adjustment Template'!$D$11:$D$28,A45,'7. Adjustment Template'!$F$11:$F$28) -> 0 | L45: 0
A46: 532 | B46: Contracted Services | G46: ='5. Cost Information'!L45 -> 0 | H46: 0 | I46: =SUMIF('6. Reclass Template'!$E:$E,A46,'6. Reclass Template'!$F:$F)-SUMIF('6. Reclass Template'!$H:$H,A46,'6. Reclass Template'!$I:$I) -> 0 | J46: 0 | K46: =SUMIF('7. Adjustment Template'!$D$11:$D$28,A46,'7. Adjustment Template'!$F$11:$F$28) -> 0 | L46: 0
A47: 533 | B47: Publishing, Printing and Mailing | G47: ='5. Cost Information'!L46 -> 0 | H47: 0 | I47: =SUMIF('6. Reclass Template'!$E:$E,A47,'6. Reclass Template'!$F:$F)-SUMIF('6. Reclass Template'!$H:$H,A47,'6. Reclass Template'!$I:$I) -> 0 | J47: 0 | K47: =SUMIF('7. Adjustment Template'!$D$11:$D$28,A47,'7. Adjustment Template'!$F$11:$F$28) -> 0 | L47: 0
A48: 534 | B48: Depreciation | G48: ='5. Cost Information'!L53 -> 0 | H48: 0 | I48: =SUMIF('6. Reclass Template'!$E:$E,A48,'6. Reclass Template'!$F:$F)-SUMIF('6. Reclass Template'!$H:$H,A48,'6. Reclass Template'!$I:$I) -> 0 | J48: 0 | K48: =SUMIF('7. Adjustment Template'!$D$11:$D$28,A48,'7. Adjustment Template'!$F$11:$F$28) -> 0 | L48: 0
A49: 535 | B49: Telephone & Pagers/Communications | G49: ='5. Cost Information'!L47 -> 0 | H49: 0 | I49: =SUMIF('6. Reclass Template'!$E:$E,A49,'6. Reclass Template'!$F:$F)-SUMIF('6. Reclass Template'!$H:$H,A49,'6. Reclass Template'!$I:$I) -> 0 | J49: 0 | K49: =SUMIF('7. Adjustment Template'!$D$11:$D$28,A49,'7. Adjustment Template'!$F$11:$F$28) -> 0 | L49: 0
A50: 536 | B50: Personnel Recruitment | G50: ='5. Cost Information'!L48 -> 0 | H50: 0 | I50: =SUMIF('6. Reclass Template'!$E:$E,A50,'6. Reclass Template'!$F:$F)-SUMIF('6. Reclass Template'!$H:$H,A50,'6. Reclass Template'!$I:$I) -> 0 | J50: 0 | K50: =SUMIF('7. Adjustment Template'!$D$11:$D$28,A50,'7. Adjustment Template'!$F$11:$F$28) -> 0 | L50: 0
A51: 537 | B51: Promotion/Advertising | G51: ='5. Cost Information'!L49 -> 0 | H51: =SUM(D51:G51) -> 0 | I51: =SUMIF('6. Reclass Template'!$E:$E,A51,'6. Reclass Template'!$F:$F)-SUMIF('6. Reclass Template'!$H:$H,A51,'6. Reclass Template'!$I:$I) -> 0 | J51: 0 | K51: =SUMIF('7. Adjustment Template'!$D$11:$D$28,A51,'7. Adjustment Template'!$F$11:$F$28) -> 0 | L51: 0
A52: 538 | B52: Other Operating Expense | G52: ='5. Cost Information'!L50 -> 0 | H52: =SUM(D52:G52) -> 0 | I52: =SUMIF('6. Reclass Template'!$E:$E,A52,'6. Reclass Template'!$F:$F)-SUMIF('6. Reclass Template'!$H:$H,A52,'6. Reclass Template'!$I:$I) -> 0 | J52: 0 | K52: =SUMIF('7. Adjustment Template'!$D$11:$D$28,A52,'7. Adjustment Template'!$F$11:$F$28) -> 0 | L52: 0
A53: 539 | B53: Other Capital Expense | G53: ='5. Cost Information'!L57 -> 0 | H53: =SUM(D53:G53) -> 0 | I53: =SUMIF('6. Reclass Template'!$E:$E,A53,'6. Reclass Template'!$F:$F)-SUMIF('6. Reclass Template'!$H:$H,A53,'6. Reclass Template'!$I:$I) -> 0 | J53: =H53+I53 -> 0 | K53: =SUMIF('7. Adjustment Template'!$D$11:$D$28,A53,'7. Adjustment Template'!$F$11:$F$28) -> 0 | L53: =J53+K53 -> 0
A54: i. | B54: Subtotal Overhead - Administrative Cost | D54: =SUM(D34:D53) -> 0 | E54: 0 | F54: =SUM(F34:F53) -> 0 | G54: 0 | H54: 0 | I54: 0 | J54: 0 | K54: 0 | L54: 0
A55: I. | B55: ENABLING COST | D55: IA | E55: IB | F55: I | G55: II | H55: III | I55: IV | J55: V | K55: VI | L55: VII
A56: 540 | B56: Enabling Personnel | D56: ='4. Non-Providers'!C178 -> 0 | E56: ='Cost Breakdown'!K12 -> 0 | F56: =D56+E56 -> 0 | G56: ='4. Non-Providers'!D178 -> 0 | H56: =SUM(F56:G56) -> 0 | I56: =SUMIF('6. Reclass Template'!$E:$E,A56,'6. Reclass Template'!$F:$F)-SUMIF('6. Reclass Template'!$H:$H,A56,'6. Reclass Template'!$I:$I) -> 0 | J56: =H56+I56 -> 0 | K56: =SUMIF('7. Adjustment Template'!$D$11:$D$28,A56,'7. Adjustment Template'!$F$11:$F$28) -> 0 | L56: =J56+K56 -> 0
A57: 541 | B57: Insurance | G57: ='5. Cost Information'!K35 -> 0 | H57: =SUM(D57:G57) -> 0 | I57: =SUMIF('6. Reclass Template'!$E:$E,A57,'6. Reclass Template'!$F:$F)-SUMIF('6. Reclass Template'!$H:$H,A57,'6. Reclass Template'!$I:$I) -> 0 | J57: =H57+I57 -> 0 | K57: =SUMIF('7. Adjustment Template'!$D$11:$D$28,A57,'7. Adjustment Template'!$F$11:$F$28) -> 0 | L57: 0
A58: 542 | B58: Consumable Supplies | G58: ='5. Cost Information'!K36 -> 0 | H58: 0 | I58: =SUMIF('6. Reclass Template'!$E:$E,A58,'6. Reclass Template'!$F:$F)-SUMIF('6. Reclass Template'!$H:$H,A58,'6. Reclass Template'!$I:$I) -> 0 | J58: 0 | K58: =SUMIF('7. Adjustment Template'!$D$11:$D$28,A58,'7. Adjustment Template'!$F$11:$F$28) -> 0 | L58: 0
A59: 543 | B59: Repairs and Maintenance | G59: ='5. Cost Information'!K37 -> 0 | H59: 0 | I59: =SUMIF('6. Reclass Template'!$E:$E,A59,'6. Reclass Template'!$F:$F)-SUMIF('6. Reclass Template'!$H:$H,A59,'6. Reclass Template'!$I:$I) -> 0 | J59: 0 | K59: =SUMIF('7. Adjustment Template'!$D$11:$D$28,A59,'7. Adjustment Template'!$F$11:$F$28) -> 0 | L59: 0
A60: 544 | B60: Equipment Rental | G60: ='5. Cost Information'!K56 -> 0 | H60: 0 | I60: =SUMIF('6. Reclass Template'!$E:$E,A60,'6. Reclass Template'!$F:$F)-SUMIF('6. Reclass Template'!$H:$H,A60,'6. Reclass Template'!$I:$I) -> 0 | J60: 0 | K60: =SUMIF('7. Adjustment Template'!$D$11:$D$28,A60,'7. Adjustment Template'!$F$11:$F$28) -> 0 | L60: 0
A61: 545 | B61: Travel, Conference and Meeting Expenses | G61: ='5. Cost Information'!K38 -> 0 | H61: 0 | I61: =SUMIF('6. Reclass Template'!$E:$E,A61,'6. Reclass Template'!$F:$F)-SUMIF('6. Reclass Template'!$H:$H,A61,'6. Reclass Template'!$I:$I) -> 0 | J61: 0 | K61: =SUMIF('7. Adjustment Template'!$D$11:$D$28,A61,'7. Adjustment Template'!$F$11:$F$28) -> 0 | L61: 0
A62: 546 | B62: Dues and Subscriptions | G62: ='5. Cost Information'!K39 -> 0 | H62: 0 | I62: =SUMIF('6. Reclass Template'!$E:$E,A62,'6. Reclass Template'!$F:$F)-SUMIF('6. Reclass Template'!$H:$H,A62,'6. Reclass Template'!$I:$I) -> 0 | J62: 0 | K62: =SUMIF('7. Adjustment Template'!$D$11:$D$28,A62,'7. Adjustment Template'!$F$11:$F$28) -> 0 | L62: 0
A63: 547 | B63: Interest Expense (Operating) | G63: ='5. Cost Information'!K41 -> 0 | H63: 0 | I63: =SUMIF('6. Reclass Template'!$E:$E,A63,'6. Reclass Template'!$F:$F)-SUMIF('6. Reclass Template'!$H:$H,A63,'6. Reclass Template'!$I:$I) -> 0 | J63: 0 | K63: =SUMIF('7. Adjustment Template'!$D$11:$D$28,A63,'7. Adjustment Template'!$F$11:$F$28) -> 0 | L63: 0
A64: 548 | B64: Interest Expense (Capital) | G64: ='5. Cost Information'!K55 -> 0 | H64: =SUM(D64:G64) -> 0 | I64: =SUMIF('6. Reclass Template'!$E:$E,A64,'6. Reclass Template'!$F:$F)-SUMIF('6. Reclass Template'!$H:$H,A64,'6. Reclass Template'!$I:$I) -> 0 | J64: =H64+I64 -> 0 | K64: =SUMIF('7. Adjustment Template'!$D$11:$D$28,A64,'7. Adjustment Template'!$F$11:$F$28) -> 0 | L64: =J64+K64 -> 0
A65: 549 | B65: Professional Services | G65: ='5. Cost Information'!K43 -> 0 | H65: 0 | I65: =SUMIF('6. Reclass Template'!$E:$E,A65,'6. Reclass Template'!$F:$F)-SUMIF('6. Reclass Template'!$H:$H,A65,'6. Reclass Template'!$I:$I) -> 0 | J65: 0 | K65: =SUMIF('7. Adjustment Template'!$D$11:$D$28,A65,'7. Adjustment Template'!$F$11:$F$28) -> 0 | L65: 0
A66: 550 | B66: Staff Training | G66: ='5. Cost Information'!K44 -> 0 | H66: 0 | I66: =SUMIF('6. Reclass Template'!$E:$E,A66,'6. Reclass Template'!$F:$F)-SUMIF('6. Reclass Template'!$H:$H,A66,'6. Reclass Template'!$I:$I) -> 0 | J66: 0 | K66: =SUMIF('7. Adjustment Template'!$D$11:$D$28,A66,'7. Adjustment Template'!$F$11:$F$28) -> 0 | L66: 0
A67: 551 | B67: Contracted Services | G67: ='5. Cost Information'!K45 -> 0 | H67: 0 | I67: =SUMIF('6. Reclass Template'!$E:$E,A67,'6. Reclass Template'!$F:$F)-SUMIF('6. Reclass Template'!$H:$H,A67,'6. Reclass Template'!$I:$I) -> 0 | J67: 0 | K67: =SUMIF('7. Adjustment Template'!$D$11:$D$28,A67,'7. Adjustment Template'!$F$11:$F$28) -> 0 | L67: 0
A68: 552 | B68: Publishing, Printing and Mailing | G68: ='5. Cost Information'!K46 -> 0 | H68: 0 | I68: =SUMIF('6. Reclass Template'!$E:$E,A68,'6. Reclass Template'!$F:$F)-SUMIF('6. Reclass Template'!$H:$H,A68,'6. Reclass Template'!$I:$I) -> 0 | J68: 0 | K68: =SUMIF('7. Adjustment Template'!$D$11:$D$28,A68,'7. Adjustment Template'!$F$11:$F$28) -> 0 | L68: 0
A69: 553 | B69: Depreciation | G69: ='5. Cost Information'!K53 -> 0 | H69: 0 | I69: =SUMIF('6. Reclass Template'!$E:$E,A69,'6. Reclass Template'!$F:$F)-SUMIF('6. Reclass Template'!$H:$H,A69,'6. Reclass Template'!$I:$I) -> 0 | J69: 0 | K69: =SUMIF('7. Adjustment Template'!$D$11:$D$28,A69,'7. Adjustment Template'!$F$11:$F$28) -> 0 | L69: 0
A70: 554 | B70: Personnel Recruitment | G70: ='5. Cost Information'!K48 -> 0 | H70: 0 | I70: =SUMIF('6. Reclass Template'!$E:$E,A70,'6. Reclass Template'!$F:$F)-SUMIF('6. Reclass Template'!$H:$H,A70,'6. Reclass Template'!$I:$I) -> 0 | J70: 0 | K70: =SUMIF('7. Adjustment Template'!$D$11:$D$28,A70,'7. Adjustment Template'!$F$11:$F$28) -> 0 | L70: 0
A71: 555 | B71: Other Operating Expense | G71: ='5. Cost Information'!K50 -> 0 | H71: =SUM(D71:G71) -> 0 | I71: =SUMIF('6. Reclass Template'!$E:$E,A71,'6. Reclass Template'!$F:$F)-SUMIF('6. Reclass Template'!$H:$H,A71,'6. Reclass Template'!$I:$I) -> 0 | J71: 0 | K71: =SUMIF('7. Adjustment Template'!$D$11:$D$28,A71,'7. Adjustment Template'!$F$11:$F$28) -> 0 | L71: 0
A72: 556 | B72: Other Capital Expense | G72: ='5. Cost Information'!K57 -> 0 | H72: =SUM(D72:G72) -> 0 | I72: =SUMIF('6. Reclass Template'!$E:$E,A72,'6. Reclass Template'!$F:$F)-SUMIF('6. Reclass Template'!$H:$H,A72,'6. Reclass Template'!$I:$I) -> 0 | J72: =H72+I72 -> 0 | K72: =SUMIF('7. Adjustment Template'!$D$11:$D$28,A72,'7. Adjustment Template'!$F$11:$F$28) -> 0 | L72: =J72+K72 -> 0
A73: i. | B73: Subtotal - Enabling Cost | D73: =SUM(D56:D72) -> 0 | E73: =SUM(E56:E72) -> 0 | F73: =SUM(F56:F72) -> 0 | G73: =SUM(G56:G72) -> 0 | H73: =SUM(H56:H72) -> 0 | I73: =SUM(I56:I72) -> 0 | J73: =SUM(J56:J72) -> 0 | K73: 0 | L73: 0
A74: l. | B74: TOTAL OVERHEAD AND ENABLING COST (Gi + Hi + Ii) | D74: =D32+D54+D73 -> 0 | E74: =E32+E54+E73 -> 0 | F74: 0 | G74: 0 | H74: 0 | I74: 0 | J74: 0 | K74: 0 | L74: 0
B76: TOTAL EXPENSES | F76: =F74+'Form 4 - NonAllowable'!F33 -> 0 | G76: =G74+'Form 4 - NonAllowable'!G33 -> 0 | H76: =H74+'Form 4 - NonAllowable'!H33 -> 0 | I76: =I74+'Form 4 - NonAllowable'!I33 -> 0 | J76: =J74+'Form 4 - NonAllowable'!J33 -> 0 | K76: =K74+'Form 4 - NonAllowable'!K33 -> 0 | L76: =L74+'Form 4 - NonAllowable'!L33 -> 0

Sheet Form 6A - Reclassification
B2: Community Health Center Cost Report
B3: Form 6A - Reclassification
B4: ='1. Agency Information'!C9 -> 0
A5: RECLASSIFICATION OF TRIAL BALANCE OF EXPENSES | I5: Form 6A (Reclassification)
B7: Description of Reclassification(s) | D7: Increases | G7: Decreases
A8: Line | D8: Cost Center | E8: Line # | F8: Amount | G8: Cost Center | H8: Line # | I8: Amount
A9: 1 | B9: =IF('6. Reclass Template'!B11 = 0, "", '6. Reclass Template'!B11) ->  | C9: =IF('6. Reclass Template'!C11 = 0, "", '6. Reclass Template'!C11) ->  | D9: =IF('6. Reclass Template'!D11 = 0, "", '6. Reclass Template'!D11) ->  | E9: =IF('6. Reclass Template'!E11 = 0, "", '6. Reclass Template'!E11) ->  | F9: =IF('6. Reclass Template'!F11 = 0, "", '6. Reclass Template'!F11) ->  | G9: =IF('6. Reclass Template'!G11 = 0, "", '6. Reclass Template'!G11) ->  | H9: =IF('6. Reclass Template'!H11 = 0, "", '6. Reclass Template'!H11) ->  | I9: =IF('6. Reclass Template'!I11 = 0, "", '6. Reclass Template'!I11) -> 
A10: 2 | B10: =IF('6. Reclass Template'!B12 = 0, "", '6. Reclass Template'!B12) ->  | C10: =IF('6. Reclass Template'!C12 = 0, "", '6. Reclass Template'!C12) ->  | D10: =IF('6. Reclass Template'!D12 = 0, "", '6. Reclass Template'!D12) ->  | E10: =IF('6. Reclass Template'!E12 = 0, "", '6. Reclass Template'!E12) ->  | F10: =IF('6. Reclass Template'!F12 = 0, "", '6. Reclass Template'!F12) ->  | G10: =IF('6. Reclass Template'!G12 = 0, "", '6. Reclass Template'!G12) ->  | H10: =IF('6. Reclass Template'!H12 = 0, "", '6. Reclass Template'!H12) ->  | I10: =IF('6. Reclass Template'!I12 = 0, "", '6. Reclass Template'!I12) -> 
A11: 3 | B11: =IF('6. Reclass Template'!B13 = 0, "", '6. Reclass Template'!B13) ->  | C11: =IF('6. Reclass Template'!C13 = 0, "", '6. Reclass Template'!C13) ->  | D11: =IF('6. Reclass Template'!D13 = 0, "", '6. Reclass Template'!D13) ->  | E11: =IF('6. Reclass Template'!E13 = 0, "", '6. Reclass Template'!E13) ->  | F11: =IF('6. Reclass Template'!F13 = 0, "", '6. Reclass Template'!F13) ->  | G11: =IF('6. Reclass Template'!G13 = 0, "", '6. Reclass Template'!G13) ->  | H11: =IF('6. Reclass Template'!H13 = 0, "", '6. Reclass Template'!H13) ->  | I11: =IF('6. Reclass Template'!I13 = 0, "", '6. Reclass Template'!I13) -> 
A12: 4 | B12: =IF('6. Reclass Template'!B14 = 0, "", '6. Reclass Template'!B14) ->  | C12: =IF('6. Reclass Template'!C14 = 0, "", '6. Reclass Template'!C14) ->  | D12: =IF('6. Reclass Template'!D14 = 0, "", '6. Reclass Template'!D14) ->  | E12: =IF('6. Reclass Template'!E14 = 0, "", '6. Reclass Template'!E14) ->  | F12: =IF('6. Reclass Template'!F14 = 0, "", '6. Reclass Template'!F14) ->  | G12: =IF('6. Reclass Template'!G14 = 0, "", '6. Reclass Template'!G14) ->  | H12: =IF('6. Reclass Template'!H14 = 0, "", '6. Reclass Template'!H14) ->  | I12: =IF('6. Reclass Template'!I14 = 0, "", '6. Reclass Template'!I14) -> 
A13: 5 | B13: =IF('6. Reclass Template'!B15 = 0, "", '6. Reclass Template'!B15) ->  | C13: =IF('6. Reclass Template'!C15 = 0, "", '6. Reclass Template'!C15) ->  | D13: =IF('6. Reclass Template'!D15 = 0, "", '6. Reclass Template'!D15) ->  | E13: =IF('6. Reclass Template'!E15 = 0, "", '6. Reclass Template'!E15) ->  | F13: =IF('6. Reclass Template'!F15 = 0, "", '6. Reclass Template'!F15) ->  | G13: =IF('6. Reclass Template'!G15 = 0, "", '6. Reclass Template'!G15) ->  | H13: =IF('6. Reclass Template'!H15 = 0, "", '6. Reclass Template'!H15) ->  | I13: =IF('6. Reclass Template'!I15 = 0, "", '6. Reclass Template'!I15) -> 
A14: 6 | B14: =IF('6. Reclass Template'!B16 = 0, "", '6. Reclass Template'!B16) ->  | C14: =IF('6. Reclass Template'!C16 = 0, "", '6. Reclass Template'!C16) ->  | D14: =IF('6. Reclass Template'!D16 = 0, "", '6. Reclass Template'!D16) ->  | E14: =IF('6. Reclass Template'!E16 = 0, "", '6. Reclass Template'!E16) ->  | F14: =IF('6. Reclass Template'!F16 = 0, "", '6. Reclass Template'!F16) ->  | G14: =IF('6. Reclass Template'!G16 = 0, "", '6. Reclass Template'!G16) ->  | H14: =IF('6. Reclass Template'!H16 = 0, "", '6. Reclass Template'!H16) ->  | I14: =IF('6. Reclass Template'!I16 = 0, "", '6. Reclass Template'!I16) -> 
A15: 7 | B15: =IF('6. Reclass Template'!B17 = 0, "", '6. Reclass Template'!B17) ->  | C15: =IF('6. Reclass Template'!C17 = 0, "", '6. Reclass Template'!C17) ->  | D15: =IF('6. Reclass Template'!D17 = 0, "", '6. Reclass Template'!D17) ->  | E15: =IF('6. Reclass Template'!E17 = 0, "", '6. Reclass Template'!E17) ->  | F15: =IF('6. Reclass Template'!F17 = 0, "", '6. Reclass Template'!F17) ->  | G15: =IF('6. Reclass Template'!G17 = 0, "", '6. Reclass Template'!G17) ->  | H15: =IF('6. Reclass Template'!H17 = 0, "", '6. Reclass Template'!H17) ->  | I15: =IF('6. Reclass Template'!I17 = 0, "", '6. Reclass Template'!I17) -> 
A16: 8 | B16: =IF('6. Reclass Template'!B18 = 0, "", '6. Reclass Template'!B18) ->  | C16: =IF('6. Reclass Template'!C18 = 0, "", '6. Reclass Template'!C18) ->  | D16: =IF('6. Reclass Template'!D18 = 0, "", '6. Reclass Template'!D18) ->  | E16: =IF('6. Reclass Template'!E18 = 0, "", '6. Reclass Template'!E18) ->  | F16: =IF('6. Reclass Template'!F18 = 0, "", '6. Reclass Template'!F18) ->  | G16: =IF('6. Reclass Template'!G18 = 0, "", '6. Reclass Template'!G18) ->  | H16: =IF('6. Reclass Template'!H18 = 0, "", '6. Reclass Template'!H18) ->  | I16: =IF('6. Reclass Template'!I18 = 0, "", '6. Reclass Template'!I18) -> 
A17: 9 | B17: =IF('6. Reclass Template'!B19 = 0, "", '6. Reclass Template'!B19) ->  | C17: =IF('6. Reclass Template'!C19 = 0, "", '6. Reclass Template'!C19) ->  | D17: =IF('6. Reclass Template'!D19 = 0, "", '6. Reclass Template'!D19) ->  | E17: =IF('6. Reclass Template'!E19 = 0, "", '6. Reclass Template'!E19) ->  | F17: =IF('6. Reclass Template'!F19 = 0, "", '6. Reclass Template'!F19) ->  | G17: =IF('6. Reclass Template'!G19 = 0, "", '6. Reclass Template'!G19) ->  | H17: =IF('6. Reclass Template'!H19 = 0, "", '6. Reclass Template'!H19) ->  | I17: =IF('6. Reclass Template'!I19 = 0, "", '6. Reclass Template'!I19) -> 
A18: 10 | B18: =IF('6. Reclass Template'!B20 = 0, "", '6. Reclass Template'!B20) ->  | C18: =IF('6. Reclass Template'!C20 = 0, "", '6. Reclass Template'!C20) ->  | D18: =IF('6. Reclass Template'!D20 = 0, "", '6. Reclass Template'!D20) ->  | E18: =IF('6. Reclass Template'!E20 = 0, "", '6. Reclass Template'!E20) ->  | F18: =IF('6. Reclass Template'!F20 = 0, "", '6. Reclass Template'!F20) ->  | G18: =IF('6. Reclass Template'!G20 = 0, "", '6. Reclass Template'!G20) ->  | H18: =IF('6. Reclass Template'!H20 = 0, "", '6. Reclass Template'!H20) ->  | I18: =IF('6. Reclass Template'!I20 = 0, "", '6. Reclass Template'!I20) -> 
A19: 11 | B19: =IF('6. Reclass Template'!B21 = 0, "", '6. Reclass Template'!B21) ->  | C19: =IF('6. Reclass Template'!C21 = 0, "", '6. Reclass Template'!C21) ->  | D19: =IF('6. Reclass Template'!D21 = 0, "", '6. Reclass Template'!D21) ->  | E19: =IF('6. Reclass Template'!E21 = 0, "", '6. Reclass Template'!E21) ->  | F19: =IF('6. Reclass Template'!F21 = 0, "", '6. Reclass Template'!F21) ->  | G19: =IF('6. Reclass Template'!G21 = 0, "", '6. Reclass Template'!G21) ->  | H19: =IF('6. Reclass Template'!H21 = 0, "", '6. Reclass Template'!H21) ->  | I19: =IF('6. Reclass Template'!I21 = 0, "", '6. Reclass Template'!I21) -> 
A20: 12 | B20: =IF('6. Reclass Template'!B22 = 0, "", '6. Reclass Template'!B22) ->  | C20: =IF('6. Reclass Template'!C22 = 0, "", '6. Reclass Template'!C22) ->  | D20: =IF('6. Reclass Template'!D22 = 0, "", '6. Reclass Template'!D22) ->  | F20: =IF('6. Reclass Template'!F22 = 0, "", '6. Reclass Template'!F22) ->  | G20: =IF('6. Reclass Template'!G22 = 0, "", '6. Reclass Template'!G22) ->  | H20: =IF('6. Reclass Template'!H22 = 0, "", '6. Reclass Template'!H22) ->  | I20: =IF('6. Reclass Template'!I22 = 0, "", '6. Reclass Template'!I22) -> 
A21: 13 | B21: =IF('6. Reclass Template'!B23 = 0, "", '6. Reclass Template'!B23) ->  | C21: =IF('6. Reclass Template'!C23 = 0, "", '6. Reclass Template'!C23) ->  | D21: =IF('6. Reclass Template'!D23 = 0, "", '6. Reclass Template'!D23) ->  | E21: =IF('6. Reclass Template'!E23 = 0, "", '6. Reclass Template'!E23) ->  | F21: =IF('6. Reclass Template'!F23 = 0, "", '6. Reclass Template'!F23) ->  | G21: =IF('6. Reclass Template'!G23 = 0, "", '6. Reclass Template'!G23) ->  | H21: =IF('6. Reclass Template'!H23 = 0, "", '6. Reclass Template'!H23) ->  | I21: =IF('6. Reclass Template'!I23 = 0, "", '6. Reclass Template'!I23) -> 
A22: 14 | B22: =IF('6. Reclass Template'!B24 = 0, "", '6. Reclass Template'!B24) ->  | C22: =IF('6. Reclass Template'!C24 = 0, "", '6. Reclass Template'!C24) ->  | D22: =IF('6. Reclass Template'!D24 = 0, "", '6. Reclass Template'!D24) ->  | E22: =IF('6. Reclass Template'!E24 = 0, "", '6. Reclass Template'!E24) ->  | F22: =IF('6. Reclass Template'!F24 = 0, "", '6. Reclass Template'!F24) ->  | G22: =IF('6. Reclass Template'!G24 = 0, "", '6. Reclass Template'!G24) ->  | H22: =IF('6. Reclass Template'!H24 = 0, "", '6. Reclass Template'!H24) ->  | I22: =IF('6. Reclass Template'!I24 = 0, "", '6. Reclass Template'!I24) -> 
A23: 15 | B23: =IF('6. Reclass Template'!B25 = 0, "", '6. Reclass Template'!B25) ->  | C23: =IF('6. Reclass Template'!C25 = 0, "", '6. Reclass Template'!C25) ->  | D23: =IF('6. Reclass Template'!D25 = 0, "", '6. Reclass Template'!D25) ->  | E23: =IF('6. Reclass Template'!E25 = 0, "", '6. Reclass Template'!E25) ->  | F23: =IF('6. Reclass Template'!F25 = 0, "", '6. Reclass Template'!F25) ->  | G23: =IF('6. Reclass Template'!G25 = 0, "", '6. Reclass Template'!G25) ->  | H23: =IF('6. Reclass Template'!H25 = 0, "", '6. Reclass Template'!H25) ->  | I23: =IF('6. Reclass Template'!I25 = 0, "", '6. Reclass Template'!I25) -> 
A24: 16 | B24: =IF('6. Reclass Template'!B26 = 0, "", '6. Reclass Template'!B26) ->  | C24: =IF('6. Reclass Template'!C26 = 0, "", '6. Reclass Template'!C26) ->  | D24: =IF('6. Reclass Template'!D26 = 0, "", '6. Reclass Template'!D26) ->  | E24: =IF('6. Reclass Template'!E26 = 0, "", '6. Reclass Template'!E26) ->  | F24: =IF('6. Reclass Template'!F26 = 0, "", '6. Reclass Template'!F26) ->  | G24: =IF('6. Reclass Template'!G26 = 0, "", '6. Reclass Template'!G26) ->  | H24: =IF('6. Reclass Template'!H26 = 0, "", '6. Reclass Template'!H26) ->  | I24: =IF('6. Reclass Template'!I26 = 0, "", '6. Reclass Template'!I26) -> 
A25: 17 | B25: =IF('6. Reclass Template'!B27 = 0, "", '6. Reclass Template'!B27) ->  | C25: =IF('6. Reclass Template'!C27 = 0, "", '6. Reclass Template'!C27) ->  | D25: =IF('6. Reclass Template'!D27 = 0, "", '6. Reclass Template'!D27) ->  | E25: =IF('6. Reclass Template'!E27 = 0, "", '6. Reclass Template'!E27) ->  | F25: =IF('6. Reclass Template'!F27 = 0, "", '6. Reclass Template'!F27) ->  | G25: =IF('6. Reclass Template'!G27 = 0, "", '6. Reclass Template'!G27) ->  | H25: =IF('6. Reclass Template'!H27 = 0, "", '6. Reclass Template'!H27) ->  | I25: =IF('6. Reclass Template'!I27 = 0, "", '6. Reclass Template'!I27) -> 
A26: 18 | B26: =IF('6. Reclass Template'!B28 = 0, "", '6. Reclass Template'!B28) ->  | C26: =IF('6. Reclass Template'!C28 = 0, "", '6. Reclass Template'!C28) ->  | D26: =IF('6. Reclass Template'!D28 = 0, "", '6. Reclass Template'!D28) ->  | E26: =IF('6. Reclass Template'!E28 = 0, "", '6. Reclass Template'!E28) ->  | F26: =IF('6. Reclass Template'!F28 = 0, "", '6. Reclass Template'!F28) ->  | G26: =IF('6. Reclass Template'!G28 = 0, "", '6. Reclass Template'!G28) ->  | H26: =IF('6. Reclass Template'!H28 = 0, "", '6. Reclass Template'!H28) ->  | I26: =IF('6. Reclass Template'!I28 = 0, "", '6. Reclass Template'!I28) -> 
A27: 19 | B27: =IF('6. Reclass Template'!B29 = 0, "", '6. Reclass Template'!B29) ->  | C27: =IF('6. Reclass Template'!C29 = 0, "", '6. Reclass Template'!C29) ->  | D27: =IF('6. Reclass Template'!D29 = 0, "", '6. Reclass Template'!D29) ->  | E27: =IF('6. Reclass Template'!E29 = 0, "", '6. Reclass Template'!E29) ->  | F27: =IF('6. Reclass Template'!F29 = 0, "", '6. Reclass Template'!F29) ->  | G27: =IF('6. Reclass Template'!G29 = 0, "", '6. Reclass Template'!G29) ->  | H27: =IF('6. Reclass Template'!H29 = 0, "", '6. Reclass Template'!H29) ->  | I27: =IF('6. Reclass Template'!I29 = 0, "", '6. Reclass Template'!I29) -> 
A28: 20 | B28: =IF('6. Reclass Template'!B30 = 0, "", '6. Reclass Template'!B30) ->  | C28: =IF('6. Reclass Template'!C30 = 0, "", '6. Reclass Template'!C30) ->  | D28: =IF('6. Reclass Template'!D30 = 0, "", '6. Reclass Template'!D30) ->  | E28: =IF('6. Reclass Template'!E30 = 0, "", '6. Reclass Template'!E30) ->  | F28: =IF('6. Reclass Template'!F30 = 0, "", '6. Reclass Template'!F30) ->  | G28: =IF('6. Reclass Template'!G30 = 0, "", '6. Reclass Template'!G30) ->  | H28: =IF('6. Reclass Template'!H30 = 0, "", '6. Reclass Template'!H30) ->  | I28: =IF('6. Reclass Template'!I30 = 0, "", '6. Reclass Template'!I30) -> 
A29: 21 | B29: =IF('6. Reclass Template'!B31 = 0, "", '6. Reclass Template'!B31) ->  | C29: =IF('6. Reclass Template'!C31 = 0, "", '6. Reclass Template'!C31) ->  | D29: =IF('6. Reclass Template'!D31 = 0, "", '6. Reclass Template'!D31) ->  | E29: =IF('6. Reclass Template'!E31 = 0, "", '6. Reclass Template'!E31) ->  | F29: =IF('6. Reclass Template'!F31 = 0, "", '6. Reclass Template'!F31) ->  | G29: =IF('6. Reclass Template'!G31 = 0, "", '6. Reclass Template'!G31) ->  | H29: =IF('6. Reclass Template'!H31 = 0, "", '6. Reclass Template'!H31) ->  | I29: =IF('6. Reclass Template'!I31 = 0, "", '6. Reclass Template'!I31) -> 
A30: 22 | B30: =IF('6. Reclass Template'!B32 = 0, "", '6. Reclass Template'!B32) ->  | C30: =IF('6. Reclass Template'!C32 = 0, "", '6. Reclass Template'!C32) ->  | D30: =IF('6. Reclass Template'!D32 = 0, "", '6. Reclass Template'!D32) ->  | E30: =IF('6. Reclass Template'!E32 = 0, "", '6. Reclass Template'!E32) ->  | F30: =IF('6. Reclass Template'!F32 = 0, "", '6. Reclass Template'!F32) ->  | G30: =IF('6. Reclass Template'!G32 = 0, "", '6. Reclass Template'!G32) ->  | H30: =IF('6. Reclass Template'!H32 = 0, "", '6. Reclass Template'!H32) ->  | I30: =IF('6. Reclass Template'!I32 = 0, "", '6. Reclass Template'!I32) -> 
A31: 23 | B31: =IF('6. Reclass Template'!B33 = 0, "", '6. Reclass Template'!B33) ->  | C31: =IF('6. Reclass Template'!C33 = 0, "", '6. Reclass Template'!C33) ->  | D31: =IF('6. Reclass Template'!D33 = 0, "", '6. Reclass Template'!D33) ->  | E31: =IF('6. Reclass Template'!E33 = 0, "", '6. Reclass Template'!E33) ->  | F31: =IF('6. Reclass Template'!F33 = 0, "", '6. Reclass Template'!F33) ->  | G31: =IF('6. Reclass Template'!G33 = 0, "", '6. Reclass Template'!G33) ->  | H31: =IF('6. Reclass Template'!H33 = 0, "", '6. Reclass Template'!H33) ->  | I31: =IF('6. Reclass Template'!I33 = 0, "", '6. Reclass Template'!I33) -> 
A32: 24 | B32: =IF('6. Reclass Template'!B34 = 0, "", '6. Reclass Template'!B34) ->  | C32: =IF('6. Reclass Template'!C34 = 0, "", '6. Reclass Template'!C34) ->  | D32: =IF('6. Reclass Template'!D34 = 0, "", '6. Reclass Template'!D34) ->  | E32: =IF('6. Reclass Template'!E34 = 0, "", '6. Reclass Template'!E34) ->  | F32: =IF('6. Reclass Template'!F34 = 0, "", '6. Reclass Template'!F34) ->  | G32: =IF('6. Reclass Template'!G34 = 0, "", '6. Reclass Template'!G34) ->  | H32: =IF('6. Reclass Template'!H34 = 0, "", '6. Reclass Template'!H34) ->  | I32: =IF('6. Reclass Template'!I34 = 0, "", '6. Reclass Template'!I34) -> 
A33: 25 | B33: =IF('6. Reclass Template'!B35 = 0, "", '6. Reclass Template'!B35) ->  | C33: =IF('6. Reclass Template'!C35 = 0, "", '6. Reclass Template'!C35) ->  | D33: =IF('6. Reclass Template'!D35 = 0, "", '6. Reclass Template'!D35) ->  | E33: =IF('6. Reclass Template'!E35 = 0, "", '6. Reclass Template'!E35) ->  | F33: =IF('6. Reclass Template'!F35 = 0, "", '6. Reclass Template'!F35) ->  | G33: =IF('6. Reclass Template'!G35 = 0, "", '6. Reclass Template'!G35) ->  | H33: =IF('6. Reclass Template'!H35 = 0, "", '6. Reclass Template'!H35) ->  | I33: =IF('6. Reclass Template'!I35 = 0, "", '6. Reclass Template'!I35) -> 
A34: 26 | B34: =IF('6. Reclass Template'!B36 = 0, "", '6. Reclass Template'!B36) ->  | C34: =IF('6. Reclass Template'!C36 = 0, "", '6. Reclass Template'!C36) ->  | D34: =IF('6. Reclass Template'!D36 = 0, "", '6. Reclass Template'!D36) ->  | E34: =IF('6. Reclass Template'!E36 = 0, "", '6. Reclass Template'!E36) ->  | F34: =IF('6. Reclass Template'!F36 = 0, "", '6. Reclass Template'!F36) ->  | G34: =IF('6. Reclass Template'!G36 = 0, "", '6. Reclass Template'!G36) ->  | H34: =IF('6. Reclass Template'!H36 = 0, "", '6. Reclass Template'!H36) ->  | I34: =IF('6. Reclass Template'!I36 = 0, "", '6. Reclass Template'!I36) -> 
A35: 27 | B35: =IF('6. Reclass Template'!B37 = 0, "", '6. Reclass Template'!B37) ->  | C35: =IF('6. Reclass Template'!C37 = 0, "", '6. Reclass Template'!C37) ->  | D35: =IF('6. Reclass Template'!D37 = 0, "", '6. Reclass Template'!D37) ->  | E35: =IF('6. Reclass Template'!E37 = 0, "", '6. Reclass Template'!E37) ->  | F35: =IF('6. Reclass Template'!F37 = 0, "", '6. Reclass Template'!F37) ->  | G35: =IF('6. Reclass Template'!G37 = 0, "", '6. Reclass Template'!G37) ->  | H35: =IF('6. Reclass Template'!H37 = 0, "", '6. Reclass Template'!H37) ->  | I35: =IF('6. Reclass Template'!I37 = 0, "", '6. Reclass Template'!I37) -> 
A36: 28 | B36: =IF('6. Reclass Template'!B38 = 0, "", '6. Reclass Template'!B38) ->  | C36: =IF('6. Reclass Template'!C38 = 0, "", '6. Reclass Template'!C38) ->  | D36: =IF('6. Reclass Template'!D38 = 0, "", '6. Reclass Template'!D38) ->  | E36: =IF('6. Reclass Template'!E38 = 0, "", '6. Reclass Template'!E38) ->  | F36: =IF('6. Reclass Template'!F38 = 0, "", '6. Reclass Template'!F38) ->  | G36: =IF('6. Reclass Template'!G38 = 0, "", '6. Reclass Template'!G38) ->  | H36: =IF('6. Reclass Template'!H38 = 0, "", '6. Reclass Template'!H38) ->  | I36: =IF('6. Reclass Template'!I38 = 0, "", '6. Reclass Template'!I38) -> 
A37: 29 | B37: =IF('6. Reclass Template'!B39 = 0, "", '6. Reclass Template'!B39) ->  | C37: =IF('6. Reclass Template'!C39 = 0, "", '6. Reclass Template'!C39) ->  | D37: =IF('6. Reclass Template'!D39 = 0, "", '6. Reclass Template'!D39) ->  | E37: =IF('6. Reclass Template'!E39 = 0, "", '6. Reclass Template'!E39) ->  | F37: =IF('6. Reclass Template'!F39 = 0, "", '6. Reclass Template'!F39) ->  | G37: =IF('6. Reclass Template'!G39 = 0, "", '6. Reclass Template'!G39) ->  | H37: =IF('6. Reclass Template'!H39 = 0, "", '6. Reclass Template'!H39) ->  | I37: =IF('6. Reclass Template'!I39 = 0, "", '6. Reclass Template'!I39) -> 
A38: 30 | B38: =IF('6. Reclass Template'!B40 = 0, "", '6. Reclass Template'!B40) ->  | C38: =IF('6. Reclass Template'!C40 = 0, "", '6. Reclass Template'!C40) ->  | D38: =IF('6. Reclass Template'!D40 = 0, "", '6. Reclass Template'!D40) ->  | E38: =IF('6. Reclass Template'!E40 = 0, "", '6. Reclass Template'!E40) ->  | F38: =IF('6. Reclass Template'!F40 = 0, "", '6. Reclass Template'!F40) ->  | G38: =IF('6. Reclass Template'!G40 = 0, "", '6. Reclass Template'!G40) ->  | H38: =IF('6. Reclass Template'!H40 = 0, "", '6. Reclass Template'!H40) ->  | I38: =IF('6. Reclass Template'!I40 = 0, "", '6. Reclass Template'!I40) -> 
A39: 31 | B39: =IF('6. Reclass Template'!B41 = 0, "", '6. Reclass Template'!B41) ->  | C39: =IF('6. Reclass Template'!C41 = 0, "", '6. Reclass Template'!C41) ->  | D39: =IF('6. Reclass Template'!D41 = 0, "", '6. Reclass Template'!D41) ->  | E39: =IF('6. Reclass Template'!E41 = 0, "", '6. Reclass Template'!E41) ->  | F39: =IF('6. Reclass Template'!F41 = 0, "", '6. Reclass Template'!F41) ->  | G39: =IF('6. Reclass Template'!G41 = 0, "", '6. Reclass Template'!G41) ->  | H39: =IF('6. Reclass Template'!H41 = 0, "", '6. Reclass Template'!H41) ->  | I39: =IF('6. Reclass Template'!I41 = 0, "", '6. Reclass Template'!I41) -> 
A40: 32 | B40: =IF('6. Reclass Template'!B42 = 0, "", '6. Reclass Template'!B42) ->  | C40: =IF('6. Reclass Template'!C42 = 0, "", '6. Reclass Template'!C42) ->  | D40: =IF('6. Reclass Template'!D42 = 0, "", '6. Reclass Template'!D42) ->  | E40: =IF('6. Reclass Template'!E42 = 0, "", '6. Reclass Template'!E42) ->  | F40: =IF('6. Reclass Template'!F42 = 0, "", '6. Reclass Template'!F42) ->  | G40: =IF('6. Reclass Template'!G42 = 0, "", '6. Reclass Template'!G42) ->  | H40: =IF('6. Reclass Template'!H42 = 0, "", '6. Reclass Template'!H42) ->  | I40: =IF('6. Reclass Template'!I42 = 0, "", '6. Reclass Template'!I42) -> 
A41: 33 | B41: =IF('6. Reclass Template'!B43 = 0, "", '6. Reclass Template'!B43) ->  | C41: =IF('6. Reclass Template'!C43 = 0, "", '6. Reclass Template'!C43) ->  | D41: =IF('6. Reclass Template'!D43 = 0, "", '6. Reclass Template'!D43) ->  | E41: =IF('6. Reclass Template'!E43 = 0, "", '6. Reclass Template'!E43) ->  | F41: =IF('6. Reclass Template'!F43 = 0, "", '6. Reclass Template'!F43) ->  | G41: =IF('6. Reclass Template'!G43 = 0, "", '6. Reclass Template'!G43) ->  | H41: =IF('6. Reclass Template'!H43 = 0, "", '6. Reclass Template'!H43) ->  | I41: =IF('6. Reclass Template'!I43 = 0, "", '6. Reclass Template'!I43) -> 
A42: 34 | B42: =IF('6. Reclass Template'!B44 = 0, "", '6. Reclass Template'!B44) ->  | C42: =IF('6. Reclass Template'!C44 = 0, "", '6. Reclass Template'!C44) ->  | D42: =IF('6. Reclass Template'!D44 = 0, "", '6. Reclass Template'!D44) ->  | E42: =IF('6. Reclass Template'!E44 = 0, "", '6. Reclass Template'!E44) ->  | F42: =IF('6. Reclass Template'!F44 = 0, "", '6. Reclass Template'!F44) ->  | G42: =IF('6. Reclass Template'!G44 = 0, "", '6. Reclass Template'!G44) ->  | H42: =IF('6. Reclass Template'!H44 = 0, "", '6. Reclass Template'!H44) ->  | I42: =IF('6. Reclass Template'!I44 = 0, "", '6. Reclass Template'!I44) -> 
A43: 35 | B43: =IF('6. Reclass Template'!B45 = 0, "", '6. Reclass Template'!B45) ->  | C43: =IF('6. Reclass Template'!C45 = 0, "", '6. Reclass Template'!C45) ->  | D43: =IF('6. Reclass Template'!D45 = 0, "", '6. Reclass Template'!D45) ->  | E43: =IF('6. Reclass Template'!E45 = 0, "", '6. Reclass Template'!E45) ->  | F43: =IF('6. Reclass Template'!F45 = 0, "", '6. Reclass Template'!F45) ->  | G43: =IF('6. Reclass Template'!G45 = 0, "", '6. Reclass Template'!G45) ->  | H43: =IF('6. Reclass Template'!H45 = 0, "", '6. Reclass Template'!H45) ->  | I43: =IF('6. Reclass Template'!I45 = 0, "", '6. Reclass Template'!I45) -> 
A44: 36 | B44: =IF('6. Reclass Template'!B46 = 0, "", '6. Reclass Template'!B46) ->  | C44: =IF('6. Reclass Template'!C46 = 0, "", '6. Reclass Template'!C46) ->  | D44: =IF('6. Reclass Template'!D46 = 0, "", '6. Reclass Template'!D46) ->  | E44: =IF('6. Reclass Template'!E46 = 0, "", '6. Reclass Template'!E46) ->  | F44: =IF('6. Reclass Template'!F46 = 0, "", '6. Reclass Template'!F46) ->  | G44: =IF('6. Reclass Template'!G46 = 0, "", '6. Reclass Template'!G46) ->  | H44: =IF('6. Reclass Template'!H46 = 0, "", '6. Reclass Template'!H46) ->  | I44: =IF('6. Reclass Template'!I46 = 0, "", '6. Reclass Template'!I46) -> 
A45: 37 | B45: =IF('6. Reclass Template'!B47 = 0, "", '6. Reclass Template'!B47) ->  | C45: =IF('6. Reclass Template'!C47 = 0, "", '6. Reclass Template'!C47) ->  | D45: =IF('6. Reclass Template'!D47 = 0, "", '6. Reclass Template'!D47) ->  | E45: =IF('6. Reclass Template'!E47 = 0, "", '6. Reclass Template'!E47) ->  | F45: =IF('6. Reclass Template'!F47 = 0, "", '6. Reclass Template'!F47) ->  | G45: =IF('6. Reclass Template'!G47 = 0, "", '6. Reclass Template'!G47) ->  | H45: =IF('6. Reclass Template'!H47 = 0, "", '6. Reclass Template'!H47) ->  | I45: =IF('6. Reclass Template'!I47 = 0, "", '6. Reclass Template'!I47) -> 
A46: 38 | B46: =IF('6. Reclass Template'!B48 = 0, "", '6. Reclass Template'!B48) ->  | C46: =IF('6. Reclass Template'!C48 = 0, "", '6. Reclass Template'!C48) ->  | D46: =IF('6. Reclass Template'!D48 = 0, "", '6. Reclass Template'!D48) ->  | E46: =IF('6. Reclass Template'!E48 = 0, "", '6. Reclass Template'!E48) ->  | F46: =IF('6. Reclass Template'!F48 = 0, "", '6. Reclass Template'!F48) ->  | G46: =IF('6. Reclass Template'!G48 = 0, "", '6. Reclass Template'!G48) ->  | H46: =IF('6. Reclass Template'!H48 = 0, "", '6. Reclass Template'!H48) ->  | I46: =IF('6. Reclass Template'!I48 = 0, "", '6. Reclass Template'!I48) -> 
A47: 39 | B47: =IF('6. Reclass Template'!B49 = 0, "", '6. Reclass Template'!B49) ->  | C47: =IF('6. Reclass Template'!C49 = 0, "", '6. Reclass Template'!C49) ->  | D47: =IF('6. Reclass Template'!D49 = 0, "", '6. Reclass Template'!D49) ->  | E47: =IF('6. Reclass Template'!E49 = 0, "", '6. Reclass Template'!E49) ->  | F47: =IF('6. Reclass Template'!F49 = 0, "", '6. Reclass Template'!F49) ->  | G47: =IF('6. Reclass Template'!G49 = 0, "", '6. Reclass Template'!G49) ->  | H47: =IF('6. Reclass Template'!H49 = 0, "", '6. Reclass Template'!H49) ->  | I47: =IF('6. Reclass Template'!I49 = 0, "", '6. Reclass Template'!I49) -> 
A48: 40 | B48: =IF('6. Reclass Template'!B50 = 0, "", '6. Reclass Template'!B50) ->  | C48: =IF('6. Reclass Template'!C50 = 0, "", '6. Reclass Template'!C50) ->  | D48: =IF('6. Reclass Template'!D50 = 0, "", '6. Reclass Template'!D50) ->  | E48: =IF('6. Reclass Template'!E50 = 0, "", '6. Reclass Template'!E50) ->  | F48: =IF('6. Reclass Template'!F50 = 0, "", '6. Reclass Template'!F50) ->  | G48: =IF('6. Reclass Template'!G50 = 0, "", '6. Reclass Template'!G50) ->  | H48: =IF('6. Reclass Template'!H50 = 0, "", '6. Reclass Template'!H50) ->  | I48: =IF('6. Reclass Template'!I50 = 0, "", '6. Reclass Template'!I50) -> 
A49: 41 | B49: =IF('6. Reclass Template'!B51 = 0, "", '6. Reclass Template'!B51) ->  | C49: =IF('6. Reclass Template'!C51 = 0, "", '6. Reclass Template'!C51) ->  | D49: =IF('6. Reclass Template'!D51 = 0, "", '6. Reclass Template'!D51) ->  | E49: =IF('6. Reclass Template'!E51 = 0, "", '6. Reclass Template'!E51) ->  | F49: =IF('6. Reclass Template'!F51 = 0, "", '6. Reclass Template'!F51) ->  | G49: =IF('6. Reclass Template'!G51 = 0, "", '6. Reclass Template'!G51) ->  | H49: =IF('6. Reclass Template'!H51 = 0, "", '6. Reclass Template'!H51) ->  | I49: =IF('6. Reclass Template'!I51 = 0, "", '6. Reclass Template'!I51) -> 
A50: 42 | B50: =IF('6. Reclass Template'!B52 = 0, "", '6. Reclass Template'!B52) ->  | C50: =IF('6. Reclass Template'!C52 = 0, "", '6. Reclass Template'!C52) ->  | D50: =IF('6. Reclass Template'!D52 = 0, "", '6. Reclass Template'!D52) ->  | E50: =IF('6. Reclass Template'!E52 = 0, "", '6. Reclass Template'!E52) ->  | F50: =IF('6. Reclass Template'!F52 = 0, "", '6. Reclass Template'!F52) ->  | G50: =IF('6. Reclass Template'!G52 = 0, "", '6. Reclass Template'!G52) ->  | H50: =IF('6. Reclass Template'!H52 = 0, "", '6. Reclass Template'!H52) ->  | I50: =IF('6. Reclass Template'!I52 = 0, "", '6. Reclass Template'!I52) -> 
A51: 43 | B51: =IF('6. Reclass Template'!B53 = 0, "", '6. Reclass Template'!B53) ->  | C51: =IF('6. Reclass Template'!C53 = 0, "", '6. Reclass Template'!C53) ->  | D51: =IF('6. Reclass Template'!D53 = 0, "", '6. Reclass Template'!D53) ->  | E51: =IF('6. Reclass Template'!E53 = 0, "", '6. Reclass Template'!E53) ->  | F51: =IF('6. Reclass Template'!F53 = 0, "", '6. Reclass Template'!F53) ->  | G51: =IF('6. Reclass Template'!G53 = 0, "", '6. Reclass Template'!G53) ->  | H51: =IF('6. Reclass Template'!H53 = 0, "", '6. Reclass Template'!H53) ->  | I51: =IF('6. Reclass Template'!I53 = 0, "", '6. Reclass Template'!I53) -> 
A52: 44 | B52: =IF('6. Reclass Template'!B54 = 0, "", '6. Reclass Template'!B54) ->  | C52: =IF('6. Reclass Template'!C54 = 0, "", '6. Reclass Template'!C54) ->  | D52: =IF('6. Reclass Template'!D54 = 0, "", '6. Reclass Template'!D54) ->  | E52: =IF('6. Reclass Template'!E54 = 0, "", '6. Reclass Template'!E54) ->  | F52: =IF('6. Reclass Template'!F54 = 0, "", '6. Reclass Template'!F54) ->  | G52: =IF('6. Reclass Template'!G54 = 0, "", '6. Reclass Template'!G54) ->  | H52: =IF('6. Reclass Template'!H54 = 0, "", '6. Reclass Template'!H54) ->  | I52: =IF('6. Reclass Template'!I54 = 0, "", '6. Reclass Template'!I54) -> 
A53: 45 | B53: =IF('6. Reclass Template'!B55 = 0, "", '6. Reclass Template'!B55) ->  | C53: =IF('6. Reclass Template'!C55 = 0, "", '6. Reclass Template'!C55) ->  | D53: =IF('6. Reclass Template'!D55 = 0, "", '6. Reclass Template'!D55) ->  | E53: =IF('6. Reclass Template'!E55 = 0, "", '6. Reclass Template'!E55) ->  | F53: =IF('6. Reclass Template'!F55 = 0, "", '6. Reclass Template'!F55) ->  | G53: =IF('6. Reclass Template'!G55 = 0, "", '6. Reclass Template'!G55) ->  | H53: =IF('6. Reclass Template'!H55 = 0, "", '6. Reclass Template'!H55) ->  | I53: =IF('6. Reclass Template'!I55 = 0, "", '6. Reclass Template'!I55) -> 
A54: 46 | B54: =IF('6. Reclass Template'!B56 = 0, "", '6. Reclass Template'!B56) ->  | C54: =IF('6. Reclass Template'!C56 = 0, "", '6. Reclass Template'!C56) ->  | D54: =IF('6. Reclass Template'!D56 = 0, "", '6. Reclass Template'!D56) ->  | E54: =IF('6. Reclass Template'!E56 = 0, "", '6. Reclass Template'!E56) ->  | F54: =IF('6. Reclass Template'!F56 = 0, "", '6. Reclass Template'!F56) ->  | G54: =IF('6. Reclass Template'!G56 = 0, "", '6. Reclass Template'!G56) ->  | H54: =IF('6. Reclass Template'!H56 = 0, "", '6. Reclass Template'!H56) ->  | I54: =IF('6. Reclass Template'!I56 = 0, "", '6. Reclass Template'!I56) -> 
A55: 47 | B55: =IF('6. Reclass Template'!B57 = 0, "", '6. Reclass Template'!B57) ->  | C55: =IF('6. Reclass Template'!C57 = 0, "", '6. Reclass Template'!C57) ->  | D55: =IF('6. Reclass Template'!D57 = 0, "", '6. Reclass Template'!D57) ->  | E55: =IF('6. Reclass Template'!E57 = 0, "", '6. Reclass Template'!E57) ->  | F55: =IF('6. Reclass Template'!F57 = 0, "", '6. Reclass Template'!F57) ->  | G55: =IF('6. Reclass Template'!G57 = 0, "", '6. Reclass Template'!G57) ->  | H55: =IF('6. Reclass Template'!H57 = 0, "", '6. Reclass Template'!H57) ->  | I55: =IF('6. Reclass Template'!I57 = 0, "", '6. Reclass Template'!I57) -> 
A56: 48 | B56: =IF('6. Reclass Template'!B58 = 0, "", '6. Reclass Template'!B58) ->  | C56: =IF('6. Reclass Template'!C58 = 0, "", '6. Reclass Template'!C58) ->  | D56: =IF('6. Reclass Template'!D58 = 0, "", '6. Reclass Template'!D58) ->  | E56: =IF('6. Reclass Template'!E58 = 0, "", '6. Reclass Template'!E58) ->  | F56: =IF('6. Reclass Template'!F58 = 0, "", '6. Reclass Template'!F58) ->  | G56: =IF('6. Reclass Template'!G58 = 0, "", '6. Reclass Template'!G58) ->  | H56: =IF('6. Reclass Template'!H58 = 0, "", '6. Reclass Template'!H58) ->  | I56: =IF('6. Reclass Template'!I58 = 0, "", '6. Reclass Template'!I58) -> 
A57: 49 | B57: =IF('6. Reclass Template'!B59 = 0, "", '6. Reclass Template'!B59) ->  | C57: =IF('6. Reclass Template'!C59 = 0, "", '6. Reclass Template'!C59) ->  | D57: =IF('6. Reclass Template'!D59 = 0, "", '6. Reclass Template'!D59) ->  | E57: =IF('6. Reclass Template'!E59 = 0, "", '6. Reclass Template'!E59) ->  | F57: =IF('6. Reclass Template'!F59 = 0, "", '6. Reclass Template'!F59) ->  | G57: =IF('6. Reclass Template'!G59 = 0, "", '6. Reclass Template'!G59) ->  | H57: =IF('6. Reclass Template'!H59 = 0, "", '6. Reclass Template'!H59) ->  | I57: =IF('6. Reclass Template'!I59 = 0, "", '6. Reclass Template'!I59) -> 
A58: 50 | B58: =IF('6. Reclass Template'!B60 = 0, "", '6. Reclass Template'!B60) ->  | C58: =IF('6. Reclass Template'!C60 = 0, "", '6. Reclass Template'!C60) ->  | D58: =IF('6. Reclass Template'!D60 = 0, "", '6. Reclass Template'!D60) ->  | E58: =IF('6. Reclass Template'!E60 = 0, "", '6. Reclass Template'!E60) ->  | F58: =IF('6. Reclass Template'!F60 = 0, "", '6. Reclass Template'!F60) ->  | G58: =IF('6. Reclass Template'!G60 = 0, "", '6. Reclass Template'!G60) ->  | H58: =IF('6. Reclass Template'!H60 = 0, "", '6. Reclass Template'!H60) ->  | I58: =IF('6. Reclass Template'!I60 = 0, "", '6. Reclass Template'!I60) -> 
A59: 51 | B59: =IF('6. Reclass Template'!B37 = 0, "", '6. Reclass Template'!B37) ->  | F59: =SUM(F9:F58) -> 0 | I59: =SUM(I9:I58) -> 0

Sheet Form 6B - Adjustments
B2: Community Health Center Cost Report
B3: Form 6B - Adjustments
B4: ='1. Agency Information'!C9 -> 0
A5: ADJUSTMENT OF TRIAL BALANCE OF EXPENSES | F5: Form 6B (Adjustment)
B7: Adjustments to Expenses
A8: Line | B8: Description of Adjustment to Expenses | C8: Basis for Adjustment | D8: Worksheet Line Number | E8: Cost Center | F8: Amount
A9: 1 | B9: =IF('7. Adjustment Template'!B11 = 0, "", '7. Adjustment Template'!B11) -> Bad Debt | C9: =IF('7. Adjustment Template'!C11 = 0, "", '7. Adjustment Template'!C11) ->  | D9: =IF('7. Adjustment Template'!D11 = 0, "", '7. Adjustment Template'!D11) ->  | E9: =IF('7. Adjustment Template'!E11 = 0, "", '7. Adjustment Template'!E11) ->  | F9: =IF('7. Adjustment Template'!F11 = 0, "", '7. Adjustment Template'!F11) ->  | I9: Cost Center
A10: 2 | B10: =IF('7. Adjustment Template'!B12 = 0, "", '7. Adjustment Template'!B12) ->  | C10: =IF('7. Adjustment Template'!C12 = 0, "", '7. Adjustment Template'!C12) ->  | D10: =IF('7. Adjustment Template'!D12 = 0, "", '7. Adjustment Template'!D12) ->  | E10: =IF('7. Adjustment Template'!E12 = 0, "", '7. Adjustment Template'!E12) ->  | F10: =IF('7. Adjustment Template'!F12 = 0, "", '7. Adjustment Template'!F12) ->  | H10: A | I10: Medical
A11: 3 | B11: =IF('7. Adjustment Template'!B13 = 0, "", '7. Adjustment Template'!B13) ->  | C11: =IF('7. Adjustment Template'!C13 = 0, "", '7. Adjustment Template'!C13) ->  | D11: =IF('7. Adjustment Template'!D13 = 0, "", '7. Adjustment Template'!D13) ->  | E11: =IF('7. Adjustment Template'!E13 = 0, "", '7. Adjustment Template'!E13) ->  | F11: =IF('7. Adjustment Template'!F13 = 0, "", '7. Adjustment Template'!F13) ->  | H11: B | I11: Dental
A12: 4 | B12: =IF('7. Adjustment Template'!B14 = 0, "", '7. Adjustment Template'!B14) ->  | C12: =IF('7. Adjustment Template'!C14 = 0, "", '7. Adjustment Template'!C14) ->  | D12: =IF('7. Adjustment Template'!D14 = 0, "", '7. Adjustment Template'!D14) ->  | E12: =IF('7. Adjustment Template'!E14 = 0, "", '7. Adjustment Template'!E14) ->  | F12: =IF('7. Adjustment Template'!F14 = 0, "", '7. Adjustment Template'!F14) ->  | H12: C | I12: Behavioral Health
A13: 5 | B13: =IF('7. Adjustment Template'!B15 = 0, "", '7. Adjustment Template'!B15) ->  | C13: =IF('7. Adjustment Template'!C15 = 0, "", '7. Adjustment Template'!C15) ->  | D13: =IF('7. Adjustment Template'!D15 = 0, "", '7. Adjustment Template'!D15) ->  | E13: =IF('7. Adjustment Template'!E15 = 0, "", '7. Adjustment Template'!E15) ->  | F13: =IF('7. Adjustment Template'!F15 = 0, "", '7. Adjustment Template'!F15) ->  | H13: D | I13: Non-Allowable Cost
A14: 6 | B14: =IF('7. Adjustment Template'!B16 = 0, "", '7. Adjustment Template'!B16) ->  | C14: =IF('7. Adjustment Template'!C16 = 0, "", '7. Adjustment Template'!C16) ->  | D14: =IF('7. Adjustment Template'!D16 = 0, "", '7. Adjustment Template'!D16) ->  | E14: =IF('7. Adjustment Template'!E16 = 0, "", '7. Adjustment Template'!E16) ->  | F14: =IF('7. Adjustment Template'!F16 = 0, "", '7. Adjustment Template'!F16) ->  | H14: E | I14: Overhead - Facility
A15: 7 | B15: =IF('7. Adjustment Template'!B17 = 0, "", '7. Adjustment Template'!B17) ->  | C15: =IF('7. Adjustment Template'!C17 = 0, "", '7. Adjustment Template'!C17) ->  | D15: =IF('7. Adjustment Template'!D17 = 0, "", '7. Adjustment Template'!D17) ->  | E15: =IF('7. Adjustment Template'!E17 = 0, "", '7. Adjustment Template'!E17) ->  | F15: =IF('7. Adjustment Template'!F17 = 0, "", '7. Adjustment Template'!F17) ->  | H15: F | I15: Overhead - Administrative
A16: 8 | B16: =IF('7. Adjustment Template'!B18 = 0, "", '7. Adjustment Template'!B18) ->  | C16: =IF('7. Adjustment Template'!C18 = 0, "", '7. Adjustment Template'!C18) ->  | D16: =IF('7. Adjustment Template'!D18 = 0, "", '7. Adjustment Template'!D18) ->  | E16: =IF('7. Adjustment Template'!E18 = 0, "", '7. Adjustment Template'!E18) ->  | F16: =IF('7. Adjustment Template'!F18 = 0, "", '7. Adjustment Template'!F18) ->  | H16: G | I16: Enabling
A17: 9 | B17: =IF('7. Adjustment Template'!B19 = 0, "", '7. Adjustment Template'!B19) ->  | C17: =IF('7. Adjustment Template'!C19 = 0, "", '7. Adjustment Template'!C19) ->  | D17: =IF('7. Adjustment Template'!D19 = 0, "", '7. Adjustment Template'!D19) ->  | E17: =IF('7. Adjustment Template'!E19 = 0, "", '7. Adjustment Template'!E19) ->  | F17: =IF('7. Adjustment Template'!F19 = 0, "", '7. Adjustment Template'!F19) -> 
A18: 10 | B18: =IF('7. Adjustment Template'!B20 = 0, "", '7. Adjustment Template'!B20) ->  | C18: =IF('7. Adjustment Template'!C20 = 0, "", '7. Adjustment Template'!C20) ->  | D18: =IF('7. Adjustment Template'!D20 = 0, "", '7. Adjustment Template'!D20) ->  | E18: =IF('7. Adjustment Template'!E20 = 0, "", '7. Adjustment Template'!E20) ->  | F18: =IF('7. Adjustment Template'!F20 = 0, "", '7. Adjustment Template'!F20) -> 
A19: 11 | B19: =IF('7. Adjustment Template'!B21 = 0, "", '7. Adjustment Template'!B21) ->  | C19: =IF('7. Adjustment Template'!C21 = 0, "", '7. Adjustment Template'!C21) ->  | D19: =IF('7. Adjustment Template'!D21 = 0, "", '7. Adjustment Template'!D21) ->  | E19: =IF('7. Adjustment Template'!E21 = 0, "", '7. Adjustment Template'!E21) ->  | F19: =IF('7. Adjustment Template'!F21 = 0, "", '7. Adjustment Template'!F21) -> 
A20: 12 | B20: =IF('7. Adjustment Template'!B22 = 0, "", '7. Adjustment Template'!B22) ->  | C20: =IF('7. Adjustment Template'!C22 = 0, "", '7. Adjustment Template'!C22) ->  | D20: =IF('7. Adjustment Template'!D22 = 0, "", '7. Adjustment Template'!D22) ->  | E20: =IF('7. Adjustment Template'!E22 = 0, "", '7. Adjustment Template'!E22) ->  | F20: =IF('7. Adjustment Template'!F22 = 0, "", '7. Adjustment Template'!F22) -> 
A21: 13 | B21: =IF('7. Adjustment Template'!B23 = 0, "", '7. Adjustment Template'!B23) ->  | C21: =IF('7. Adjustment Template'!C23 = 0, "", '7. Adjustment Template'!C23) ->  | D21: =IF('7. Adjustment Template'!D23 = 0, "", '7. Adjustment Template'!D23) ->  | E21: =IF('7. Adjustment Template'!E23 = 0, "", '7. Adjustment Template'!E23) ->  | F21: =IF('7. Adjustment Template'!F23 = 0, "", '7. Adjustment Template'!F23) -> 
A22: 14 | B22: =IF('7. Adjustment Template'!B24 = 0, "", '7. Adjustment Template'!B24) ->  | C22: =IF('7. Adjustment Template'!C24 = 0, "", '7. Adjustment Template'!C24) ->  | D22: =IF('7. Adjustment Template'!D24 = 0, "", '7. Adjustment Template'!D24) ->  | E22: =IF('7. Adjustment Template'!E24 = 0, "", '7. Adjustment Template'!E24) ->  | F22: =IF('7. Adjustment Template'!F24 = 0, "", '7. Adjustment Template'!F24) -> 
A23: 15 | B23: =IF('7. Adjustment Template'!B25 = 0, "", '7. Adjustment Template'!B25) ->  | C23: =IF('7. Adjustment Template'!C25 = 0, "", '7. Adjustment Template'!C25) ->  | D23: =IF('7. Adjustment Template'!D25 = 0, "", '7. Adjustment Template'!D25) ->  | E23: =IF('7. Adjustment Template'!E25 = 0, "", '7. Adjustment Template'!E25) ->  | F23: =IF('7. Adjustment Template'!F25 = 0, "", '7. Adjustment Template'!F25) -> 
A24: 16 | B24: =IF('7. Adjustment Template'!B26 = 0, "", '7. Adjustment Template'!B26) ->  | C24: =IF('7. Adjustment Template'!C26 = 0, "", '7. Adjustment Template'!C26) ->  | D24: =IF('7. Adjustment Template'!D26 = 0, "", '7. Adjustment Template'!D26) ->  | E24: =IF('7. Adjustment Template'!E26 = 0, "", '7. Adjustment Template'!E26) ->  | F24: =IF('7. Adjustment Template'!F26 = 0, "", '7. Adjustment Template'!F26) -> 
A25: 17 | B25: =IF('7. Adjustment Template'!B27 = 0, "", '7. Adjustment Template'!B27) ->  | C25: =IF('7. Adjustment Template'!C27 = 0, "", '7. Adjustment Template'!C27) ->  | D25: =IF('7. Adjustment Template'!D27 = 0, "", '7. Adjustment Template'!D27) ->  | E25: =IF('7. Adjustment Template'!E27 = 0, "", '7. Adjustment Template'!E27) ->  | F25: =IF('7. Adjustment Template'!F27 = 0, "", '7. Adjustment Template'!F27) -> 
A26: 18 | B26: =IF('7. Adjustment Template'!B28 = 0, "", '7. Adjustment Template'!B28) ->  | C26: =IF('7. Adjustment Template'!C28 = 0, "", '7. Adjustment Template'!C28) ->  | D26: =IF('7. Adjustment Template'!D28 = 0, "", '7. Adjustment Template'!D28) ->  | E26: =IF('7. Adjustment Template'!E28 = 0, "", '7. Adjustment Template'!E28) ->  | F26: =IF('7. Adjustment Template'!F28 = 0, "", '7. Adjustment Template'!F28) -> 
A27: 19 | B27: =IF('7. Adjustment Template'!B29 = 0, "", '7. Adjustment Template'!B29) -> TOTAL | F27: =SUM(F9:F26) -> 0

Sheet Form 7 - Visits by FTE
B2: Community Health Center Cost Report
B3: Form 7 - Visits by FTE
B4: ='1. Agency Information'!C9 -> 0
A6: HEALTH CARE VISITS AND FTEs BY PRACTITIONER | G6: Form 7 (Visits by FTE)
A9: HEALTH CARE VISITS AND FTEs | D9: Visits | E9: Total
E10: FTEs
A11: A | B11: MEDICAL PROVIDERS | D11: I | E11: II
A12: 1 | B12: Physician (Note - includes OBAT per keeping in Med) | D12: ='3. Providers'!G21 -> 0 | E12: ='3. Providers'!E21+'3. Providers'!F21 -> 0
A13: 2 | B13: Nurse Practitioners | D13: ='3. Providers'!G22 -> 0 | E13: ='3. Providers'!E22+'3. Providers'!F22 -> 0
A14: 3 | B14: Physician Assistants | D14: ='3. Providers'!G23 -> 0 | E14: ='3. Providers'!E23+'3. Providers'!F23 -> 0
A15: 4 | B15: Certified Nurse Midwives | D15: ='3. Providers'!G24 -> 0 | E15: ='3. Providers'!E24+'3. Providers'!F24 -> 0
A16: 5 | B16: Registered Nurses (Note - includes OBAT as keeping in Med) | D16: ='3. Providers'!G27+'3. Providers'!G28 -> 0 | E16: ='3. Providers'!E27+'3. Providers'!F27+'3. Providers'!E28+'3. Providers'!F28 -> 0
A17: 6 | B17: Licensed Practical Nurses | D17: ='3. Providers'!G29 -> 0 | E17: ='3. Providers'!E28+'3. Providers'!F28+'3. Providers'!E29+'3. Providers'!F29 -> 0
A18: 7 | B18: Ophthalmologists | D18: ='3. Providers'!G32 -> 0 | E18: ='3. Providers'!E32+'3. Providers'!F32 -> 0
B19: Total Medical Visits and FTEs | D19: =SUM(D12:D18) -> 0 | E19: =SUM(E12:E18) -> 0
A20: B | B20: DENTAL PROVIDERS | D20: I | E20: II
A21: 1 | B21: General Dentists | D21: ='3. Providers'!G61 -> 0 | E21: ='3. Providers'!E61+'3. Providers'!F61 -> 0
A22: 2 | B22: Dental Specialist (DMD-DDS) | D22: ='3. Providers'!G62 -> 0 | E22: ='3. Providers'!E62+'3. Providers'!F62 -> 0
A23: 3 | B23: Dental Hygienists | D23: ='3. Providers'!G63 -> 0 | E23: ='3. Providers'!E63+'3. Providers'!F63 -> 0
B24: Total Dental Visits and FTEs | D24: =SUM(D21:D23) -> 0 | E24: =SUM(E21:E23) -> 0
A25: C | B25: BEHAVIORAL HEALTH PROVIDERS | D25: I | E25: II
A26: Mental Health Providers
A27: 1 | B27: Psychiatrists | D27: ='3. Providers'!G74 -> 0 | E27: ='3. Providers'!E74+'3. Providers'!F74 -> 0
A28: 2 | B28: Psychologists | D28: ='3. Providers'!G75 -> 0 | E28: ='3. Providers'!E75+'3. Providers'!F75 -> 0
A29: 3 | B29: Licensed Independent Clinical Social Worker (LISCW) | D29: ='3. Providers'!G77 -> 0 | E29: ='3. Providers'!E77+'3. Providers'!F77 -> 0
A30: 4 | B30: Licensed Clinical Social Worker (LCSW) | D30: ='3. Providers'!G78 -> 0 | E30: ='3. Providers'!E78+'3. Providers'!F78 -> 0
A31: 5 | B31: Unlicensed Master of Social Worker (MSW) | D31: ='3. Providers'!G79 -> 0 | E31: ='3. Providers'!E79+'3. Providers'!F79 -> 0
A32: 6 | B32: Licensed Mental Health Counselor (LMHC) | D32: ='3. Providers'!G80 -> 0 | E32: ='3. Providers'!E80+'3. Providers'!F80 -> 0
A33: 7 | B33: Family Therapists | D33: ='3. Providers'!G81 -> 0 | E33: ='3. Providers'!E81+'3. Providers'!F81 -> 0
A34: 8 | B34: Psychiatric Nurse Practitioner | D34: ='3. Providers'!G83 -> 0 | E34: ='3. Providers'!E83+'3. Providers'!F83 -> 0
A35: 9 | B35: Nurses - Psychiatric and Mental Health | D35: ='3. Providers'!G84 -> 0 | E35: ='3. Providers'!E84+'3. Providers'!F84 -> 0
A36: 10 | B36: RN Nurse Counselors | D36: ='3. Providers'!G85 -> 0 | E36: ='3. Providers'!E85+'3. Providers'!F85 -> 0
A37: 11 | B37: Unlicensed Mental Health Providers, including trainees (interns or residents) and "Certified" staff | D37: ='3. Providers'!G86 -> 0 | E37: ='3. Providers'!E86+'3. Providers'!F86 -> 0
A38: Substance Use Providers
A39: 12 | B39: RN Nurse Counselors | D39: ='3. Providers'!G89 -> 0 | E39: ='3. Providers'!E89+'3. Providers'!F89 -> 0
A40: 13 | B40: Licensed Independent Clinical Social Worker (LISCW) | D40: ='3. Providers'!G91 -> 0 | E40: ='3. Providers'!E91+'3. Providers'!F91 -> 0
A41: 14 | B41: Licensed Clinical Social Worker (LCSW) | D41: ='3. Providers'!G92 -> 0 | E41: ='3. Providers'!E92+'3. Providers'!F92 -> 0
A42: 15 | B42: Unlicensed Master of Social Worker (MSW) | D42: ='3. Providers'!G93 -> 0 | E42: ='3. Providers'!E93+'3. Providers'!F93 -> 0
A43: 16 | B43: Licensed Mental Health Counselor (LMHC) | D43: ='3. Providers'!G94 -> 0 | E43: ='3. Providers'!E94+'3. Providers'!F94 -> 0
A44: 17 | B44: LADAC/CADAC | D44: ='3. Providers'!G96 -> 0 | E44: ='3. Providers'!E96+'3. Providers'!F96 -> 0
A45: 18 | B45: Family Therapists | D45: ='3. Providers'!G95 -> 0 | E45: ='3. Providers'!E95+'3. Providers'!F95 -> 0
A46: 19 | B46: Recovery Coaches/Peer Support | D46: ='3. Providers'!G98 -> 0 | E46: ='3. Providers'!E98+'3. Providers'!F98 -> 0
B47: Total Behavioral Health Visits and FTEs | D47: =SUM(D27:D46) -> 0 | E47: =SUM(E27:E46) -> 0
A48: l. | B48: TOTAL VISITS AND FTEs | D48: =D47+D24+D19 -> 0 | E48: =E47+E24+E19 -> 0

Sheet Form A - Allocations
B2: Community Health Center Cost Report
B3: Form A - Allocations
B4: ='1. Agency Information'!C9 -> 0
T6: Form A (Statistical Basis/Allocations)
A8: BASIS FOR ALLOCATIONS
A10: Costs
A11: Line | B11: Allocation Basis | D11: Total | E11: Medical (In-Bundle) | F11: Behavioral Health (In-Bundle) | G11: Dental (100% In-Bundle) | H11: Laboratory | I11: X-Ray | J11: Pharmacy | K11: Medical (Out-of-Bundle) | L11: Behavioral Health (Out-of-Bundle) | M11: Medical Non-Providers Staff Costs | N11: Behavrioral Health Non-Providers Staff Costs | O11: Medical Other Direct Costs | P11: Behavioral Health Other Direct Costs | Q11: Facility | R11: Enabling | S11: Admin | T11: Non-Allowable
A12: 1 | B12: In-Bundle & Out-of-Bundle FTEs (Tab 3) | C12: Non-Provider & Other Direct Costs | D12: =SUM(E12:T12) -> 0 | E12: =('3. Providers'!E21+'3. Providers'!F21)+('3. Providers'!E22+'3. Providers'!F22)+('3. Providers'!E23+'3. Providers'!F23)+('3. Providers'!E24+'3. Providers'!F24)+('3. Providers'!E27+'3. Providers'!F27)+('3. Providers'!E28+'3. Providers'!F28)+('3. Providers'!E29+'3. Providers'!F29)+('3. Providers'!E32+'3. Providers'!F32) -> 0 | F12: =('3. Providers'!E74+'3. Providers'!F74)+('3. Providers'!E75+'3. Providers'!F75)+('3. Providers'!E77+'3. Providers'!F77)+('3. Providers'!E78+'3. Providers'!F78)+('3. Providers'!E79+'3. Providers'!F79)+('3. Providers'!E80+'3. Providers'!F80)+('3. Providers'!E81+'3. Providers'!F81)+('3. Providers'!E83+'3. Providers'!F83)+('3. Providers'!E84+'3. Providers'!F84)+('3. Providers'!E85+'3. Providers'!F85)+('3. Providers'!E86+'3. Providers'!F86)+('3. Providers'!E89+'3. Providers'!F89)+('3. Providers'!E91+'3. Providers'!F91)+('3. Providers'!E92+'3. Providers'!F92)+('3. Providers'!E93+'3. Providers'!F93)+('3. Providers'!E94+'3. Providers'!F94)+('3. Providers'!E95+'3. Providers'!F95)+('3. Providers'!E96+'3. Providers'!F96)+('3. Providers'!E98+'3. Providers'!F98) -> 0 | G12: =('3. Providers'!E61+'3. Providers'!F61)+('3. Providers'!E62+'3. Providers'!F62)+('3. Providers'!E63+'3. Providers'!F63)+('3. Providers'!E64+'3. Providers'!F64) -> 0 | K12: =('3. Providers'!E33+'3. Providers'!F33)+('3. Providers'!E34+'3. Providers'!F34)+('3. Providers'!E57+'3. Providers'!F57) -> 0 | L12: =('3. Providers'!E97+'3. Providers'!F97)+('3. Providers'!E99+'3. Providers'!F99) -> 0
A13: 2 | B13: Square Footage | C13: Facility | D13: =SUM(E13:T13) -> 0 | E13: =('8. Other Information'!C9+'8. Other Information'!C10)*E18 -> 0 | F13: =('8. Other Information'!C17)*F18 -> 0 | G13: =('8. Other Information'!C11)*G18 -> 0 | H13: ='8. Other Information'!C12 -> 0 | I13: ='8. Other Information'!C13 -> 0 | J13: ='8. Other Information'!C14 -> 0 | K13: =('8. Other Information'!C9+'8. Other Information'!C10)*K18 -> 0 | L13: =('8. Other Information'!C17)*L18 -> 0 | R13: ='8. Other Information'!C16 -> 0 | S13: ='8. Other Information'!C15 -> 0 | T13: ='8. Other Information'!C18 -> 0
A14: 3 | B14: Total Visits (Form 7 & Tab 3) | C14: Enabling | D14: =SUM(E14:T14) -> 0 | E14: ='Form 7 - Visits by FTE'!D19 -> 0 | F14: ='Form 7 - Visits by FTE'!D47 -> 0 | G14: ='Form 7 - Visits by FTE'!D24 -> 0 | K14: ='3. Providers'!G33+'3. Providers'!G34+'3. Providers'!G57 -> 0 | L14: ='3. Providers'!G97+'3. Providers'!G99 -> 0
A15: 4 | B15: Accumulated Cost (Line 16) | C15: Admin | D15: =SUM(E15:T15) -> 0 | E15: =E31 -> 0 | F15: =F31 -> 0 | G15: 0 | H15: 0 | I15: 0 | J15: 0 | K15: 0 | L15: 0 | T15: =T31 -> 0
A17: Line | B17: % Allocated | D17: Total | E17: Medical (In-Bundle) | F17: Behavioral Health (In-Bundle) | G17: Dental (100% In-Bundle) | H17: Laboratory | I17: X-Ray | J17: Pharmacy | K17: Medical (Out-of-bundle) | L17: Behavioral Health (Out-of-bundle) | M17: Medical Non-Providers Staff Costs | N17: Behavrioral Health Non-Providers Staff Costs | O17: Medical Other Direct Costs | P17: Behavioral Health Other Direct Costs | Q17: Facility | R17: Enabling | S17: Admin | T17: Non-Allowable
A18: 5 | B18: In-Bundle & Out-of-Bundle FTEs | C18: Non-Provider & Other Direct Costs | E18: =IFERROR(E12/(E12+K12),0) -> 0 | F18: =IFERROR(F12/(F12+L12),0) -> 0 | G18: =IFERROR(G12/G12,0) -> 0 | K18: =IFERROR(K12/(E12+K12),0) -> 0 | L18: =IFERROR(L12/(F12+L12),0) -> 0
A19: 6 | B19: Square Footage | C19: Facility | D19: =SUM(E19:T19) -> 0 | E19: =IFERROR(E13/$D13,0) -> 0 | F19: 0 | G19: 0 | H19: 0 | I19: 0 | J19: 0 | K19: =IFERROR(K13/$D13,0) -> 0 | L19: 0 | R19: =IFERROR(R13/$D13,0) -> 0 | S19: =IFERROR(S13/$D13,0) -> 0 | T19: =IFERROR(T13/$D13,0) -> 0
A20: 7 | B20: Total Visits | C20: Enabling | D20: =SUM(E20:T20) -> 0 | E20: =IFERROR(E14/$D14,0) -> 0 | F20: =IFERROR(F14/$D14,0) -> 0 | G20: =IFERROR(G14/$D14,0) -> 0 | K20: =IFERROR(K14/$D14,0) -> 0 | L20: =IFERROR(L14/$D14,0) -> 0
A21: 8 | B21: Accumulated Cost | C21: Admin | D21: =SUM(E21:T21) -> 0 | E21: =IFERROR(E15/$D15, "0") -> 0 | F21: 0 | G21: 0 | H21: 0 | I21: 0 | J21: 0 | K21: 0 | L21: 0 | T21: =IFERROR(T15/$D15, "0") -> 0
A23: Line | B23: Cost Allocations | D23: Total | E23: Medical (In-Bundle) | F23: Behavioral Health (In-Bundle) | G23: Dental (100% In-Bundle) | H23: Laboratory | I23: X-Ray | J23: Pharmacy | K23: Medical (Out-of-bundle) | L23: Behavioral Health (Out-of-bundle) | M23: Medical Non-Providers Staff Costs | N23: Behavrioral Health Non-Providers Staff Costs | O23: Medical Other Direct Costs | P23: Behavioral Health Other Direct Costs | Q23: Facility | R23: Enabling | S23: Admin | T23: Non-Allowable
A24: 9 | B24: Net Direct Expenses (Forms 1-5) | D24: =SUM(E24:T24) -> 0 | E24: ='Form 1 - Direct Medical Cost'!L21 -> 0 | F24: ='Form 3 - Direct BH Cost'!L34 -> 0 | G24: ='Form 2 - Direct Dental Cost'!L40 -> 0 | H24: ='Form 4 - NonAllowable'!L25 -> 0 | I24: ='Form 4 - NonAllowable'!L26 -> 0 | J24: ='Form 4 - NonAllowable'!L27 -> 0 | K24: ='Form 1 - Direct Medical Cost'!L26 -> 0 | L24: ='Form 3 - Direct BH Cost'!L38 -> 0 | M24: ='Form 1 - Direct Medical Cost'!L28 -> 0 | N24: ='Form 3 - Direct BH Cost'!L40 -> 0 | O24: ='Form 1 - Direct Medical Cost'!L47 -> 0 | P24: ='Form 3 - Direct BH Cost'!L59 -> 0 | Q24: ='Form 5 - Overhead & Enabling'!L32 -> 0 | R24: ='Form 5 - Overhead & Enabling'!L73 -> 0 | S24: ='Form 5 - Overhead & Enabling'!L54 -> 0 | T24: ='Form 4 - NonAllowable'!L32-'Form 4 - NonAllowable'!L27-'Form 4 - NonAllowable'!L26-'Form 4 - NonAllowable'!L25 -> 0
A25: 10 | B25: Allocation of Medical and Behavioral Health Non-Provider Staff Costs (by FTEs) | D25: 0 | E25: =E$18*$M$24 -> 0 | F25: =F$18*$N$24 -> 0 | K25: =K$18*$M$24 -> 0 | L25: =L$18*$N$24 -> 0 | M25: =-M24 -> 0 | N25: =-N24 -> 0
A26: 11 | B26: Allocation of Medical and Behavioral Health Other Direct Costs (by FTEs) | D26: 0 | E26: =E$18*$O$24 -> 0 | F26: =F$18*$P$24 -> 0 | K26: =K$18*$O$24 -> 0 | L26: =L$18*$P$24 -> 0 | O26: =-O24 -> 0 | P26: =-P24 -> 0
A27: 12 | B27: Direct Expenses, After Non-Provider Staff Cost and Other Direct Cost Allocation (Line 9+10+11) | D27: 0 | E27: =SUM(E24:E26) -> 0 | F27: 0 | G27: 0 | H27: 0 | I27: 0 | J27: 0 | K27: 0 | L27: 0 | M27: 0 | N27: =SUM(N24:N26) -> 0 | O27: 0 | P27: =SUM(P24:P26) -> 0 | Q27: 0 | R27: 0 | S27: 0 | T27: 0
A28: 13 | B28: Allocation of Facility Costs (by Square Footage) | C28: Enabling | D28: 0 | E28: =$Q24*E19 -> 0 | F28: 0 | G28: 0 | H28: 0 | I28: 0 | J28: 0 | K28: 0 | L28: 0 | Q28: =-Q24 -> 0 | R28: =$Q24*R19 -> 0 | S28: =$Q24*S19 -> 0 | T28: =$Q24*T19 -> 0
A29: 14 | B29: Direct Expenses, After Facility Allocation (Line 12+13) | D29: 0 | E29: =E27+E28 -> 0 | F29: =F27+F28 -> 0 | G29: 0 | H29: 0 | I29: 0 | J29: 0 | K29: 0 | L29: 0 | Q29: =Q24+Q28 -> 0 | R29: =R24+R28 -> 0 | S29: =S24+S28 -> 0 | T29: =T24+T28 -> 0
A30: 15 | B30: Allocation of Enabling Services Costs (by Visits) | C30: Enabling | D30: 0 | E30: =$R$29*E20 -> 0 | F30: =$R$29*F20 -> 0 | G30: =$R$29*G20 -> 0 | K30: =$R$29*K20 -> 0 | L30: =$R$29*L20 -> 0 | R30: =-R29 -> 0
A31: 16 | B31: Direct Expenses, After Allocation of Facility and Enabling (Line 14+15) | D31: 0 | E31: =E29+E30 -> 0 | F31: =F29+F30 -> 0 | G31: =G29+G30 -> 0 | H31: 0 | I31: 0 | J31: 0 | K31: 0 | L31: 0 | R31: =R29+R30 -> 0 | S31: =S29+S30 -> 0 | T31: =T29+T30 -> 0
A32: 17 | B32: Allocation of Administrative Expenses (by Accumulated Cost) | D32: 0 | E32: =$S31*E21 -> 0 | F32: 0 | G32: =$S31*G21 -> 0 | H32: 0 | I32: =$S31*I21 -> 0 | J32: 0 | K32: =$S31*K21 -> 0 | L32: =$S31*L21 -> 0 | S32: =-S31 -> 0 | T32: =$S31*T21 -> 0
A33: 18 | B33: Total Adjusted Net Expenses (Line 16+17) | D33: =SUM(E33:T33) -> 0 | E33: =E31+E32 -> 0 | F33: =F31+F32 -> 0 | G33: 0 | H33: 0 | I33: 0 | J33: 0 | K33: 0 | L33: 0 | S33: =S31+S32 -> 0 | T33: =T31+T32 -> 0

Sheet Form B - Cost per Visit
B2: Community Health Center Cost Report
B3: Form B - Cost per Visit
B4: ='1. Agency Information'!C9 -> 0
D6: Form B (Allowable Cost per Visit)
A8: COST ADJUSTMENT AND ALLOCATION
D12: Costs
A13: I | B13: Medical + Behavioral Health (Dental Carved Out)
A14: A. | B14: Total Adjusted Allowable Costs (Form A, Line 18) | D14: ='Form A - Allocations'!E33+'Form A - Allocations'!F33 -> 0
A15: B. | B15: Visits (Form 7) | D15: ='Form 7 - Visits by FTE'!D19+'Form 7 - Visits by FTE'!D47 -> 0
A16: C. | B16: Allowable Medical + BH Cost per Visit (A/B) | D16: =IFERROR(D14/D15, "") -> 
A17: II | B17: Dental Costs
A18: A. | B18: Total Adjusted Allowable Costs (Form A, Line 18) | D18: ='Form A - Allocations'!G33 -> 0
A19: B. | B19: Visits (Form 7) | D19: ='Form 7 - Visits by FTE'!D24 -> 0
A20: C. | B20: Allowable Dental Cost per Visit (A/B) | D20: =IFERROR(D18/D19, "") -> 

Sheet Tab 9. Reconciliation
B2: Community Health Center Cost Report
B3: Tab 9 - Reconciliation
B4: ='1. Agency Information'!C9 -> 0
B6: RECONCILIATION OF COST REPORT NET INCOME TO FINANCIAL STATEMENT (BOOK) NET INCOME
A8: Line # | B8: Cost Report Net Income
A9: 1 | B9: Total Cost Report Revenue (Tab 2, line 45) | C9: =ROUND('2. Revenue'!F57,0) -> 0
A10: 2 | B10: Total Cost Report Expenses (Form A, Line 18 plus Tab 7, Line 19) | C10: =ROUND(SUM('Form A - Allocations'!$D$33,'7. Adjustment Template'!$F$11),0) -> 0
A11: 3 | B11: Net Income (Loss) Cost Report | C11: =C9-C10 -> 0
A12: 4 | B12: Profitability | C12: =IFERROR(((C9-C10)/C9),"0") -> 0
B14: Financial Statement Net Income
A15: 5 | B15: Total Financial Statement Revenue
A16: 6 | B16: Total Financial Statement Expenses
A17: 7 | B17: Net Income (Loss) Financial Statement | C17: =C15-C16 -> 0
B19: Variance
A20: 8 | B20: Variance Between Cost Report and Financial Statements: Revenue | C20: =C9-C15 -> 0
A21: 9 | B21: Variance Between Cost Report and Financial Statements: Expenses | C21: =C10-C16 -> 0
A22: 10 | B22: Variance Between Cost Report and Financial Statements: Net Income | C22: =C11-C17 -> 0
B24: Reconciling Items
C25: Description | D25: Amount ($)
A26: 11 | B26: Reconciling Item #1
A27: 12 | B27: Reconciling Item #2
A28: 13 | B28: Reconciling Item #3
A29: 14 | B29: Reconciling Item #4
A30: 15 | B30: Reconciling Item #5
C31: Total Reconciling Items | D31: =SUM(D26:D30) -> 0
B33: Reconciliation
A34: 16 | B34: Difference Between Total Reconciling Items and Variance Between Cost Report and Financial Statements: Net Income * | C34: =C22-D31 -> 0
B36: Footnote Legend
B37: * This should be zero. The variance in the net income should be accounted for by the reconciling items.

Sheet Tab 10. Accuracy of Report
B2: Community Health Center Cost Report
B3: Tab 10 - Accuracy of Report
F4: R.5-0 Industries Inc.
B5: ='1. Agency Information'!B4 -> 0
B8: CERTIFICATION BY PROVIDER
B10: I declare and affirm under the penalties of perjury that this report thas been examined by me, and to the best of my knowledge and belief, is true and correct statement.
B11: This payment reporting form is subject to audit and verification by the Center for Health Informtion and Analysis.
B12: By filling out the boxes below I hereby certify that I am authorized by the provider to submit this information.
D14: Total Revenue | E14: ='2. Revenue'!F57 -> 0
D15: Total Expense | E15: ='Tab 9. Reconciliation'!C10 -> 0
D16: Profit/Loss | E16: =E14-E15 -> 0
D17: Profitability | E17: =IFERROR(((E14-E15)/E14), "0") -> 0
D19: Signature of Authorized Submitter (Type electronic signature):
D20: Date of Submission (mm/dd/yyyy):
D21: Submitter's Acknowledgement:
C23: You may submit when each line says "No Action Required". You will not be able to successfully submit if you see an "Error" message below.
C24: Provider name is chosen (Tab 1) | E24: =IF(ProviderName="","ERROR","No Action Required") -> ERROR
C25: MassHealth ID is entered (Tab 1) | E25: =IF(MassHealthProviderID="","ERROR","No Action Required") -> ERROR
C26: Medicare Provider Number (Tab 1) | E26: =IF('1. Agency Information'!C12="","ERROR","No Action Required") -> ERROR
C27: Fiscal year ending date is selected (Tab 1) | E27: =IF('1. Agency Information'!C18="","ERROR","No Action Required") -> ERROR
C28: Contact Information is complete (Name, Phone Number, and Email Address) (Tab 1) | E28: =IF(OR('1. Agency Information'!C21="",'1. Agency Information'!C23="",'1. Agency Information'!C25=""),"ERROR","No Action Required") -> ERROR
C29: Total Revenue amount is entered (Tab 2) | E29: =IF('2. Revenue'!F57=0,"ERROR","No Action Required") -> ERROR
C30: Total Benefit amount is entered (Tab 5) | E30: =IF('5. Cost Information'!D22<=0,"ERROR","No Action Required") -> ERROR
C31: Medical Expense amount is entered | E31: =IF('Cost Breakdown'!E18<=0,"ERROR","No Action Required") -> ERROR
C32: Total Other Than Personnel Services (OTPS) Expense is entered (Tab 5) | E32: =IF('5. Cost Information'!W60<=0,"ERROR","No Action Required") -> ERROR
C33: Provider Salary Expense is entered if Provider Salary FTE is Entered (Tab 3) | E33: =IF(AND('3. Providers'!C108>0,'3. Providers'!E108<=0), "ERROR", "No Action Required") -> No Action Required
C34: Provider Contractor Expense is entered if Provider Contractor FTE is Entered (Tab 3) | E34: =IF(AND('3. Providers'!D108>0,'3. Providers'!F108<=0), "ERROR", "No Action Required") -> No Action Required
C35: Non-Provider Salary Expense is entered if Non-Provider Salary FTE is Entered (Tab 4) | E35: =IF(AND(('4. Non-Providers'!C312+'4. Non-Providers'!C289)>0,('4. Non-Providers'!E312+'4. Non-Providers'!E289)<=0), "ERROR", "No Action Required") -> No Action Required
C36: Non-Provider Contractor Expense is entered if Non-Provider Contractor FTE is Entered (Tab 4) | E36: =IF(AND(('4. Non-Providers'!D312+'4. Non-Providers'!D289)>0,('4. Non-Providers'!F312+'4. Non-Providers'!F289)<=0), "ERROR", "No Action Required") -> No Action Required
C37: Non-Provider Salary/Contractor Expense and/or Non-Provider Salary/Contractor FTEs are entered (Tab 4) | E37: =IF(AND(('4. Non-Providers'!C312+'4. Non-Providers'!C289)<=0,('4. Non-Providers'!D312+'4. Non-Providers'!D289)<=0,('4. Non-Providers'!E312+'4. Non-Providers'!E289)<=0,('4. Non-Providers'!F312+'4. Non-Providers'!F289)<=0),"ERROR","No Action Required") -> ERROR
C38: Total Expense amount is entered (Cost Breakdown Tab) | E38: =IF('Cost Breakdown'!D18<=0,"ERROR","No Action Required") -> ERROR
C39: Square Footage is entered (Tab 8) | E39: =IF('8. Other Information'!C19<=0,"ERROR","No Action Required") -> ERROR
C40: Total Billable Vist amount is entered (Tab 3) | E40: =IF('3. Providers'!G108<=0,"ERROR","No Action Required") -> ERROR
C41: The reported differences between your cost report and financial statement must equal the sum of the variances reported in the Reconcilliation tab. | E41: =IF('Tab 9. Reconciliation'!C34=0,"No Action Required","ERROR") -> No Action Required
C42: Above Certification by Provider is complete. | E42: =IF(OR(E19=0,E20=0,E21=0),"ERROR","No Action Required") -> ERROR

Sheet Provider List (hidden)
B3: CMS2 ID | C3: Provider Name
B4: -
B5: 15 | C5: Boston Health Care for the Homeless Program
B6: 26 | C6: Brockton Neighborhood Health Center
B7: 125 | C7: Caring Health Center, Inc.
B8: 80 | C8: Charles River Community Health
B9: 6798 | C9: Community Health Center of Cape Cod
B10: 3104 | C10: Community Health Center of Franklin County
B11: 4051 | C11: Community Health Connections Family Health Center (Fitchburg CHC)
B12: 9416 | C12: Community Health Programs Health Center
B13: 11086 | C13: Community HealthLink
B14: 55 | C14: Dimock Community Health Center
B15: 1472 | C15: Duffy Health Center
B16: 63 | C16: Edward M. Kennedy Community Health Center Inc.
B17: 58 | C17: Family Health Center of Worcester
B18: 60 | C18: Fenway Community Health Center
B19: 64 | C19: Greater Lawrence Family Health Center
B20: 65 | C20: Greater New Bedford Community Health Center, Inc.
B21: 4461 | C21: Harbor Health Services, Inc.
B22: 69 | C22: Harvard Street Neighborhood Health Center
B23: 72 | C23: HealthFirst Family Care Center, Inc
B24: 74 | C24: Hilltown Community Health Centers, Inc.
B25: 76 | C25: Holyoke Health Center
B26: 7972 | C26: Island Health Care
B27: 84 | C27: Lowell Community Health Center
B28: 86 | C28: Lynn Community Health Center
B29: 87 | C29: Manet Community Health Center, Inc. at North Quincy
B30: 90 | C30: Mattapan Community Health Center
B31: 108 | C31: North End Waterfront Health (formerly North End CHC)
B32: 1456 | C32: North Shore Community Health, Inc.
B33: 111 | C33: Outer Cape Health Services
B34: 120 | C34: South Cove Community Health Center
B35: 3874 | C35: Springfield Health Services for the Homeless
B36: 128 | C36: Stanley Street Treatment and Resources (SSTAR)
B37: 134 | C37: Upham's Corner Health Center
B38: 137 | C38: Whittier Street Health Center

Sheet Flat Data Tab (hidden)
D1: 1 | E1: =D1+1 -> 2 | F1: =E1+1 -> 3 | G1: =F1+1 -> 4 | H1: 5 | I1: 6 | J1: 7 | K1: 8 | L1: 9 | M1: 10 | N1: 11 | O1: 12 | P1: 13 | Q1: 14 | R1: 15 | S1: 16 | T1: 17 | U1: 18 | V1: 19 | W1: 20 | X1: 21 | Y1: 22 | Z1: 23 | AA1: 24 | AB1: 25 | AC1: 26 | AD1: 27 | AE1: 28 | AF1: 29 | AG1: 30 | AH1: 31 | AI1: 32 | AJ1: 33 | AK1: 34 | AL1: 35 | AM1: 36 | AN1: 37 | AO1: 38 | AP1: 39 | AQ1: 40 | AR1: 41 | AS1: 42 | AT1: 43 | AU1: 44 | AV1: 45 | AW1: 46 | AX1: 47 | AY1: 48 | AZ1: 49 | BA1: 50 | BB1: 51 | BC1: 52 | BD1: 53 | BE1: 54 | BF1: 55 | BG1: 56 | BH1: 57 | BI1: 58 | BJ1: 59 | BK1: 60 | BL1: 61 | BM1: 62 | BN1: 63 | BO1: 64 | BP1: 65 | BQ1: 66 | BR1: =BQ1+1 -> 67 | BS1: =BR1+1 -> 68 | BT1: =BS1+1 -> 69 | BU1: =BT1+1 -> 70 | BV1: =BU1+1 -> 71 | BW1: =BV1+1 -> 72 | BX1: 73 | BY1: 74 | BZ1: 75 | CA1: 76 | CB1: 77 | CC1: 78 | CD1: 79 | CE1: 80 | CF1: 81 | CG1: 82 | CH1: 83 | CI1: 84 | CJ1: 85 | CK1: 86 | CL1: 87 | CM1: 88 | CN1: 89 | CO1: 90 | CP1: 91 | CQ1: 92 | CR1: =CQ1+1 -> 93 | CS1: =CR1+1 -> 94 | CT1: =CS1+1 -> 95 | CU1: =CT1+1 -> 96 | CV1: =CU1+1 -> 97 | CW1: =CV1+1 -> 98 | CX1: =CW1+1 -> 99 | CY1: =CX1+1 -> 100 | CZ1: =CY1+1 -> 101 | DA1: =CZ1+1 -> 102 | DB1: =DA1+1 -> 103 | DC1: =DB1+1 -> 104 | DD1: =DC1+1 -> 105 | DE1: =DD1+1 -> 106 | DF1: =DE1+1 -> 107 | DG1: =DF1+1 -> 108 | DH1: =DG1+1 -> 109 | DI1: =DH1+1 -> 110 | DJ1: =DI1+1 -> 111 | DK1: =DJ1+1 -> 112 | DL1: =DK1+1 -> 113 | DM1: =DL1+1 -> 114 | DN1: =DM1+1 -> 115 | DO1: =DN1+1 -> 116 | DP1: =DO1+1 -> 117 | DQ1: =DP1+1 -> 118 | DR1: =DQ1+1 -> 119 | DS1: =DR1+1 -> 120 | DT1: =DS1+1 -> 121 | DU1: =DT1+1 -> 122 | DV1: =DU1+1 -> 123 | DW1: =DV1+1 -> 124 | DX1: =DW1+1 -> 125 | DY1: =DX1+1 -> 126 | DZ1: =DY1+1 -> 127 | EA1: =DZ1+1 -> 128 | EB1: =EA1+1 -> 129 | EC1: =EB1+1 -> 130 | ED1: =EC1+1 -> 131 | EE1: =ED1+1 -> 132 | EF1: =EE1+1 -> 133 | EG1: =EF1+1 -> 134 | EH1: =EG1+1 -> 135 | EI1: =EH1+1 -> 136 | EJ1: =EI1+1 -> 137 | EK1: =EJ1+1 -> 138 | EL1: =EK1+1 -> 139 | EM1: =EL1+1 -> 140 | EN1: =EM1+1 -> 141 | EO1: =EN1+1 -> 142 | EP1: =EO1+1 -> 143 | EQ1: =EP1+1 -> 144 | ER1: =EQ1+1 -> 145 | ES1: =ER1+1 -> 146 | ET1: =ES1+1 -> 147 | EU1: =ET1+1 -> 148 | EV1: =EU1+1 -> 149 | EW1: =EV1+1 -> 150 | EX1: =EW1+1 -> 151 | EY1: =EX1+1 -> 152 | EZ1: =EY1+1 -> 153 | FA1: =EZ1+1 -> 154 | FB1: =FA1+1 -> 155 | FC1: =FB1+1 -> 156 | FD1: =FC1+1 -> 157 | FE1: 158 | FF1: =FE1+1 -> 159 | FG1: =FF1+1 -> 160 | FH1: =FG1+1 -> 161 | FI1: =FH1+1 -> 162 | FJ1: =FI1+1 -> 163 | FK1: =FJ1+1 -> 164 | FL1: =FK1+1 -> 165 | FM1: =FL1+1 -> 166 | FN1: =FM1+1 -> 167 | FO1: =FN1+1 -> 168 | FP1: =FO1+1 -> 169 | FQ1: =FP1+1 -> 170 | FR1: =FQ1+1 -> 171 | FS1: =FR1+1 -> 172 | FT1: =FS1+1 -> 173 | FU1: =FT1+1 -> 174 | FV1: 175 | FW1: =FV1+1 -> 176 | FX1: =FW1+1 -> 177 | FY1: =FX1+1 -> 178 | FZ1: =FY1+1 -> 179 | GA1: =FZ1+1 -> 180 | GB1: =GA1+1 -> 181 | GC1: =GB1+1 -> 182 | GD1: =GC1+1 -> 183 | GE1: =GD1+1 -> 184 | GF1: =GE1+1 -> 185 | GG1: =GF1+1 -> 186 | GH1: =GG1+1 -> 187 | GI1: =GH1+1 -> 188 | GJ1: =GI1+1 -> 189 | GK1: =GJ1+1 -> 190 | GL1: =GK1+1 -> 191 | GM1: =GL1+1 -> 192 | GN1: =GM1+1 -> 193 | GO1: =GN1+1 -> 194 | GP1: =GO1+1 -> 195 | GQ1: =GP1+1 -> 196 | GR1: =GQ1+1 -> 197 | GS1: =GR1+1 -> 198 | GT1: =GS1+1 -> 199 | GU1: =GT1+1 -> 200 | GV1: =GU1+1 -> 201 | GW1: =GV1+1 -> 202 | GX1: =GW1+1 -> 203 | GY1: =GX1+1 -> 204 | GZ1: =GY1+1 -> 205 | HA1: =GZ1+1 -> 206 | HB1: =HA1+1 -> 207 | HC1: =HB1+1 -> 208 | HD1: =HC1+1 -> 209 | HE1: =HD1+1 -> 210 | HF1: =HE1+1 -> 211 | HG1: =HF1+1 -> 212 | HH1: =HG1+1 -> 213 | HI1: =HH1+1 -> 214 | HJ1: =HI1+1 -> 215 | HK1: =HJ1+1 -> 216 | HL1: =HK1+1 -> 217 | HM1: =HL1+1 -> 218 | HN1: =HM1+1 -> 219 | HO1: =HN1+1 -> 220 | HP1: =HO1+1 -> 221 | HQ1: =HP1+1 -> 222 | HR1: =HQ1+1 -> 223 | HS1: =HR1+1 -> 224 | HT1: =HS1+1 -> 225 | HU1: =HT1+1 -> 226 | HV1: =HU1+1 -> 227 | HW1: =HV1+1 -> 228 | HX1: =HW1+1 -> 229 | HY1: =HX1+1 -> 230 | HZ1: =HY1+1 -> 231 | IA1: =HZ1+1 -> 232 | IB1: =IA1+1 -> 233 | IC1: =IB1+1 -> 234 | ID1: =IC1+1 -> 235 | IE1: =ID1+1 -> 236 | IF1: =IE1+1 -> 237 | IG1: =IF1+1 -> 238 | IH1: =IG1+1 -> 239 | II1: =IH1+1 -> 240 | IJ1: =II1+1 -> 241 | IK1: =IJ1+1 -> 242 | IL1: =IK1+1 -> 243 | IM1: =IL1+1 -> 244 | IN1: =IM1+1 -> 245 | IO1: =IN1+1 -> 246 | IP1: =IO1+1 -> 247 | IQ1: =IP1+1 -> 248 | IR1: =IQ1+1 -> 249 | IS1: =IR1+1 -> 250 | IT1: =IS1+1 -> 251 | IU1: =IT1+1 -> 252 | IV1: =IU1+1 -> 253 | IW1: =IV1+1 -> 254 | IX1: =IW1+1 -> 255 | IY1: =IX1+1 -> 256 | IZ1: =IY1+1 -> 257 | JA1: =IZ1+1 -> 258 | JB1: =JA1+1 -> 259 | JC1: =JB1+1 -> 260 | JD1: =JC1+1 -> 261 | JE1: =JD1+1 -> 262 | JF1: =JE1+1 -> 263 | JG1: =JF1+1 -> 264 | JH1: =JG1+1 -> 265 | JI1: =JH1+1 -> 266 | JJ1: =JI1+1 -> 267 | JK1: =JJ1+1 -> 268 | JL1: =JK1+1 -> 269 | JM1: =JL1+1 -> 270 | JN1: =JM1+1 -> 271 | JO1: =JN1+1 -> 272 | JP1: =JO1+1 -> 273 | JQ1: =JP1+1 -> 274 | JR1: =JQ1+1 -> 275 | JS1: =JR1+1 -> 276 | JT1: =JS1+1 -> 277 | JU1: =JT1+1 -> 278 | JV1: =JU1+1 -> 279 | JW1: =JV1+1 -> 280 | JX1: =JW1+1 -> 281 | JY1: =JX1+1 -> 282 | JZ1: =JY1+1 -> 283 | KA1: =JZ1+1 -> 284 | KB1: =KA1+1 -> 285 | KC1: =KB1+1 -> 286 | KD1: =KC1+1 -> 287 | KE1: =KD1+1 -> 288 | KF1: =KE1+1 -> 289 | KG1: =KF1+1 -> 290 | KH1: =KG1+1 -> 291 | KI1: =KH1+1 -> 292 | KJ1: =KI1+1 -> 293 | KK1: =KJ1+1 -> 294 | KL1: =KK1+1 -> 295 | KM1: =KL1+1 -> 296 | KN1: =KM1+1 -> 297 | KO1: =KN1+1 -> 298 | KP1: =KO1+1 -> 299 | KQ1: =KP1+1 -> 300 | KR1: =KQ1+1 -> 301 | KS1: =KR1+1 -> 302 | KT1: =KS1+1 -> 303 | KU1: =KT1+1 -> 304 | KV1: =KU1+1 -> 305 | KW1: =KV1+1 -> 306 | KX1: =KW1+1 -> 307 | KY1: =KX1+1 -> 308 | KZ1: =KY1+1 -> 309 | LA1: =KZ1+1 -> 310 | LB1: =LA1+1 -> 311 | LC1: =LB1+1 -> 312 | LD1: =LC1+1 -> 313 | LE1: =LD1+1 -> 314 | LF1: =LE1+1 -> 315 | LG1: =LF1+1 -> 316 | LH1: =LG1+1 -> 317 | LI1: =LH1+1 -> 318 | LJ1: =LI1+1 -> 319 | LK1: =LJ1+1 -> 320 | LL1: =LK1+1 -> 321 | LM1: =LL1+1 -> 322 | LN1: =LM1+1 -> 323 | LO1: =LN1+1 -> 324 | LP1: =LO1+1 -> 325 | LQ1: =LP1+1 -> 326 | LR1: =LQ1+1 -> 327 | LS1: =LR1+1 -> 328 | LT1: =LS1+1 -> 329 | LU1: =LT1+1 -> 330 | LV1: =LU1+1 -> 331 | LW1: =LV1+1 -> 332 | LX1: =LW1+1 -> 333 | LY1: =LX1+1 -> 334 | LZ1: =LY1+1 -> 335 | MA1: =LZ1+1 -> 336 | MB1: =MA1+1 -> 337 | MC1: =MB1+1 -> 338 | MD1: =MC1+1 -> 339 | ME1: =MD1+1 -> 340 | MF1: =ME1+1 -> 341 | MG1: =MF1+1 -> 342 | MH1: =MG1+1 -> 343 | MI1: =MH1+1 -> 344 | MJ1: =MI1+1 -> 345 | MK1: =MJ1+1 -> 346 | ML1: =MK1+1 -> 347 | MM1: =ML1+1 -> 348 | MN1: =MM1+1 -> 349 | MO1: =MN1+1 -> 350 | MP1: =MO1+1 -> 351 | MQ1: =MP1+1 -> 352 | MR1: =MQ1+1 -> 353 | MS1: =MR1+1 -> 354 | MT1: =MS1+1 -> 355 | MU1: =MT1+1 -> 356 | MV1: =MU1+1 -> 357 | MW1: =MV1+1 -> 358 | MX1: =MW1+1 -> 359 | MY1: =MX1+1 -> 360 | MZ1: =MY1+1 -> 361 | NA1: =MZ1+1 -> 362 | NB1: =NA1+1 -> 363 | NC1: =NB1+1 -> 364 | ND1: =NC1+1 -> 365 | NE1: =ND1+1 -> 366 | NF1: =NE1+1 -> 367 | NG1: =NF1+1 -> 368 | NH1: =NG1+1 -> 369 | NI1: =NH1+1 -> 370 | NJ1: =NI1+1 -> 371 | NK1: =NJ1+1 -> 372 | NL1: =NK1+1 -> 373 | NM1: =NL1+1 -> 374 | NN1: =NM1+1 -> 375 | NO1: =NN1+1 -> 376 | NP1: =NO1+1 -> 377 | NQ1: =NP1+1 -> 378 | NR1: =NQ1+1 -> 379 | NS1: =NR1+1 -> 380 | NT1: =NS1+1 -> 381 | NU1: =NT1+1 -> 382 | NV1: =NU1+1 -> 383 | NW1: =NV1+1 -> 384 | NX1: =NW1+1 -> 385 | NY1: =NX1+1 -> 386 | NZ1: =NY1+1 -> 387 | OA1: =NZ1+1 -> 388 | OB1: =OA1+1 -> 389 | OC1: =OB1+1 -> 390 | OD1: =OC1+1 -> 391 | OE1: =OD1+1 -> 392 | OF1: =OE1+1 -> 393 | OG1: =OF1+1 -> 394 | OH1: =OG1+1 -> 395 | OI1: =OH1+1 -> 396 | OJ1: =OI1+1 -> 397 | OK1: =OJ1+1 -> 398 | OL1: =OK1+1 -> 399 | OM1: =OL1+1 -> 400 | ON1: =OM1+1 -> 401 | OO1: =ON1+1 -> 402 | OP1: =OO1+1 -> 403 | OQ1: =OP1+1 -> 404 | OR1: =OQ1+1 -> 405 | OS1: =OR1+1 -> 406 | OT1: =OS1+1 -> 407 | OU1: =OT1+1 -> 408 | OV1: =OU1+1 -> 409 | OW1: =OV1+1 -> 410 | OX1: =OW1+1 -> 411 | OY1: =OX1+1 -> 412 | OZ1: =OY1+1 -> 413 | PA1: =OZ1+1 -> 414 | PB1: =PA1+1 -> 415 | PC1: =PB1+1 -> 416 | PD1: =PC1+1 -> 417 | PE1: =PD1+1 -> 418 | PF1: =PE1+1 -> 419 | PG1: =PF1+1 -> 420 | PH1: =PG1+1 -> 421 | PI1: =PH1+1 -> 422 | PJ1: =PI1+1 -> 423 | PK1: =PJ1+1 -> 424 | PL1: =PK1+1 -> 425 | PM1: =PL1+1 -> 426 | PN1: =PM1+1 -> 427 | PO1: =PN1+1 -> 428 | PP1: =PO1+1 -> 429 | PQ1: =PP1+1 -> 430 | PR1: =PQ1+1 -> 431 | PS1: =PR1+1 -> 432 | PT1: =PS1+1 -> 433 | PU1: =PT1+1 -> 434 | PV1: =PU1+1 -> 435 | PW1: =PV1+1 -> 436 | PX1: =PW1+1 -> 437 | PY1: =PX1+1 -> 438 | PZ1: =PY1+1 -> 439 | QA1: =PZ1+1 -> 440 | QB1: =QA1+1 -> 441 | QC1: =QB1+1 -> 442 | QD1: =QC1+1 -> 443 | QE1: =QD1+1 -> 444 | QF1: =QE1+1 -> 445 | QG1: =QF1+1 -> 446 | QH1: =QG1+1 -> 447 | QI1: =QH1+1 -> 448 | QJ1: =QI1+1 -> 449 | QK1: =QJ1+1 -> 450 | QL1: =QK1+1 -> 451 | QM1: =QL1+1 -> 452 | QN1: =QM1+1 -> 453 | QO1: =QN1+1 -> 454 | QP1: =QO1+1 -> 455 | QQ1: =QP1+1 -> 456 | QR1: =QQ1+1 -> 457 | QS1: =QR1+1 -> 458 | QT1: =QS1+1 -> 459 | QU1: =QT1+1 -> 460 | QV1: =QU1+1 -> 461 | QW1: =QV1+1 -> 462 | QX1: =QW1+1 -> 463 | QY1: =QX1+1 -> 464 | QZ1: =QY1+1 -> 465 | RA1: =QZ1+1 -> 466 | RB1: =RA1+1 -> 467 | RC1: =RB1+1 -> 468 | RD1: =RC1+1 -> 469 | RE1: =RD1+1 -> 470 | RF1: =RE1+1 -> 471 | RG1: =RF1+1 -> 472 | RH1: =RG1+1 -> 473 | RI1: =RH1+1 -> 474 | RJ1: =RI1+1 -> 475 | RK1: =RJ1+1 -> 476 | RL1: =RK1+1 -> 477 | RM1: =RL1+1 -> 478 | RN1: =RM1+1 -> 479 | RO1: =RN1+1 -> 480 | RP1: =RO1+1 -> 481 | RQ1: =RP1+1 -> 482 | RR1: =RQ1+1 -> 483 | RS1: =RR1+1 -> 484 | RT1: =RS1+1 -> 485 | RU1: =RT1+1 -> 486 | RV1: =RU1+1 -> 487 | RW1: =RV1+1 -> 488 | RX1: =RW1+1 -> 489 | RY1: =RX1+1 -> 490 | RZ1: 491 | SA1: =RZ1+1 -> 492 | SB1: =SA1+1 -> 493 | SC1: =SB1+1 -> 494 | SD1: =SC1+1 -> 495 | SE1: =SD1+1 -> 496 | SF1: =SE1+1 -> 497 | SG1: =SF1+1 -> 498 | SH1: =SG1+1 -> 499 | SI1: =SH1+1 -> 500 | SJ1: =SI1+1 -> 501 | SK1: =SJ1+1 -> 502 | SL1: =SK1+1 -> 503 | SM1: =SL1+1 -> 504 | SN1: =SM1+1 -> 505 | SO1: =SN1+1 -> 506 | SP1: =SO1+1 -> 507 | SQ1: =SP1+1 -> 508 | SR1: =SQ1+1 -> 509 | SS1: =SR1+1 -> 510 | ST1: =SS1+1 -> 511 | SU1: =ST1+1 -> 512 | SV1: =SU1+1 -> 513 | SW1: =SV1+1 -> 514 | SX1: 515 | SY1: =SX1+1 -> 516 | SZ1: =SY1+1 -> 517 | TA1: =SZ1+1 -> 518 | TB1: =TA1+1 -> 519 | TC1: =TB1+1 -> 520 | TD1: =TC1+1 -> 521 | TE1: =TD1+1 -> 522 | TF1: =TE1+1 -> 523 | TG1: =TF1+1 -> 524 | TH1: =TG1+1 -> 525 | TI1: =TH1+1 -> 526 | TJ1: =TI1+1 -> 527 | TK1: =TJ1+1 -> 528 | TL1: =TK1+1 -> 529 | TM1: =TL1+1 -> 530 | TN1: =TM1+1 -> 531 | TO1: =TN1+1 -> 532 | TP1: =TO1+1 -> 533 | TQ1: =TP1+1 -> 534 | TR1: =TQ1+1 -> 535 | TS1: =TR1+1 -> 536 | TT1: =TS1+1 -> 537 | TU1: =TT1+1 -> 538 | TV1: =TU1+1 -> 539 | TW1: =TV1+1 -> 540 | TX1: =TW1+1 -> 541 | TY1: =TX1+1 -> 542 | TZ1: =TY1+1 -> 543 | UA1: =TZ1+1 -> 544 | UB1: =UA1+1 -> 545 | UC1: =UB1+1 -> 546 | UD1: =UC1+1 -> 547 | UE1: =UD1+1 -> 548 | UF1: =UE1+1 -> 549 | UG1: =UF1+1 -> 550 | UH1: =UG1+1 -> 551 | UI1: =UH1+1 -> 552 | UJ1: =UI1+1 -> 553 | UK1: =UJ1+1 -> 554 | UL1: =UK1+1 -> 555 | UM1: =UL1+1 -> 556 | UN1: =UM1+1 -> 557 | UO1: =UN1+1 -> 558 | UP1: =UO1+1 -> 559 | UQ1: =UP1+1 -> 560 | UR1: =UQ1+1 -> 561 | US1: =UR1+1 -> 562 | UT1: =US1+1 -> 563 | UU1: =UT1+1 -> 564 | UV1: =UU1+1 -> 565 | UW1: =UV1+1 -> 566 | UX1: =UW1+1 -> 567 | UY1: =UX1+1 -> 568 | UZ1: =UY1+1 -> 569 | VA1: =UZ1+1 -> 570 | VB1: =VA1+1 -> 571 | VC1: =VB1+1 -> 572 | VD1: =VC1+1 -> 573 | VE1: =VD1+1 -> 574 | VF1: =VE1+1 -> 575 | VG1: =VF1+1 -> 576 | VH1: =VG1+1 -> 577 | VI1: =VH1+1 -> 578 | VJ1: =VI1+1 -> 579 | VK1: =VJ1+1 -> 580 | VL1: =VK1+1 -> 581 | VM1: =VL1+1 -> 582 | VN1: =VM1+1 -> 583 | VO1: =VN1+1 -> 584 | VP1: =VO1+1 -> 585 | VQ1: =VP1+1 -> 586 | VR1: =VQ1+1 -> 587 | VS1: =VR1+1 -> 588 | VT1: =VS1+1 -> 589 | VU1: =VT1+1 -> 590 | VV1: =VU1+1 -> 591 | VW1: =VV1+1 -> 592 | VX1: =VW1+1 -> 593 | VY1: =VX1+1 -> 594 | VZ1: =VY1+1 -> 595 | WA1: 596 | WB1: 597 | WC1: =WB1+1 -> 598 | WD1: =WC1+1 -> 599 | WE1: =WD1+1 -> 600 | WF1: =WE1+1 -> 601 | WG1: =WF1+1 -> 602 | WH1: =WG1+1 -> 603 | WI1: =WH1+1 -> 604 | WJ1: =WI1+1 -> 605 | WK1: =WJ1+1 -> 606 | WL1: =WK1+1 -> 607 | WM1: =WL1+1 -> 608 | WN1: =WM1+1 -> 609 | WO1: =WN1+1 -> 610 | WP1: =WO1+1 -> 611 | WQ1: =WP1+1 -> 612 | WR1: =WQ1+1 -> 613 | WS1: =WR1+1 -> 614 | WT1: =WS1+1 -> 615 | WU1: =WT1+1 -> 616 | WV1: =WU1+1 -> 617 | WW1: =WV1+1 -> 618 | WX1: =WW1+1 -> 619 | WY1: =WX1+1 -> 620 | WZ1: =WY1+1 -> 621 | XA1: =WZ1+1 -> 622 | XB1: =XA1+1 -> 623 | XC1: =XB1+1 -> 624 | XD1: =XC1+1 -> 625 | XE1: =XD1+1 -> 626 | XF1: =XE1+1 -> 627 | XG1: =XF1+1 -> 628 | XH1: =XG1+1 -> 629 | XI1: =XH1+1 -> 630 | XJ1: =XI1+1 -> 631 | XK1: =XJ1+1 -> 632 | XL1: =XK1+1 -> 633 | XM1: =XL1+1 -> 634 | XN1: =XM1+1 -> 635 | XO1: =XN1+1 -> 636 | XP1: =XO1+1 -> 637 | XQ1: =XP1+1 -> 638 | XR1: =XQ1+1 -> 639 | XS1: =XR1+1 -> 640 | XT1: =XS1+1 -> 641 | XU1: =XT1+1 -> 642 | XV1: =XU1+1 -> 643 | XW1: =XV1+1 -> 644 | XX1: =XW1+1 -> 645 | XY1: =XX1+1 -> 646 | XZ1: =XY1+1 -> 647 | YA1: =XZ1+1 -> 648 | YB1: =YA1+1 -> 649 | YC1: =YB1+1 -> 650 | YD1: =YC1+1 -> 651 | YE1: =YD1+1 -> 652 | YF1: =YE1+1 -> 653 | YG1: =YF1+1 -> 654 | YH1: =YG1+1 -> 655 | YI1: =YH1+1 -> 656 | YJ1: =YI1+1 -> 657 | YK1: =YJ1+1 -> 658 | YL1: =YK1+1 -> 659 | YM1: =YL1+1 -> 660 | YN1: =YM1+1 -> 661 | YO1: =YN1+1 -> 662 | YP1: =YO1+1 -> 663 | YQ1: =YP1+1 -> 664 | YR1: =YQ1+1 -> 665 | YS1: =YR1+1 -> 666 | YT1: =YS1+1 -> 667 | YU1: =YT1+1 -> 668 | YV1: =YU1+1 -> 669 | YW1: =YV1+1 -> 670 | YX1: =YW1+1 -> 671 | YY1: =YX1+1 -> 672 | YZ1: =YY1+1 -> 673 | ZA1: =YZ1+1 -> 674 | ZB1: =ZA1+1 -> 675 | ZC1: =ZB1+1 -> 676 | ZD1: =ZC1+1 -> 677 | ZE1: =ZD1+1 -> 678 | ZF1: =ZE1+1 -> 679 | ZG1: =ZF1+1 -> 680 | ZH1: =ZG1+1 -> 681 | ZI1: =ZH1+1 -> 682 | ZJ1: =ZI1+1 -> 683 | ZK1: =ZJ1+1 -> 684 | ZL1: =ZK1+1 -> 685 | ZM1: =ZL1+1 -> 686 | ZN1: =ZM1+1 -> 687 | ZO1: =ZN1+1 -> 688 | ZP1: =ZO1+1 -> 689 | ZQ1: =ZP1+1 -> 690 | ZR1: =ZQ1+1 -> 691 | ZS1: =ZR1+1 -> 692 | ZT1: =ZS1+1 -> 693 | ZU1: =ZT1+1 -> 694 | ZV1: =ZU1+1 -> 695 | ZW1: =ZV1+1 -> 696 | ZX1: =ZW1+1 -> 697 | ZY1: =ZX1+1 -> 698 | ZZ1: =ZY1+1 -> 699 | AAA1: =ZZ1+1 -> 700 | AAB1: =AAA1+1 -> 701 | AAC1: =AAB1+1 -> 702 | AAD1: =AAC1+1 -> 703 | AAE1: =AAD1+1 -> 704 | AAF1: =AAE1+1 -> 705 | AAG1: =AAF1+1 -> 706 | AAH1: =AAG1+1 -> 707 | AAI1: =AAH1+1 -> 708 | AAJ1: =AAI1+1 -> 709 | AAK1: =AAJ1+1 -> 710 | AAL1: =AAK1+1 -> 711 | AAM1: =AAL1+1 -> 712 | AAN1: =AAM1+1 -> 713 | AAO1: =AAN1+1 -> 714 | AAP1: =AAO1+1 -> 715 | AAQ1: =AAP1+1 -> 716 | AAR1: =AAQ1+1 -> 717 | AAS1: =AAR1+1 -> 718 | AAT1: =AAS1+1 -> 719 | AAU1: =AAT1+1 -> 720 | AAV1: =AAU1+1 -> 721 | AAW1: =AAV1+1 -> 722 | AAX1: =AAW1+1 -> 723 | AAY1: =AAX1+1 -> 724 | AAZ1: =AAY1+1 -> 725 | ABA1: =AAZ1+1 -> 726 | ABB1: =ABA1+1 -> 727 | ABC1: =ABB1+1 -> 728 | ABD1: =ABC1+1 -> 729 | ABE1: =ABD1+1 -> 730 | ABF1: =ABE1+1 -> 731 | ABG1: =ABF1+1 -> 732 | ABH1: =ABG1+1 -> 733 | ABI1: =ABH1+1 -> 734 | ABJ1: =ABI1+1 -> 735 | ABK1: =ABJ1+1 -> 736 | ABL1: =ABK1+1 -> 737 | ABM1: =ABL1+1 -> 738 | ABN1: =ABM1+1 -> 739 | ABO1: =ABN1+1 -> 740 | ABP1: =ABO1+1 -> 741 | ABQ1: =ABP1+1 -> 742 | ABR1: =ABQ1+1 -> 743 | ABS1: =ABR1+1 -> 744 | ABT1: =ABS1+1 -> 745 | ABU1: =ABT1+1 -> 746 | ABV1: =ABU1+1 -> 747 | ABW1: =ABV1+1 -> 748 | ABX1: =ABW1+1 -> 749 | ABY1: =ABX1+1 -> 750 | ABZ1: =ABY1+1 -> 751 | ACA1: =ABZ1+1 -> 752 | ACB1: =ACA1+1 -> 753 | ACC1: =ACB1+1 -> 754 | ACD1: =ACC1+1 -> 755 | ACE1: =ACD1+1 -> 756 | ACF1: =ACE1+1 -> 757 | ACG1: =ACF1+1 -> 758 | ACH1: =ACG1+1 -> 759 | ACI1: =ACH1+1 -> 760 | ACJ1: =ACI1+1 -> 761 | ACK1: =ACJ1+1 -> 762 | ACL1: =ACK1+1 -> 763 | ACM1: =ACL1+1 -> 764 | ACN1: =ACM1+1 -> 765 | ACO1: =ACN1+1 -> 766 | ACP1: =ACO1+1 -> 767 | ACQ1: =ACP1+1 -> 768 | ACR1: =ACQ1+1 -> 769 | ACS1: =ACR1+1 -> 770 | ACT1: =ACS1+1 -> 771 | ACU1: =ACT1+1 -> 772 | ACV1: =ACU1+1 -> 773 | ACW1: =ACV1+1 -> 774 | ACX1: =ACW1+1 -> 775 | ACY1: =ACX1+1 -> 776 | ACZ1: =ACY1+1 -> 777 | ADA1: =ACZ1+1 -> 778 | ADB1: =ADA1+1 -> 779 | ADC1: =ADB1+1 -> 780 | ADD1: =ADC1+1 -> 781 | ADE1: =ADD1+1 -> 782 | ADF1: =ADE1+1 -> 783 | ADG1: =ADF1+1 -> 784 | ADH1: =ADG1+1 -> 785 | ADI1: =ADH1+1 -> 786 | ADJ1: =ADI1+1 -> 787 | ADK1: =ADJ1+1 -> 788 | ADL1: =ADK1+1 -> 789 | ADM1: =ADL1+1 -> 790 | ADN1: =ADM1+1 -> 791 | ADO1: =ADN1+1 -> 792 | ADP1: =ADO1+1 -> 793 | ADQ1: =ADP1+1 -> 794 | ADR1: =ADQ1+1 -> 795 | ADS1: =ADR1+1 -> 796 | ADT1: =ADS1+1 -> 797 | ADU1: =ADT1+1 -> 798 | ADV1: =ADU1+1 -> 799 | ADW1: =ADV1+1 -> 800 | ADX1: =ADW1+1 -> 801 | ADY1: =ADX1+1 -> 802 | ADZ1: =ADY1+1 -> 803 | AEA1: =ADZ1+1 -> 804 | AEB1: =AEA1+1 -> 805 | AEC1: =AEB1+1 -> 806 | AED1: =AEC1+1 -> 807 | AEE1: =AED1+1 -> 808 | AEF1: =AEE1+1 -> 809 | AEG1: =AEF1+1 -> 810 | AEH1: =AEG1+1 -> 811 | AEI1: =AEH1+1 -> 812 | AEJ1: =AEI1+1 -> 813 | AEK1: =AEJ1+1 -> 814 | AEL1: =AEK1+1 -> 815 | AEM1: =AEL1+1 -> 816 | AEN1: =AEM1+1 -> 817 | AEO1: =AEN1+1 -> 818 | AEP1: =AEO1+1 -> 819 | AEQ1: =AEP1+1 -> 820 | AER1: =AEQ1+1 -> 821 | AES1: =AER1+1 -> 822 | AET1: =AES1+1 -> 823 | AEU1: =AET1+1 -> 824 | AEV1: =AEU1+1 -> 825 | AEW1: =AEV1+1 -> 826 | AEX1: =AEW1+1 -> 827 | AEY1: =AEX1+1 -> 828 | AEZ1: =AEY1+1 -> 829 | AFA1: =AEZ1+1 -> 830 | AFB1: =AFA1+1 -> 831 | AFC1: =AFB1+1 -> 832 | AFD1: =AFC1+1 -> 833 | AFE1: =AFD1+1 -> 834 | AFF1: =AFE1+1 -> 835 | AFG1: =AFF1+1 -> 836 | AFH1: =AFG1+1 -> 837 | AFI1: =AFH1+1 -> 838 | AFJ1: =AFI1+1 -> 839 | AFK1: =AFJ1+1 -> 840 | AFL1: =AFK1+1 -> 841 | AFM1: =AFL1+1 -> 842 | AFN1: =AFM1+1 -> 843 | AFO1: =AFN1+1 -> 844 | AFP1: =AFO1+1 -> 845 | AFQ1: =AFP1+1 -> 846 | AFR1: =AFQ1+1 -> 847 | AFS1: =AFR1+1 -> 848 | AFT1: =AFS1+1 -> 849 | AFU1: =AFT1+1 -> 850 | AFV1: =AFU1+1 -> 851 | AFW1: =AFV1+1 -> 852 | AFX1: =AFW1+1 -> 853 | AFY1: =AFX1+1 -> 854 | AFZ1: =AFY1+1 -> 855 | AGA1: =AFZ1+1 -> 856 | AGB1: =AGA1+1 -> 857 | AGC1: =AGB1+1 -> 858 | AGD1: =AGC1+1 -> 859 | AGE1: =AGD1+1 -> 860 | AGF1: =AGE1+1 -> 861 | AGG1: =AGF1+1 -> 862 | AGH1: =AGG1+1 -> 863 | AGI1: =AGH1+1 -> 864 | AGJ1: =AGI1+1 -> 865 | AGK1: =AGJ1+1 -> 866 | AGL1: =AGK1+1 -> 867 | AGM1: =AGL1+1 -> 868 | AGN1: =AGM1+1 -> 869 | AGO1: =AGN1+1 -> 870 | AGP1: =AGO1+1 -> 871 | AGQ1: =AGP1+1 -> 872 | AGR1: =AGQ1+1 -> 873 | AGS1: =AGR1+1 -> 874 | AGT1: =AGS1+1 -> 875 | AGU1: =AGT1+1 -> 876 | AGV1: =AGU1+1 -> 877 | AGW1: =AGV1+1 -> 878 | AGX1: =AGW1+1 -> 879 | AGY1: =AGX1+1 -> 880 | AGZ1: =AGY1+1 -> 881 | AHA1: =AGZ1+1 -> 882 | AHB1: =AHA1+1 -> 883 | AHC1: =AHB1+1 -> 884 | AHD1: =AHC1+1 -> 885 | AHE1: =AHD1+1 -> 886 | AHF1: =AHE1+1 -> 887 | AHG1: =AHF1+1 -> 888 | AHH1: =AHG1+1 -> 889 | AHI1: =AHH1+1 -> 890 | AHJ1: =AHI1+1 -> 891 | AHK1: =AHJ1+1 -> 892 | AHL1: =AHK1+1 -> 893 | AHM1: =AHL1+1 -> 894 | AHN1: =AHM1+1 -> 895 | AHO1: =AHN1+1 -> 896 | AHP1: =AHO1+1 -> 897 | AHQ1: =AHP1+1 -> 898 | AHR1: =AHQ1+1 -> 899 | AHS1: =AHR1+1 -> 900 | AHT1: =AHS1+1 -> 901 | AHU1: =AHT1+1 -> 902 | AHV1: =AHU1+1 -> 903 | AHW1: =AHV1+1 -> 904 | AHX1: =AHW1+1 -> 905 | AHY1: =AHX1+1 -> 906 | AHZ1: =AHY1+1 -> 907 | AIA1: =AHZ1+1 -> 908 | AIB1: =AIA1+1 -> 909 | AIC1: =AIB1+1 -> 910 | AID1: =AIC1+1 -> 911 | AIE1: =AID1+1 -> 912 | AIF1: =AIE1+1 -> 913 | AIG1: =AIF1+1 -> 914 | AIH1: =AIG1+1 -> 915 | AII1: =AIH1+1 -> 916 | AIJ1: =AII1+1 -> 917 | AIK1: =AIJ1+1 -> 918 | AIL1: =AIK1+1 -> 919 | AIM1: =AIL1+1 -> 920 | AIN1: =AIM1+1 -> 921 | AIO1: =AIN1+1 -> 922 | AIP1: =AIO1+1 -> 923 | AIQ1: =AIP1+1 -> 924 | AIR1: =AIQ1+1 -> 925 | AIS1: =AIR1+1 -> 926 | AIT1: =AIS1+1 -> 927 | AIU1: =AIT1+1 -> 928 | AIV1: =AIU1+1 -> 929 | AIW1: =AIV1+1 -> 930 | AIX1: =AIW1+1 -> 931 | AIY1: =AIX1+1 -> 932 | AIZ1: =AIY1+1 -> 933 | AJA1: =AIZ1+1 -> 934 | AJB1: =AJA1+1 -> 935 | AJC1: =AJB1+1 -> 936 | AJD1: =AJC1+1 -> 937 | AJE1: =AJD1+1 -> 938 | AJF1: =AJE1+1 -> 939 | AJG1: =AJF1+1 -> 940 | AJH1: =AJG1+1 -> 941 | AJI1: =AJH1+1 -> 942 | AJJ1: =AJI1+1 -> 943 | AJK1: =AJJ1+1 -> 944 | AJL1: =AJK1+1 -> 945 | AJM1: =AJL1+1 -> 946 | AJN1: =AJM1+1 -> 947 | AJO1: =AJN1+1 -> 948 | AJP1: =AJO1+1 -> 949 | AJQ1: =AJP1+1 -> 950 | AJR1: =AJQ1+1 -> 951 | AJS1: =AJR1+1 -> 952 | AJT1: =AJS1+1 -> 953 | AJU1: =AJT1+1 -> 954 | AJV1: =AJU1+1 -> 955 | AJW1: =AJV1+1 -> 956 | AJX1: =AJW1+1 -> 957 | AJY1: =AJX1+1 -> 958 | AJZ1: =AJY1+1 -> 959 | AKA1: =AJZ1+1 -> 960 | AKB1: =AKA1+1 -> 961 | AKC1: =AKB1+1 -> 962 | AKD1: =AKC1+1 -> 963 | AKE1: =AKD1+1 -> 964 | AKF1: =AKE1+1 -> 965 | AKG1: =AKF1+1 -> 966 | AKH1: =AKG1+1 -> 967 | AKI1: =AKH1+1 -> 968 | AKJ1: =AKI1+1 -> 969 | AKK1: =AKJ1+1 -> 970 | AKL1: =AKK1+1 -> 971 | AKM1: =AKL1+1 -> 972 | AKN1: =AKM1+1 -> 973 | AKO1: =AKN1+1 -> 974 | AKP1: =AKO1+1 -> 975 | AKQ1: =AKP1+1 -> 976 | AKR1: =AKQ1+1 -> 977 | AKS1: =AKR1+1 -> 978 | AKT1: =AKS1+1 -> 979 | AKU1: =AKT1+1 -> 980 | AKV1: =AKU1+1 -> 981 | AKW1: =AKV1+1 -> 982 | AKX1: =AKW1+1 -> 983 | AKY1: =AKX1+1 -> 984 | AKZ1: =AKY1+1 -> 985 | ALA1: =AKZ1+1 -> 986 | ALB1: =ALA1+1 -> 987 | ALC1: =ALB1+1 -> 988 | ALD1: =ALC1+1 -> 989 | ALE1: =ALD1+1 -> 990 | ALF1: =ALE1+1 -> 991 | ALG1: =ALF1+1 -> 992 | ALH1: =ALG1+1 -> 993 | ALI1: =ALH1+1 -> 994 | ALJ1: =ALI1+1 -> 995 | ALK1: =ALJ1+1 -> 996 | ALL1: =ALK1+1 -> 997 | ALM1: =ALL1+1 -> 998 | ALN1: =ALM1+1 -> 999 | ALO1: =ALN1+1 -> 1000 | ALP1: =ALO1+1 -> 1001 | ALQ1: =ALP1+1 -> 1002 | ALR1: =ALQ1+1 -> 1003 | ALS1: =ALR1+1 -> 1004 | ALT1: =ALS1+1 -> 1005 | ALU1: =ALT1+1 -> 1006 | ALV1: =ALU1+1 -> 1007 | ALW1: =ALV1+1 -> 1008 | ALX1: =ALW1+1 -> 1009 | ALY1: =ALX1+1 -> 1010 | ALZ1: =ALY1+1 -> 1011 | AMA1: =ALZ1+1 -> 1012 | AMB1: =AMA1+1 -> 1013 | AMC1: =AMB1+1 -> 1014 | AMD1: =AMC1+1 -> 1015 | AME1: =AMD1+1 -> 1016 | AMF1: =AME1+1 -> 1017 | AMG1: =AMF1+1 -> 1018 | AMH1: =AMG1+1 -> 1019 | AMI1: =AMH1+1 -> 1020 | AMJ1: =AMI1+1 -> 1021 | AMK1: =AMJ1+1 -> 1022 | AML1: =AMK1+1 -> 1023 | AMM1: =AML1+1 -> 1024 | AMN1: =AMM1+1 -> 1025 | AMO1: =AMN1+1 -> 1026 | AMP1: =AMO1+1 -> 1027 | AMQ1: =AMP1+1 -> 1028 | AMR1: =AMQ1+1 -> 1029 | AMS1: =AMR1+1 -> 1030 | AMT1: =AMS1+1 -> 1031 | AMU1: =AMT1+1 -> 1032 | AMV1: =AMU1+1 -> 1033 | AMW1: =AMV1+1 -> 1034 | AMX1: =AMW1+1 -> 1035 | AMY1: =AMX1+1 -> 1036 | AMZ1: =AMY1+1 -> 1037 | ANA1: =AMZ1+1 -> 1038 | ANB1: =ANA1+1 -> 1039 | ANC1: =ANB1+1 -> 1040 | AND1: =ANC1+1 -> 1041 | ANE1: =AND1+1 -> 1042 | ANF1: =ANE1+1 -> 1043 | ANG1: =ANF1+1 -> 1044 | ANH1: =ANG1+1 -> 1045 | ANI1: =ANH1+1 -> 1046 | ANJ1: =ANI1+1 -> 1047 | ANK1: =ANJ1+1 -> 1048 | ANL1: =ANK1+1 -> 1049 | ANM1: =ANL1+1 -> 1050 | ANN1: =ANM1+1 -> 1051 | ANO1: =ANN1+1 -> 1052 | ANP1: =ANO1+1 -> 1053 | ANQ1: =ANP1+1 -> 1054 | ANR1: =ANQ1+1 -> 1055 | ANS1: =ANR1+1 -> 1056 | ANT1: =ANS1+1 -> 1057 | ANU1: =ANT1+1 -> 1058 | ANV1: =ANU1+1 -> 1059 | ANW1: =ANV1+1 -> 1060 | ANX1: =ANW1+1 -> 1061 | ANY1: =ANX1+1 -> 1062 | ANZ1: =ANY1+1 -> 1063 | AOA1: =ANZ1+1 -> 1064 | AOB1: =AOA1+1 -> 1065 | AOC1: =AOB1+1 -> 1066 | AOD1: =AOC1+1 -> 1067 | AOE1: =AOD1+1 -> 1068 | AOF1: =AOE1+1 -> 1069 | AOG1: =AOF1+1 -> 1070 | AOH1: =AOG1+1 -> 1071 | AOI1: =AOH1+1 -> 1072 | AOJ1: =AOI1+1 -> 1073 | AOK1: =AOJ1+1 -> 1074 | AOL1: =AOK1+1 -> 1075 | AOM1: =AOL1+1 -> 1076 | AON1: =AOM1+1 -> 1077 | AOO1: =AON1+1 -> 1078 | AOP1: =AOO1+1 -> 1079 | AOQ1: =AOP1+1 -> 1080 | AOR1: =AOQ1+1 -> 1081 | AOS1: =AOR1+1 -> 1082 | AOT1: =AOS1+1 -> 1083 | AOU1: =AOT1+1 -> 1084 | AOV1: =AOU1+1 -> 1085 | AOW1: =AOV1+1 -> 1086 | AOX1: =AOW1+1 -> 1087 | AOY1: =AOX1+1 -> 1088 | AOZ1: =AOY1+1 -> 1089 | APA1: =AOZ1+1 -> 1090 | APB1: =APA1+1 -> 1091 | APC1: =APB1+1 -> 1092 | APD1: =APC1+1 -> 1093 | APE1: =APD1+1 -> 1094 | APF1: =APE1+1 -> 1095 | APG1: =APF1+1 -> 1096 | APH1: =APG1+1 -> 1097 | API1: =APH1+1 -> 1098 | APJ1: =API1+1 -> 1099 | APK1: =APJ1+1 -> 1100 | APL1: =APK1+1 -> 1101 | APM1: =APL1+1 -> 1102 | APN1: =APM1+1 -> 1103 | APO1: =APN1+1 -> 1104 | APP1: =APO1+1 -> 1105 | APQ1: =APP1+1 -> 1106 | APR1: =APQ1+1 -> 1107 | APS1: =APR1+1 -> 1108 | APT1: =APS1+1 -> 1109 | APU1: =APT1+1 -> 1110 | APV1: =APU1+1 -> 1111 | APW1: =APV1+1 -> 1112 | APX1: =APW1+1 -> 1113 | APY1: =APX1+1 -> 1114 | APZ1: =APY1+1 -> 1115 | AQA1: =APZ1+1 -> 1116 | AQB1: =AQA1+1 -> 1117 | AQC1: =AQB1+1 -> 1118 | AQD1: =AQC1+1 -> 1119 | AQE1: =AQD1+1 -> 1120 | AQF1: =AQE1+1 -> 1121 | AQG1: =AQF1+1 -> 1122 | AQH1: =AQG1+1 -> 1123 | AQI1: =AQH1+1 -> 1124 | AQJ1: =AQI1+1 -> 1125 | AQK1: =AQJ1+1 -> 1126 | AQL1: =AQK1+1 -> 1127 | AQM1: =AQL1+1 -> 1128 | AQN1: =AQM1+1 -> 1129 | AQO1: =AQN1+1 -> 1130 | AQP1: =AQO1+1 -> 1131 | AQQ1: =AQP1+1 -> 1132 | AQR1: =AQQ1+1 -> 1133 | AQS1: =AQR1+1 -> 1134 | AQT1: =AQS1+1 -> 1135 | AQU1: =AQT1+1 -> 1136 | AQV1: =AQU1+1 -> 1137 | AQW1: =AQV1+1 -> 1138 | AQX1: =AQW1+1 -> 1139 | AQY1: =AQX1+1 -> 1140 | AQZ1: =AQY1+1 -> 1141 | ARA1: =AQZ1+1 -> 1142 | ARB1: =ARA1+1 -> 1143 | ARC1: =ARB1+1 -> 1144 | ARD1: =ARC1+1 -> 1145 | ARE1: =ARD1+1 -> 1146 | ARF1: =ARE1+1 -> 1147 | ARG1: =ARF1+1 -> 1148 | ARH1: =ARG1+1 -> 1149 | ARI1: =ARH1+1 -> 1150 | ARJ1: =ARI1+1 -> 1151 | ARK1: =ARJ1+1 -> 1152 | ARL1: =ARK1+1 -> 1153 | ARM1: =ARL1+1 -> 1154 | ARN1: =ARM1+1 -> 1155 | ARO1: =ARN1+1 -> 1156 | ARP1: =ARO1+1 -> 1157 | ARQ1: =ARP1+1 -> 1158 | ARR1: =ARQ1+1 -> 1159 | ARS1: =ARR1+1 -> 1160 | ART1: =ARS1+1 -> 1161 | ARU1: =ART1+1 -> 1162 | ARV1: =ARU1+1 -> 1163 | ARW1: =ARV1+1 -> 1164 | ARX1: =ARW1+1 -> 1165 | ARY1: =ARX1+1 -> 1166 | ARZ1: =ARY1+1 -> 1167 | ASA1: =ARZ1+1 -> 1168 | ASB1: =ASA1+1 -> 1169 | ASC1: =ASB1+1 -> 1170 | ASD1: =ASC1+1 -> 1171 | ASE1: =ASD1+1 -> 1172 | ASF1: =ASE1+1 -> 1173 | ASG1: =ASF1+1 -> 1174 | ASH1: =ASG1+1 -> 1175 | ASI1: =ASH1+1 -> 1176 | ASJ1: =ASI1+1 -> 1177 | ASK1: =ASJ1+1 -> 1178 | ASL1: =ASK1+1 -> 1179 | ASM1: =ASL1+1 -> 1180 | ASN1: =ASM1+1 -> 1181 | ASO1: =ASN1+1 -> 1182 | ASP1: =ASO1+1 -> 1183 | ASQ1: =ASP1+1 -> 1184 | ASR1: =ASQ1+1 -> 1185 | ASS1: =ASR1+1 -> 1186 | AST1: =ASS1+1 -> 1187 | ASU1: =AST1+1 -> 1188 | ASV1: =ASU1+1 -> 1189 | ASW1: =ASV1+1 -> 1190 | ASX1: =ASW1+1 -> 1191 | ASY1: =ASX1+1 -> 1192 | ASZ1: =ASY1+1 -> 1193 | ATA1: =ASZ1+1 -> 1194 | ATB1: =ATA1+1 -> 1195 | ATC1: =ATB1+1 -> 1196 | ATD1: =ATC1+1 -> 1197 | ATE1: =ATD1+1 -> 1198 | ATF1: =ATE1+1 -> 1199 | ATG1: =ATF1+1 -> 1200 | ATH1: =ATG1+1 -> 1201 | ATI1: =ATH1+1 -> 1202 | ATJ1: =ATI1+1 -> 1203 | ATK1: =ATJ1+1 -> 1204 | ATL1: =ATK1+1 -> 1205 | ATM1: =ATL1+1 -> 1206 | ATN1: =ATM1+1 -> 1207 | ATO1: =ATN1+1 -> 1208 | ATP1: =ATO1+1 -> 1209 | ATQ1: =ATP1+1 -> 1210 | ATR1: =ATQ1+1 -> 1211 | ATS1: =ATR1+1 -> 1212 | ATT1: =ATS1+1 -> 1213 | ATU1: =ATT1+1 -> 1214 | ATV1: =ATU1+1 -> 1215 | ATW1: =ATV1+1 -> 1216 | ATX1: =ATW1+1 -> 1217 | ATY1: =ATX1+1 -> 1218 | ATZ1: =ATY1+1 -> 1219 | AUA1: =ATZ1+1 -> 1220 | AUB1: =AUA1+1 -> 1221 | AUC1: =AUB1+1 -> 1222 | AUD1: =AUC1+1 -> 1223 | AUE1: =AUD1+1 -> 1224 | AUF1: =AUE1+1 -> 1225 | AUG1: =AUF1+1 -> 1226 | AUH1: =AUG1+1 -> 1227 | AUI1: =AUH1+1 -> 1228 | AUJ1: =AUI1+1 -> 1229 | AUK1: =AUJ1+1 -> 1230 | AUL1: =AUK1+1 -> 1231 | AUM1: =AUL1+1 -> 1232 | AUN1: =AUM1+1 -> 1233 | AUO1: =AUN1+1 -> 1234 | AUP1: =AUO1+1 -> 1235 | AUQ1: =AUP1+1 -> 1236 | AUR1: =AUQ1+1 -> 1237 | AUS1: =AUR1+1 -> 1238 | AUT1: =AUS1+1 -> 1239 | AUU1: =AUT1+1 -> 1240 | AUV1: =AUU1+1 -> 1241 | AUW1: =AUV1+1 -> 1242 | AUX1: =AUW1+1 -> 1243 | AUY1: =AUX1+1 -> 1244 | AUZ1: =AUY1+1 -> 1245 | AVA1: =AUZ1+1 -> 1246 | AVB1: =AVA1+1 -> 1247 | AVC1: =AVB1+1 -> 1248 | AVD1: =AVC1+1 -> 1249 | AVE1: =AVD1+1 -> 1250 | AVF1: =AVE1+1 -> 1251 | AVG1: =AVF1+1 -> 1252 | AVH1: =AVG1+1 -> 1253 | AVI1: =AVH1+1 -> 1254 | AVJ1: =AVI1+1 -> 1255 | AVK1: =AVJ1+1 -> 1256 | AVL1: =AVK1+1 -> 1257 | AVM1: =AVL1+1 -> 1258 | AVN1: =AVM1+1 -> 1259 | AVO1: =AVN1+1 -> 1260 | AVP1: =AVO1+1 -> 1261 | AVQ1: =AVP1+1 -> 1262 | AVR1: =AVQ1+1 -> 1263 | AVS1: =AVR1+1 -> 1264 | AVT1: =AVS1+1 -> 1265 | AVU1: =AVT1+1 -> 1266 | AVV1: =AVU1+1 -> 1267 | AVW1: =AVV1+1 -> 1268 | AVX1: =AVW1+1 -> 1269 | AVY1: =AVX1+1 -> 1270 | AVZ1: =AVY1+1 -> 1271 | AWA1: =AVZ1+1 -> 1272 | AWB1: =AWA1+1 -> 1273 | AWC1: =AWB1+1 -> 1274 | AWD1: =AWC1+1 -> 1275 | AWE1: =AWD1+1 -> 1276 | AWF1: =AWE1+1 -> 1277 | AWG1: =AWF1+1 -> 1278 | AWH1: =AWG1+1 -> 1279 | AWI1: =AWH1+1 -> 1280 | AWJ1: =AWI1+1 -> 1281 | AWK1: =AWJ1+1 -> 1282 | AWL1: =AWK1+1 -> 1283 | AWM1: =AWL1+1 -> 1284 | AWN1: =AWM1+1 -> 1285 | AWO1: =AWN1+1 -> 1286 | AWP1: =AWO1+1 -> 1287 | AWQ1: =AWP1+1 -> 1288 | AWR1: =AWQ1+1 -> 1289 | AWS1: =AWR1+1 -> 1290 | AWT1: =AWS1+1 -> 1291 | AWU1: =AWT1+1 -> 1292 | AWV1: =AWU1+1 -> 1293 | AWW1: =AWV1+1 -> 1294 | AWX1: =AWW1+1 -> 1295 | AWY1: =AWX1+1 -> 1296 | AWZ1: =AWY1+1 -> 1297 | AXA1: =AWZ1+1 -> 1298 | AXB1: =AXA1+1 -> 1299 | AXC1: =AXB1+1 -> 1300 | AXD1: =AXC1+1 -> 1301 | AXE1: =AXD1+1 -> 1302 | AXF1: =AXE1+1 -> 1303 | AXG1: =AXF1+1 -> 1304 | AXH1: =AXG1+1 -> 1305 | AXI1: =AXH1+1 -> 1306 | AXJ1: =AXI1+1 -> 1307 | AXK1: =AXJ1+1 -> 1308 | AXL1: =AXK1+1 -> 1309 | AXM1: =AXL1+1 -> 1310 | AXN1: =AXM1+1 -> 1311 | AXO1: =AXN1+1 -> 1312 | AXP1: =AXO1+1 -> 1313 | AXQ1: =AXP1+1 -> 1314 | AXR1: =AXQ1+1 -> 1315 | AXS1: =AXR1+1 -> 1316 | AXT1: =AXS1+1 -> 1317 | AXU1: =AXT1+1 -> 1318 | AXV1: =AXU1+1 -> 1319 | AXW1: =AXV1+1 -> 1320 | AXX1: =AXW1+1 -> 1321 | AXY1: =AXX1+1 -> 1322 | AXZ1: =AXY1+1 -> 1323 | AYA1: =AXZ1+1 -> 1324 | AYB1: =AYA1+1 -> 1325 | AYC1: =AYB1+1 -> 1326 | AYD1: =AYC1+1 -> 1327 | AYE1: =AYD1+1 -> 1328 | AYF1: =AYE1+1 -> 1329 | AYG1: =AYF1+1 -> 1330 | AYH1: =AYG1+1 -> 1331 | AYI1: =AYH1+1 -> 1332 | AYJ1: =AYI1+1 -> 1333 | AYK1: =AYJ1+1 -> 1334 | AYL1: =AYK1+1 -> 1335 | AYM1: =AYL1+1 -> 1336 | AYN1: =AYM1+1 -> 1337 | AYO1: =AYN1+1 -> 1338 | AYP1: =AYO1+1 -> 1339 | AYQ1: =AYP1+1 -> 1340 | AYR1: =AYQ1+1 -> 1341 | AYS1: =AYR1+1 -> 1342 | AYT1: =AYS1+1 -> 1343 | AYU1: =AYT1+1 -> 1344 | AYV1: =AYU1+1 -> 1345 | AYW1: =AYV1+1 -> 1346 | AYX1: =AYW1+1 -> 1347 | AYY1: =AYX1+1 -> 1348 | AYZ1: =AYY1+1 -> 1349 | AZA1: =AYZ1+1 -> 1350 | AZB1: =AZA1+1 -> 1351 | AZC1: =AZB1+1 -> 1352 | AZD1: =AZC1+1 -> 1353 | AZE1: =AZD1+1 -> 1354 | AZF1: =AZE1+1 -> 1355 | AZG1: =AZF1+1 -> 1356 | AZH1: =AZG1+1 -> 1357 | AZI1: =AZH1+1 -> 1358 | AZJ1: =AZI1+1 -> 1359 | AZK1: =AZJ1+1 -> 1360 | AZL1: =AZK1+1 -> 1361 | AZM1: =AZL1+1 -> 1362 | AZN1: =AZM1+1 -> 1363 | AZO1: =AZN1+1 -> 1364 | AZP1: =AZO1+1 -> 1365 | AZQ1: =AZP1+1 -> 1366 | AZR1: =AZQ1+1 -> 1367 | AZS1: =AZR1+1 -> 1368 | AZT1: =AZS1+1 -> 1369 | AZU1: =AZT1+1 -> 1370 | AZV1: =AZU1+1 -> 1371 | AZW1: =AZV1+1 -> 1372 | AZX1: =AZW1+1 -> 1373 | AZY1: =AZX1+1 -> 1374 | AZZ1: =AZY1+1 -> 1375 | BAA1: =AZZ1+1 -> 1376 | BAB1: =BAA1+1 -> 1377 | BAC1: =BAB1+1 -> 1378 | BAD1: =BAC1+1 -> 1379 | BAE1: =BAD1+1 -> 1380 | BAF1: =BAE1+1 -> 1381 | BAG1: =BAF1+1 -> 1382 | BAH1: =BAG1+1 -> 1383 | BAI1: =BAH1+1 -> 1384 | BAJ1: =BAI1+1 -> 1385 | BAK1: =BAJ1+1 -> 1386 | BAL1: =BAK1+1 -> 1387 | BAM1: =BAL1+1 -> 1388 | BAN1: =BAM1+1 -> 1389 | BAO1: =BAN1+1 -> 1390 | BAP1: =BAO1+1 -> 1391 | BAQ1: =BAP1+1 -> 1392 | BAR1: =BAQ1+1 -> 1393 | BAS1: =BAR1+1 -> 1394 | BAT1: =BAS1+1 -> 1395 | BAU1: =BAT1+1 -> 1396 | BAV1: =BAU1+1 -> 1397 | BAW1: =BAV1+1 -> 1398 | BAX1: =BAW1+1 -> 1399 | BAY1: =BAX1+1 -> 1400 | BAZ1: =BAY1+1 -> 1401 | BBA1: =BAZ1+1 -> 1402 | BBB1: =BBA1+1 -> 1403 | BBC1: =BBB1+1 -> 1404 | BBD1: =BBC1+1 -> 1405 | BBE1: =BBD1+1 -> 1406 | BBF1: =BBE1+1 -> 1407 | BBG1: =BBF1+1 -> 1408 | BBH1: =BBG1+1 -> 1409 | BBI1: =BBH1+1 -> 1410 | BBJ1: =BBI1+1 -> 1411 | BBK1: =BBJ1+1 -> 1412 | BBL1: =BBK1+1 -> 1413 | BBM1: =BBL1+1 -> 1414 | BBN1: =BBM1+1 -> 1415 | BBO1: =BBN1+1 -> 1416 | BBP1: =BBO1+1 -> 1417 | BBQ1: =BBP1+1 -> 1418 | BBR1: =BBQ1+1 -> 1419 | BBS1: =BBR1+1 -> 1420 | BBT1: =BBS1+1 -> 1421 | BBU1: =BBT1+1 -> 1422 | BBV1: =BBU1+1 -> 1423 | BBW1: =BBV1+1 -> 1424 | BBX1: =BBW1+1 -> 1425 | BBY1: =BBX1+1 -> 1426 | BBZ1: =BBY1+1 -> 1427 | BCA1: =BBZ1+1 -> 1428 | BCB1: =BCA1+1 -> 1429 | BCC1: =BCB1+1 -> 1430 | BCD1: =BCC1+1 -> 1431 | BCE1: =BCD1+1 -> 1432 | BCF1: =BCE1+1 -> 1433 | BCG1: =BCF1+1 -> 1434 | BCH1: =BCG1+1 -> 1435 | BCI1: =BCH1+1 -> 1436 | BCJ1: =BCI1+1 -> 1437 | BCK1: =BCJ1+1 -> 1438 | BCL1: =BCK1+1 -> 1439 | BCM1: =BCL1+1 -> 1440 | BCN1: =BCM1+1 -> 1441 | BCO1: =BCN1+1 -> 1442 | BCP1: =BCO1+1 -> 1443 | BCQ1: =BCP1+1 -> 1444 | BCR1: =BCQ1+1 -> 1445 | BCS1: =BCR1+1 -> 1446 | BCT1: =BCS1+1 -> 1447 | BCU1: =BCT1+1 -> 1448 | BCV1: =BCU1+1 -> 1449 | BCW1: =BCV1+1 -> 1450 | BCX1: =BCW1+1 -> 1451 | BCY1: =BCX1+1 -> 1452 | BCZ1: =BCY1+1 -> 1453 | BDA1: =BCZ1+1 -> 1454 | BDB1: =BDA1+1 -> 1455 | BDC1: =BDB1+1 -> 1456 | BDD1: =BDC1+1 -> 1457 | BDE1: =BDD1+1 -> 1458 | BDF1: =BDE1+1 -> 1459 | BDG1: =BDF1+1 -> 1460 | BDH1: =BDG1+1 -> 1461 | BDI1: =BDH1+1 -> 1462 | BDJ1: =BDI1+1 -> 1463 | BDK1: =BDJ1+1 -> 1464 | BDL1: =BDK1+1 -> 1465 | BDM1: =BDL1+1 -> 1466 | BDN1: =BDM1+1 -> 1467 | BDO1: =BDN1+1 -> 1468 | BDP1: =BDO1+1 -> 1469 | BDQ1: =BDP1+1 -> 1470 | BDR1: =BDQ1+1 -> 1471 | BDS1: =BDR1+1 -> 1472 | BDT1: =BDS1+1 -> 1473 | BDU1: =BDT1+1 -> 1474 | BDV1: =BDU1+1 -> 1475 | BDW1: =BDV1+1 -> 1476 | BDX1: =BDW1+1 -> 1477 | BDY1: =BDX1+1 -> 1478 | BDZ1: =BDY1+1 -> 1479 | BEA1: =BDZ1+1 -> 1480 | BEB1: =BEA1+1 -> 1481 | BEC1: =BEB1+1 -> 1482 | BED1: 1483 | BEE1: =BED1+1 -> 1484 | BEF1: =BEE1+1 -> 1485 | BEG1: =BEF1+1 -> 1486 | BEH1: =BEG1+1 -> 1487 | BEI1: =BEH1+1 -> 1488 | BEJ1: =BEI1+1 -> 1489 | BEK1: =BEJ1+1 -> 1490 | BEL1: =BEK1+1 -> 1491 | BEM1: =BEL1+1 -> 1492 | BEN1: =BEM1+1 -> 1493 | BEO1: =BEN1+1 -> 1494 | BEP1: =BEO1+1 -> 1495 | BEQ1: =BEP1+1 -> 1496 | BER1: =BEQ1+1 -> 1497 | BES1: =BER1+1 -> 1498 | BET1: =BES1+1 -> 1499 | BEU1: =BET1+1 -> 1500 | BEV1: =BEU1+1 -> 1501 | BEW1: =BEV1+1 -> 1502 | BEX1: =BEW1+1 -> 1503 | BEY1: =BEX1+1 -> 1504 | BEZ1: =BEY1+1 -> 1505 | BFA1: =BEZ1+1 -> 1506 | BFB1: 1507 | BFC1: 1508 | BFD1: 1509 | BFE1: 1510 | BFF1: 1511 | BFG1: 1512 | BFH1: 1513 | BFI1: 1514 | BFJ1: 1515 | BFK1: 1516 | BFL1: 1517 | BFM1: 1518 | BFN1: 1519 | BFO1: 1520 | BFP1: 1521 | BFQ1: 1522 | BFR1: =BFQ1+1 -> 1523 | BFS1: =BFR1+1 -> 1524 | BFT1: =BFS1+1 -> 1525 | BFU1: =BFT1+1 -> 1526 | BFV1: =BFU1+1 -> 1527 | BFW1: =BFV1+1 -> 1528 | BFX1: =BFW1+1 -> 1529 | BFY1: =BFX1+1 -> 1530 | BFZ1: =BFY1+1 -> 1531 | BGA1: =BFZ1+1 -> 1532 | BGB1: =BGA1+1 -> 1533 | BGC1: =BGB1+1 -> 1534 | BGD1: =BGC1+1 -> 1535 | BGE1: =BGD1+1 -> 1536 | BGF1: =BGE1+1 -> 1537 | BGG1: =BGF1+1 -> 1538 | BGH1: =BGG1+1 -> 1539 | BGI1: =BGH1+1 -> 1540 | BGJ1: =BGI1+1 -> 1541 | BGK1: =BGJ1+1 -> 1542 | BGL1: =BGK1+1 -> 1543 | BGM1: =BGL1+1 -> 1544 | BGN1: =BGM1+1 -> 1545 | BGO1: =BGN1+1 -> 1546 | BGP1: =BGO1+1 -> 1547 | BGQ1: =BGP1+1 -> 1548 | BGR1: =BGQ1+1 -> 1549 | BGS1: =BGR1+1 -> 1550 | BGT1: =BGS1+1 -> 1551 | BGU1: =BGT1+1 -> 1552 | BGV1: =BGU1+1 -> 1553 | BGW1: =BGV1+1 -> 1554 | BGX1: =BGW1+1 -> 1555 | BGY1: =BGX1+1 -> 1556 | BGZ1: =BGY1+1 -> 1557 | BHA1: =BGZ1+1 -> 1558 | BHB1: =BHA1+1 -> 1559 | BHC1: =BHB1+1 -> 1560 | BHD1: =BHC1+1 -> 1561 | BHE1: =BHD1+1 -> 1562 | BHF1: =BHE1+1 -> 1563 | BHG1: =BHF1+1 -> 1564 | BHH1: =BHG1+1 -> 1565 | BHI1: =BHH1+1 -> 1566 | BHJ1: =BHI1+1 -> 1567 | BHK1: =BHJ1+1 -> 1568 | BHL1: =BHK1+1 -> 1569 | BHM1: =BHL1+1 -> 1570 | BHN1: =BHM1+1 -> 1571 | BHO1: =BHN1+1 -> 1572 | BHP1: =BHO1+1 -> 1573 | BHQ1: =BHP1+1 -> 1574 | BHR1: =BHQ1+1 -> 1575 | BHS1: =BHR1+1 -> 1576 | BHT1: =BHS1+1 -> 1577 | BHU1: =BHT1+1 -> 1578 | BHV1: =BHU1+1 -> 1579 | BHW1: =BHV1+1 -> 1580 | BHX1: =BHW1+1 -> 1581 | BHY1: =BHX1+1 -> 1582 | BHZ1: =BHY1+1 -> 1583 | BIA1: =BHZ1+1 -> 1584 | BIB1: =BIA1+1 -> 1585 | BIC1: =BIB1+1 -> 1586 | BID1: =BIC1+1 -> 1587 | BIE1: =BID1+1 -> 1588 | BIF1: =BIE1+1 -> 1589 | BIG1: =BIF1+1 -> 1590 | BIH1: =BIG1+1 -> 1591 | BII1: =BIH1+1 -> 1592 | BIJ1: =BII1+1 -> 1593 | BIK1: =BIJ1+1 -> 1594 | BIL1: =BIK1+1 -> 1595 | BIM1: =BIL1+1 -> 1596 | BIN1: =BIM1+1 -> 1597 | BIO1: =BIN1+1 -> 1598 | BIP1: =BIO1+1 -> 1599 | BIQ1: =BIP1+1 -> 1600 | BIR1: =BIQ1+1 -> 1601 | BIS1: =BIR1+1 -> 1602 | BIT1: =BIS1+1 -> 1603 | BIU1: =BIT1+1 -> 1604 | BIV1: =BIU1+1 -> 1605 | BIW1: =BIV1+1 -> 1606 | BIX1: =BIW1+1 -> 1607 | BIY1: =BIX1+1 -> 1608 | BIZ1: =BIY1+1 -> 1609 | BJA1: =BIZ1+1 -> 1610 | BJB1: =BJA1+1 -> 1611 | BJC1: =BJB1+1 -> 1612 | BJD1: =BJC1+1 -> 1613 | BJE1: =BJD1+1 -> 1614 | BJF1: =BJE1+1 -> 1615 | BJG1: =BJF1+1 -> 1616 | BJH1: =BJG1+1 -> 1617 | BJI1: =BJH1+1 -> 1618 | BJJ1: =BJI1+1 -> 1619 | BJK1: =BJJ1+1 -> 1620 | BJL1: =BJK1+1 -> 1621 | BJM1: =BJL1+1 -> 1622 | BJN1: =BJM1+1 -> 1623 | BJO1: =BJN1+1 -> 1624 | BJP1: =BJO1+1 -> 1625 | BJQ1: =BJP1+1 -> 1626 | BJR1: =BJQ1+1 -> 1627 | BJS1: =BJR1+1 -> 1628 | BJT1: =BJS1+1 -> 1629 | BJU1: =BJT1+1 -> 1630 | BJV1: =BJU1+1 -> 1631 | BJW1: =BJV1+1 -> 1632 | BJX1: =BJW1+1 -> 1633 | BJY1: =BJX1+1 -> 1634 | BJZ1: =BJY1+1 -> 1635 | BKA1: =BJZ1+1 -> 1636 | BKB1: =BKA1+1 -> 1637 | BKC1: =BKB1+1 -> 1638 | BKD1: =BKC1+1 -> 1639 | BKE1: =BKD1+1 -> 1640 | BKF1: =BKE1+1 -> 1641 | BKG1: =BKF1+1 -> 1642 | BKH1: =BKG1+1 -> 1643 | BKI1: =BKH1+1 -> 1644 | BKJ1: =BKI1+1 -> 1645 | BKK1: =BKJ1+1 -> 1646 | BKL1: =BKK1+1 -> 1647 | BKM1: =BKL1+1 -> 1648 | BKN1: =BKM1+1 -> 1649 | BKO1: =BKN1+1 -> 1650 | BKP1: =BKO1+1 -> 1651 | BKQ1: =BKP1+1 -> 1652 | BKR1: =BKQ1+1 -> 1653 | BKS1: =BKR1+1 -> 1654 | BKT1: =BKS1+1 -> 1655 | BKU1: =BKT1+1 -> 1656 | BKV1: =BKU1+1 -> 1657 | BKW1: =BKV1+1 -> 1658 | BKX1: =BKW1+1 -> 1659 | BKY1: =BKX1+1 -> 1660 | BKZ1: =BKY1+1 -> 1661 | BLA1: =BKZ1+1 -> 1662 | BLB1: =BLA1+1 -> 1663 | BLC1: =BLB1+1 -> 1664 | BLD1: =BLC1+1 -> 1665 | BLE1: =BLD1+1 -> 1666 | BLF1: =BLE1+1 -> 1667 | BLG1: =BLF1+1 -> 1668 | BLH1: =BLG1+1 -> 1669 | BLI1: =BLH1+1 -> 1670 | BLJ1: =BLI1+1 -> 1671 | BLK1: =BLJ1+1 -> 1672 | BLL1: =BLK1+1 -> 1673 | BLM1: =BLL1+1 -> 1674 | BLN1: =BLM1+1 -> 1675 | BLO1: =BLN1+1 -> 1676 | BLP1: =BLO1+1 -> 1677 | BLQ1: =BLP1+1 -> 1678 | BLR1: =BLQ1+1 -> 1679 | BLS1: =BLR1+1 -> 1680 | BLT1: =BLS1+1 -> 1681 | BLU1: =BLT1+1 -> 1682 | BLV1: =BLU1+1 -> 1683 | BLW1: =BLV1+1 -> 1684 | BLX1: =BLW1+1 -> 1685 | BLY1: =BLX1+1 -> 1686 | BLZ1: =BLY1+1 -> 1687 | BMA1: =BLZ1+1 -> 1688 | BMB1: =BMA1+1 -> 1689 | BMC1: =BMB1+1 -> 1690 | BMD1: =BMC1+1 -> 1691 | BME1: =BMD1+1 -> 1692 | BMF1: =BME1+1 -> 1693 | BMG1: =BMF1+1 -> 1694 | BMH1: =BMG1+1 -> 1695 | BMI1: =BMH1+1 -> 1696 | BMJ1: =BMI1+1 -> 1697 | BMK1: =BMJ1+1 -> 1698 | BML1: =BMK1+1 -> 1699 | BMM1: =BML1+1 -> 1700 | BMN1: =BMM1+1 -> 1701 | BMO1: =BMN1+1 -> 1702 | BMP1: =BMO1+1 -> 1703 | BMQ1: =BMP1+1 -> 1704 | BMR1: =BMQ1+1 -> 1705 | BMS1: =BMR1+1 -> 1706 | BMT1: =BMS1+1 -> 1707 | BMU1: =BMT1+1 -> 1708 | BMV1: =BMU1+1 -> 1709 | BMW1: =BMV1+1 -> 1710 | BMX1: =BMW1+1 -> 1711 | BMY1: =BMX1+1 -> 1712 | BMZ1: =BMY1+1 -> 1713 | BNA1: =BMZ1+1 -> 1714 | BNB1: =BNA1+1 -> 1715 | BNC1: =BNB1+1 -> 1716 | BND1: =BNC1+1 -> 1717 | BNE1: =BND1+1 -> 1718 | BNF1: =BNE1+1 -> 1719 | BNG1: =BNF1+1 -> 1720 | BNH1: =BNG1+1 -> 1721 | BNI1: =BNH1+1 -> 1722 | BNJ1: =BNI1+1 -> 1723 | BNK1: =BNJ1+1 -> 1724 | BNL1: =BNK1+1 -> 1725 | BNM1: =BNL1+1 -> 1726 | BNN1: =BNM1+1 -> 1727 | BNO1: =BNN1+1 -> 1728 | BNP1: =BNO1+1 -> 1729 | BNQ1: =BNP1+1 -> 1730 | BNR1: =BNQ1+1 -> 1731 | BNS1: =BNR1+1 -> 1732 | BNT1: =BNS1+1 -> 1733 | BNU1: =BNT1+1 -> 1734 | BNV1: =BNU1+1 -> 1735 | BNW1: =BNV1+1 -> 1736 | BNX1: =BNW1+1 -> 1737 | BNY1: =BNX1+1 -> 1738 | BNZ1: =BNY1+1 -> 1739 | BOA1: =BNZ1+1 -> 1740 | BOB1: =BOA1+1 -> 1741 | BOC1: =BOB1+1 -> 1742 | BOD1: =BOC1+1 -> 1743 | BOE1: =BOD1+1 -> 1744 | BOF1: =BOE1+1 -> 1745 | BOG1: =BOF1+1 -> 1746 | BOH1: =BOG1+1 -> 1747 | BOI1: =BOH1+1 -> 1748 | BOJ1: =BOI1+1 -> 1749 | BOK1: =BOJ1+1 -> 1750 | BOL1: =BOK1+1 -> 1751 | BOM1: =BOL1+1 -> 1752 | BON1: =BOM1+1 -> 1753 | BOO1: =BON1+1 -> 1754 | BOP1: =BOO1+1 -> 1755 | BOQ1: =BOP1+1 -> 1756 | BOR1: =BOQ1+1 -> 1757 | BOS1: =BOR1+1 -> 1758 | BOT1: =BOS1+1 -> 1759 | BOU1: =BOT1+1 -> 1760 | BOV1: =BOU1+1 -> 1761 | BOW1: =BOV1+1 -> 1762 | BOX1: =BOW1+1 -> 1763 | BOY1: =BOX1+1 -> 1764 | BOZ1: =BOY1+1 -> 1765 | BPA1: =BOZ1+1 -> 1766 | BPB1: =BPA1+1 -> 1767 | BPC1: =BPB1+1 -> 1768 | BPD1: =BPC1+1 -> 1769 | BPE1: =BPD1+1 -> 1770 | BPF1: =BPE1+1 -> 1771 | BPG1: =BPF1+1 -> 1772 | BPH1: =BPG1+1 -> 1773 | BPI1: =BPH1+1 -> 1774 | BPJ1: =BPI1+1 -> 1775 | BPK1: =BPJ1+1 -> 1776 | BPL1: =BPK1+1 -> 1777 | BPM1: =BPL1+1 -> 1778 | BPN1: =BPM1+1 -> 1779 | BPO1: =BPN1+1 -> 1780 | BPP1: =BPO1+1 -> 1781 | BPQ1: =BPP1+1 -> 1782 | BPR1: =BPQ1+1 -> 1783 | BPS1: =BPR1+1 -> 1784 | BPT1: =BPS1+1 -> 1785 | BPU1: =BPT1+1 -> 1786 | BPV1: =BPU1+1 -> 1787 | BPW1: =BPV1+1 -> 1788 | BPX1: =BPW1+1 -> 1789 | BPY1: =BPX1+1 -> 1790 | BPZ1: =BPY1+1 -> 1791 | BQA1: =BPZ1+1 -> 1792 | BQB1: =BQA1+1 -> 1793 | BQC1: =BQB1+1 -> 1794 | BQD1: =BQC1+1 -> 1795 | BQE1: =BQD1+1 -> 1796 | BQF1: =BQE1+1 -> 1797 | BQG1: =BQF1+1 -> 1798 | BQH1: =BQG1+1 -> 1799 | BQI1: =BQH1+1 -> 1800 | BQJ1: =BQI1+1 -> 1801 | BQK1: =BQJ1+1 -> 1802 | BQL1: =BQK1+1 -> 1803 | BQM1: =BQL1+1 -> 1804 | BQN1: =BQM1+1 -> 1805 | BQO1: =BQN1+1 -> 1806 | BQP1: =BQO1+1 -> 1807 | BQQ1: =BQP1+1 -> 1808 | BQR1: =BQQ1+1 -> 1809 | BQS1: =BQR1+1 -> 1810 | BQT1: =BQS1+1 -> 1811 | BQU1: =BQT1+1 -> 1812 | BQV1: =BQU1+1 -> 1813 | BQW1: =BQV1+1 -> 1814 | BQX1: =BQW1+1 -> 1815 | BQY1: =BQX1+1 -> 1816 | BQZ1: =BQY1+1 -> 1817 | BRA1: =BQZ1+1 -> 1818 | BRB1: =BRA1+1 -> 1819 | BRC1: =BRB1+1 -> 1820 | BRD1: =BRC1+1 -> 1821 | BRE1: =BRD1+1 -> 1822 | BRF1: =BRE1+1 -> 1823 | BRG1: =BRF1+1 -> 1824 | BRH1: =BRG1+1 -> 1825 | BRI1: =BRH1+1 -> 1826 | BRJ1: =BRI1+1 -> 1827 | BRK1: =BRJ1+1 -> 1828 | BRL1: =BRK1+1 -> 1829 | BRM1: =BRL1+1 -> 1830 | BRN1: =BRM1+1 -> 1831 | BRO1: =BRN1+1 -> 1832 | BRP1: =BRO1+1 -> 1833 | BRQ1: =BRP1+1 -> 1834 | BRR1: =BRQ1+1 -> 1835 | BRS1: =BRR1+1 -> 1836 | BRT1: =BRS1+1 -> 1837 | BRU1: =BRT1+1 -> 1838 | BRV1: =BRU1+1 -> 1839 | BRW1: =BRV1+1 -> 1840 | BRX1: =BRW1+1 -> 1841 | BRY1: =BRX1+1 -> 1842 | BRZ1: =BRY1+1 -> 1843 | BSA1: =BRZ1+1 -> 1844 | BSB1: =BSA1+1 -> 1845 | BSC1: =BSB1+1 -> 1846 | BSD1: =BSC1+1 -> 1847 | BSE1: =BSD1+1 -> 1848 | BSF1: =BSE1+1 -> 1849 | BSG1: =BSF1+1 -> 1850 | BSH1: =BSG1+1 -> 1851 | BSI1: =BSH1+1 -> 1852 | BSJ1: =BSI1+1 -> 1853 | BSK1: =BSJ1+1 -> 1854 | BSL1: =BSK1+1 -> 1855 | BSM1: =BSL1+1 -> 1856 | BSN1: =BSM1+1 -> 1857 | BSO1: =BSN1+1 -> 1858 | BSP1: =BSO1+1 -> 1859 | BSQ1: =BSP1+1 -> 1860 | BSR1: =BSQ1+1 -> 1861 | BSS1: =BSR1+1 -> 1862 | BST1: =BSS1+1 -> 1863 | BSU1: =BST1+1 -> 1864 | BSV1: =BSU1+1 -> 1865 | BSW1: =BSV1+1 -> 1866 | BSX1: =BSW1+1 -> 1867 | BSY1: =BSX1+1 -> 1868 | BSZ1: =BSY1+1 -> 1869 | BTA1: =BSZ1+1 -> 1870 | BTB1: =BTA1+1 -> 1871 | BTC1: =BTB1+1 -> 1872 | BTD1: =BTC1+1 -> 1873 | BTE1: =BTD1+1 -> 1874 | BTF1: =BTE1+1 -> 1875 | BTG1: =BTF1+1 -> 1876 | BTH1: =BTG1+1 -> 1877 | BTI1: =BTH1+1 -> 1878 | BTJ1: =BTI1+1 -> 1879 | BTK1: =BTJ1+1 -> 1880 | BTL1: =BTK1+1 -> 1881 | BTM1: =BTL1+1 -> 1882 | BTN1: =BTM1+1 -> 1883 | BTO1: =BTN1+1 -> 1884 | BTP1: =BTO1+1 -> 1885 | BTQ1: =BTP1+1 -> 1886 | BTR1: =BTQ1+1 -> 1887 | BTS1: =BTR1+1 -> 1888 | BTT1: =BTS1+1 -> 1889 | BTU1: =BTT1+1 -> 1890 | BTV1: =BTU1+1 -> 1891 | BTW1: =BTV1+1 -> 1892 | BTX1: =BTW1+1 -> 1893 | BTY1: =BTX1+1 -> 1894 | BTZ1: =BTY1+1 -> 1895 | BUA1: =BTZ1+1 -> 1896 | BUB1: =BUA1+1 -> 1897 | BUC1: =BUB1+1 -> 1898 | BUD1: =BUC1+1 -> 1899 | BUE1: =BUD1+1 -> 1900 | BUF1: =BUE1+1 -> 1901 | BUG1: =BUF1+1 -> 1902 | BUH1: =BUG1+1 -> 1903 | BUI1: =BUH1+1 -> 1904 | BUJ1: =BUI1+1 -> 1905 | BUK1: =BUJ1+1 -> 1906 | BUL1: =BUK1+1 -> 1907 | BUM1: =BUL1+1 -> 1908 | BUN1: =BUM1+1 -> 1909 | BUO1: =BUN1+1 -> 1910 | BUP1: =BUO1+1 -> 1911 | BUQ1: =BUP1+1 -> 1912 | BUR1: =BUQ1+1 -> 1913 | BUS1: =BUR1+1 -> 1914 | BUT1: =BUS1+1 -> 1915 | BUU1: =BUT1+1 -> 1916 | BUV1: =BUU1+1 -> 1917 | BUW1: =BUV1+1 -> 1918 | BUX1: =BUW1+1 -> 1919 | BUY1: =BUX1+1 -> 1920 | BUZ1: =BUY1+1 -> 1921 | BVA1: =BUZ1+1 -> 1922 | BVB1: =BVA1+1 -> 1923 | BVC1: =BVB1+1 -> 1924 | BVD1: =BVC1+1 -> 1925 | BVE1: =BVD1+1 -> 1926 | BVF1: =BVE1+1 -> 1927 | BVG1: =BVF1+1 -> 1928 | BVH1: =BVG1+1 -> 1929 | BVI1: =BVH1+1 -> 1930 | BVJ1: =BVI1+1 -> 1931 | BVK1: =BVJ1+1 -> 1932 | BVL1: =BVK1+1 -> 1933 | BVM1: =BVL1+1 -> 1934 | BVN1: =BVM1+1 -> 1935 | BVO1: =BVN1+1 -> 1936 | BVP1: =BVO1+1 -> 1937 | BVQ1: =BVP1+1 -> 1938 | BVR1: =BVQ1+1 -> 1939 | BVS1: =BVR1+1 -> 1940 | BVT1: =BVS1+1 -> 1941 | BVU1: =BVT1+1 -> 1942 | BVV1: =BVU1+1 -> 1943 | BVW1: =BVV1+1 -> 1944 | BVX1: =BVW1+1 -> 1945 | BVY1: =BVX1+1 -> 1946 | BVZ1: =BVY1+1 -> 1947 | BWA1: =BVZ1+1 -> 1948 | BWB1: =BWA1+1 -> 1949 | BWC1: =BWB1+1 -> 1950 | BWD1: =BWC1+1 -> 1951 | BWE1: =BWD1+1 -> 1952 | BWF1: =BWE1+1 -> 1953 | BWG1: =BWF1+1 -> 1954 | BWH1: =BWG1+1 -> 1955 | BWI1: =BWH1+1 -> 1956 | BWJ1: =BWI1+1 -> 1957 | BWK1: =BWJ1+1 -> 1958 | BWL1: =BWK1+1 -> 1959 | BWM1: =BWL1+1 -> 1960 | BWN1: =BWM1+1 -> 1961 | BWO1: =BWN1+1 -> 1962 | BWP1: =BWO1+1 -> 1963 | BWQ1: =BWP1+1 -> 1964 | BWR1: =BWQ1+1 -> 1965 | BWS1: =BWR1+1 -> 1966 | BWT1: =BWS1+1 -> 1967 | BWU1: =BWT1+1 -> 1968 | BWV1: =BWU1+1 -> 1969 | BWW1: =BWV1+1 -> 1970 | BWX1: =BWW1+1 -> 1971 | BWY1: =BWX1+1 -> 1972 | BWZ1: =BWY1+1 -> 1973 | BXA1: =BWZ1+1 -> 1974 | BXB1: =BXA1+1 -> 1975 | BXC1: =BXB1+1 -> 1976 | BXD1: =BXC1+1 -> 1977 | BXE1: =BXD1+1 -> 1978 | BXF1: =BXE1+1 -> 1979 | BXG1: =BXF1+1 -> 1980 | BXH1: =BXG1+1 -> 1981 | BXI1: =BXH1+1 -> 1982 | BXJ1: =BXI1+1 -> 1983 | BXK1: =BXJ1+1 -> 1984 | BXL1: =BXK1+1 -> 1985 | BXM1: =BXL1+1 -> 1986 | BXN1: =BXM1+1 -> 1987 | BXO1: =BXN1+1 -> 1988 | BXP1: =BXO1+1 -> 1989 | BXQ1: =BXP1+1 -> 1990 | BXR1: =BXQ1+1 -> 1991 | BXS1: =BXR1+1 -> 1992 | BXT1: =BXS1+1 -> 1993 | BXU1: =BXT1+1 -> 1994 | BXV1: =BXU1+1 -> 1995 | BXW1: =BXV1+1 -> 1996 | BXX1: =BXW1+1 -> 1997 | BXY1: =BXX1+1 -> 1998 | BXZ1: =BXY1+1 -> 1999 | BYA1: =BXZ1+1 -> 2000 | BYB1: =BYA1+1 -> 2001 | BYC1: =BYB1+1 -> 2002 | BYD1: =BYC1+1 -> 2003 | BYE1: =BYD1+1 -> 2004 | BYF1: =BYE1+1 -> 2005 | BYG1: =BYF1+1 -> 2006 | BYH1: =BYG1+1 -> 2007 | BYI1: =BYH1+1 -> 2008 | BYJ1: =BYI1+1 -> 2009 | BYK1: =BYJ1+1 -> 2010 | BYL1: =BYK1+1 -> 2011 | BYM1: =BYL1+1 -> 2012 | BYN1: =BYM1+1 -> 2013 | BYO1: =BYN1+1 -> 2014 | BYP1: =BYO1+1 -> 2015 | BYQ1: =BYP1+1 -> 2016 | BYR1: =BYQ1+1 -> 2017 | BYS1: =BYR1+1 -> 2018 | BYT1: =BYS1+1 -> 2019 | BYU1: =BYT1+1 -> 2020 | BYV1: =BYU1+1 -> 2021 | BYW1: =BYV1+1 -> 2022 | BYX1: =BYW1+1 -> 2023 | BYY1: =BYX1+1 -> 2024 | BYZ1: =BYY1+1 -> 2025 | BZA1: =BYZ1+1 -> 2026 | BZB1: =BZA1+1 -> 2027 | BZC1: =BZB1+1 -> 2028 | BZD1: =BZC1+1 -> 2029 | BZE1: =BZD1+1 -> 2030 | BZF1: =BZE1+1 -> 2031 | BZG1: =BZF1+1 -> 2032 | BZH1: =BZG1+1 -> 2033 | BZI1: =BZH1+1 -> 2034 | BZJ1: =BZI1+1 -> 2035 | BZK1: =BZJ1+1 -> 2036 | BZL1: =BZK1+1 -> 2037 | BZM1: =BZL1+1 -> 2038 | BZN1: =BZM1+1 -> 2039 | BZO1: =BZN1+1 -> 2040 | BZP1: =BZO1+1 -> 2041 | BZQ1: =BZP1+1 -> 2042 | BZR1: =BZQ1+1 -> 2043 | BZS1: =BZR1+1 -> 2044 | BZT1: =BZS1+1 -> 2045 | BZU1: =BZT1+1 -> 2046 | BZV1: =BZU1+1 -> 2047 | BZW1: =BZV1+1 -> 2048 | BZX1: =BZW1+1 -> 2049 | BZY1: =BZX1+1 -> 2050 | BZZ1: =BZY1+1 -> 2051 | CAA1: =BZZ1+1 -> 2052 | CAB1: =CAA1+1 -> 2053 | CAC1: =CAB1+1 -> 2054 | CAD1: =CAC1+1 -> 2055 | CAE1: =CAD1+1 -> 2056 | CAF1: =CAE1+1 -> 2057 | CAG1: =CAF1+1 -> 2058 | CAH1: =CAG1+1 -> 2059 | CAI1: =CAH1+1 -> 2060 | CAJ1: =CAI1+1 -> 2061 | CAK1: =CAJ1+1 -> 2062 | CAL1: =CAK1+1 -> 2063 | CAM1: =CAL1+1 -> 2064 | CAN1: =CAM1+1 -> 2065 | CAO1: =CAN1+1 -> 2066 | CAP1: =CAO1+1 -> 2067 | CAQ1: =CAP1+1 -> 2068 | CAR1: =CAQ1+1 -> 2069 | CAS1: =CAR1+1 -> 2070 | CAT1: =CAS1+1 -> 2071 | CAU1: =CAT1+1 -> 2072 | CAV1: =CAU1+1 -> 2073 | CAW1: =CAV1+1 -> 2074 | CAX1: =CAW1+1 -> 2075 | CAY1: =CAX1+1 -> 2076 | CAZ1: =CAY1+1 -> 2077 | CBA1: =CAZ1+1 -> 2078 | CBB1: =CBA1+1 -> 2079 | CBC1: =CBB1+1 -> 2080 | CBD1: =CBC1+1 -> 2081 | CBE1: =CBD1+1 -> 2082 | CBF1: =CBE1+1 -> 2083 | CBG1: =CBF1+1 -> 2084 | CBH1: =CBG1+1 -> 2085 | CBI1: =CBH1+1 -> 2086 | CBJ1: =CBI1+1 -> 2087 | CBK1: =CBJ1+1 -> 2088 | CBL1: =CBK1+1 -> 2089 | CBM1: =CBL1+1 -> 2090 | CBN1: =CBM1+1 -> 2091 | CBO1: =CBN1+1 -> 2092 | CBP1: =CBO1+1 -> 2093 | CBQ1: =CBP1+1 -> 2094 | CBR1: =CBQ1+1 -> 2095 | CBS1: =CBR1+1 -> 2096 | CBT1: =CBS1+1 -> 2097 | CBU1: =CBT1+1 -> 2098 | CBV1: =CBU1+1 -> 2099 | CBW1: =CBV1+1 -> 2100 | CBX1: =CBW1+1 -> 2101 | CBY1: =CBX1+1 -> 2102 | CBZ1: =CBY1+1 -> 2103 | CCA1: =CBZ1+1 -> 2104 | CCB1: =CCA1+1 -> 2105 | CCC1: =CCB1+1 -> 2106 | CCD1: =CCC1+1 -> 2107 | CCE1: =CCD1+1 -> 2108 | CCF1: =CCE1+1 -> 2109 | CCG1: =CCF1+1 -> 2110 | CCH1: =CCG1+1 -> 2111 | CCI1: =CCH1+1 -> 2112 | CCJ1: =CCI1+1 -> 2113 | CCK1: =CCJ1+1 -> 2114 | CCL1: =CCK1+1 -> 2115 | CCM1: =CCL1+1 -> 2116 | CCN1: =CCM1+1 -> 2117 | CCO1: =CCN1+1 -> 2118 | CCP1: =CCO1+1 -> 2119 | CCQ1: =CCP1+1 -> 2120 | CCR1: =CCQ1+1 -> 2121 | CCS1: =CCR1+1 -> 2122 | CCT1: =CCS1+1 -> 2123 | CCU1: =CCT1+1 -> 2124 | CCV1: =CCU1+1 -> 2125 | CCW1: =CCV1+1 -> 2126 | CCX1: =CCW1+1 -> 2127 | CCY1: =CCX1+1 -> 2128 | CCZ1: =CCY1+1 -> 2129 | CDA1: =CCZ1+1 -> 2130 | CDB1: =CDA1+1 -> 2131 | CDC1: =CDB1+1 -> 2132 | CDD1: =CDC1+1 -> 2133 | CDE1: =CDD1+1 -> 2134 | CDF1: =CDE1+1 -> 2135 | CDG1: =CDF1+1 -> 2136 | CDH1: =CDG1+1 -> 2137 | CDI1: =CDH1+1 -> 2138 | CDJ1: =CDI1+1 -> 2139 | CDK1: =CDJ1+1 -> 2140 | CDL1: =CDK1+1 -> 2141 | CDM1: =CDL1+1 -> 2142 | CDN1: =CDM1+1 -> 2143 | CDO1: =CDN1+1 -> 2144 | CDP1: =CDO1+1 -> 2145 | CDQ1: =CDP1+1 -> 2146 | CDR1: =CDQ1+1 -> 2147 | CDS1: =CDR1+1 -> 2148 | CDT1: =CDS1+1 -> 2149 | CDU1: =CDT1+1 -> 2150 | CDV1: =CDU1+1 -> 2151 | CDW1: =CDV1+1 -> 2152 | CDX1: =CDW1+1 -> 2153 | CDY1: =CDX1+1 -> 2154 | CDZ1: =CDY1+1 -> 2155 | CEA1: =CDZ1+1 -> 2156 | CEB1: =CEA1+1 -> 2157 | CEC1: =CEB1+1 -> 2158 | CED1: =CEC1+1 -> 2159 | CEE1: =CED1+1 -> 2160 | CEF1: =CEE1+1 -> 2161 | CEG1: =CEF1+1 -> 2162 | CEH1: =CEG1+1 -> 2163 | CEI1: =CEH1+1 -> 2164 | CEJ1: =CEI1+1 -> 2165 | CEK1: =CEJ1+1 -> 2166 | CEL1: =CEK1+1 -> 2167 | CEM1: =CEL1+1 -> 2168 | CEN1: =CEM1+1 -> 2169 | CEO1: =CEN1+1 -> 2170 | CEP1: =CEO1+1 -> 2171 | CEQ1: =CEP1+1 -> 2172 | CER1: =CEQ1+1 -> 2173 | CES1: =CER1+1 -> 2174 | CET1: =CES1+1 -> 2175 | CEU1: =CET1+1 -> 2176 | CEV1: =CEU1+1 -> 2177 | CEW1: =CEV1+1 -> 2178 | CEX1: =CEW1+1 -> 2179 | CEY1: =CEX1+1 -> 2180 | CEZ1: =CEY1+1 -> 2181 | CFA1: =CEZ1+1 -> 2182 | CFB1: =CFA1+1 -> 2183 | CFC1: =CFB1+1 -> 2184 | CFD1: =CFC1+1 -> 2185 | CFE1: =CFD1+1 -> 2186 | CFF1: =CFE1+1 -> 2187 | CFG1: =CFF1+1 -> 2188 | CFH1: =CFG1+1 -> 2189 | CFI1: =CFH1+1 -> 2190 | CFJ1: =CFI1+1 -> 2191 | CFK1: =CFJ1+1 -> 2192 | CFL1: =CFK1+1 -> 2193 | CFM1: =CFL1+1 -> 2194 | CFN1: =CFM1+1 -> 2195 | CFO1: =CFN1+1 -> 2196 | CFP1: =CFO1+1 -> 2197 | CFQ1: =CFP1+1 -> 2198 | CFR1: =CFQ1+1 -> 2199 | CFS1: =CFR1+1 -> 2200 | CFT1: =CFS1+1 -> 2201 | CFU1: =CFT1+1 -> 2202 | CFV1: =CFU1+1 -> 2203 | CFW1: =CFV1+1 -> 2204 | CFX1: =CFW1+1 -> 2205 | CFY1: =CFX1+1 -> 2206 | CFZ1: =CFY1+1 -> 2207 | CGA1: =CFZ1+1 -> 2208 | CGB1: =CGA1+1 -> 2209 | CGC1: =CGB1+1 -> 2210 | CGD1: =CGC1+1 -> 2211 | CGE1: =CGD1+1 -> 2212 | CGF1: =CGE1+1 -> 2213 | CGG1: =CGF1+1 -> 2214 | CGH1: =CGG1+1 -> 2215 | CGI1: =CGH1+1 -> 2216 | CGJ1: =CGI1+1 -> 2217 | CGK1: =CGJ1+1 -> 2218 | CGL1: =CGK1+1 -> 2219 | CGM1: =CGL1+1 -> 2220 | CGN1: =CGM1+1 -> 2221 | CGO1: =CGN1+1 -> 2222 | CGP1: =CGO1+1 -> 2223 | CGQ1: =CGP1+1 -> 2224 | CGR1: =CGQ1+1 -> 2225 | CGS1: =CGR1+1 -> 2226 | CGT1: =CGS1+1 -> 2227 | CGU1: =CGT1+1 -> 2228 | CGV1: =CGU1+1 -> 2229 | CGW1: =CGV1+1 -> 2230 | CGX1: =CGW1+1 -> 2231 | CGY1: =CGX1+1 -> 2232 | CGZ1: =CGY1+1 -> 2233 | CHA1: =CGZ1+1 -> 2234 | CHB1: =CHA1+1 -> 2235 | CHC1: =CHB1+1 -> 2236 | CHD1: =CHC1+1 -> 2237 | CHE1: =CHD1+1 -> 2238 | CHF1: =CHE1+1 -> 2239 | CHG1: =CHF1+1 -> 2240 | CHH1: =CHG1+1 -> 2241 | CHI1: =CHH1+1 -> 2242 | CHJ1: =CHI1+1 -> 2243 | CHK1: =CHJ1+1 -> 2244 | CHL1: =CHK1+1 -> 2245 | CHM1: =CHL1+1 -> 2246 | CHN1: =CHM1+1 -> 2247 | CHO1: =CHN1+1 -> 2248 | CHP1: =CHO1+1 -> 2249 | CHQ1: =CHP1+1 -> 2250 | CHR1: =CHQ1+1 -> 2251 | CHS1: =CHR1+1 -> 2252 | CHT1: =CHS1+1 -> 2253 | CHU1: =CHT1+1 -> 2254 | CHV1: =CHU1+1 -> 2255 | CHW1: =CHV1+1 -> 2256 | CHX1: =CHW1+1 -> 2257 | CHY1: =CHX1+1 -> 2258 | CHZ1: =CHY1+1 -> 2259 | CIA1: =CHZ1+1 -> 2260 | CIB1: =CIA1+1 -> 2261 | CIC1: =CIB1+1 -> 2262 | CID1: =CIC1+1 -> 2263 | CIE1: =CID1+1 -> 2264 | CIF1: =CIE1+1 -> 2265 | CIG1: =CIF1+1 -> 2266 | CIH1: =CIG1+1 -> 2267 | CII1: =CIH1+1 -> 2268 | CIJ1: =CII1+1 -> 2269 | CIK1: =CIJ1+1 -> 2270 | CIL1: =CIK1+1 -> 2271 | CIM1: =CIL1+1 -> 2272 | CIN1: =CIM1+1 -> 2273 | CIO1: =CIN1+1 -> 2274 | CIP1: =CIO1+1 -> 2275 | CIQ1: =CIP1+1 -> 2276 | CIR1: 2277 | CIS1: 2278 | CIT1: 2279 | CIU1: =CIT1+1 -> 2280 | CIV1: =CIU1+1 -> 2281 | CIW1: =CIV1+1 -> 2282 | CIX1: =CIW1+1 -> 2283 | CIY1: =CIX1+1 -> 2284 | CIZ1: =CIY1+1 -> 2285 | CJA1: =CIZ1+1 -> 2286 | CJB1: =CJA1+1 -> 2287 | CJC1: =CJB1+1 -> 2288 | CJD1: =CJC1+1 -> 2289 | CJE1: =CJD1+1 -> 2290 | CJF1: =CJE1+1 -> 2291 | CJG1: =CJF1+1 -> 2292 | CJH1: =CJG1+1 -> 2293 | CJI1: =CJH1+1 -> 2294 | CJJ1: =CJI1+1 -> 2295 | CJK1: =CJJ1+1 -> 2296 | CJL1: =CJK1+1 -> 2297 | CJM1: =CJL1+1 -> 2298 | CJN1: =CJM1+1 -> 2299 | CJO1: =CJN1+1 -> 2300 | CJP1: =CJO1+1 -> 2301 | CJQ1: =CJP1+1 -> 2302 | CJR1: =CJQ1+1 -> 2303 | CJS1: =CJR1+1 -> 2304 | CJT1: =CJS1+1 -> 2305 | CJU1: =CJT1+1 -> 2306 | CJV1: =CJU1+1 -> 2307 | CJW1: =CJV1+1 -> 2308 | CJX1: =CJW1+1 -> 2309 | CJY1: =CJX1+1 -> 2310 | CJZ1: =CJY1+1 -> 2311 | CKA1: =CJZ1+1 -> 2312 | CKB1: =CKA1+1 -> 2313 | CKC1: =CKB1+1 -> 2314 | CKD1: =CKC1+1 -> 2315 | CKE1: =CKD1+1 -> 2316 | CKF1: =CKE1+1 -> 2317 | CKG1: =CKF1+1 -> 2318 | CKH1: =CKG1+1 -> 2319 | CKI1: =CKH1+1 -> 2320 | CKJ1: =CKI1+1 -> 2321 | CKK1: =CKJ1+1 -> 2322 | CKL1: =CKK1+1 -> 2323 | CKM1: =CKL1+1 -> 2324 | CKN1: =CKM1+1 -> 2325 | CKO1: =CKN1+1 -> 2326 | CKP1: =CKO1+1 -> 2327 | CKQ1: =CKP1+1 -> 2328 | CKR1: =CKQ1+1 -> 2329 | CKS1: =CKR1+1 -> 2330 | CKT1: =CKS1+1 -> 2331 | CKU1: =CKT1+1 -> 2332 | CKV1: =CKU1+1 -> 2333 | CKW1: =CKV1+1 -> 2334 | CKX1: =CKW1+1 -> 2335 | CKY1: =CKX1+1 -> 2336 | CKZ1: =CKY1+1 -> 2337 | CLA1: =CKZ1+1 -> 2338 | CLB1: =CLA1+1 -> 2339 | CLC1: =CLB1+1 -> 2340 | CLD1: =CLC1+1 -> 2341 | CLE1: =CLD1+1 -> 2342 | CLF1: =CLE1+1 -> 2343 | CLG1: =CLF1+1 -> 2344 | CLH1: =CLG1+1 -> 2345 | CLI1: =CLH1+1 -> 2346 | CLJ1: =CLI1+1 -> 2347 | CLK1: =CLJ1+1 -> 2348 | CLL1: =CLK1+1 -> 2349 | CLM1: =CLL1+1 -> 2350 | CLN1: =CLM1+1 -> 2351 | CLO1: =CLN1+1 -> 2352 | CLP1: =CLO1+1 -> 2353 | CLQ1: =CLP1+1 -> 2354 | CLR1: =CLQ1+1 -> 2355 | CLS1: =CLR1+1 -> 2356 | CLT1: =CLS1+1 -> 2357 | CLU1: =CLT1+1 -> 2358 | CLV1: =CLU1+1 -> 2359 | CLW1: =CLV1+1 -> 2360 | CLX1: =CLW1+1 -> 2361 | CLY1: =CLX1+1 -> 2362 | CLZ1: =CLY1+1 -> 2363 | CMA1: =CLZ1+1 -> 2364 | CMB1: =CMA1+1 -> 2365 | CMC1: =CMB1+1 -> 2366 | CMD1: =CMC1+1 -> 2367 | CME1: 2368 | CMF1: =CME1+1 -> 2369 | CMG1: =CMF1+1 -> 2370 | CMH1: =CMG1+1 -> 2371 | CMI1: =CMH1+1 -> 2372 | CMJ1: =CMI1+1 -> 2373 | CMK1: =CMJ1+1 -> 2374 | CML1: =CMK1+1 -> 2375 | CMM1: =CML1+1 -> 2376 | CMN1: =CMM1+1 -> 2377 | CMO1: =CMN1+1 -> 2378 | CMP1: 2379 | CMQ1: =CMP1+1 -> 2380 | CMR1: =CMQ1+1 -> 2381 | CMS1: =CMR1+1 -> 2382 | CMT1: =CMS1+1 -> 2383 | CMU1: =CMT1+1 -> 2384 | CMV1: =CMU1+1 -> 2385 | CMW1: =CMV1+1 -> 2386 | CMX1: =CMW1+1 -> 2387 | CMY1: =CMX1+1 -> 2388 | CMZ1: =CMY1+1 -> 2389 | CNA1: =CMZ1+1 -> 2390 | CNB1: =CNA1+1 -> 2391 | CNC1: =CNB1+1 -> 2392 | CND1: =CNC1+1 -> 2393 | CNE1: =CND1+1 -> 2394 | CNF1: =CNE1+1 -> 2395 | CNG1: =CNF1+1 -> 2396 | CNH1: =CNG1+1 -> 2397 | CNI1: =CNH1+1 -> 2398 | CNJ1: =CNI1+1 -> 2399 | CNK1: =CNJ1+1 -> 2400 | CNL1: =CNK1+1 -> 2401 | CNM1: =CNL1+1 -> 2402 | CNN1: =CNM1+1 -> 2403 | CNO1: =CNN1+1 -> 2404 | CNP1: =CNO1+1 -> 2405 | CNQ1: =CNP1+1 -> 2406 | CNR1: =CNQ1+1 -> 2407 | CNS1: =CNR1+1 -> 2408 | CNT1: =CNS1+1 -> 2409 | CNU1: =CNT1+1 -> 2410 | CNV1: =CNU1+1 -> 2411 | CNW1: =CNV1+1 -> 2412 | CNX1: =CNW1+1 -> 2413 | CNY1: =CNX1+1 -> 2414 | CNZ1: =CNY1+1 -> 2415 | COA1: =CNZ1+1 -> 2416 | COB1: =COA1+1 -> 2417 | COC1: =COB1+1 -> 2418 | COD1: =COC1+1 -> 2419 | COE1: =COD1+1 -> 2420 | COF1: =COE1+1 -> 2421 | COG1: =COF1+1 -> 2422 | COH1: =COG1+1 -> 2423 | COI1: =COH1+1 -> 2424 | COJ1: =COI1+1 -> 2425 | COK1: =COJ1+1 -> 2426 | COL1: =COK1+1 -> 2427 | COM1: =COL1+1 -> 2428 | CON1: =COM1+1 -> 2429 | COO1: =CON1+1 -> 2430 | COP1: =COO1+1 -> 2431 | COQ1: =COP1+1 -> 2432 | COR1: =COQ1+1 -> 2433 | COS1: =COR1+1 -> 2434 | COT1: =COS1+1 -> 2435 | COU1: =COT1+1 -> 2436 | COV1: =COU1+1 -> 2437 | COW1: =COV1+1 -> 2438 | COX1: =COW1+1 -> 2439 | COY1: =COX1+1 -> 2440 | COZ1: =COY1+1 -> 2441 | CPA1: =COZ1+1 -> 2442 | CPB1: =CPA1+1 -> 2443 | CPC1: =CPB1+1 -> 2444 | CPD1: =CPC1+1 -> 2445 | CPE1: =CPD1+1 -> 2446 | CPF1: =CPE1+1 -> 2447 | CPG1: =CPF1+1 -> 2448 | CPH1: =CPG1+1 -> 2449 | CPI1: =CPH1+1 -> 2450 | CPJ1: =CPI1+1 -> 2451 | CPK1: =CPJ1+1 -> 2452 | CPL1: =CPK1+1 -> 2453 | CPM1: =CPL1+1 -> 2454 | CPN1: =CPM1+1 -> 2455 | CPO1: =CPN1+1 -> 2456 | CPP1: =CPO1+1 -> 2457 | CPQ1: =CPP1+1 -> 2458 | CPR1: =CPQ1+1 -> 2459 | CPS1: =CPR1+1 -> 2460 | CPT1: =CPS1+1 -> 2461 | CPU1: =CPT1+1 -> 2462 | CPV1: =CPU1+1 -> 2463 | CPW1: =CPV1+1 -> 2464 | CPX1: =CPW1+1 -> 2465 | CPY1: =CPX1+1 -> 2466 | CPZ1: =CPY1+1 -> 2467 | CQA1: =CPZ1+1 -> 2468 | CQB1: =CQA1+1 -> 2469 | CQC1: =CQB1+1 -> 2470 | CQD1: =CQC1+1 -> 2471 | CQE1: =CQD1+1 -> 2472 | CQF1: =CQE1+1 -> 2473 | CQG1: =CQF1+1 -> 2474 | CQH1: =CQG1+1 -> 2475 | CQI1: =CQH1+1 -> 2476 | CQJ1: =CQI1+1 -> 2477 | CQK1: =CQJ1+1 -> 2478 | CQL1: =CQK1+1 -> 2479 | CQM1: =CQL1+1 -> 2480 | CQN1: =CQM1+1 -> 2481 | CQO1: =CQN1+1 -> 2482 | CQP1: =CQO1+1 -> 2483 | CQQ1: =CQP1+1 -> 2484 | CQR1: =CQQ1+1 -> 2485 | CQS1: =CQR1+1 -> 2486 | CQT1: =CQS1+1 -> 2487 | CQU1: =CQT1+1 -> 2488 | CQV1: =CQU1+1 -> 2489 | CQW1: =CQV1+1 -> 2490 | CQX1: =CQW1+1 -> 2491 | CQY1: =CQX1+1 -> 2492 | CQZ1: =CQY1+1 -> 2493 | CRA1: =CQZ1+1 -> 2494 | CRB1: =CRA1+1 -> 2495 | CRC1: =CRB1+1 -> 2496 | CRD1: =CRC1+1 -> 2497 | CRE1: =CRD1+1 -> 2498 | CRF1: =CRE1+1 -> 2499 | CRG1: =CRF1+1 -> 2500 | CRH1: =CRG1+1 -> 2501 | CRI1: =CRH1+1 -> 2502 | CRJ1: =CRI1+1 -> 2503 | CRK1: =CRJ1+1 -> 2504 | CRL1: =CRK1+1 -> 2505 | CRM1: =CRL1+1 -> 2506 | CRN1: =CRM1+1 -> 2507 | CRO1: =CRN1+1 -> 2508 | CRP1: =CRO1+1 -> 2509 | CRQ1: =CRP1+1 -> 2510 | CRR1: =CRQ1+1 -> 2511 | CRS1: =CRR1+1 -> 2512 | CRT1: =CRS1+1 -> 2513 | CRU1: =CRT1+1 -> 2514 | CRV1: 2515 | CRW1: 2516 | CRX1: =CRW1+1 -> 2517 | CRY1: 2518 | CRZ1: 2519 | CSA1: 2520 | CSB1: 2521 | CSC1: 2522 | CSD1: 2523 | CSE1: 2524 | CSF1: 2525 | CSG1: 2526 | CSH1: 2527 | CSI1: 2528 | CSJ1: 2529 | CSK1: =CSJ1+1 -> 2530 | CSL1: 2531 | CSM1: 2532 | CSN1: 2533 | CSO1: 2534 | CSP1: 2535 | CSQ1: 2536 | CSR1: 2537 | CSS1: 2538 | CST1: 2539 | CSU1: 2540 | CSV1: 2541 | CSW1: 2542 | CSX1: 2543 | CSY1: =CSX1+1 -> 2544 | CSZ1: =CSY1+1 -> 2545 | CTA1: =CSZ1+1 -> 2546 | CTB1: =CTA1+1 -> 2547 | CTC1: =CTB1+1 -> 2548 | CTD1: =CTC1+1 -> 2549 | CTE1: =CTD1+1 -> 2550 | CTF1: =CTE1+1 -> 2551 | CTG1: =CTF1+1 -> 2552 | CTH1: =CTG1+1 -> 2553 | CTI1: =CTH1+1 -> 2554 | CTJ1: =CTI1+1 -> 2555 | CTK1: =CTJ1+1 -> 2556 | CTL1: =CTK1+1 -> 2557 | CTM1: =CTL1+1 -> 2558 | CTN1: =CTM1+1 -> 2559 | CTO1: =CTN1+1 -> 2560 | CTP1: =CTO1+1 -> 2561 | CTQ1: =CTP1+1 -> 2562 | CTR1: =CTQ1+1 -> 2563 | CTS1: =CTR1+1 -> 2564 | CTT1: =CTS1+1 -> 2565 | CTU1: =CTT1+1 -> 2566 | CTV1: =CTU1+1 -> 2567 | CTW1: =CTV1+1 -> 2568 | CTX1: =CTW1+1 -> 2569 | CTY1: =CTX1+1 -> 2570 | CTZ1: =CTY1+1 -> 2571 | CUA1: =CTZ1+1 -> 2572 | CUB1: =CUA1+1 -> 2573 | CUC1: =CUB1+1 -> 2574 | CUD1: =CUC1+1 -> 2575 | CUE1: =CUD1+1 -> 2576 | CUF1: =CUE1+1 -> 2577 | CUG1: =CUF1+1 -> 2578 | CUH1: =CUG1+1 -> 2579 | CUI1: =CUH1+1 -> 2580 | CUJ1: =CUI1+1 -> 2581 | CUK1: =CUJ1+1 -> 2582 | CUL1: =CUK1+1 -> 2583 | CUM1: =CUL1+1 -> 2584 | CUN1: =CUM1+1 -> 2585 | CUO1: =CUN1+1 -> 2586 | CUP1: =CUO1+1 -> 2587 | CUQ1: =CUP1+1 -> 2588 | CUR1: =CUQ1+1 -> 2589 | CUS1: =CUR1+1 -> 2590 | CUT1: =CUS1+1 -> 2591 | CUU1: =CUT1+1 -> 2592 | CUV1: =CUU1+1 -> 2593 | CUW1: =CUV1+1 -> 2594 | CUX1: =CUW1+1 -> 2595 | CUY1: =CUX1+1 -> 2596 | CUZ1: 2597 | CVA1: 2598 | CVB1: 2599 | CVC1: 2600 | CVD1: 2601 | CVE1: 2602 | CVF1: 2603 | CVG1: 2604 | CVH1: 2605 | CVI1: 2606 | CVJ1: 2607 | CVK1: 2608 | CVL1: 2609 | CVM1: 2610 | CVN1: =CVM1+1 -> 2611 | CVO1: =CVN1+1 -> 2612 | CVP1: =CVO1+1 -> 2613 | CVQ1: =CVP1+1 -> 2614 | CVR1: =CVQ1+1 -> 2615 | CVS1: =CVR1+1 -> 2616 | CVT1: =CVS1+1 -> 2617 | CVU1: =CVT1+1 -> 2618 | CVV1: =CVU1+1 -> 2619 | CVW1: =CVV1+1 -> 2620 | CVX1: =CVW1+1 -> 2621 | CVY1: =CVX1+1 -> 2622 | CVZ1: =CVY1+1 -> 2623 | CWA1: =CVZ1+1 -> 2624 | CWB1: =CWA1+1 -> 2625 | CWC1: =CWB1+1 -> 2626 | CWD1: =CWC1+1 -> 2627 | CWE1: =CWD1+1 -> 2628 | CWF1: =CWE1+1 -> 2629 | CWG1: =CWF1+1 -> 2630 | CWH1: =CWG1+1 -> 2631 | CWI1: =CWH1+1 -> 2632 | CWJ1: =CWI1+1 -> 2633 | CWK1: =CWJ1+1 -> 2634 | CWL1: =CWK1+1 -> 2635 | CWM1: =CWL1+1 -> 2636 | CWN1: =CWM1+1 -> 2637 | CWO1: =CWN1+1 -> 2638 | CWP1: =CWO1+1 -> 2639 | CWQ1: =CWP1+1 -> 2640 | CWR1: =CWQ1+1 -> 2641 | CWS1: =CWR1+1 -> 2642 | CWT1: =CWS1+1 -> 2643 | CWU1: =CWT1+1 -> 2644 | CWV1: =CWU1+1 -> 2645 | CWW1: =CWV1+1 -> 2646 | CWX1: =CWW1+1 -> 2647 | CWY1: =CWX1+1 -> 2648 | CWZ1: =CWY1+1 -> 2649 | CXA1: =CWZ1+1 -> 2650 | CXB1: =CXA1+1 -> 2651 | CXC1: =CXB1+1 -> 2652 | CXD1: =CXC1+1 -> 2653 | CXE1: =CXD1+1 -> 2654 | CXF1: =CXE1+1 -> 2655 | CXG1: =CXF1+1 -> 2656 | CXH1: =CXG1+1 -> 2657 | CXI1: =CXH1+1 -> 2658 | CXJ1: =CXI1+1 -> 2659 | CXK1: =CXJ1+1 -> 2660 | CXL1: =CXK1+1 -> 2661 | CXM1: =CXL1+1 -> 2662 | CXN1: =CXM1+1 -> 2663 | CXO1: =CXN1+1 -> 2664 | CXP1: =CXO1+1 -> 2665 | CXQ1: =CXP1+1 -> 2666 | CXR1: =CXQ1+1 -> 2667 | CXS1: =CXR1+1 -> 2668 | CXT1: =CXS1+1 -> 2669 | CXU1: =CXT1+1 -> 2670 | CXV1: =CXU1+1 -> 2671 | CXW1: =CXV1+1 -> 2672 | CXX1: =CXW1+1 -> 2673 | CXY1: =CXX1+1 -> 2674 | CXZ1: =CXY1+1 -> 2675 | CYA1: =CXZ1+1 -> 2676 | CYB1: =CYA1+1 -> 2677 | CYC1: =CYB1+1 -> 2678 | CYD1: =CYC1+1 -> 2679 | CYE1: =CYD1+1 -> 2680 | CYF1: =CYE1+1 -> 2681 | CYG1: =CYF1+1 -> 2682 | CYH1: =CYG1+1 -> 2683 | CYI1: =CYH1+1 -> 2684 | CYJ1: =CYI1+1 -> 2685 | CYK1: =CYJ1+1 -> 2686 | CYL1: =CYK1+1 -> 2687 | CYM1: =CYL1+1 -> 2688 | CYN1: =CYM1+1 -> 2689 | CYO1: =CYN1+1 -> 2690 | CYP1: =CYO1+1 -> 2691 | CYQ1: =CYP1+1 -> 2692 | CYR1: =CYQ1+1 -> 2693 | CYS1: =CYR1+1 -> 2694 | CYT1: =CYS1+1 -> 2695 | CYU1: =CYT1+1 -> 2696 | CYV1: =CYU1+1 -> 2697 | CYW1: =CYV1+1 -> 2698 | CYX1: =CYW1+1 -> 2699 | CYY1: =CYX1+1 -> 2700 | CYZ1: =CYY1+1 -> 2701 | CZA1: =CYZ1+1 -> 2702 | CZB1: =CZA1+1 -> 2703 | CZC1: =CZB1+1 -> 2704 | CZD1: =CZC1+1 -> 2705 | CZE1: =CZD1+1 -> 2706 | CZF1: =CZE1+1 -> 2707 | CZG1: =CZF1+1 -> 2708 | CZH1: =CZG1+1 -> 2709 | CZI1: =CZH1+1 -> 2710 | CZJ1: =CZI1+1 -> 2711 | CZK1: =CZJ1+1 -> 2712 | CZL1: =CZK1+1 -> 2713 | CZM1: =CZL1+1 -> 2714 | CZN1: =CZM1+1 -> 2715 | CZO1: =CZN1+1 -> 2716 | CZP1: =CZO1+1 -> 2717 | CZQ1: =CZP1+1 -> 2718 | CZR1: =CZQ1+1 -> 2719 | CZS1: =CZR1+1 -> 2720 | CZT1: =CZS1+1 -> 2721 | CZU1: =CZT1+1 -> 2722 | CZV1: =CZU1+1 -> 2723 | CZW1: =CZV1+1 -> 2724 | CZX1: =CZW1+1 -> 2725 | CZY1: =CZX1+1 -> 2726 | CZZ1: =CZY1+1 -> 2727 | DAA1: =CZZ1+1 -> 2728 | DAB1: =DAA1+1 -> 2729 | DAC1: =DAB1+1 -> 2730 | DAD1: =DAC1+1 -> 2731 | DAE1: =DAD1+1 -> 2732 | DAF1: =DAE1+1 -> 2733 | DAG1: =DAF1+1 -> 2734 | DAH1: =DAG1+1 -> 2735 | DAI1: =DAH1+1 -> 2736 | DAJ1: =DAI1+1 -> 2737 | DAK1: =DAJ1+1 -> 2738 | DAL1: =DAK1+1 -> 2739 | DAM1: =DAL1+1 -> 2740 | DAN1: =DAM1+1 -> 2741 | DAO1: =DAN1+1 -> 2742 | DAP1: =DAO1+1 -> 2743 | DAQ1: =DAP1+1 -> 2744 | DAR1: =DAQ1+1 -> 2745 | DAS1: =DAR1+1 -> 2746 | DAT1: =DAS1+1 -> 2747 | DAU1: =DAT1+1 -> 2748 | DAV1: =DAU1+1 -> 2749 | DAW1: =DAV1+1 -> 2750 | DAX1: =DAW1+1 -> 2751 | DAY1: =DAX1+1 -> 2752 | DAZ1: =DAY1+1 -> 2753 | DBA1: =DAZ1+1 -> 2754 | DBB1: =DBA1+1 -> 2755 | DBC1: =DBB1+1 -> 2756 | DBD1: =DBC1+1 -> 2757 | DBE1: =DBD1+1 -> 2758 | DBF1: =DBE1+1 -> 2759 | DBG1: =DBF1+1 -> 2760 | DBH1: =DBG1+1 -> 2761 | DBI1: =DBH1+1 -> 2762 | DBJ1: =DBI1+1 -> 2763 | DBK1: =DBJ1+1 -> 2764 | DBL1: =DBK1+1 -> 2765 | DBM1: =DBL1+1 -> 2766 | DBN1: =DBM1+1 -> 2767 | DBO1: =DBN1+1 -> 2768 | DBP1: =DBO1+1 -> 2769 | DBQ1: =DBP1+1 -> 2770 | DBR1: =DBQ1+1 -> 2771 | DBS1: =DBR1+1 -> 2772 | DBT1: =DBS1+1 -> 2773 | DBU1: =DBT1+1 -> 2774 | DBV1: =DBU1+1 -> 2775 | DBW1: =DBV1+1 -> 2776 | DBX1: =DBW1+1 -> 2777 | DBY1: =DBX1+1 -> 2778 | DBZ1: =DBY1+1 -> 2779 | DCA1: =DBZ1+1 -> 2780 | DCB1: =DCA1+1 -> 2781 | DCC1: =DCB1+1 -> 2782 | DCD1: =DCC1+1 -> 2783 | DCE1: =DCD1+1 -> 2784 | DCF1: =DCE1+1 -> 2785 | DCG1: =DCF1+1 -> 2786 | DCH1: =DCG1+1 -> 2787 | DCI1: =DCH1+1 -> 2788 | DCJ1: =DCI1+1 -> 2789 | DCK1: =DCJ1+1 -> 2790 | DCL1: =DCK1+1 -> 2791 | DCM1: =DCL1+1 -> 2792 | DCN1: =DCM1+1 -> 2793 | DCO1: =DCN1+1 -> 2794 | DCP1: =DCO1+1 -> 2795 | DCQ1: =DCP1+1 -> 2796 | DCR1: =DCQ1+1 -> 2797 | DCS1: =DCR1+1 -> 2798 | DCT1: =DCS1+1 -> 2799 | DCU1: =DCT1+1 -> 2800 | DCV1: =DCU1+1 -> 2801 | DCW1: =DCV1+1 -> 2802 | DCX1: =DCW1+1 -> 2803 | DCY1: =DCX1+1 -> 2804 | DCZ1: =DCY1+1 -> 2805 | DDA1: =DCZ1+1 -> 2806 | DDB1: =DDA1+1 -> 2807 | DDC1: =DDB1+1 -> 2808 | DDD1: =DDC1+1 -> 2809 | DDE1: =DDD1+1 -> 2810 | DDF1: =DDE1+1 -> 2811 | DDG1: =DDF1+1 -> 2812 | DDH1: =DDG1+1 -> 2813 | DDI1: =DDH1+1 -> 2814 | DDJ1: =DDI1+1 -> 2815 | DDK1: =DDJ1+1 -> 2816 | DDL1: =DDK1+1 -> 2817 | DDM1: =DDL1+1 -> 2818 | DDN1: =DDM1+1 -> 2819 | DDO1: =DDN1+1 -> 2820 | DDP1: =DDO1+1 -> 2821 | DDQ1: =DDP1+1 -> 2822 | DDR1: =DDQ1+1 -> 2823 | DDS1: =DDR1+1 -> 2824 | DDT1: =DDS1+1 -> 2825 | DDU1: =DDT1+1 -> 2826 | DDV1: =DDU1+1 -> 2827 | DDW1: =DDV1+1 -> 2828 | DDX1: =DDW1+1 -> 2829 | DDY1: =DDX1+1 -> 2830 | DDZ1: =DDY1+1 -> 2831 | DEA1: =DDZ1+1 -> 2832 | DEB1: =DEA1+1 -> 2833 | DEC1: =DEB1+1 -> 2834 | DED1: =DEC1+1 -> 2835 | DEE1: =DED1+1 -> 2836 | DEF1: =DEE1+1 -> 2837 | DEG1: =DEF1+1 -> 2838 | DEH1: =DEG1+1 -> 2839 | DEI1: =DEH1+1 -> 2840 | DEJ1: =DEI1+1 -> 2841 | DEK1: =DEJ1+1 -> 2842 | DEL1: =DEK1+1 -> 2843 | DEM1: =DEL1+1 -> 2844 | DEN1: =DEM1+1 -> 2845 | DEO1: =DEN1+1 -> 2846 | DEP1: =DEO1+1 -> 2847 | DEQ1: =DEP1+1 -> 2848 | DER1: =DEQ1+1 -> 2849 | DES1: =DER1+1 -> 2850 | DET1: =DES1+1 -> 2851 | DEU1: =DET1+1 -> 2852 | DEV1: =DEU1+1 -> 2853 | DEW1: =DEV1+1 -> 2854 | DEX1: =DEW1+1 -> 2855 | DEY1: =DEX1+1 -> 2856 | DEZ1: =DEY1+1 -> 2857 | DFA1: =DEZ1+1 -> 2858 | DFB1: =DFA1+1 -> 2859 | DFC1: =DFB1+1 -> 2860 | DFD1: =DFC1+1 -> 2861 | DFE1: =DFD1+1 -> 2862 | DFF1: =DFE1+1 -> 2863 | DFG1: =DFF1+1 -> 2864 | DFH1: =DFG1+1 -> 2865 | DFI1: =DFH1+1 -> 2866 | DFJ1: =DFI1+1 -> 2867 | DFK1: =DFJ1+1 -> 2868 | DFL1: =DFK1+1 -> 2869 | DFM1: =DFL1+1 -> 2870 | DFN1: =DFM1+1 -> 2871 | DFO1: =DFN1+1 -> 2872 | DFP1: =DFO1+1 -> 2873 | DFQ1: =DFP1+1 -> 2874 | DFR1: =DFQ1+1 -> 2875 | DFS1: =DFR1+1 -> 2876 | DFT1: =DFS1+1 -> 2877 | DFU1: =DFT1+1 -> 2878 | DFV1: =DFU1+1 -> 2879 | DFW1: =DFV1+1 -> 2880 | DFX1: =DFW1+1 -> 2881 | DFY1: =DFX1+1 -> 2882 | DFZ1: =DFY1+1 -> 2883 | DGA1: =DFZ1+1 -> 2884 | DGB1: =DGA1+1 -> 2885 | DGC1: =DGB1+1 -> 2886 | DGD1: =DGC1+1 -> 2887 | DGE1: =DGD1+1 -> 2888 | DGF1: =DGE1+1 -> 2889 | DGG1: =DGF1+1 -> 2890 | DGH1: =DGG1+1 -> 2891 | DGI1: =DGH1+1 -> 2892 | DGJ1: =DGI1+1 -> 2893 | DGK1: =DGJ1+1 -> 2894 | DGL1: =DGK1+1 -> 2895 | DGM1: =DGL1+1 -> 2896 | DGN1: =DGM1+1 -> 2897 | DGO1: =DGN1+1 -> 2898 | DGP1: =DGO1+1 -> 2899 | DGQ1: =DGP1+1 -> 2900 | DGR1: =DGQ1+1 -> 2901 | DGS1: =DGR1+1 -> 2902 | DGT1: =DGS1+1 -> 2903 | DGU1: =DGT1+1 -> 2904 | DGV1: =DGU1+1 -> 2905 | DGW1: =DGV1+1 -> 2906 | DGX1: =DGW1+1 -> 2907 | DGY1: =DGX1+1 -> 2908 | DGZ1: =DGY1+1 -> 2909 | DHA1: =DGZ1+1 -> 2910 | DHB1: =DHA1+1 -> 2911 | DHC1: =DHB1+1 -> 2912 | DHD1: =DHC1+1 -> 2913 | DHE1: =DHD1+1 -> 2914 | DHF1: =DHE1+1 -> 2915 | DHG1: =DHF1+1 -> 2916 | DHH1: =DHG1+1 -> 2917 | DHI1: =DHH1+1 -> 2918 | DHJ1: =DHI1+1 -> 2919 | DHK1: =DHJ1+1 -> 2920 | DHL1: =DHK1+1 -> 2921 | DHM1: =DHL1+1 -> 2922 | DHN1: =DHM1+1 -> 2923 | DHO1: =DHN1+1 -> 2924 | DHP1: =DHO1+1 -> 2925 | DHQ1: =DHP1+1 -> 2926 | DHR1: =DHQ1+1 -> 2927 | DHS1: =DHR1+1 -> 2928 | DHT1: =DHS1+1 -> 2929 | DHU1: =DHT1+1 -> 2930 | DHV1: =DHU1+1 -> 2931 | DHW1: =DHV1+1 -> 2932 | DHX1: =DHW1+1 -> 2933 | DHY1: =DHX1+1 -> 2934 | DHZ1: =DHY1+1 -> 2935 | DIA1: =DHZ1+1 -> 2936 | DIB1: =DIA1+1 -> 2937 | DIC1: =DIB1+1 -> 2938 | DID1: =DIC1+1 -> 2939 | DIE1: =DID1+1 -> 2940 | DIF1: =DIE1+1 -> 2941 | DIG1: =DIF1+1 -> 2942 | DIH1: =DIG1+1 -> 2943 | DII1: =DIH1+1 -> 2944 | DIJ1: =DII1+1 -> 2945 | DIK1: =DIJ1+1 -> 2946 | DIL1: =DIK1+1 -> 2947 | DIM1: =DIL1+1 -> 2948 | DIN1: =DIM1+1 -> 2949 | DIO1: =DIN1+1 -> 2950 | DIP1: =DIO1+1 -> 2951 | DIQ1: =DIP1+1 -> 2952 | DIR1: =DIQ1+1 -> 2953 | DIS1: =DIR1+1 -> 2954 | DIT1: =DIS1+1 -> 2955 | DIU1: =DIT1+1 -> 2956 | DIV1: =DIU1+1 -> 2957 | DIW1: =DIV1+1 -> 2958 | DIX1: =DIW1+1 -> 2959 | DIY1: =DIX1+1 -> 2960 | DIZ1: =DIY1+1 -> 2961 | DJA1: =DIZ1+1 -> 2962 | DJB1: =DJA1+1 -> 2963 | DJC1: =DJB1+1 -> 2964 | DJD1: =DJC1+1 -> 2965 | DJE1: =DJD1+1 -> 2966 | DJF1: =DJE1+1 -> 2967 | DJG1: =DJF1+1 -> 2968 | DJH1: =DJG1+1 -> 2969 | DJI1: =DJH1+1 -> 2970 | DJJ1: =DJI1+1 -> 2971 | DJK1: =DJJ1+1 -> 2972 | DJL1: =DJK1+1 -> 2973 | DJM1: =DJL1+1 -> 2974 | DJN1: =DJM1+1 -> 2975 | DJO1: =DJN1+1 -> 2976 | DJP1: =DJO1+1 -> 2977 | DJQ1: =DJP1+1 -> 2978 | DJR1: =DJQ1+1 -> 2979 | DJS1: =DJR1+1 -> 2980 | DJT1: =DJS1+1 -> 2981 | DJU1: =DJT1+1 -> 2982 | DJV1: =DJU1+1 -> 2983 | DJW1: =DJV1+1 -> 2984 | DJX1: =DJW1+1 -> 2985 | DJY1: =DJX1+1 -> 2986 | DJZ1: =DJY1+1 -> 2987 | DKA1: =DJZ1+1 -> 2988 | DKB1: =DKA1+1 -> 2989 | DKC1: =DKB1+1 -> 2990 | DKD1: =DKC1+1 -> 2991 | DKE1: =DKD1+1 -> 2992 | DKF1: =DKE1+1 -> 2993 | DKG1: =DKF1+1 -> 2994 | DKH1: =DKG1+1 -> 2995 | DKI1: =DKH1+1 -> 2996 | DKJ1: =DKI1+1 -> 2997 | DKK1: =DKJ1+1 -> 2998 | DKL1: =DKK1+1 -> 2999 | DKM1: =DKL1+1 -> 3000 | DKN1: =DKM1+1 -> 3001 | DKO1: =DKN1+1 -> 3002 | DKP1: =DKO1+1 -> 3003 | DKQ1: =DKP1+1 -> 3004 | DKR1: =DKQ1+1 -> 3005 | DKS1: =DKR1+1 -> 3006 | DKT1: =DKS1+1 -> 3007 | DKU1: =DKT1+1 -> 3008 | DKV1: =DKU1+1 -> 3009 | DKW1: =DKV1+1 -> 3010 | DKX1: =DKW1+1 -> 3011 | DKY1: =DKX1+1 -> 3012 | DKZ1: =DKY1+1 -> 3013 | DLA1: =DKZ1+1 -> 3014 | DLB1: =DLA1+1 -> 3015 | DLC1: =DLB1+1 -> 3016 | DLD1: =DLC1+1 -> 3017 | DLE1: =DLD1+1 -> 3018 | DLF1: =DLE1+1 -> 3019 | DLG1: =DLF1+1 -> 3020 | DLH1: =DLG1+1 -> 3021 | DLI1: =DLH1+1 -> 3022 | DLJ1: =DLI1+1 -> 3023 | DLK1: =DLJ1+1 -> 3024 | DLL1: =DLK1+1 -> 3025 | DLM1: =DLL1+1 -> 3026 | DLN1: =DLM1+1 -> 3027 | DLO1: =DLN1+1 -> 3028 | DLP1: =DLO1+1 -> 3029 | DLQ1: =DLP1+1 -> 3030 | DLR1: =DLQ1+1 -> 3031 | DLS1: =DLR1+1 -> 3032 | DLT1: =DLS1+1 -> 3033 | DLU1: =DLT1+1 -> 3034 | DLV1: =DLU1+1 -> 3035 | DLW1: =DLV1+1 -> 3036 | DLX1: =DLW1+1 -> 3037 | DLY1: =DLX1+1 -> 3038 | DLZ1: =DLY1+1 -> 3039 | DMA1: =DLZ1+1 -> 3040 | DMB1: =DMA1+1 -> 3041 | DMC1: =DMB1+1 -> 3042 | DMD1: =DMC1+1 -> 3043 | DME1: =DMD1+1 -> 3044 | DMF1: =DME1+1 -> 3045 | DMG1: =DMF1+1 -> 3046 | DMH1: =DMG1+1 -> 3047 | DMI1: =DMH1+1 -> 3048 | DMJ1: =DMI1+1 -> 3049 | DMK1: =DMJ1+1 -> 3050 | DML1: =DMK1+1 -> 3051 | DMM1: =DML1+1 -> 3052 | DMN1: =DMM1+1 -> 3053 | DMO1: =DMN1+1 -> 3054 | DMP1: =DMO1+1 -> 3055 | DMQ1: =DMP1+1 -> 3056 | DMR1: =DMQ1+1 -> 3057 | DMS1: =DMR1+1 -> 3058 | DMT1: =DMS1+1 -> 3059 | DMU1: =DMT1+1 -> 3060 | DMV1: =DMU1+1 -> 3061 | DMW1: =DMV1+1 -> 3062 | DMX1: =DMW1+1 -> 3063 | DMY1: =DMX1+1 -> 3064 | DMZ1: =DMY1+1 -> 3065 | DNA1: =DMZ1+1 -> 3066 | DNB1: =DNA1+1 -> 3067 | DNC1: =DNB1+1 -> 3068 | DND1: =DNC1+1 -> 3069 | DNE1: =DND1+1 -> 3070 | DNF1: =DNE1+1 -> 3071 | DNG1: =DNF1+1 -> 3072 | DNH1: =DNG1+1 -> 3073 | DNI1: =DNH1+1 -> 3074 | DNJ1: =DNI1+1 -> 3075 | DNK1: =DNJ1+1 -> 3076 | DNL1: =DNK1+1 -> 3077 | DNM1: =DNL1+1 -> 3078 | DNN1: =DNM1+1 -> 3079 | DNO1: =DNN1+1 -> 3080 | DNP1: =DNO1+1 -> 3081 | DNQ1: =DNP1+1 -> 3082 | DNR1: =DNQ1+1 -> 3083 | DNS1: =DNR1+1 -> 3084 | DNT1: =DNS1+1 -> 3085 | DNU1: =DNT1+1 -> 3086 | DNV1: =DNU1+1 -> 3087 | DNW1: =DNV1+1 -> 3088 | DNX1: =DNW1+1 -> 3089 | DNY1: =DNX1+1 -> 3090 | DNZ1: =DNY1+1 -> 3091 | DOA1: =DNZ1+1 -> 3092 | DOB1: =DOA1+1 -> 3093 | DOC1: =DOB1+1 -> 3094 | DOD1: =DOC1+1 -> 3095 | DOE1: =DOD1+1 -> 3096 | DOF1: =DOE1+1 -> 3097 | DOG1: =DOF1+1 -> 3098 | DOH1: =DOG1+1 -> 3099 | DOI1: =DOH1+1 -> 3100 | DOJ1: =DOI1+1 -> 3101 | DOK1: =DOJ1+1 -> 3102 | DOL1: =DOK1+1 -> 3103 | DOM1: =DOL1+1 -> 3104 | DON1: =DOM1+1 -> 3105 | DOO1: =DON1+1 -> 3106 | DOP1: =DOO1+1 -> 3107 | DOQ1: =DOP1+1 -> 3108 | DOR1: =DOQ1+1 -> 3109 | DOS1: =DOR1+1 -> 3110 | DOT1: =DOS1+1 -> 3111 | DOU1: =DOT1+1 -> 3112 | DOV1: =DOU1+1 -> 3113 | DOW1: =DOV1+1 -> 3114 | DOX1: =DOW1+1 -> 3115 | DOY1: =DOX1+1 -> 3116 | DOZ1: =DOY1+1 -> 3117 | DPA1: =DOZ1+1 -> 3118 | DPB1: =DPA1+1 -> 3119 | DPC1: =DPB1+1 -> 3120 | DPD1: =DPC1+1 -> 3121 | DPE1: =DPD1+1 -> 3122 | DPF1: =DPE1+1 -> 3123 | DPG1: =DPF1+1 -> 3124 | DPH1: =DPG1+1 -> 3125 | DPI1: =DPH1+1 -> 3126 | DPJ1: =DPI1+1 -> 3127 | DPK1: =DPJ1+1 -> 3128 | DPL1: =DPK1+1 -> 3129 | DPM1: =DPL1+1 -> 3130 | DPN1: =DPM1+1 -> 3131 | DPO1: =DPN1+1 -> 3132 | DPP1: =DPO1+1 -> 3133 | DPQ1: =DPP1+1 -> 3134 | DPR1: =DPQ1+1 -> 3135 | DPS1: =DPR1+1 -> 3136 | DPT1: =DPS1+1 -> 3137 | DPU1: =DPT1+1 -> 3138 | DPV1: =DPU1+1 -> 3139 | DPW1: =DPV1+1 -> 3140 | DPX1: =DPW1+1 -> 3141 | DPY1: =DPX1+1 -> 3142 | DPZ1: =DPY1+1 -> 3143 | DQA1: =DPZ1+1 -> 3144 | DQB1: =DQA1+1 -> 3145 | DQC1: =DQB1+1 -> 3146 | DQD1: =DQC1+1 -> 3147 | DQE1: =DQD1+1 -> 3148 | DQF1: =DQE1+1 -> 3149 | DQG1: =DQF1+1 -> 3150 | DQH1: =DQG1+1 -> 3151 | DQI1: =DQH1+1 -> 3152 | DQJ1: =DQI1+1 -> 3153 | DQK1: =DQJ1+1 -> 3154 | DQL1: =DQK1+1 -> 3155 | DQM1: =DQL1+1 -> 3156 | DQN1: =DQM1+1 -> 3157 | DQO1: =DQN1+1 -> 3158 | DQP1: =DQO1+1 -> 3159 | DQQ1: =DQP1+1 -> 3160 | DQR1: =DQQ1+1 -> 3161 | DQS1: =DQR1+1 -> 3162 | DQT1: =DQS1+1 -> 3163 | DQU1: =DQT1+1 -> 3164 | DQV1: =DQU1+1 -> 3165 | DQW1: =DQV1+1 -> 3166 | DQX1: =DQW1+1 -> 3167 | DQY1: =DQX1+1 -> 3168 | DQZ1: =DQY1+1 -> 3169 | DRA1: =DQZ1+1 -> 3170 | DRB1: =DRA1+1 -> 3171 | DRC1: =DRB1+1 -> 3172 | DRD1: =DRC1+1 -> 3173 | DRE1: =DRD1+1 -> 3174 | DRF1: =DRE1+1 -> 3175 | DRG1: =DRF1+1 -> 3176 | DRH1: =DRG1+1 -> 3177 | DRI1: =DRH1+1 -> 3178 | DRJ1: =DRI1+1 -> 3179 | DRK1: =DRJ1+1 -> 3180 | DRL1: =DRK1+1 -> 3181 | DRM1: =DRL1+1 -> 3182 | DRN1: =DRM1+1 -> 3183 | DRO1: =DRN1+1 -> 3184 | DRP1: =DRO1+1 -> 3185 | DRQ1: =DRP1+1 -> 3186 | DRR1: =DRQ1+1 -> 3187 | DRS1: =DRR1+1 -> 3188 | DRT1: =DRS1+1 -> 3189 | DRU1: =DRT1+1 -> 3190 | DRV1: =DRU1+1 -> 3191 | DRW1: =DRV1+1 -> 3192 | DRX1: =DRW1+1 -> 3193 | DRY1: =DRX1+1 -> 3194 | DRZ1: =DRY1+1 -> 3195 | DSA1: =DRZ1+1 -> 3196 | DSB1: =DSA1+1 -> 3197 | DSC1: =DSB1+1 -> 3198 | DSD1: =DSC1+1 -> 3199 | DSE1: =DSD1+1 -> 3200 | DSF1: =DSE1+1 -> 3201 | DSG1: =DSF1+1 -> 3202 | DSH1: =DSG1+1 -> 3203 | DSI1: =DSH1+1 -> 3204 | DSJ1: =DSI1+1 -> 3205 | DSK1: =DSJ1+1 -> 3206 | DSL1: =DSK1+1 -> 3207 | DSM1: =DSL1+1 -> 3208 | DSN1: =DSM1+1 -> 3209 | DSO1: =DSN1+1 -> 3210 | DSP1: =DSO1+1 -> 3211 | DSQ1: =DSP1+1 -> 3212 | DSR1: =DSQ1+1 -> 3213 | DSS1: =DSR1+1 -> 3214 | DST1: =DSS1+1 -> 3215 | DSU1: =DST1+1 -> 3216 | DSV1: =DSU1+1 -> 3217 | DSW1: =DSV1+1 -> 3218 | DSX1: =DSW1+1 -> 3219 | DSY1: =DSX1+1 -> 3220 | DSZ1: =DSY1+1 -> 3221 | DTA1: =DSZ1+1 -> 3222 | DTB1: =DTA1+1 -> 3223 | DTC1: =DTB1+1 -> 3224 | DTD1: =DTC1+1 -> 3225 | DTE1: =DTD1+1 -> 3226 | DTF1: =DTE1+1 -> 3227 | DTG1: =DTF1+1 -> 3228 | DTH1: =DTG1+1 -> 3229 | DTI1: =DTH1+1 -> 3230 | DTJ1: =DTI1+1 -> 3231 | DTK1: =DTJ1+1 -> 3232 | DTL1: =DTK1+1 -> 3233 | DTM1: =DTL1+1 -> 3234 | DTN1: =DTM1+1 -> 3235 | DTO1: =DTN1+1 -> 3236 | DTP1: =DTO1+1 -> 3237 | DTQ1: =DTP1+1 -> 3238 | DTR1: =DTQ1+1 -> 3239 | DTS1: =DTR1+1 -> 3240 | DTT1: =DTS1+1 -> 3241 | DTU1: =DTT1+1 -> 3242 | DTV1: =DTU1+1 -> 3243 | DTW1: =DTV1+1 -> 3244 | DTX1: =DTW1+1 -> 3245 | DTY1: =DTX1+1 -> 3246 | DTZ1: =DTY1+1 -> 3247 | DUA1: =DTZ1+1 -> 3248 | DUB1: =DUA1+1 -> 3249 | DUC1: =DUB1+1 -> 3250 | DUD1: =DUC1+1 -> 3251 | DUE1: =DUD1+1 -> 3252 | DUF1: =DUE1+1 -> 3253 | DUG1: =DUF1+1 -> 3254 | DUH1: =DUG1+1 -> 3255 | DUI1: =DUH1+1 -> 3256 | DUJ1: =DUI1+1 -> 3257 | DUK1: =DUJ1+1 -> 3258 | DUL1: =DUK1+1 -> 3259 | DUM1: =DUL1+1 -> 3260 | DUN1: =DUM1+1 -> 3261 | DUO1: =DUN1+1 -> 3262 | DUP1: =DUO1+1 -> 3263 | DUQ1: =DUP1+1 -> 3264 | DUR1: =DUQ1+1 -> 3265 | DUS1: =DUR1+1 -> 3266 | DUT1: =DUS1+1 -> 3267 | DUU1: =DUT1+1 -> 3268 | DUV1: =DUU1+1 -> 3269 | DUW1: =DUV1+1 -> 3270 | DUX1: =DUW1+1 -> 3271 | DUY1: =DUX1+1 -> 3272 | DUZ1: =DUY1+1 -> 3273 | DVA1: =DUZ1+1 -> 3274 | DVB1: =DVA1+1 -> 3275 | DVC1: =DVB1+1 -> 3276 | DVD1: =DVC1+1 -> 3277 | DVE1: =DVD1+1 -> 3278 | DVF1: =DVE1+1 -> 3279 | DVG1: =DVF1+1 -> 3280 | DVH1: =DVG1+1 -> 3281 | DVI1: =DVH1+1 -> 3282 | DVJ1: =DVI1+1 -> 3283 | DVK1: =DVJ1+1 -> 3284 | DVL1: =DVK1+1 -> 3285 | DVM1: =DVL1+1 -> 3286 | DVN1: =DVM1+1 -> 3287 | DVO1: =DVN1+1 -> 3288 | DVP1: =DVO1+1 -> 3289 | DVQ1: =DVP1+1 -> 3290 | DVR1: =DVQ1+1 -> 3291 | DVS1: =DVR1+1 -> 3292 | DVT1: =DVS1+1 -> 3293 | DVU1: =DVT1+1 -> 3294 | DVV1: =DVU1+1 -> 3295 | DVW1: =DVV1+1 -> 3296 | DVX1: =DVW1+1 -> 3297 | DVY1: =DVX1+1 -> 3298 | DVZ1: =DVY1+1 -> 3299 | DWA1: =DVZ1+1 -> 3300 | DWB1: =DWA1+1 -> 3301 | DWC1: =DWB1+1 -> 3302 | DWD1: =DWC1+1 -> 3303 | DWE1: =DWD1+1 -> 3304 | DWF1: =DWE1+1 -> 3305 | DWG1: =DWF1+1 -> 3306 | DWH1: =DWG1+1 -> 3307 | DWI1: =DWH1+1 -> 3308 | DWJ1: =DWI1+1 -> 3309 | DWK1: =DWJ1+1 -> 3310 | DWL1: =DWK1+1 -> 3311 | DWM1: =DWL1+1 -> 3312 | DWN1: =DWM1+1 -> 3313 | DWO1: =DWN1+1 -> 3314 | DWP1: =DWO1+1 -> 3315 | DWQ1: =DWP1+1 -> 3316 | DWR1: =DWQ1+1 -> 3317 | DWS1: =DWR1+1 -> 3318 | DWT1: =DWS1+1 -> 3319 | DWU1: =DWT1+1 -> 3320 | DWV1: =DWU1+1 -> 3321 | DWW1: =DWV1+1 -> 3322 | DWX1: =DWW1+1 -> 3323 | DWY1: =DWX1+1 -> 3324 | DWZ1: =DWY1+1 -> 3325 | DXA1: =DWZ1+1 -> 3326 | DXB1: =DXA1+1 -> 3327 | DXC1: =DXB1+1 -> 3328 | DXD1: =DXC1+1 -> 3329 | DXE1: =DXD1+1 -> 3330 | DXF1: =DXE1+1 -> 3331 | DXG1: =DXF1+1 -> 3332 | DXH1: =DXG1+1 -> 3333 | DXI1: =DXH1+1 -> 3334 | DXJ1: =DXI1+1 -> 3335 | DXK1: =DXJ1+1 -> 3336 | DXL1: =DXK1+1 -> 3337 | DXM1: =DXL1+1 -> 3338 | DXN1: =DXM1+1 -> 3339 | DXO1: =DXN1+1 -> 3340 | DXP1: =DXO1+1 -> 3341 | DXQ1: =DXP1+1 -> 3342 | DXR1: =DXQ1+1 -> 3343 | DXS1: =DXR1+1 -> 3344 | DXT1: =DXS1+1 -> 3345 | DXU1: =DXT1+1 -> 3346 | DXV1: =DXU1+1 -> 3347 | DXW1: =DXV1+1 -> 3348 | DXX1: =DXW1+1 -> 3349 | DXY1: =DXX1+1 -> 3350 | DXZ1: =DXY1+1 -> 3351 | DYA1: =DXZ1+1 -> 3352 | DYB1: =DYA1+1 -> 3353 | DYC1: =DYB1+1 -> 3354 | DYD1: =DYC1+1 -> 3355 | DYE1: =DYD1+1 -> 3356 | DYF1: =DYE1+1 -> 3357 | DYG1: =DYF1+1 -> 3358 | DYH1: =DYG1+1 -> 3359 | DYI1: =DYH1+1 -> 3360 | DYJ1: =DYI1+1 -> 3361 | DYK1: =DYJ1+1 -> 3362 | DYL1: =DYK1+1 -> 3363 | DYM1: =DYL1+1 -> 3364 | DYN1: =DYM1+1 -> 3365 | DYO1: =DYN1+1 -> 3366 | DYP1: =DYO1+1 -> 3367 | DYQ1: =DYP1+1 -> 3368 | DYR1: =DYQ1+1 -> 3369 | DYS1: =DYR1+1 -> 3370 | DYT1: =DYS1+1 -> 3371 | DYU1: =DYT1+1 -> 3372 | DYV1: =DYU1+1 -> 3373 | DYW1: =DYV1+1 -> 3374 | DYX1: =DYW1+1 -> 3375 | DYY1: =DYX1+1 -> 3376 | DYZ1: =DYY1+1 -> 3377 | DZA1: =DYZ1+1 -> 3378 | DZB1: =DZA1+1 -> 3379 | DZC1: =DZB1+1 -> 3380 | DZD1: =DZC1+1 -> 3381 | DZE1: =DZD1+1 -> 3382 | DZF1: =DZE1+1 -> 3383 | DZG1: =DZF1+1 -> 3384 | DZH1: =DZG1+1 -> 3385 | DZI1: =DZH1+1 -> 3386 | DZJ1: =DZI1+1 -> 3387 | DZK1: =DZJ1+1 -> 3388 | DZL1: =DZK1+1 -> 3389 | DZM1: =DZL1+1 -> 3390 | DZN1: =DZM1+1 -> 3391 | DZO1: =DZN1+1 -> 3392 | DZP1: =DZO1+1 -> 3393 | DZQ1: =DZP1+1 -> 3394 | DZR1: =DZQ1+1 -> 3395 | DZS1: =DZR1+1 -> 3396 | DZT1: =DZS1+1 -> 3397 | DZU1: =DZT1+1 -> 3398 | DZV1: =DZU1+1 -> 3399 | DZW1: =DZV1+1 -> 3400 | DZX1: =DZW1+1 -> 3401 | DZY1: =DZX1+1 -> 3402 | DZZ1: =DZY1+1 -> 3403 | EAA1: =DZZ1+1 -> 3404 | EAB1: =EAA1+1 -> 3405 | EAC1: =EAB1+1 -> 3406 | EAD1: =EAC1+1 -> 3407 | EAE1: =EAD1+1 -> 3408 | EAF1: =EAE1+1 -> 3409 | EAG1: =EAF1+1 -> 3410 | EAH1: =EAG1+1 -> 3411 | EAI1: =EAH1+1 -> 3412 | EAJ1: =EAI1+1 -> 3413 | EAK1: =EAJ1+1 -> 3414 | EAL1: =EAK1+1 -> 3415 | EAM1: =EAL1+1 -> 3416 | EAN1: =EAM1+1 -> 3417 | EAO1: =EAN1+1 -> 3418 | EAP1: =EAO1+1 -> 3419 | EAQ1: =EAP1+1 -> 3420 | EAR1: =EAQ1+1 -> 3421 | EAS1: =EAR1+1 -> 3422 | EAT1: =EAS1+1 -> 3423 | EAU1: =EAT1+1 -> 3424 | EAV1: =EAU1+1 -> 3425 | EAW1: =EAV1+1 -> 3426 | EAX1: =EAW1+1 -> 3427 | EAY1: =EAX1+1 -> 3428 | EAZ1: =EAY1+1 -> 3429 | EBA1: =EAZ1+1 -> 3430 | EBB1: =EBA1+1 -> 3431 | EBC1: =EBB1+1 -> 3432 | EBD1: =EBC1+1 -> 3433 | EBE1: =EBD1+1 -> 3434 | EBF1: =EBE1+1 -> 3435 | EBG1: =EBF1+1 -> 3436 | EBH1: =EBG1+1 -> 3437 | EBI1: =EBH1+1 -> 3438 | EBJ1: =EBI1+1 -> 3439 | EBK1: =EBJ1+1 -> 3440 | EBL1: =EBK1+1 -> 3441 | EBM1: =EBL1+1 -> 3442 | EBN1: =EBM1+1 -> 3443 | EBO1: =EBN1+1 -> 3444 | EBP1: =EBO1+1 -> 3445 | EBQ1: =EBP1+1 -> 3446 | EBR1: =EBQ1+1 -> 3447 | EBS1: =EBR1+1 -> 3448 | EBT1: =EBS1+1 -> 3449 | EBU1: =EBT1+1 -> 3450 | EBV1: =EBU1+1 -> 3451 | EBW1: =EBV1+1 -> 3452 | EBX1: =EBW1+1 -> 3453 | EBY1: =EBX1+1 -> 3454 | EBZ1: =EBY1+1 -> 3455 | ECA1: =EBZ1+1 -> 3456 | ECB1: =ECA1+1 -> 3457 | ECC1: =ECB1+1 -> 3458 | ECD1: =ECC1+1 -> 3459 | ECE1: =ECD1+1 -> 3460 | ECF1: =ECE1+1 -> 3461 | ECG1: =ECF1+1 -> 3462 | ECH1: =ECG1+1 -> 3463 | ECI1: =ECH1+1 -> 3464 | ECJ1: =ECI1+1 -> 3465 | ECK1: =ECJ1+1 -> 3466 | ECL1: =ECK1+1 -> 3467 | ECM1: =ECL1+1 -> 3468 | ECN1: =ECM1+1 -> 3469 | ECO1: =ECN1+1 -> 3470 | ECP1: =ECO1+1 -> 3471 | ECQ1: =ECP1+1 -> 3472 | ECR1: =ECQ1+1 -> 3473 | ECS1: =ECR1+1 -> 3474 | ECT1: =ECS1+1 -> 3475 | ECU1: =ECT1+1 -> 3476 | ECV1: =ECU1+1 -> 3477 | ECW1: =ECV1+1 -> 3478 | ECX1: =ECW1+1 -> 3479 | ECY1: =ECX1+1 -> 3480 | ECZ1: =ECY1+1 -> 3481 | EDA1: =ECZ1+1 -> 3482 | EDB1: =EDA1+1 -> 3483 | EDC1: =EDB1+1 -> 3484 | EDD1: =EDC1+1 -> 3485 | EDE1: =EDD1+1 -> 3486 | EDF1: =EDE1+1 -> 3487 | EDG1: =EDF1+1 -> 3488 | EDH1: =EDG1+1 -> 3489 | EDI1: =EDH1+1 -> 3490 | EDJ1: =EDI1+1 -> 3491 | EDK1: =EDJ1+1 -> 3492 | EDL1: =EDK1+1 -> 3493 | EDM1: =EDL1+1 -> 3494 | EDN1: =EDM1+1 -> 3495 | EDO1: =EDN1+1 -> 3496 | EDP1: =EDO1+1 -> 3497 | EDQ1: =EDP1+1 -> 3498 | EDR1: =EDQ1+1 -> 3499 | EDS1: =EDR1+1 -> 3500 | EDT1: =EDS1+1 -> 3501 | EDU1: =EDT1+1 -> 3502 | EDV1: =EDU1+1 -> 3503 | EDW1: =EDV1+1 -> 3504 | EDX1: =EDW1+1 -> 3505 | EDY1: =EDX1+1 -> 3506 | EDZ1: =EDY1+1 -> 3507 | EEA1: =EDZ1+1 -> 3508 | EEB1: =EEA1+1 -> 3509 | EEC1: =EEB1+1 -> 3510 | EED1: =EEC1+1 -> 3511 | EEE1: =EED1+1 -> 3512 | EEF1: =EEE1+1 -> 3513 | EEG1: =EEF1+1 -> 3514 | EEH1: =EEG1+1 -> 3515 | EEI1: =EEH1+1 -> 3516 | EEJ1: =EEI1+1 -> 3517 | EEK1: =EEJ1+1 -> 3518 | EEL1: =EEK1+1 -> 3519 | EEM1: =EEL1+1 -> 3520 | EEN1: =EEM1+1 -> 3521 | EEO1: =EEN1+1 -> 3522 | EEP1: =EEO1+1 -> 3523 | EEQ1: =EEP1+1 -> 3524 | EER1: =EEQ1+1 -> 3525 | EES1: =EER1+1 -> 3526 | EET1: =EES1+1 -> 3527 | EEU1: =EET1+1 -> 3528 | EEV1: =EEU1+1 -> 3529 | EEW1: =EEV1+1 -> 3530 | EEX1: =EEW1+1 -> 3531 | EEY1: =EEX1+1 -> 3532 | EEZ1: =EEY1+1 -> 3533 | EFA1: =EEZ1+1 -> 3534 | EFB1: =EFA1+1 -> 3535 | EFC1: =EFB1+1 -> 3536 | EFD1: =EFC1+1 -> 3537 | EFE1: =EFD1+1 -> 3538 | EFF1: =EFE1+1 -> 3539 | EFG1: =EFF1+1 -> 3540 | EFH1: =EFG1+1 -> 3541 | EFI1: =EFH1+1 -> 3542 | EFJ1: =EFI1+1 -> 3543 | EFK1: =EFJ1+1 -> 3544 | EFL1: =EFK1+1 -> 3545 | EFM1: =EFL1+1 -> 3546 | EFN1: =EFM1+1 -> 3547 | EFO1: =EFN1+1 -> 3548 | EFP1: =EFO1+1 -> 3549 | EFQ1: =EFP1+1 -> 3550 | EFR1: =EFQ1+1 -> 3551 | EFS1: =EFR1+1 -> 3552 | EFT1: =EFS1+1 -> 3553 | EFU1: =EFT1+1 -> 3554 | EFV1: =EFU1+1 -> 3555 | EFW1: =EFV1+1 -> 3556 | EFX1: =EFW1+1 -> 3557 | EFY1: =EFX1+1 -> 3558 | EFZ1: =EFY1+1 -> 3559 | EGA1: =EFZ1+1 -> 3560 | EGB1: =EGA1+1 -> 3561 | EGC1: =EGB1+1 -> 3562 | EGD1: =EGC1+1 -> 3563 | EGE1: 3564 | EGF1: =EGE1+1 -> 3565 | EGG1: =EGF1+1 -> 3566 | EGH1: =EGG1+1 -> 3567 | EGI1: =EGH1+1 -> 3568 | EGJ1: =EGI1+1 -> 3569 | EGK1: =EGJ1+1 -> 3570 | EGL1: =EGK1+1 -> 3571 | EGM1: =EGL1+1 -> 3572 | EGN1: =EGM1+1 -> 3573 | EGO1: =EGN1+1 -> 3574 | EGP1: =EGO1+1 -> 3575 | EGQ1: =EGP1+1 -> 3576 | EGR1: =EGQ1+1 -> 3577 | EGS1: =EGR1+1 -> 3578 | EGT1: =EGS1+1 -> 3579 | EGU1: =EGT1+1 -> 3580 | EGV1: =EGU1+1 -> 3581 | EGW1: =EGV1+1 -> 3582 | EGX1: =EGW1+1 -> 3583 | EGY1: =EGX1+1 -> 3584 | EGZ1: =EGY1+1 -> 3585 | EHA1: =EGZ1+1 -> 3586 | EHB1: =EHA1+1 -> 3587 | EHC1: =EHB1+1 -> 3588 | EHD1: =EHC1+1 -> 3589 | EHE1: =EHD1+1 -> 3590 | EHF1: =EHE1+1 -> 3591 | EHG1: =EHF1+1 -> 3592 | EHH1: =EHG1+1 -> 3593 | EHI1: =EHH1+1 -> 3594 | EHJ1: =EHI1+1 -> 3595 | EHK1: =EHJ1+1 -> 3596 | EHL1: =EHK1+1 -> 3597 | EHM1: =EHL1+1 -> 3598 | EHN1: =EHM1+1 -> 3599 | EHO1: =EHN1+1 -> 3600 | EHP1: =EHO1+1 -> 3601 | EHQ1: =EHP1+1 -> 3602 | EHR1: =EHQ1+1 -> 3603 | EHS1: =EHR1+1 -> 3604 | EHT1: =EHS1+1 -> 3605 | EHU1: =EHT1+1 -> 3606 | EHV1: =EHU1+1 -> 3607 | EHW1: =EHV1+1 -> 3608 | EHX1: =EHW1+1 -> 3609 | EHY1: =EHX1+1 -> 3610 | EHZ1: =EHY1+1 -> 3611 | EIA1: =EHZ1+1 -> 3612 | EIB1: =EIA1+1 -> 3613 | EIC1: =EIB1+1 -> 3614 | EID1: =EIC1+1 -> 3615 | EIE1: =EID1+1 -> 3616 | EIF1: =EIE1+1 -> 3617 | EIG1: =EIF1+1 -> 3618 | EIH1: =EIG1+1 -> 3619 | EII1: =EIH1+1 -> 3620 | EIJ1: =EII1+1 -> 3621 | EIK1: =EIJ1+1 -> 3622 | EIL1: =EIK1+1 -> 3623 | EIM1: =EIL1+1 -> 3624 | EIN1: =EIM1+1 -> 3625 | EIO1: =EIN1+1 -> 3626 | EIP1: =EIO1+1 -> 3627 | EIQ1: =EIP1+1 -> 3628 | EIR1: =EIQ1+1 -> 3629 | EIS1: =EIR1+1 -> 3630 | EIT1: =EIS1+1 -> 3631 | EIU1: =EIT1+1 -> 3632 | EIV1: =EIU1+1 -> 3633 | EIW1: =EIV1+1 -> 3634 | EIX1: =EIW1+1 -> 3635 | EIY1: =EIX1+1 -> 3636 | EIZ1: =EIY1+1 -> 3637 | EJA1: =EIZ1+1 -> 3638 | EJB1: =EJA1+1 -> 3639 | EJC1: =EJB1+1 -> 3640 | EJD1: =EJC1+1 -> 3641 | EJE1: =EJD1+1 -> 3642 | EJF1: =EJE1+1 -> 3643 | EJG1: =EJF1+1 -> 3644 | EJH1: =EJG1+1 -> 3645 | EJI1: =EJH1+1 -> 3646 | EJJ1: =EJI1+1 -> 3647 | EJK1: =EJJ1+1 -> 3648 | EJL1: =EJK1+1 -> 3649 | EJM1: =EJL1+1 -> 3650 | EJN1: =EJM1+1 -> 3651 | EJO1: =EJN1+1 -> 3652 | EJP1: =EJO1+1 -> 3653 | EJQ1: =EJP1+1 -> 3654 | EJR1: =EJQ1+1 -> 3655 | EJS1: =EJR1+1 -> 3656 | EJT1: =EJS1+1 -> 3657 | EJU1: =EJT1+1 -> 3658 | EJV1: =EJU1+1 -> 3659 | EJW1: =EJV1+1 -> 3660 | EJX1: =EJW1+1 -> 3661 | EJY1: =EJX1+1 -> 3662 | EJZ1: =EJY1+1 -> 3663 | EKA1: =EJZ1+1 -> 3664 | EKB1: =EKA1+1 -> 3665 | EKC1: =EKB1+1 -> 3666 | EKD1: =EKC1+1 -> 3667 | EKE1: =EKD1+1 -> 3668 | EKF1: =EKE1+1 -> 3669 | EKG1: =EKF1+1 -> 3670 | EKH1: =EKG1+1 -> 3671 | EKI1: =EKH1+1 -> 3672 | EKJ1: =EKI1+1 -> 3673 | EKK1: =EKJ1+1 -> 3674 | EKL1: =EKK1+1 -> 3675 | EKM1: =EKL1+1 -> 3676 | EKN1: =EKM1+1 -> 3677 | EKO1: =EKN1+1 -> 3678 | EKP1: =EKO1+1 -> 3679 | EKQ1: =EKP1+1 -> 3680 | EKR1: =EKQ1+1 -> 3681 | EKS1: =EKR1+1 -> 3682 | EKT1: =EKS1+1 -> 3683 | EKU1: =EKT1+1 -> 3684 | EKV1: =EKU1+1 -> 3685 | EKW1: =EKV1+1 -> 3686 | EKX1: =EKW1+1 -> 3687 | EKY1: =EKX1+1 -> 3688 | EKZ1: =EKY1+1 -> 3689 | ELA1: =EKZ1+1 -> 3690 | ELB1: =ELA1+1 -> 3691 | ELC1: =ELB1+1 -> 3692 | ELD1: =ELC1+1 -> 3693 | ELE1: =ELD1+1 -> 3694 | ELF1: =ELE1+1 -> 3695 | ELG1: =ELF1+1 -> 3696 | ELH1: =ELG1+1 -> 3697 | ELI1: =ELH1+1 -> 3698 | ELJ1: =ELI1+1 -> 3699 | ELK1: =ELJ1+1 -> 3700 | ELL1: =ELK1+1 -> 3701 | ELM1: =ELL1+1 -> 3702 | ELN1: =ELM1+1 -> 3703 | ELO1: =ELN1+1 -> 3704 | ELP1: =ELO1+1 -> 3705 | ELQ1: =ELP1+1 -> 3706 | ELR1: =ELQ1+1 -> 3707 | ELS1: =ELR1+1 -> 3708 | ELT1: =ELS1+1 -> 3709 | ELU1: =ELT1+1 -> 3710 | ELV1: =ELU1+1 -> 3711 | ELW1: =ELV1+1 -> 3712 | ELX1: =ELW1+1 -> 3713 | ELY1: =ELX1+1 -> 3714 | ELZ1: =ELY1+1 -> 3715 | EMA1: =ELZ1+1 -> 3716 | EMB1: =EMA1+1 -> 3717 | EMC1: =EMB1+1 -> 3718 | EMD1: =EMC1+1 -> 3719 | EME1: =EMD1+1 -> 3720 | EMF1: =EME1+1 -> 3721 | EMG1: =EMF1+1 -> 3722 | EMH1: =EMG1+1 -> 3723 | EMI1: =EMH1+1 -> 3724 | EMJ1: =EMI1+1 -> 3725 | EMK1: =EMJ1+1 -> 3726 | EML1: =EMK1+1 -> 3727 | EMM1: =EML1+1 -> 3728 | EMN1: =EMM1+1 -> 3729 | EMO1: =EMN1+1 -> 3730 | EMP1: =EMO1+1 -> 3731 | EMQ1: =EMP1+1 -> 3732 | EMR1: =EMQ1+1 -> 3733 | EMS1: =EMR1+1 -> 3734 | EMT1: =EMS1+1 -> 3735 | EMU1: =EMT1+1 -> 3736 | EMV1: =EMU1+1 -> 3737 | EMW1: =EMV1+1 -> 3738 | EMX1: =EMW1+1 -> 3739 | EMY1: =EMX1+1 -> 3740 | EMZ1: =EMY1+1 -> 3741 | ENA1: =EMZ1+1 -> 3742 | ENB1: =ENA1+1 -> 3743 | ENC1: =ENB1+1 -> 3744 | END1: =ENC1+1 -> 3745 | ENE1: =END1+1 -> 3746 | ENF1: =ENE1+1 -> 3747 | ENG1: =ENF1+1 -> 3748 | ENH1: =ENG1+1 -> 3749 | ENI1: =ENH1+1 -> 3750 | ENJ1: =ENI1+1 -> 3751 | ENK1: =ENJ1+1 -> 3752 | ENL1: =ENK1+1 -> 3753 | ENM1: =ENL1+1 -> 3754 | ENN1: =ENM1+1 -> 3755 | ENO1: =ENN1+1 -> 3756 | ENP1: =ENO1+1 -> 3757 | ENQ1: =ENP1+1 -> 3758 | ENR1: =ENQ1+1 -> 3759 | ENS1: =ENR1+1 -> 3760 | ENT1: =ENS1+1 -> 3761 | ENU1: =ENT1+1 -> 3762 | ENV1: =ENU1+1 -> 3763 | ENW1: =ENV1+1 -> 3764 | ENX1: =ENW1+1 -> 3765 | ENY1: =ENX1+1 -> 3766 | ENZ1: =ENY1+1 -> 3767 | EOA1: =ENZ1+1 -> 3768 | EOB1: =EOA1+1 -> 3769 | EOC1: =EOB1+1 -> 3770 | EOD1: =EOC1+1 -> 3771 | EOE1: =EOD1+1 -> 3772 | EOF1: =EOE1+1 -> 3773 | EOG1: =EOF1+1 -> 3774 | EOH1: =EOG1+1 -> 3775 | EOI1: =EOH1+1 -> 3776 | EOJ1: =EOI1+1 -> 3777 | EOK1: =EOJ1+1 -> 3778 | EOL1: =EOK1+1 -> 3779 | EOM1: =EOL1+1 -> 3780 | EON1: =EOM1+1 -> 3781 | EOO1: =EON1+1 -> 3782 | EOP1: =EOO1+1 -> 3783 | EOQ1: =EOP1+1 -> 3784 | EOR1: =EOQ1+1 -> 3785 | EOS1: =EOR1+1 -> 3786 | EOT1: =EOS1+1 -> 3787 | EOU1: =EOT1+1 -> 3788 | EOV1: =EOU1+1 -> 3789 | EOW1: =EOV1+1 -> 3790 | EOX1: =EOW1+1 -> 3791 | EOY1: =EOX1+1 -> 3792 | EOZ1: =EOY1+1 -> 3793 | EPA1: =EOZ1+1 -> 3794 | EPB1: =EPA1+1 -> 3795 | EPC1: =EPB1+1 -> 3796 | EPD1: =EPC1+1 -> 3797 | EPE1: =EPD1+1 -> 3798 | EPF1: =EPE1+1 -> 3799 | EPG1: =EPF1+1 -> 3800 | EPH1: =EPG1+1 -> 3801 | EPI1: =EPH1+1 -> 3802 | EPJ1: =EPI1+1 -> 3803 | EPK1: =EPJ1+1 -> 3804 | EPL1: =EPK1+1 -> 3805 | EPM1: =EPL1+1 -> 3806 | EPN1: =EPM1+1 -> 3807 | EPO1: =EPN1+1 -> 3808 | EPP1: =EPO1+1 -> 3809 | EPQ1: =EPP1+1 -> 3810 | EPR1: =EPQ1+1 -> 3811 | EPS1: =EPR1+1 -> 3812 | EPT1: =EPS1+1 -> 3813 | EPU1: =EPT1+1 -> 3814 | EPV1: =EPU1+1 -> 3815 | EPW1: =EPV1+1 -> 3816 | EPX1: =EPW1+1 -> 3817 | EPY1: =EPX1+1 -> 3818 | EPZ1: =EPY1+1 -> 3819 | EQA1: =EPZ1+1 -> 3820 | EQB1: =EQA1+1 -> 3821 | EQC1: =EQB1+1 -> 3822 | EQD1: =EQC1+1 -> 3823 | EQE1: =EQD1+1 -> 3824 | EQF1: =EQE1+1 -> 3825 | EQG1: =EQF1+1 -> 3826 | EQH1: =EQG1+1 -> 3827 | EQI1: =EQH1+1 -> 3828 | EQJ1: =EQI1+1 -> 3829 | EQK1: =EQJ1+1 -> 3830 | EQL1: =EQK1+1 -> 3831 | EQM1: =EQL1+1 -> 3832 | EQN1: =EQM1+1 -> 3833 | EQO1: =EQN1+1 -> 3834 | EQP1: =EQO1+1 -> 3835 | EQQ1: =EQP1+1 -> 3836 | EQR1: =EQQ1+1 -> 3837 | EQS1: =EQR1+1 -> 3838 | EQT1: =EQS1+1 -> 3839 | EQU1: =EQT1+1 -> 3840 | EQV1: =EQU1+1 -> 3841 | EQW1: =EQV1+1 -> 3842 | EQX1: =EQW1+1 -> 3843 | EQY1: =EQX1+1 -> 3844 | EQZ1: =EQY1+1 -> 3845 | ERA1: =EQZ1+1 -> 3846 | ERB1: =ERA1+1 -> 3847 | ERC1: =ERB1+1 -> 3848 | ERD1: =ERC1+1 -> 3849 | ERE1: =ERD1+1 -> 3850 | ERF1: =ERE1+1 -> 3851 | ERG1: =ERF1+1 -> 3852 | ERH1: =ERG1+1 -> 3853 | ERI1: =ERH1+1 -> 3854 | ERJ1: =ERI1+1 -> 3855 | ERK1: =ERJ1+1 -> 3856 | ERL1: =ERK1+1 -> 3857 | ERM1: =ERL1+1 -> 3858 | ERN1: =ERM1+1 -> 3859 | ERO1: =ERN1+1 -> 3860 | ERP1: =ERO1+1 -> 3861 | ERQ1: =ERP1+1 -> 3862 | ERR1: =ERQ1+1 -> 3863 | ERS1: =ERR1+1 -> 3864 | ERT1: =ERS1+1 -> 3865 | ERU1: =ERT1+1 -> 3866 | ERV1: =ERU1+1 -> 3867 | ERW1: =ERV1+1 -> 3868 | ERX1: =ERW1+1 -> 3869 | ERY1: =ERX1+1 -> 3870 | ERZ1: =ERY1+1 -> 3871 | ESA1: =ERZ1+1 -> 3872 | ESB1: =ESA1+1 -> 3873 | ESC1: =ESB1+1 -> 3874 | ESD1: =ESC1+1 -> 3875 | ESE1: =ESD1+1 -> 3876 | ESF1: =ESE1+1 -> 3877 | ESG1: =ESF1+1 -> 3878 | ESH1: =ESG1+1 -> 3879 | ESI1: =ESH1+1 -> 3880 | ESJ1: =ESI1+1 -> 3881 | ESK1: =ESJ1+1 -> 3882 | ESL1: =ESK1+1 -> 3883 | ESM1: =ESL1+1 -> 3884 | ESN1: =ESM1+1 -> 3885 | ESO1: =ESN1+1 -> 3886 | ESP1: =ESO1+1 -> 3887 | ESQ1: =ESP1+1 -> 3888 | ESR1: =ESQ1+1 -> 3889 | ESS1: =ESR1+1 -> 3890 | EST1: =ESS1+1 -> 3891 | ESU1: =EST1+1 -> 3892 | ESV1: =ESU1+1 -> 3893 | ESW1: =ESV1+1 -> 3894 | ESX1: =ESW1+1 -> 3895 | ESY1: =ESX1+1 -> 3896 | ESZ1: =ESY1+1 -> 3897 | ETA1: =ESZ1+1 -> 3898 | ETB1: =ETA1+1 -> 3899 | ETC1: =ETB1+1 -> 3900 | ETD1: =ETC1+1 -> 3901 | ETE1: =ETD1+1 -> 3902 | ETF1: =ETE1+1 -> 3903 | ETG1: =ETF1+1 -> 3904 | ETH1: =ETG1+1 -> 3905 | ETI1: =ETH1+1 -> 3906 | ETJ1: =ETI1+1 -> 3907 | ETK1: =ETJ1+1 -> 3908 | ETL1: =ETK1+1 -> 3909 | ETM1: =ETL1+1 -> 3910 | ETN1: =ETM1+1 -> 3911 | ETO1: =ETN1+1 -> 3912 | ETP1: =ETO1+1 -> 3913 | ETQ1: =ETP1+1 -> 3914 | ETR1: =ETQ1+1 -> 3915 | ETS1: =ETR1+1 -> 3916 | ETT1: =ETS1+1 -> 3917 | ETU1: =ETT1+1 -> 3918 | ETV1: =ETU1+1 -> 3919 | ETW1: =ETV1+1 -> 3920 | ETX1: =ETW1+1 -> 3921 | ETY1: =ETX1+1 -> 3922 | ETZ1: =ETY1+1 -> 3923 | EUA1: =ETZ1+1 -> 3924 | EUB1: =EUA1+1 -> 3925 | EUC1: =EUB1+1 -> 3926 | EUD1: =EUC1+1 -> 3927 | EUE1: =EUD1+1 -> 3928 | EUF1: =EUE1+1 -> 3929 | EUG1: =EUF1+1 -> 3930 | EUH1: =EUG1+1 -> 3931 | EUI1: =EUH1+1 -> 3932 | EUJ1: =EUI1+1 -> 3933 | EUK1: =EUJ1+1 -> 3934 | EUL1: =EUK1+1 -> 3935 | EUM1: =EUL1+1 -> 3936 | EUN1: =EUM1+1 -> 3937 | EUO1: =EUN1+1 -> 3938 | EUP1: =EUO1+1 -> 3939 | EUQ1: =EUP1+1 -> 3940 | EUR1: =EUQ1+1 -> 3941 | EUS1: =EUR1+1 -> 3942 | EUT1: =EUS1+1 -> 3943 | EUU1: =EUT1+1 -> 3944 | EUV1: =EUU1+1 -> 3945 | EUW1: =EUV1+1 -> 3946 | EUX1: =EUW1+1 -> 3947 | EUY1: =EUX1+1 -> 3948 | EUZ1: =EUY1+1 -> 3949 | EVA1: =EUZ1+1 -> 3950 | EVB1: =EVA1+1 -> 3951 | EVC1: =EVB1+1 -> 3952 | EVD1: =EVC1+1 -> 3953 | EVE1: =EVD1+1 -> 3954 | EVF1: =EVE1+1 -> 3955 | EVG1: =EVF1+1 -> 3956 | EVH1: =EVG1+1 -> 3957 | EVI1: 3958 | EVJ1: =EVI1+1 -> 3959 | EVK1: =EVJ1+1 -> 3960 | EVL1: =EVK1+1 -> 3961 | EVM1: =EVL1+1 -> 3962 | EVN1: =EVM1+1 -> 3963 | EVO1: =EVN1+1 -> 3964 | EVP1: =EVO1+1 -> 3965 | EVQ1: =EVP1+1 -> 3966 | EVR1: =EVQ1+1 -> 3967 | EVS1: =EVR1+1 -> 3968 | EVT1: =EVS1+1 -> 3969 | EVU1: =EVT1+1 -> 3970 | EVV1: =EVU1+1 -> 3971 | EVW1: =EVV1+1 -> 3972 | EVX1: =EVW1+1 -> 3973 | EVY1: =EVX1+1 -> 3974 | EVZ1: =EVY1+1 -> 3975 | EWA1: =EVZ1+1 -> 3976 | EWB1: =EWA1+1 -> 3977 | EWC1: =EWB1+1 -> 3978 | EWD1: =EWC1+1 -> 3979 | EWE1: =EWD1+1 -> 3980 | EWF1: =EWE1+1 -> 3981 | EWG1: =EWF1+1 -> 3982 | EWH1: =EWG1+1 -> 3983 | EWI1: =EWH1+1 -> 3984 | EWJ1: =EWI1+1 -> 3985 | EWK1: =EWJ1+1 -> 3986 | EWL1: =EWK1+1 -> 3987 | EWM1: =EWL1+1 -> 3988 | EWN1: =EWM1+1 -> 3989 | EWO1: =EWN1+1 -> 3990 | EWP1: =EWO1+1 -> 3991 | EWQ1: =EWP1+1 -> 3992 | EWR1: =EWQ1+1 -> 3993 | EWS1: =EWR1+1 -> 3994 | EWT1: =EWS1+1 -> 3995 | EWU1: =EWT1+1 -> 3996 | EWV1: =EWU1+1 -> 3997 | EWW1: =EWV1+1 -> 3998 | EWX1: =EWW1+1 -> 3999 | EWY1: =EWX1+1 -> 4000 | EWZ1: =EWY1+1 -> 4001 | EXA1: =EWZ1+1 -> 4002 | EXB1: =EXA1+1 -> 4003 | EXC1: =EXB1+1 -> 4004 | EXD1: =EXC1+1 -> 4005 | EXE1: =EXD1+1 -> 4006 | EXF1: =EXE1+1 -> 4007 | EXG1: =EXF1+1 -> 4008 | EXH1: =EXG1+1 -> 4009 | EXI1: =EXH1+1 -> 4010 | EXJ1: =EXI1+1 -> 4011 | EXK1: =EXJ1+1 -> 4012 | EXL1: =EXK1+1 -> 4013 | EXM1: =EXL1+1 -> 4014 | EXN1: =EXM1+1 -> 4015 | EXO1: =EXN1+1 -> 4016 | EXP1: =EXO1+1 -> 4017 | EXQ1: =EXP1+1 -> 4018 | EXR1: =EXQ1+1 -> 4019 | EXS1: =EXR1+1 -> 4020 | EXT1: =EXS1+1 -> 4021 | EXU1: =EXT1+1 -> 4022 | EXV1: =EXU1+1 -> 4023 | EXW1: =EXV1+1 -> 4024 | EXX1: =EXW1+1 -> 4025 | EXY1: =EXX1+1 -> 4026 | EXZ1: =EXY1+1 -> 4027 | EYA1: =EXZ1+1 -> 4028 | EYB1: =EYA1+1 -> 4029 | EYC1: =EYB1+1 -> 4030 | EYD1: =EYC1+1 -> 4031 | EYE1: =EYD1+1 -> 4032 | EYF1: =EYE1+1 -> 4033 | EYG1: =EYF1+1 -> 4034 | EYH1: =EYG1+1 -> 4035 | EYI1: =EYH1+1 -> 4036 | EYJ1: =EYI1+1 -> 4037 | EYK1: =EYJ1+1 -> 4038 | EYL1: =EYK1+1 -> 4039 | EYM1: =EYL1+1 -> 4040 | EYN1: =EYM1+1 -> 4041 | EYO1: =EYN1+1 -> 4042 | EYP1: =EYO1+1 -> 4043 | EYQ1: =EYP1+1 -> 4044 | EYR1: =EYQ1+1 -> 4045 | EYS1: =EYR1+1 -> 4046 | EYT1: =EYS1+1 -> 4047 | EYU1: =EYT1+1 -> 4048 | EYV1: =EYU1+1 -> 4049 | EYW1: =EYV1+1 -> 4050 | EYX1: =EYW1+1 -> 4051 | EYY1: =EYX1+1 -> 4052 | EYZ1: =EYY1+1 -> 4053 | EZA1: =EYZ1+1 -> 4054 | EZB1: =EZA1+1 -> 4055 | EZC1: =EZB1+1 -> 4056 | EZD1: =EZC1+1 -> 4057 | EZE1: =EZD1+1 -> 4058 | EZF1: =EZE1+1 -> 4059 | EZG1: =EZF1+1 -> 4060 | EZH1: =EZG1+1 -> 4061 | EZI1: =EZH1+1 -> 4062 | EZJ1: =EZI1+1 -> 4063 | EZK1: =EZJ1+1 -> 4064 | EZL1: =EZK1+1 -> 4065 | EZM1: =EZL1+1 -> 4066 | EZN1: =EZM1+1 -> 4067 | EZO1: =EZN1+1 -> 4068 | EZP1: =EZO1+1 -> 4069 | EZQ1: =EZP1+1 -> 4070 | EZR1: =EZQ1+1 -> 4071 | EZS1: =EZR1+1 -> 4072 | EZT1: =EZS1+1 -> 4073 | EZU1: =EZT1+1 -> 4074 | EZV1: =EZU1+1 -> 4075 | EZW1: =EZV1+1 -> 4076 | EZX1: =EZW1+1 -> 4077 | EZY1: =EZX1+1 -> 4078 | EZZ1: =EZY1+1 -> 4079 | FAA1: =EZZ1+1 -> 4080 | FAB1: =FAA1+1 -> 4081 | FAC1: =FAB1+1 -> 4082 | FAD1: =FAC1+1 -> 4083 | FAE1: =FAD1+1 -> 4084 | FAF1: =FAE1+1 -> 4085 | FAG1: =FAF1+1 -> 4086 | FAH1: =FAG1+1 -> 4087 | FAI1: =FAH1+1 -> 4088 | FAJ1: =FAI1+1 -> 4089 | FAK1: =FAJ1+1 -> 4090 | FAL1: =FAK1+1 -> 4091 | FAM1: =FAL1+1 -> 4092 | FAN1: =FAM1+1 -> 4093 | FAO1: =FAN1+1 -> 4094 | FAP1: =FAO1+1 -> 4095 | FAQ1: =FAP1+1 -> 4096 | FAR1: =FAQ1+1 -> 4097 | FAS1: =FAR1+1 -> 4098 | FAT1: =FAS1+1 -> 4099 | FAU1: =FAT1+1 -> 4100 | FAV1: =FAU1+1 -> 4101 | FAW1: =FAV1+1 -> 4102 | FAX1: =FAW1+1 -> 4103 | FAY1: =FAX1+1 -> 4104 | FAZ1: =FAY1+1 -> 4105 | FBA1: =FAZ1+1 -> 4106 | FBB1: =FBA1+1 -> 4107 | FBC1: =FBB1+1 -> 4108 | FBD1: =FBC1+1 -> 4109 | FBE1: =FBD1+1 -> 4110 | FBF1: =FBE1+1 -> 4111 | FBG1: =FBF1+1 -> 4112 | FBH1: =FBG1+1 -> 4113 | FBI1: =FBH1+1 -> 4114 | FBJ1: =FBI1+1 -> 4115 | FBK1: =FBJ1+1 -> 4116 | FBL1: =FBK1+1 -> 4117 | FBM1: =FBL1+1 -> 4118 | FBN1: =FBM1+1 -> 4119 | FBO1: =FBN1+1 -> 4120 | FBP1: =FBO1+1 -> 4121 | FBQ1: =FBP1+1 -> 4122 | FBR1: =FBQ1+1 -> 4123 | FBS1: =FBR1+1 -> 4124 | FBT1: =FBS1+1 -> 4125 | FBU1: =FBT1+1 -> 4126 | FBV1: =FBU1+1 -> 4127 | FBW1: =FBV1+1 -> 4128 | FBX1: =FBW1+1 -> 4129 | FBY1: =FBX1+1 -> 4130 | FBZ1: =FBY1+1 -> 4131 | FCA1: =FBZ1+1 -> 4132 | FCB1: =FCA1+1 -> 4133 | FCC1: =FCB1+1 -> 4134 | FCD1: =FCC1+1 -> 4135 | FCE1: =FCD1+1 -> 4136 | FCF1: =FCE1+1 -> 4137 | FCG1: =FCF1+1 -> 4138 | FCH1: =FCG1+1 -> 4139 | FCI1: =FCH1+1 -> 4140 | FCJ1: =FCI1+1 -> 4141 | FCK1: =FCJ1+1 -> 4142 | FCL1: =FCK1+1 -> 4143 | FCM1: =FCL1+1 -> 4144 | FCN1: =FCM1+1 -> 4145 | FCO1: =FCN1+1 -> 4146 | FCP1: =FCO1+1 -> 4147 | FCQ1: =FCP1+1 -> 4148 | FCR1: =FCQ1+1 -> 4149 | FCS1: =FCR1+1 -> 4150 | FCT1: =FCS1+1 -> 4151 | FCU1: =FCT1+1 -> 4152 | FCV1: =FCU1+1 -> 4153 | FCW1: =FCV1+1 -> 4154 | FCX1: =FCW1+1 -> 4155 | FCY1: =FCX1+1 -> 4156 | FCZ1: =FCY1+1 -> 4157 | FDA1: =FCZ1+1 -> 4158 | FDB1: =FDA1+1 -> 4159 | FDC1: =FDB1+1 -> 4160 | FDD1: =FDC1+1 -> 4161 | FDE1: =FDD1+1 -> 4162 | FDF1: =FDE1+1 -> 4163 | FDG1: =FDF1+1 -> 4164 | FDH1: =FDG1+1 -> 4165 | FDI1: =FDH1+1 -> 4166 | FDJ1: =FDI1+1 -> 4167 | FDK1: =FDJ1+1 -> 4168 | FDL1: =FDK1+1 -> 4169 | FDM1: =FDL1+1 -> 4170 | FDN1: =FDM1+1 -> 4171 | FDO1: =FDN1+1 -> 4172 | FDP1: =FDO1+1 -> 4173 | FDQ1: =FDP1+1 -> 4174 | FDR1: =FDQ1+1 -> 4175 | FDS1: =FDR1+1 -> 4176 | FDT1: =FDS1+1 -> 4177 | FDU1: =FDT1+1 -> 4178 | FDV1: =FDU1+1 -> 4179 | FDW1: =FDV1+1 -> 4180 | FDX1: =FDW1+1 -> 4181 | FDY1: =FDX1+1 -> 4182 | FDZ1: =FDY1+1 -> 4183 | FEA1: =FDZ1+1 -> 4184 | FEB1: =FEA1+1 -> 4185 | FEC1: =FEB1+1 -> 4186 | FED1: =FEC1+1 -> 4187 | FEE1: =FED1+1 -> 4188 | FEF1: =FEE1+1 -> 4189 | FEG1: =FEF1+1 -> 4190 | FEH1: =FEG1+1 -> 4191 | FEI1: =FEH1+1 -> 4192 | FEJ1: =FEI1+1 -> 4193 | FEK1: =FEJ1+1 -> 4194 | FEL1: =FEK1+1 -> 4195 | FEM1: =FEL1+1 -> 4196 | FEN1: =FEM1+1 -> 4197 | FEO1: =FEN1+1 -> 4198 | FEP1: =FEO1+1 -> 4199 | FEQ1: =FEP1+1 -> 4200 | FER1: =FEQ1+1 -> 4201 | FES1: =FER1+1 -> 4202 | FET1: =FES1+1 -> 4203 | FEU1: =FET1+1 -> 4204 | FEV1: =FEU1+1 -> 4205 | FEW1: =FEV1+1 -> 4206 | FEX1: =FEW1+1 -> 4207 | FEY1: =FEX1+1 -> 4208 | FEZ1: =FEY1+1 -> 4209 | FFA1: =FEZ1+1 -> 4210 | FFB1: =FFA1+1 -> 4211 | FFC1: =FFB1+1 -> 4212 | FFD1: =FFC1+1 -> 4213 | FFE1: =FFD1+1 -> 4214 | FFF1: =FFE1+1 -> 4215 | FFG1: =FFF1+1 -> 4216 | FFH1: =FFG1+1 -> 4217 | FFI1: =FFH1+1 -> 4218 | FFJ1: =FFI1+1 -> 4219 | FFK1: =FFJ1+1 -> 4220 | FFL1: =FFK1+1 -> 4221 | FFM1: =FFL1+1 -> 4222 | FFN1: =FFM1+1 -> 4223 | FFO1: =FFN1+1 -> 4224 | FFP1: =FFO1+1 -> 4225 | FFQ1: =FFP1+1 -> 4226 | FFR1: =FFQ1+1 -> 4227 | FFS1: =FFR1+1 -> 4228 | FFT1: =FFS1+1 -> 4229 | FFU1: =FFT1+1 -> 4230 | FFV1: =FFU1+1 -> 4231 | FFW1: =FFV1+1 -> 4232 | FFX1: =FFW1+1 -> 4233 | FFY1: =FFX1+1 -> 4234 | FFZ1: =FFY1+1 -> 4235 | FGA1: =FFZ1+1 -> 4236 | FGB1: =FGA1+1 -> 4237 | FGC1: =FGB1+1 -> 4238 | FGD1: =FGC1+1 -> 4239 | FGE1: =FGD1+1 -> 4240 | FGF1: =FGE1+1 -> 4241 | FGG1: =FGF1+1 -> 4242 | FGH1: =FGG1+1 -> 4243 | FGI1: =FGH1+1 -> 4244 | FGJ1: =FGI1+1 -> 4245 | FGK1: =FGJ1+1 -> 4246 | FGL1: =FGK1+1 -> 4247 | FGM1: =FGL1+1 -> 4248 | FGN1: =FGM1+1 -> 4249 | FGO1: =FGN1+1 -> 4250 | FGP1: =FGO1+1 -> 4251 | FGQ1: =FGP1+1 -> 4252 | FGR1: =FGQ1+1 -> 4253 | FGS1: =FGR1+1 -> 4254 | FGT1: =FGS1+1 -> 4255 | FGU1: =FGT1+1 -> 4256 | FGV1: =FGU1+1 -> 4257 | FGW1: =FGV1+1 -> 4258 | FGX1: =FGW1+1 -> 4259 | FGY1: =FGX1+1 -> 4260 | FGZ1: =FGY1+1 -> 4261 | FHA1: =FGZ1+1 -> 4262 | FHB1: =FHA1+1 -> 4263 | FHC1: =FHB1+1 -> 4264 | FHD1: =FHC1+1 -> 4265 | FHE1: =FHD1+1 -> 4266 | FHF1: =FHE1+1 -> 4267 | FHG1: =FHF1+1 -> 4268 | FHH1: =FHG1+1 -> 4269 | FHI1: =FHH1+1 -> 4270 | FHJ1: =FHI1+1 -> 4271 | FHK1: =FHJ1+1 -> 4272 | FHL1: =FHK1+1 -> 4273 | FHM1: =FHL1+1 -> 4274 | FHN1: =FHM1+1 -> 4275 | FHO1: =FHN1+1 -> 4276 | FHP1: =FHO1+1 -> 4277 | FHQ1: =FHP1+1 -> 4278 | FHR1: =FHQ1+1 -> 4279 | FHS1: =FHR1+1 -> 4280 | FHT1: =FHS1+1 -> 4281 | FHU1: =FHT1+1 -> 4282 | FHV1: =FHU1+1 -> 4283 | FHW1: =FHV1+1 -> 4284 | FHX1: =FHW1+1 -> 4285 | FHY1: =FHX1+1 -> 4286 | FHZ1: =FHY1+1 -> 4287 | FIA1: =FHZ1+1 -> 4288 | FIB1: =FIA1+1 -> 4289 | FIC1: =FIB1+1 -> 4290 | FID1: =FIC1+1 -> 4291 | FIE1: =FID1+1 -> 4292 | FIF1: =FIE1+1 -> 4293 | FIG1: =FIF1+1 -> 4294 | FIH1: =FIG1+1 -> 4295 | FII1: =FIH1+1 -> 4296 | FIJ1: =FII1+1 -> 4297 | FIK1: =FIJ1+1 -> 4298 | FIL1: =FIK1+1 -> 4299 | FIM1: =FIL1+1 -> 4300 | FIN1: =FIM1+1 -> 4301 | FIO1: =FIN1+1 -> 4302 | FIP1: =FIO1+1 -> 4303 | FIQ1: =FIP1+1 -> 4304 | FIR1: =FIQ1+1 -> 4305 | FIS1: =FIR1+1 -> 4306 | FIT1: =FIS1+1 -> 4307 | FIU1: =FIT1+1 -> 4308 | FIV1: =FIU1+1 -> 4309 | FIW1: 4310 | FIX1: =FIW1+1 -> 4311 | FIY1: =FIX1+1 -> 4312 | FIZ1: =FIY1+1 -> 4313 | FJA1: =FIZ1+1 -> 4314 | FJB1: =FJA1+1 -> 4315 | FJC1: =FJB1+1 -> 4316 | FJD1: =FJC1+1 -> 4317 | FJE1: =FJD1+1 -> 4318 | FJF1: =FJE1+1 -> 4319 | FJG1: =FJF1+1 -> 4320 | FJH1: =FJG1+1 -> 4321 | FJI1: =FJH1+1 -> 4322 | FJJ1: =FJI1+1 -> 4323 | FJK1: =FJJ1+1 -> 4324 | FJL1: =FJK1+1 -> 4325 | FJM1: =FJL1+1 -> 4326 | FJN1: =FJM1+1 -> 4327 | FJO1: =FJN1+1 -> 4328 | FJP1: =FJO1+1 -> 4329 | FJQ1: =FJP1+1 -> 4330 | FJR1: =FJQ1+1 -> 4331 | FJS1: =FJR1+1 -> 4332 | FJT1: =FJS1+1 -> 4333 | FJU1: =FJT1+1 -> 4334 | FJV1: =FJU1+1 -> 4335 | FJW1: =FJV1+1 -> 4336 | FJX1: =FJW1+1 -> 4337 | FJY1: =FJX1+1 -> 4338 | FJZ1: =FJY1+1 -> 4339 | FKA1: =FJZ1+1 -> 4340 | FKB1: =FKA1+1 -> 4341 | FKC1: =FKB1+1 -> 4342 | FKD1: =FKC1+1 -> 4343 | FKE1: =FKD1+1 -> 4344 | FKF1: =FKE1+1 -> 4345 | FKG1: =FKF1+1 -> 4346 | FKH1: =FKG1+1 -> 4347 | FKI1: =FKH1+1 -> 4348 | FKJ1: =FKI1+1 -> 4349 | FKK1: =FKJ1+1 -> 4350 | FKL1: =FKK1+1 -> 4351 | FKM1: =FKL1+1 -> 4352 | FKN1: =FKM1+1 -> 4353 | FKO1: =FKN1+1 -> 4354 | FKP1: =FKO1+1 -> 4355 | FKQ1: =FKP1+1 -> 4356 | FKR1: =FKQ1+1 -> 4357 | FKS1: =FKR1+1 -> 4358 | FKT1: =FKS1+1 -> 4359 | FKU1: =FKT1+1 -> 4360 | FKV1: =FKU1+1 -> 4361 | FKW1: =FKV1+1 -> 4362 | FKX1: =FKW1+1 -> 4363 | FKY1: =FKX1+1 -> 4364 | FKZ1: =FKY1+1 -> 4365 | FLA1: =FKZ1+1 -> 4366 | FLB1: =FLA1+1 -> 4367 | FLC1: =FLB1+1 -> 4368 | FLD1: =FLC1+1 -> 4369 | FLE1: =FLD1+1 -> 4370 | FLF1: =FLE1+1 -> 4371 | FLG1: =FLF1+1 -> 4372 | FLH1: =FLG1+1 -> 4373 | FLI1: =FLH1+1 -> 4374 | FLJ1: =FLI1+1 -> 4375 | FLK1: =FLJ1+1 -> 4376 | FLL1: =FLK1+1 -> 4377 | FLM1: =FLL1+1 -> 4378 | FLN1: =FLM1+1 -> 4379 | FLO1: =FLN1+1 -> 4380 | FLP1: =FLO1+1 -> 4381 | FLQ1: =FLP1+1 -> 4382 | FLR1: =FLQ1+1 -> 4383 | FLS1: =FLR1+1 -> 4384 | FLT1: =FLS1+1 -> 4385 | FLU1: =FLT1+1 -> 4386 | FLV1: =FLU1+1 -> 4387 | FLW1: =FLV1+1 -> 4388 | FLX1: =FLW1+1 -> 4389 | FLY1: =FLX1+1 -> 4390 | FLZ1: =FLY1+1 -> 4391 | FMA1: =FLZ1+1 -> 4392 | FMB1: =FMA1+1 -> 4393 | FMC1: =FMB1+1 -> 4394 | FMD1: =FMC1+1 -> 4395 | FME1: =FMD1+1 -> 4396 | FMF1: =FME1+1 -> 4397 | FMG1: =FMF1+1 -> 4398 | FMH1: =FMG1+1 -> 4399 | FMI1: =FMH1+1 -> 4400 | FMJ1: 4401 | FMK1: =FMJ1+1 -> 4402 | FML1: =FMK1+1 -> 4403 | FMM1: =FML1+1 -> 4404 | FMN1: =FMM1+1 -> 4405 | FMO1: =FMN1+1 -> 4406 | FMP1: =FMO1+1 -> 4407 | FMQ1: =FMP1+1 -> 4408 | FMR1: =FMQ1+1 -> 4409 | FMS1: =FMR1+1 -> 4410 | FMT1: =FMS1+1 -> 4411 | FMU1: =FMT1+1 -> 4412 | FMV1: =FMU1+1 -> 4413 | FMW1: =FMV1+1 -> 4414 | FMX1: =FMW1+1 -> 4415 | FMY1: =FMX1+1 -> 4416 | FMZ1: =FMY1+1 -> 4417 | FNA1: =FMZ1+1 -> 4418 | FNB1: =FNA1+1 -> 4419 | FNC1: =FNB1+1 -> 4420 | FND1: =FNC1+1 -> 4421 | FNE1: =FND1+1 -> 4422 | FNF1: =FNE1+1 -> 4423 | FNG1: =FNF1+1 -> 4424 | FNH1: =FNG1+1 -> 4425 | FNI1: =FNH1+1 -> 4426 | FNJ1: =FNI1+1 -> 4427 | FNK1: =FNJ1+1 -> 4428 | FNL1: =FNK1+1 -> 4429 | FNM1: =FNL1+1 -> 4430 | FNN1: =FNM1+1 -> 4431 | FNO1: =FNN1+1 -> 4432 | FNP1: =FNO1+1 -> 4433 | FNQ1: =FNP1+1 -> 4434 | FNR1: =FNQ1+1 -> 4435 | FNS1: =FNR1+1 -> 4436 | FNT1: =FNS1+1 -> 4437 | FNU1: =FNT1+1 -> 4438 | FNV1: =FNU1+1 -> 4439 | FNW1: =FNV1+1 -> 4440 | FNX1: =FNW1+1 -> 4441 | FNY1: =FNX1+1 -> 4442 | FNZ1: =FNY1+1 -> 4443 | FOA1: =FNZ1+1 -> 4444 | FOB1: =FOA1+1 -> 4445 | FOC1: =FOB1+1 -> 4446 | FOD1: 4447 | FOE1: =FOD1+1 -> 4448 | FOF1: =FOE1+1 -> 4449 | FOG1: =FOF1+1 -> 4450 | FOH1: =FOG1+1 -> 4451 | FOI1: =FOH1+1 -> 4452 | FOJ1: =FOI1+1 -> 4453 | FOK1: =FOJ1+1 -> 4454 | FOL1: =FOK1+1 -> 4455 | FOM1: =FOL1+1 -> 4456 | FON1: =FOM1+1 -> 4457 | FOO1: =FON1+1 -> 4458 | FOP1: =FOO1+1 -> 4459 | FOQ1: =FOP1+1 -> 4460 | FOR1: =FOQ1+1 -> 4461 | FOS1: =FOR1+1 -> 4462 | FOT1: =FOS1+1 -> 4463 | FOU1: =FOT1+1 -> 4464 | FOV1: =FOU1+1 -> 4465 | FOW1: =FOV1+1 -> 4466 | FOX1: 4467 | FOY1: 4468 | FOZ1: =FOY1+1 -> 4469 | FPA1: =FOZ1+1 -> 4470 | FPB1: =FPA1+1 -> 4471 | FPC1: =FPB1+1 -> 4472 | FPD1: =FPC1+1 -> 4473 | FPE1: =FPD1+1 -> 4474 | FPF1: =FPE1+1 -> 4475 | FPG1: =FPF1+1 -> 4476 | FPH1: =FPG1+1 -> 4477 | FPI1: =FPH1+1 -> 4478 | FPJ1: =FPI1+1 -> 4479 | FPK1: =FPJ1+1 -> 4480 | FPL1: =FPK1+1 -> 4481 | FPM1: =FPL1+1 -> 4482 | FPN1: =FPM1+1 -> 4483 | FPO1: 4484 | FPP1: 4485 | FPQ1: 4486 | FPR1: 4487 | FPS1: 4488 | FPT1: 4489 | FPU1: 4490 | FPV1: 4491 | FPW1: 4492 | FPX1: 4493 | FPY1: 4494 | FPZ1: 4495 | FQA1: 4496 | FQB1: 4497 | FQC1: 4498 | FQD1: 4499 | FQE1: 4500 | FQF1: 4501 | FQG1: 4502 | FQH1: 4503 | FQI1: 4504 | FQJ1: 4505 | FQK1: 4506 | FQL1: 4507 | FQM1: 4508 | FQN1: 4509 | FQO1: 4510 | FQP1: 4511 | FQQ1: 4512 | FQR1: 4513 | FQS1: 4514 | FQT1: =FQS1+1 -> 4515 | FQU1: 4516 | FQV1: 4517 | FQW1: 4518 | FQX1: 4519 | FQY1: 4520 | FQZ1: 4521 | FRA1: 4522 | FRB1: 4523 | FRC1: 4524 | FRD1: 4525 | FRE1: 4526 | FRF1: 4527 | FRG1: 4528 | FRH1: 4529 | FRI1: 4530 | FRJ1: 4531 | FRK1: 4532 | FRL1: 4533 | FRM1: =FRL1+1 -> 4534 | FRN1: 4535 | FRO1: 4536 | FRP1: 4537 | FRQ1: 4538 | FRR1: 4539 | FRS1: 4540 | FRT1: 4541 | FRU1: 4542 | FRV1: 4543 | FRW1: 4544 | FRX1: 4545 | FRY1: 4546 | FRZ1: =FRY1+1 -> 4547 | FSA1: =FRZ1+1 -> 4548 | FSB1: =FSA1+1 -> 4549 | FSC1: =FSB1+1 -> 4550 | FSD1: =FSC1+1 -> 4551 | FSE1: =FSD1+1 -> 4552 | FSF1: =FSE1+1 -> 4553 | FSG1: =FSF1+1 -> 4554 | FSH1: =FSG1+1 -> 4555 | FSI1: =FSH1+1 -> 4556 | FSJ1: =FSI1+1 -> 4557 | FSK1: =FSJ1+1 -> 4558 | FSL1: =FSK1+1 -> 4559 | FSM1: =FSL1+1 -> 4560 | FSN1: =FSM1+1 -> 4561 | FSO1: =FSN1+1 -> 4562 | FSP1: =FSO1+1 -> 4563 | FSQ1: =FSP1+1 -> 4564 | FSR1: =FSQ1+1 -> 4565 | FSS1: =FSR1+1 -> 4566 | FST1: =FSS1+1 -> 4567 | FSU1: =FST1+1 -> 4568 | FSV1: =FSU1+1 -> 4569 | FSW1: =FSV1+1 -> 4570 | FSX1: =FSW1+1 -> 4571 | FSY1: =FSX1+1 -> 4572 | FSZ1: =FSY1+1 -> 4573 | FTA1: =FSZ1+1 -> 4574 | FTB1: =FTA1+1 -> 4575 | FTC1: 4576 | FTD1: =FTC1+1 -> 4577 | FTE1: =FTD1+1 -> 4578 | FTF1: =FTE1+1 -> 4579 | FTG1: =FTF1+1 -> 4580 | FTH1: =FTG1+1 -> 4581 | FTI1: =FTH1+1 -> 4582 | FTJ1: =FTI1+1 -> 4583 | FTK1: =FTJ1+1 -> 4584 | FTL1: =FTK1+1 -> 4585 | FTM1: =FTL1+1 -> 4586 | FTN1: =FTM1+1 -> 4587 | FTO1: =FTN1+1 -> 4588 | FTP1: =FTO1+1 -> 4589 | FTQ1: =FTP1+1 -> 4590 | FTR1: =FTQ1+1 -> 4591 | FTS1: =FTR1+1 -> 4592 | FTT1: =FTS1+1 -> 4593 | FTU1: =FTT1+1 -> 4594 | FTV1: =FTU1+1 -> 4595 | FTW1: =FTV1+1 -> 4596 | FTX1: =FTW1+1 -> 4597 | FTY1: =FTX1+1 -> 4598 | FTZ1: =FTY1+1 -> 4599 | FUA1: =FTZ1+1 -> 4600 | FUB1: =FUA1+1 -> 4601 | FUC1: =FUB1+1 -> 4602 | FUD1: =FUC1+1 -> 4603 | FUE1: =FUD1+1 -> 4604 | FUF1: =FUE1+1 -> 4605 | FUG1: =FUF1+1 -> 4606 | FUH1: =FUG1+1 -> 4607 | FUI1: =FUH1+1 -> 4608 | FUJ1: =FUI1+1 -> 4609 | FUK1: =FUJ1+1 -> 4610 | FUL1: =FUK1+1 -> 4611 | FUM1: =FUL1+1 -> 4612 | FUN1: =FUM1+1 -> 4613 | FUO1: =FUN1+1 -> 4614 | FUP1: =FUO1+1 -> 4615 | FUQ1: =FUP1+1 -> 4616 | FUR1: =FUQ1+1 -> 4617 | FUS1: =FUR1+1 -> 4618 | FUT1: =FUS1+1 -> 4619 | FUU1: =FUT1+1 -> 4620 | FUV1: =FUU1+1 -> 4621 | FUW1: 4622 | FUX1: 4623 | FUY1: 4624 | FUZ1: 4625 | FVA1: 4626 | FVB1: 4627 | FVC1: 4628 | FVD1: 4629 | FVE1: 4630 | FVF1: 4631 | FVG1: 4632 | FVH1: 4633 | FVI1: 4634 | FVJ1: =FVI1+1 -> 4635 | FVK1: 4636 | FVL1: 4637 | FVM1: 4638 | FVN1: 4639 | FVO1: 4640 | FVP1: 4641 | FVQ1: 4642 | FVR1: 4643 | FVS1: 4644 | FVT1: 4645 | FVU1: =FVT1+1 -> 4646 | FVV1: 4647 | FVW1: 4648 | FVX1: 4649 | FVY1: =FVX1+1 -> 4650 | FVZ1: 4651 | FWA1: 4652 | FWB1: 4653 | FWC1: 4654 | FWD1: 4655 | FWE1: =FWD1+1 -> 4656 | FWF1: 4657 | FWG1: 4658 | FWH1: 4659 | FWI1: 4660 | FWJ1: 4661 | FWK1: 4662 | FWL1: 4663 | FWM1: 4664 | FWN1: 4665 | FWO1: 4666 | FWP1: =FWO1+1 -> 4667 | FWQ1: 4668 | FWR1: 4669 | FWS1: 4670 | FWT1: 4671 | FWU1: 4672 | FWV1: 4673 | FWW1: 4674 | FWX1: 4675 | FWY1: 4676 | FWZ1: 4677 | FXA1: =FWZ1+1 -> 4678 | FXB1: =FXA1+1 -> 4679 | FXC1: =FXB1+1 -> 4680 | FXD1: =FXC1+1 -> 4681 | FXE1: =FXD1+1 -> 4682 | FXF1: =FXE1+1 -> 4683 | FXG1: =FXF1+1 -> 4684 | FXH1: =FXG1+1 -> 4685 | FXI1: =FXH1+1 -> 4686 | FXJ1: =FXI1+1 -> 4687 | FXK1: =FXJ1+1 -> 4688 | FXL1: =FXK1+1 -> 4689 | FXM1: =FXL1+1 -> 4690 | FXN1: =FXM1+1 -> 4691 | FXO1: =FXN1+1 -> 4692 | FXP1: =FXO1+1 -> 4693 | FXQ1: =FXP1+1 -> 4694 | FXR1: =FXQ1+1 -> 4695 | FXS1: =FXR1+1 -> 4696 | FXT1: =FXS1+1 -> 4697 | FXU1: =FXT1+1 -> 4698 | FXV1: =FXU1+1 -> 4699 | FXW1: =FXV1+1 -> 4700 | FXX1: =FXW1+1 -> 4701 | FXY1: =FXX1+1 -> 4702
